Workbook

Sheet Students
B1: Student ID | L1: Average | M1: =SUM([1]Data!AY:AY)/COUNT([1]Data!AY:AY) -> 0.4466403162 | N1: =SUM([1]Data!AZ:AZ)/COUNT([1]Data!AZ:AZ) -> 0.3320158103 | O1: =SUM([1]Data!BA:BA)/COUNT([1]Data!BA:BA) -> 0.5098814229 | P1: =SUM([1]Data!BB:BB)/COUNT([1]Data!BB:BB) -> 0.3754940711 | Q1: =SUM([1]Data!BC:BC)/COUNT([1]Data!BC:BC) -> 0.4031620553 | R1: =SUM([1]Data!BD:BD)/COUNT([1]Data!BD:BD) -> 0.4071146245 | S1: =SUM([1]Data!BE:BE)/COUNT([1]Data!BE:BE) -> 0.5059288538 | T1: =SUM([1]Data!BF:BF)/COUNT([1]Data!BF:BF) -> 0.9130434783 | U1: =SUM([1]Data!BG:BG)/COUNT([1]Data!BG:BG) -> 0.4505928854 | V1: =SUM([1]Data!BH:BH)/COUNT([1]Data!BH:BH) -> 0.5296442688 | W1: =SUM([1]Data!BI:BI)/COUNT([1]Data!BI:BI) -> 0.395256917 | X1: =SUM([1]Data!BJ:BJ)/COUNT([1]Data!BJ:BJ) -> 0.3675889328 | Y1: =SUM([1]Data!BK:BK)/COUNT([1]Data!BK:BK) -> 0.4505928854 | Z1: =SUM([1]Data!BL:BL)/COUNT([1]Data!BL:BL) -> 0.2964426877 | AA1: =SUM([1]Data!BM:BM)/COUNT([1]Data!BM:BM) -> 0.256916996 | AB1: =SUM([1]Data!BN:BN)/COUNT([1]Data!BN:BN) -> 0.2806324111 | AC1: =SUM([1]Data!BO:BO)/COUNT([1]Data!BO:BO) -> 0.2411067194 | AD1: =SUM([1]Data!BP:BP)/COUNT([1]Data!BP:BP) -> 0.3280632411 | AE1: =SUM([1]Data!BQ:BQ)/COUNT([1]Data!BQ:BQ) -> 0.4505928854 | AF1: =SUM([1]Data!BR:BR)/COUNT([1]Data!BR:BR) -> 0.5177865613 | AG1: =SUM([1]Data!BS:BS)/COUNT([1]Data!BS:BS) -> 0.442687747 | AH1: =SUM([1]Data!BT:BT)/COUNT([1]Data!BT:BT) -> 0.3385826772 | AI1: =SUM([1]Data!BU:BU)/COUNT([1]Data!BU:BU) -> 0.2806324111 | AJ1: =SUM([1]Data!BV:BV)/COUNT([1]Data!BV:BV) -> 0.2411067194 | AK1: =SUM([1]Data!BW:BW)/COUNT([1]Data!BW:BW) -> 0.2727272727 | AL1: =SUM([1]Data!BX:BX)/COUNT([1]Data!BX:BX) -> 0.209486166 | AM1: =SUM([1]Data!BY:BY)/COUNT([1]Data!BY:BY) -> 0.2964426877 | AN1: =SUM([1]Data!BZ:BZ)/COUNT([1]Data!BZ:BZ) -> 0.2885375494 | AO1: =SUM([1]Data!CA:CA)/COUNT([1]Data!CA:CA) -> 0.2213438735 | AP1: =SUM([1]Data!CB:CB)/COUNT([1]Data!CB:CB) -> 0.4110671937 | AQ1: =SUM([1]Data!CC:CC)/COUNT([1]Data!CC:CC) -> 0.1936758893 | AR1: =SUM([1]Data!CD:CD)/COUNT([1]Data!CD:CD) -> 0.209486166 | AS1: =SUM([1]Data!CE:CE)/COUNT([1]Data!CE:CE) -> 0.2015810277 | AT1: =SUM([1]Data!CF:CF)/COUNT([1]Data!CF:CF) -> 0.2924901186 | AU1: =SUM([1]Data!CG:CG)/COUNT([1]Data!CG:CG) -> 0.233201581 | AV1: =SUM([1]Data!CH:CH)/COUNT([1]Data!CH:CH) -> 0.3241106719 | AW1: =SUM([1]Data!CI:CI)/COUNT([1]Data!CI:CI) -> 0.1936758893 | AX1: =SUM([1]Data!CJ:CJ)/COUNT([1]Data!CJ:CJ) -> 0.2845849802 | AY1: =SUM([1]Data!CK:CK)/COUNT([1]Data!CK:CK) -> 0.1936758893 | AZ1: =SUM([1]Data!CL:CL)/COUNT([1]Data!CL:CL) -> 0.1897233202
A2: Type in your ID # -----> | C2: Averages | D2: 16.33596838 | E2: 19 | F2: 0.4000878349 | G2: 0.4026679842 | H2: 0.3847167325 | I2: 0.3631971893 | J2: 0.3871321915 | K2: 0.3610013175 | L2: Answer Key | M2: =[1]Inputs!C51 -> E | N2: =[1]Inputs!D51 -> D | O2: =[1]Inputs!E51 -> B | P2: =[1]Inputs!F51 -> D | Q2: =[1]Inputs!G51 -> A | R2: =[1]Inputs!H51 -> A | S2: =[1]Inputs!I51 -> E | T2: =[1]Inputs!J51 -> D | U2: =[1]Inputs!K51 -> D | V2: =[1]Inputs!L51 -> E | W2: =[1]Inputs!M51 -> C | X2: =[1]Inputs!N51 -> C | Y2: =[1]Inputs!O51 -> C | Z2: =[1]Inputs!P51 -> A | AA2: =[1]Inputs!Q51 -> D | AB2: =[1]Inputs!R51 -> D | AC2: =[1]Inputs!S51 -> D | AD2: =[1]Inputs!T51 -> E | AE2: =[1]Inputs!U51 -> B | AF2: =[1]Inputs!V51 -> D | AG2: =[1]Inputs!W51 -> D | AH2: =[1]Inputs!X51 -> A | AI2: =[1]Inputs!Y51 -> B | AJ2: =[1]Inputs!Z51 -> D | AK2: =[1]Inputs!AA51 -> A | AL2: =[1]Inputs!AB51 -> X | AM2: =[1]Inputs!AC51 -> B | AN2: =[1]Inputs!AD51 -> B | AO2: =[1]Inputs!AE51 -> D | AP2: =[1]Inputs!AF51 -> D | AQ2: =[1]Inputs!AG51 -> E | AR2: =[1]Inputs!AH51 -> B | AS2: =[1]Inputs!AI51 -> C | AT2: =[1]Inputs!AJ51 -> A | AU2: =[1]Inputs!AK51 -> D | AV2: =[1]Inputs!AL51 -> D | AW2: =[1]Inputs!AM51 -> A | AX2: =[1]Inputs!AN51 -> A | AY2: =[1]Inputs!AO51 -> A | AZ2: =[1]Inputs!AP51 -> C
A3: and hit "Enter" | C3: Student ID | D3: Correct out of 39 | E3: ACT Score | F3: =[1]Inputs!B12 -> Pre-Algebra | G3: =[1]Inputs!B13 -> Elementary Algebra | H3: =[1]Inputs!B14 -> Intermediate Algebra | I3: =[1]Inputs!B15 -> Coordinate Geometry | J3: =[1]Inputs!B16 -> Plane Geometry | K3: =[1]Inputs!B17 -> Trigonometry | L3: Questions | M3: 1 | N3: =IF(M3>=[1]Inputs!$C$8,"",M3+1) -> 2 | O3: =IF(N3>=[1]Inputs!$C$8,"",N3+1) -> 3 | P3: =IF(O3>=[1]Inputs!$C$8,"",O3+1) -> 4 | Q3: =IF(P3>=[1]Inputs!$C$8,"",P3+1) -> 5 | R3: =IF(Q3>=[1]Inputs!$C$8,"",Q3+1) -> 6 | S3: =IF(R3>=[1]Inputs!$C$8,"",R3+1) -> 7 | T3: =IF(S3>=[1]Inputs!$C$8,"",S3+1) -> 8 | U3: =IF(T3>=[1]Inputs!$C$8,"",T3+1) -> 9 | V3: =IF(U3>=[1]Inputs!$C$8,"",U3+1) -> 10 | W3: =IF(V3>=[1]Inputs!$C$8,"",V3+1) -> 11 | X3: =IF(W3>=[1]Inputs!$C$8,"",W3+1) -> 12 | Y3: =IF(X3>=[1]Inputs!$C$8,"",X3+1) -> 13 | Z3: =IF(Y3>=[1]Inputs!$C$8,"",Y3+1) -> 14 | AA3: =IF(Z3>=[1]Inputs!$C$8,"",Z3+1) -> 15 | AB3: =IF(AA3>=[1]Inputs!$C$8,"",AA3+1) -> 16 | AC3: =IF(AB3>=[1]Inputs!$C$8,"",AB3+1) -> 17 | AD3: =IF(AC3>=[1]Inputs!$C$8,"",AC3+1) -> 18 | AE3: =IF(AD3>=[1]Inputs!$C$8,"",AD3+1) -> 19 | AF3: =IF(AE3>=[1]Inputs!$C$8,"",AE3+1) -> 20 | AG3: =IF(AF3>=[1]Inputs!$C$8,"",AF3+1) -> 21 | AH3: =IF(AG3>=[1]Inputs!$C$8,"",AG3+1) -> 22 | AI3: =IF(AH3>=[1]Inputs!$C$8,"",AH3+1) -> 23 | AJ3: =IF(AI3>=[1]Inputs!$C$8,"",AI3+1) -> 24 | AK3: =IF(AJ3>=[1]Inputs!$C$8,"",AJ3+1) -> 25 | AL3: =IF(AK3>=[1]Inputs!$C$8,"",AK3+1) -> 26 | AM3: =IF(AL3>=[1]Inputs!$C$8,"",AL3+1) -> 27 | AN3: =IF(AM3>=[1]Inputs!$C$8,"",AM3+1) -> 28 | AO3: =IF(AN3>=[1]Inputs!$C$8,"",AN3+1) -> 29 | AP3: =IF(AO3>=[1]Inputs!$C$8,"",AO3+1) -> 30 | AQ3: =IF(AP3>=[1]Inputs!$C$8,"",AP3+1) -> 31 | AR3: =IF(AQ3>=[1]Inputs!$C$8,"",AQ3+1) -> 32 | AS3: =IF(AR3>=[1]Inputs!$C$8,"",AR3+1) -> 33 | AT3: =IF(AS3>=[1]Inputs!$C$8,"",AS3+1) -> 34 | AU3: =IF(AT3>=[1]Inputs!$C$8,"",AT3+1) -> 35 | AV3: =IF(AU3>=[1]Inputs!$C$8,"",AU3+1) -> 36 | AW3: =IF(AV3>=[1]Inputs!$C$8,"",AV3+1) -> 37 | AX3: =IF(AW3>=[1]Inputs!$C$8,"",AW3+1) -> 38 | AY3: =IF(AX3>=[1]Inputs!$C$8,"",AX3+1) -> 39 | AZ3: =IF(AY3>=[1]Inputs!$C$8,"",AY3+1) -> 40 | BA3: =IF(AZ3>=[1]Inputs!$C$8,"",AZ3+1) ->  | BB3: =IF(BA3>=[1]Inputs!$C$8,"",BA3+1) ->  | BC3: =IF(BB3>=[1]Inputs!$C$8,"",BB3+1) ->  | BD3: =IF(BC3>=[1]Inputs!$C$8,"",BC3+1) ->  | BE3: =IF(BD3>=[1]Inputs!$C$8,"",BD3+1) -> 
C4: 20419 | D4: =[1]Data!C71 -> 15 | E4: =LOOKUP(D4,[1]Inputs!$B$55:$B$84,[1]Inputs!$A$55:$A$84) -> 18 | F4: =SUM([1]Data!AY71+[1]Data!BA71+[1]Data!BB71+[1]Data!BE71+[1]Data!BH71+[1]Data!BP71+[1]Data!BS71+[1]Data!BT71+[1]Data!CD71)/[1]Inputs!$A$12 -> 0.2222222222 | G4: =SUM([1]Data!AZ71+[1]Data!BB71+[1]Data!BC71+[1]Data!BF71+[1]Data!BI71+[1]Data!BQ71+[1]Data!BT71+[1]Data!BU71+[1]Data!CE71)/[1]Inputs!$A$12 -> 0.5555555556 | H4: =SUM([1]Data!BA71+[1]Data!BC71+[1]Data!BD71+[1]Data!BG71+[1]Data!BJ71+[1]Data!BR71+[1]Data!BU71+[1]Data!BV71+[1]Data!CF71)/[1]Inputs!$A$12 -> 0.3333333333 | I4: =SUM([1]Data!BB71+[1]Data!BD71+[1]Data!BE71+[1]Data!BH71+[1]Data!BK71+[1]Data!BS71+[1]Data!BV71+[1]Data!BW71+[1]Data!CG71)/[1]Inputs!$A$12 -> 0.1111111111 | J4: =SUM([1]Data!BC71+[1]Data!BE71+[1]Data!BF71+[1]Data!BI71+[1]Data!BL71+[1]Data!BT71+[1]Data!BW71+[1]Data!BX71+[1]Data!CH71)/[1]Inputs!$A$12 -> 0.4444444444 | K4: =SUM([1]Data!BD71+[1]Data!BF71+[1]Data!BG71+[1]Data!BJ71+[1]Data!BM71+[1]Data!BU71+[1]Data!BX71+[1]Data!BY71+[1]Data!CI71)/[1]Inputs!$A$12 -> 0.2222222222 | M4: B | N4: C | O4: B | P4: C | Q4: B | R4: A | S4: C | T4: D | U4: D | V4: C | W4: C | X4: B | Y4: D | Z4: A | AA4: C | AB4: E | AC4: A | AD4: C | AE4: A | AF4: D | AG4: D | AH4: A | AI4: B | AJ4: C | AK4: A | AL4: C | AM4: B | AN4: B | AO4: E | AP4: A | AQ4: A | AR4: C | AS4: B | AT4: A | AU4: E | AV4: A | AW4: C | AX4: D | AY4: C | AZ4: C
C5: 20716 | D5: =[1]Data!C147 -> 14 | E5: =LOOKUP(D5,[1]Inputs!$B$55:$B$84,[1]Inputs!$A$55:$A$84) -> 17 | F5: =SUM([1]Data!AY147+[1]Data!BA147+[1]Data!BB147+[1]Data!BE147+[1]Data!BH147+[1]Data!BP147+[1]Data!BS147+[1]Data!BT147+[1]Data!CD147)/[1]Inputs!$A$12 -> 0.3333333333 | G5: =SUM([1]Data!AZ147+[1]Data!BB147+[1]Data!BC147+[1]Data!BF147+[1]Data!BI147+[1]Data!BQ147+[1]Data!BT147+[1]Data!BU147+[1]Data!CE147)/[1]Inputs!$A$12 -> 0.3333333333 | H5: =SUM([1]Data!BA147+[1]Data!BC147+[1]Data!BD147+[1]Data!BG147+[1]Data!BJ147+[1]Data!BR147+[1]Data!BU147+[1]Data!BV147+[1]Data!CF147)/[1]Inputs!$A$12 -> 0.3333333333 | I5: =SUM([1]Data!BB147+[1]Data!BD147+[1]Data!BE147+[1]Data!BH147+[1]Data!BK147+[1]Data!BS147+[1]Data!BV147+[1]Data!BW147+[1]Data!CG147)/[1]Inputs!$A$12 -> 0.2222222222 | J5: =SUM([1]Data!BC147+[1]Data!BE147+[1]Data!BF147+[1]Data!BI147+[1]Data!BL147+[1]Data!BT147+[1]Data!BW147+[1]Data!BX147+[1]Data!CH147)/[1]Inputs!$A$12 -> 0.3333333333 | K5: =SUM([1]Data!BD147+[1]Data!BF147+[1]Data!BG147+[1]Data!BJ147+[1]Data!BM147+[1]Data!BU147+[1]Data!BX147+[1]Data!BY147+[1]Data!CI147)/[1]Inputs!$A$12 -> 0.5555555556 | M5: E | N5: D | O5: B | P5: C | Q5: A | R5: E | S5: E | T5: D | U5: E | V5: C | W5: E | X5: B | Y5: A | Z5: E | AA5: C | AB5: D | AC5: B | AD5: E | AE5: A | AF5: D | AG5: D | AH5: A | AI5: B | AJ5: C | AK5: B | AL5: C | AM5: D | AN5: B | AO5: C | AP5: C | AQ5: C | AR5: C | AS5: C | AT5: C | AU5: C | AV5: C | AW5: C | AX5: C | AY5: C | AZ5: C
C6: 21569 | D6: =[1]Data!C83 -> 13 | E6: =LOOKUP(D6,[1]Inputs!$B$55:$B$84,[1]Inputs!$A$55:$A$84) -> 17 | F6: =SUM([1]Data!AY83+[1]Data!BA83+[1]Data!BB83+[1]Data!BE83+[1]Data!BH83+[1]Data!BP83+[1]Data!BS83+[1]Data!BT83+[1]Data!CD83)/[1]Inputs!$A$12 -> 0.5555555556 | G6: =SUM([1]Data!AZ83+[1]Data!BB83+[1]Data!BC83+[1]Data!BF83+[1]Data!BI83+[1]Data!BQ83+[1]Data!BT83+[1]Data!BU83+[1]Data!CE83)/[1]Inputs!$A$12 -> 0.3333333333 | H6: =SUM([1]Data!BA83+[1]Data!BC83+[1]Data!BD83+[1]Data!BG83+[1]Data!BJ83+[1]Data!BR83+[1]Data!BU83+[1]Data!BV83+[1]Data!CF83)/[1]Inputs!$A$12 -> 0.3333333333 | I6: =SUM([1]Data!BB83+[1]Data!BD83+[1]Data!BE83+[1]Data!BH83+[1]Data!BK83+[1]Data!BS83+[1]Data!BV83+[1]Data!BW83+[1]Data!CG83)/[1]Inputs!$A$12 -> 0.2222222222 | J6: =SUM([1]Data!BC83+[1]Data!BE83+[1]Data!BF83+[1]Data!BI83+[1]Data!BL83+[1]Data!BT83+[1]Data!BW83+[1]Data!BX83+[1]Data!CH83)/[1]Inputs!$A$12 -> 0.5555555556 | K6: =SUM([1]Data!BD83+[1]Data!BF83+[1]Data!BG83+[1]Data!BJ83+[1]Data!BM83+[1]Data!BU83+[1]Data!BX83+[1]Data!BY83+[1]Data!CI83)/[1]Inputs!$A$12 -> 0.4444444444 | M6: E | N6: C | O6: C | P6: B | Q6: D | R6: E | S6: D | T6: D | U6: E | V6: D | W6: D | X6: C | Y6: B | Z6: B | AA6: D | AB6: D | AC6: D | AD6: E | AE6: B | AF6: D | AG6: E | AH6: D | AI6: B | AJ6: B | AK6: B | AL6: B | AM6: D | AN6: E | AO6: C | AP6: D | AQ6: B | AR6: A | AS6: A | AT6: B | AU6: B | AV6: A | AW6: C | AX6: D | AY6: A | AZ6: D
C7: 21570 | D7: =[1]Data!C115 -> 19 | E7: =LOOKUP(D7,[1]Inputs!$B$55:$B$84,[1]Inputs!$A$55:$A$84) -> 20 | F7: =SUM([1]Data!AY115+[1]Data!BA115+[1]Data!BB115+[1]Data!BE115+[1]Data!BH115+[1]Data!BP115+[1]Data!BS115+[1]Data!BT115+[1]Data!CD115)/[1]Inputs!$A$12 -> 0.3333333333 | G7: =SUM([1]Data!AZ115+[1]Data!BB115+[1]Data!BC115+[1]Data!BF115+[1]Data!BI115+[1]Data!BQ115+[1]Data!BT115+[1]Data!BU115+[1]Data!CE115)/[1]Inputs!$A$12 -> 0.4444444444 | H7: =SUM([1]Data!BA115+[1]Data!BC115+[1]Data!BD115+[1]Data!BG115+[1]Data!BJ115+[1]Data!BR115+[1]Data!BU115+[1]Data!BV115+[1]Data!CF115)/[1]Inputs!$A$12 -> 0.2222222222 | I7: =SUM([1]Data!BB115+[1]Data!BD115+[1]Data!BE115+[1]Data!BH115+[1]Data!BK115+[1]Data!BS115+[1]Data!BV115+[1]Data!BW115+[1]Data!CG115)/[1]Inputs!$A$12 -> 0.5555555556 | J7: =SUM([1]Data!BC115+[1]Data!BE115+[1]Data!BF115+[1]Data!BI115+[1]Data!BL115+[1]Data!BT115+[1]Data!BW115+[1]Data!BX115+[1]Data!CH115)/[1]Inputs!$A$12 -> 0.4444444444 | K7: =SUM([1]Data!BD115+[1]Data!BF115+[1]Data!BG115+[1]Data!BJ115+[1]Data!BM115+[1]Data!BU115+[1]Data!BX115+[1]Data!BY115+[1]Data!CI115)/[1]Inputs!$A$12 -> 0.4444444444 | M7: E | N7: D | O7: B | P7: D | Q7: A | R7: A | S7: E | T7: D | U7: E | V7: E | W7: C | X7: B | Y7: B | Z7: A | AA7: C | AB7: D | AC7: A | AD7: E | AE7: A | AF7: D | AG7: D | AH7: C | AI7: D | AJ7: E | AK7: A | AL7: B | AM7: D | AN7: C | AO7: B | AP7: D | AQ7: B | AR7: A | AS7: C | AT7: A | AU7: B | AV7: A | AW7: D | AX7: D | AY7: C | AZ7: B
C8: 21578 | D8: =[1]Data!C61 -> 21 | E8: =LOOKUP(D8,[1]Inputs!$B$55:$B$84,[1]Inputs!$A$55:$A$84) -> 22 | F8: =SUM([1]Data!AY61+[1]Data!BA61+[1]Data!BB61+[1]Data!BE61+[1]Data!BH61+[1]Data!BP61+[1]Data!BS61+[1]Data!BT61+[1]Data!CD61)/[1]Inputs!$A$12 -> 0.5555555556 | G8: =SUM([1]Data!AZ61+[1]Data!BB61+[1]Data!BC61+[1]Data!BF61+[1]Data!BI61+[1]Data!BQ61+[1]Data!BT61+[1]Data!BU61+[1]Data!CE61)/[1]Inputs!$A$12 -> 0.5555555556 | H8: =SUM([1]Data!BA61+[1]Data!BC61+[1]Data!BD61+[1]Data!BG61+[1]Data!BJ61+[1]Data!BR61+[1]Data!BU61+[1]Data!BV61+[1]Data!CF61)/[1]Inputs!$A$12 -> 0.5555555556 | I8: =SUM([1]Data!BB61+[1]Data!BD61+[1]Data!BE61+[1]Data!BH61+[1]Data!BK61+[1]Data!BS61+[1]Data!BV61+[1]Data!BW61+[1]Data!CG61)/[1]Inputs!$A$12 -> 0.5555555556 | J8: =SUM([1]Data!BC61+[1]Data!BE61+[1]Data!BF61+[1]Data!BI61+[1]Data!BL61+[1]Data!BT61+[1]Data!BW61+[1]Data!BX61+[1]Data!CH61)/[1]Inputs!$A$12 -> 0.7777777778 | K8: =SUM([1]Data!BD61+[1]Data!BF61+[1]Data!BG61+[1]Data!BJ61+[1]Data!BM61+[1]Data!BU61+[1]Data!BX61+[1]Data!BY61+[1]Data!CI61)/[1]Inputs!$A$12 -> 0.6666666667 | M8: E | N8: D | O8: B | P8: D | Q8: A | R8: A | S8: E | T8: D | U8: D | V8: E | W8: A | X8: C | Y8: B | Z8: C | AA8: E | AB8: D | AC8: B | AD8: E | AE8: A | AF8: D | AG8: E | AH8: C | AI8: D | AJ8: C | AK8: A | AL8: E | AM8: D | AN8: D | AO8: D | AP8: D | AQ8: A | AR8: B | AS8: C | AT8: A | AU8: A | AV8: A | AW8: D | AX8: D | AY8: B | AZ8: E
C9: 21580 | D9: =[1]Data!C234 -> 19 | E9: =LOOKUP(D9,[1]Inputs!$B$55:$B$84,[1]Inputs!$A$55:$A$84) -> 20 | F9: =SUM([1]Data!AY234+[1]Data!BA234+[1]Data!BB234+[1]Data!BE234+[1]Data!BH234+[1]Data!BP234+[1]Data!BS234+[1]Data!BT234+[1]Data!CD234)/[1]Inputs!$A$12 -> 0.4444444444 | G9: =SUM([1]Data!AZ234+[1]Data!BB234+[1]Data!BC234+[1]Data!BF234+[1]Data!BI234+[1]Data!BQ234+[1]Data!BT234+[1]Data!BU234+[1]Data!CE234)/[1]Inputs!$A$12 -> 0.4444444444 | H9: =SUM([1]Data!BA234+[1]Data!BC234+[1]Data!BD234+[1]Data!BG234+[1]Data!BJ234+[1]Data!BR234+[1]Data!BU234+[1]Data!BV234+[1]Data!CF234)/[1]Inputs!$A$12 -> 0.6666666667 | I9: =SUM([1]Data!BB234+[1]Data!BD234+[1]Data!BE234+[1]Data!BH234+[1]Data!BK234+[1]Data!BS234+[1]Data!BV234+[1]Data!BW234+[1]Data!CG234)/[1]Inputs!$A$12 -> 0.4444444444 | J9: =SUM([1]Data!BC234+[1]Data!BE234+[1]Data!BF234+[1]Data!BI234+[1]Data!BL234+[1]Data!BT234+[1]Data!BW234+[1]Data!BX234+[1]Data!CH234)/[1]Inputs!$A$12 -> 0.3333333333 | K9: =SUM([1]Data!BD234+[1]Data!BF234+[1]Data!BG234+[1]Data!BJ234+[1]Data!BM234+[1]Data!BU234+[1]Data!BX234+[1]Data!BY234+[1]Data!CI234)/[1]Inputs!$A$12 -> 0.4444444444 | M9: E | N9: D | O9: B | P9: D | Q9: C | R9: E | S9: E | T9: D | U9: D | V9: E | W9: C | X9: C | Y9: C | Z9: A | AA9: C | AB9: D | AC9: B | AD9: E | AE9: A | AF9: D | AG9: D | AH9: A | AI9: B | AJ9: C | AK9: D | AL9: D | AM9: C | AN9: B | AO9: C | AP9: A | AQ9: B | AR9: D | AS9: C | AT9: C | AU9: A | AV9: A | AW9: C | AX9: E | AY9: C | AZ9: A
C10: 21592 | D10: =[1]Data!C82 -> 27 | E10: =LOOKUP(D10,[1]Inputs!$B$55:$B$84,[1]Inputs!$A$55:$A$84) -> 27 | F10: =SUM([1]Data!AY82+[1]Data!BA82+[1]Data!BB82+[1]Data!BE82+[1]Data!BH82+[1]Data!BP82+[1]Data!BS82+[1]Data!BT82+[1]Data!CD82)/[1]Inputs!$A$12 -> 0.7777777778 | G10: =SUM([1]Data!AZ82+[1]Data!BB82+[1]Data!BC82+[1]Data!BF82+[1]Data!BI82+[1]Data!BQ82+[1]Data!BT82+[1]Data!BU82+[1]Data!CE82)/[1]Inputs!$A$12 -> 0.7777777778 | H10: =SUM([1]Data!BA82+[1]Data!BC82+[1]Data!BD82+[1]Data!BG82+[1]Data!BJ82+[1]Data!BR82+[1]Data!BU82+[1]Data!BV82+[1]Data!CF82)/[1]Inputs!$A$12 -> 0.7777777778 | I10: =SUM([1]Data!BB82+[1]Data!BD82+[1]Data!BE82+[1]Data!BH82+[1]Data!BK82+[1]Data!BS82+[1]Data!BV82+[1]Data!BW82+[1]Data!CG82)/[1]Inputs!$A$12 -> 0.7777777778 | J10: =SUM([1]Data!BC82+[1]Data!BE82+[1]Data!BF82+[1]Data!BI82+[1]Data!BL82+[1]Data!BT82+[1]Data!BW82+[1]Data!BX82+[1]Data!CH82)/[1]Inputs!$A$12 -> 0.7777777778 | K10: =SUM([1]Data!BD82+[1]Data!BF82+[1]Data!BG82+[1]Data!BJ82+[1]Data!BM82+[1]Data!BU82+[1]Data!BX82+[1]Data!BY82+[1]Data!CI82)/[1]Inputs!$A$12 -> 0.4444444444 | M10: E | N10: B | O10: B | P10: C | Q10: A | R10: A | S10: E | T10: D | U10: D | V10: E | W10: C | X10: E | Y10: C | Z10: A | AA10: E | AB10: D | AC10: A | AD10: E | AE10: B | AF10: D | AG10: D | AH10: A | AI10: B | AJ10: D | AK10: A | AL10: B | AM10: B | AN10: E | AO10: D | AP10: D | AQ10: C | AR10: B | AS10: A | AT10: D | AU10: D | AV10: A | AW10: B | AX10: D | AY10: D | AZ10: C
C11: 21605 | D11: =[1]Data!C185 -> 26 | E11: =LOOKUP(D11,[1]Inputs!$B$55:$B$84,[1]Inputs!$A$55:$A$84) -> 26 | F11: =SUM([1]Data!AY185+[1]Data!BA185+[1]Data!BB185+[1]Data!BE185+[1]Data!BH185+[1]Data!BP185+[1]Data!BS185+[1]Data!BT185+[1]Data!CD185)/[1]Inputs!$A$12 -> 0.4444444444 | G11: =SUM([1]Data!AZ185+[1]Data!BB185+[1]Data!BC185+[1]Data!BF185+[1]Data!BI185+[1]Data!BQ185+[1]Data!BT185+[1]Data!BU185+[1]Data!CE185)/[1]Inputs!$A$12 -> 0.6666666667 | H11: =SUM([1]Data!BA185+[1]Data!BC185+[1]Data!BD185+[1]Data!BG185+[1]Data!BJ185+[1]Data!BR185+[1]Data!BU185+[1]Data!BV185+[1]Data!CF185)/[1]Inputs!$A$12 -> 0.8888888889 | I11: =SUM([1]Data!BB185+[1]Data!BD185+[1]Data!BE185+[1]Data!BH185+[1]Data!BK185+[1]Data!BS185+[1]Data!BV185+[1]Data!BW185+[1]Data!CG185)/[1]Inputs!$A$12 -> 0.4444444444 | J11: =SUM([1]Data!BC185+[1]Data!BE185+[1]Data!BF185+[1]Data!BI185+[1]Data!BL185+[1]Data!BT185+[1]Data!BW185+[1]Data!BX185+[1]Data!CH185)/[1]Inputs!$A$12 -> 0.6666666667 | K11: =SUM([1]Data!BD185+[1]Data!BF185+[1]Data!BG185+[1]Data!BJ185+[1]Data!BM185+[1]Data!BU185+[1]Data!BX185+[1]Data!BY185+[1]Data!CI185)/[1]Inputs!$A$12 -> 0.5555555556 | M11: E | N11: C | O11: B | P11: C | Q11: A | R11: A | S11: D | T11: D | U11: D | V11: E | W11: C | X11: C | Y11: C | Z11: A | AA11: D | AB11: D | AC11: B | AD11: E | AE11: B | AF11: D | AG11: D | AH11: A | AI11: B | AJ11: C | AK11: B | AL11: B | AM11: B | AN11: B | AO11: D | AP11: A | AQ11: B | AR11: D | AS11: C | AT11: A | AU11: D | AV11: D | AW11: D | AX11: E | AY11: C | AZ11: E
C12: 21606 | D12: =[1]Data!C158 -> 16 | E12: =LOOKUP(D12,[1]Inputs!$B$55:$B$84,[1]Inputs!$A$55:$A$84) -> 18 | F12: =SUM([1]Data!AY158+[1]Data!BA158+[1]Data!BB158+[1]Data!BE158+[1]Data!BH158+[1]Data!BP158+[1]Data!BS158+[1]Data!BT158+[1]Data!CD158)/[1]Inputs!$A$12 -> 0.7777777778 | G12: =SUM([1]Data!AZ158+[1]Data!BB158+[1]Data!BC158+[1]Data!BF158+[1]Data!BI158+[1]Data!BQ158+[1]Data!BT158+[1]Data!BU158+[1]Data!CE158)/[1]Inputs!$A$12 -> 0.4444444444 | H12: =SUM([1]Data!BA158+[1]Data!BC158+[1]Data!BD158+[1]Data!BG158+[1]Data!BJ158+[1]Data!BR158+[1]Data!BU158+[1]Data!BV158+[1]Data!CF158)/[1]Inputs!$A$12 -> 0.5555555556 | I12: =SUM([1]Data!BB158+[1]Data!BD158+[1]Data!BE158+[1]Data!BH158+[1]Data!BK158+[1]Data!BS158+[1]Data!BV158+[1]Data!BW158+[1]Data!CG158)/[1]Inputs!$A$12 -> 0.4444444444 | J12: =SUM([1]Data!BC158+[1]Data!BE158+[1]Data!BF158+[1]Data!BI158+[1]Data!BL158+[1]Data!BT158+[1]Data!BW158+[1]Data!BX158+[1]Data!CH158)/[1]Inputs!$A$12 -> 0.3333333333 | K12: =SUM([1]Data!BD158+[1]Data!BF158+[1]Data!BG158+[1]Data!BJ158+[1]Data!BM158+[1]Data!BU158+[1]Data!BX158+[1]Data!BY158+[1]Data!CI158)/[1]Inputs!$A$12 -> 0.5555555556 | M12: B | N12: B | O12: B | P12: C | Q12: A | R12: E | S12: E | T12: D | U12: D | V12: E | W12: C | X12: D | Y12: B | Z12: A | AA12: D | AB12: D | AC12: C | AD12: E | AE12: A | AF12: A | AG12: D | AH12: C | AI12: D | AJ12: B | AK12: A | AL12: B | AM12: D | AN12: B | AO12: C | AP12: E | AQ12: A | AR12: C | AS12: E | AT12: B | AU12: C | AV12: D | AW12: D | AX12: A | AY12: C | AZ12: A
C13: =[1]Data!E41 -> 21608 | D13: 14 | E13: =LOOKUP(D13,[1]Inputs!$B$55:$B$84,[1]Inputs!$A$55:$A$84) -> 17 | F13: =SUM([1]Data!AY41+[1]Data!BA41+[1]Data!BB41+[1]Data!BE41+[1]Data!BH41+[1]Data!BP41+[1]Data!BS41+[1]Data!BT41+[1]Data!CD41)/[1]Inputs!$A$12 -> 0.7777777778 | G13: =SUM([1]Data!BD41+[1]Data!BF41+[1]Data!BI41+[1]Data!BL41+[1]Data!BO41+[1]Data!BQ41+[1]Data!CA41+[1]Data!CH41)/[1]Inputs!$A$13 -> 0.375 | H13: =SUM([1]Data!AZ41+[1]Data!BJ41+[1]Data!BM41+[1]Data!BX41+[1]Data!CB41+[1]Data!CJ41+[1]Data!CK41)/[1]Inputs!$A$14 -> 0.5 | I13: =SUM([1]Data!BV41+[1]Data!CC41+[1]Data!CL41)/[1]Inputs!$A$15 -> 0.3333333333 | J13: =SUM([1]Data!BC41+[1]Data!BG41+[1]Data!BJ41+[1]Data!BN41+[1]Data!BR41+[1]Data!BU41+[1]Data!BY41+[1]Data!BZ41+[1]Data!CE41+[1]Data!CG41)/[1]Inputs!$A$16 -> 0.1 | K13: =SUM([1]Data!BW41+[1]Data!CF41+[1]Data!CI41)/[1]Inputs!$A$17 -> 0 | M13: E | N13: C | O13: B | P13: D | Q13: B | R13: A | S13: E | T13: D | U13: E | V13: E | W13: C | X13: D | Y13: B | Z13: A | AA13: A | AB13: B | AC13: D | AD13: D | AE13: A | AF13: C | AG13: D | AH13: A | AI13: D | AJ13: C | AK13: E | AL13: A | AM13: D | AN13: B | AO13: B | AP13: D | AQ13: D | AR13: D | AS13: A | AT13: B | AU13: B | AV13: C | AW13: E | AX13: D | AY13: C | AZ13: D
C14: 21609 | D14: =[1]Data!C50 -> 18 | E14: =LOOKUP(D14,[1]Inputs!$B$55:$B$84,[1]Inputs!$A$55:$A$84) -> 19 | F14: =SUM([1]Data!AY50+[1]Data!BA50+[1]Data!BB50+[1]Data!BE50+[1]Data!BH50+[1]Data!BP50+[1]Data!BS50+[1]Data!BT50+[1]Data!CD50)/[1]Inputs!$A$12 -> 0.6666666667 | G14: =SUM([1]Data!AZ50+[1]Data!BB50+[1]Data!BC50+[1]Data!BF50+[1]Data!BI50+[1]Data!BQ50+[1]Data!BT50+[1]Data!BU50+[1]Data!CE50)/[1]Inputs!$A$12 -> 0.2222222222 | H14: =SUM([1]Data!BA50+[1]Data!BC50+[1]Data!BD50+[1]Data!BG50+[1]Data!BJ50+[1]Data!BR50+[1]Data!BU50+[1]Data!BV50+[1]Data!CF50)/[1]Inputs!$A$12 -> 0.3333333333 | I14: =SUM([1]Data!BB50+[1]Data!BD50+[1]Data!BE50+[1]Data!BH50+[1]Data!BK50+[1]Data!BS50+[1]Data!BV50+[1]Data!BW50+[1]Data!CG50)/[1]Inputs!$A$12 -> 0.7777777778 | J14: =SUM([1]Data!BC50+[1]Data!BE50+[1]Data!BF50+[1]Data!BI50+[1]Data!BL50+[1]Data!BT50+[1]Data!BW50+[1]Data!BX50+[1]Data!CH50)/[1]Inputs!$A$12 -> 0.3333333333 | K14: =SUM([1]Data!BD50+[1]Data!BF50+[1]Data!BG50+[1]Data!BJ50+[1]Data!BM50+[1]Data!BU50+[1]Data!BX50+[1]Data!BY50+[1]Data!CI50)/[1]Inputs!$A$12 -> 0.1111111111 | M14: E | N14: B | O14: B | P14: D | Q14: B | R14: E | S14: E | T14: D | U14: E | V14: E | W14: C | X14: D | Y14: B | Z14: A | AA14: D | AB14: A | AC14: C | AD14: E | AE14: B | AF14: D | AG14: D | AH14: A | AI14: B | AJ14: A | AK14: A | AL14: B | AM14: D | AN14: E | AO14: B | AP14: A | AQ14: B | AR14: A | AS14: E | AT14: A | AU14: C | AV14: A | AW14: E | AX14: D | AY14: D | AZ14: A
C15: 21610 | D15: =[1]Data!C180 -> 22 | E15: =LOOKUP(D15,[1]Inputs!$B$55:$B$84,[1]Inputs!$A$55:$A$84) -> 23 | F15: =SUM([1]Data!AY180+[1]Data!BA180+[1]Data!BB180+[1]Data!BE180+[1]Data!BH180+[1]Data!BP180+[1]Data!BS180+[1]Data!BT180+[1]Data!CD180)/[1]Inputs!$A$12 -> 0.4444444444 | G15: =SUM([1]Data!AZ180+[1]Data!BB180+[1]Data!BC180+[1]Data!BF180+[1]Data!BI180+[1]Data!BQ180+[1]Data!BT180+[1]Data!BU180+[1]Data!CE180)/[1]Inputs!$A$12 -> 0.3333333333 | H15: =SUM([1]Data!BA180+[1]Data!BC180+[1]Data!BD180+[1]Data!BG180+[1]Data!BJ180+[1]Data!BR180+[1]Data!BU180+[1]Data!BV180+[1]Data!CF180)/[1]Inputs!$A$12 -> 0.5555555556 | I15: =SUM([1]Data!BB180+[1]Data!BD180+[1]Data!BE180+[1]Data!BH180+[1]Data!BK180+[1]Data!BS180+[1]Data!BV180+[1]Data!BW180+[1]Data!CG180)/[1]Inputs!$A$12 -> 0.5555555556 | J15: =SUM([1]Data!BC180+[1]Data!BE180+[1]Data!BF180+[1]Data!BI180+[1]Data!BL180+[1]Data!BT180+[1]Data!BW180+[1]Data!BX180+[1]Data!CH180)/[1]Inputs!$A$12 -> 0.4444444444 | K15: =SUM([1]Data!BD180+[1]Data!BF180+[1]Data!BG180+[1]Data!BJ180+[1]Data!BM180+[1]Data!BU180+[1]Data!BX180+[1]Data!BY180+[1]Data!CI180)/[1]Inputs!$A$12 -> 0.5555555556 | M15: D | N15: D | O15: B | P15: D | Q15: A | R15: A | S15: E | T15: D | U15: D | V15: E | W15: B | X15: C | Y15: C | Z15: A | AA15: A | AB15: B | AC15: D | AD15: D | AE15: B | AF15: D | AG15: C | AH15: E | AI15: D | AJ15: D | AK15: B | AL15: B | AM15: A | AN15: C | AO15: B | AP15: D | AQ15: E | AR15: B | AS15: B | AT15: A | AU15: A | AV15: A | AW15: E | AX15: B | AY15: A | AZ15: C
C16: 21617 | D16: =[1]Data!C53 -> 19 | E16: =LOOKUP(D16,[1]Inputs!$B$55:$B$84,[1]Inputs!$A$55:$A$84) -> 20 | F16: =SUM([1]Data!AY53+[1]Data!BA53+[1]Data!BB53+[1]Data!BE53+[1]Data!BH53+[1]Data!BP53+[1]Data!BS53+[1]Data!BT53+[1]Data!CD53)/[1]Inputs!$A$12 -> 0.4444444444 | G16: =SUM([1]Data!AZ53+[1]Data!BB53+[1]Data!BC53+[1]Data!BF53+[1]Data!BI53+[1]Data!BQ53+[1]Data!BT53+[1]Data!BU53+[1]Data!CE53)/[1]Inputs!$A$12 -> 0.3333333333 | H16: =SUM([1]Data!BA53+[1]Data!BC53+[1]Data!BD53+[1]Data!BG53+[1]Data!BJ53+[1]Data!BR53+[1]Data!BU53+[1]Data!BV53+[1]Data!CF53)/[1]Inputs!$A$12 -> 0.2222222222 | I16: =SUM([1]Data!BB53+[1]Data!BD53+[1]Data!BE53+[1]Data!BH53+[1]Data!BK53+[1]Data!BS53+[1]Data!BV53+[1]Data!BW53+[1]Data!CG53)/[1]Inputs!$A$12 -> 0.4444444444 | J16: =SUM([1]Data!BC53+[1]Data!BE53+[1]Data!BF53+[1]Data!BI53+[1]Data!BL53+[1]Data!BT53+[1]Data!BW53+[1]Data!BX53+[1]Data!CH53)/[1]Inputs!$A$12 -> 0.4444444444 | K16: =SUM([1]Data!BD53+[1]Data!BF53+[1]Data!BG53+[1]Data!BJ53+[1]Data!BM53+[1]Data!BU53+[1]Data!BX53+[1]Data!BY53+[1]Data!CI53)/[1]Inputs!$A$12 -> 0.4444444444 | M16: D | N16: C | O16: B | P16: C | Q16: A | R16: E | S16: E | T16: D | U16: E | V16: D | W16: C | X16: C | Y16: C | Z16: A | AA16: B | AB16: D | AC16: E | AD16: E | AE16: B | AF16: D | AG16: D | AH16: A | AI16: B | AJ16: C | AK16: B | AL16: E | AM16: B | AN16: E | AO16: C | AP16: D | AQ16: B | AR16: D | AS16: A | AT16: A | AU16: C | AV16: A | AW16: D | AX16: D | AY16: C | AZ16: A
C17: 21618 | D17: =[1]Data!C81 -> 23 | E17: =LOOKUP(D17,[1]Inputs!$B$55:$B$84,[1]Inputs!$A$55:$A$84) -> 24 | F17: =SUM([1]Data!AY81+[1]Data!BA81+[1]Data!BB81+[1]Data!BE81+[1]Data!BH81+[1]Data!BP81+[1]Data!BS81+[1]Data!BT81+[1]Data!CD81)/[1]Inputs!$A$12 -> 0.2222222222 | G17: =SUM([1]Data!AZ81+[1]Data!BB81+[1]Data!BC81+[1]Data!BF81+[1]Data!BI81+[1]Data!BQ81+[1]Data!BT81+[1]Data!BU81+[1]Data!CE81)/[1]Inputs!$A$12 -> 0.5555555556 | H17: =SUM([1]Data!BA81+[1]Data!BC81+[1]Data!BD81+[1]Data!BG81+[1]Data!BJ81+[1]Data!BR81+[1]Data!BU81+[1]Data!BV81+[1]Data!CF81)/[1]Inputs!$A$12 -> 0.4444444444 | I17: =SUM([1]Data!BB81+[1]Data!BD81+[1]Data!BE81+[1]Data!BH81+[1]Data!BK81+[1]Data!BS81+[1]Data!BV81+[1]Data!BW81+[1]Data!CG81)/[1]Inputs!$A$12 -> 0.1111111111 | J17: =SUM([1]Data!BC81+[1]Data!BE81+[1]Data!BF81+[1]Data!BI81+[1]Data!BL81+[1]Data!BT81+[1]Data!BW81+[1]Data!BX81+[1]Data!CH81)/[1]Inputs!$A$12 -> 0.4444444444 | K17: =SUM([1]Data!BD81+[1]Data!BF81+[1]Data!BG81+[1]Data!BJ81+[1]Data!BM81+[1]Data!BU81+[1]Data!BX81+[1]Data!BY81+[1]Data!CI81)/[1]Inputs!$A$12 -> 0.5555555556 | M17: E | N17: D | O17: C | P17: D | Q17: A | R17: A | S17: E | T17: D | U17: D | V17: D | W17: C | X17: C | Y17: C | Z17: A | AA17: C | AB17: D | AC17: B | AD17: E | AE17: B | AF17: D | AG17: B | AH17: D | AI17: C | AJ17: D | AK17: B | AL17: B | AM17: D | AN17: B | AO17: B | AP17: A | AQ17: E | AR17: D | AS17: C | AT17: A | AU17: D | AV17: A | AW17: D | AX17: E | AY17: A | AZ17: D
C18: 21623 | D18: =[1]Data!C123 -> 16 | E18: =LOOKUP(D18,[1]Inputs!$B$55:$B$84,[1]Inputs!$A$55:$A$84) -> 18 | F18: =SUM([1]Data!AY123+[1]Data!BA123+[1]Data!BB123+[1]Data!BE123+[1]Data!BH123+[1]Data!BP123+[1]Data!BS123+[1]Data!BT123+[1]Data!CD123)/[1]Inputs!$A$12 -> 0.5555555556 | G18: =SUM([1]Data!AZ123+[1]Data!BB123+[1]Data!BC123+[1]Data!BF123+[1]Data!BI123+[1]Data!BQ123+[1]Data!BT123+[1]Data!BU123+[1]Data!CE123)/[1]Inputs!$A$12 -> 0.5555555556 | H18: =SUM([1]Data!BA123+[1]Data!BC123+[1]Data!BD123+[1]Data!BG123+[1]Data!BJ123+[1]Data!BR123+[1]Data!BU123+[1]Data!BV123+[1]Data!CF123)/[1]Inputs!$A$12 -> 0.2222222222 | I18: =SUM([1]Data!BB123+[1]Data!BD123+[1]Data!BE123+[1]Data!BH123+[1]Data!BK123+[1]Data!BS123+[1]Data!BV123+[1]Data!BW123+[1]Data!CG123)/[1]Inputs!$A$12 -> 0.5555555556 | J18: =SUM([1]Data!BC123+[1]Data!BE123+[1]Data!BF123+[1]Data!BI123+[1]Data!BL123+[1]Data!BT123+[1]Data!BW123+[1]Data!BX123+[1]Data!CH123)/[1]Inputs!$A$12 -> 0.3333333333 | K18: =SUM([1]Data!BD123+[1]Data!BF123+[1]Data!BG123+[1]Data!BJ123+[1]Data!BM123+[1]Data!BU123+[1]Data!BX123+[1]Data!BY123+[1]Data!CI123)/[1]Inputs!$A$12 -> 0.2222222222 | M18: B | N18: D | O18: B | P18: D | Q18: A | R18: A | S18: E | T18: D | U18: D | V18: E | W18: C | X18: B | Y18: C | Z18: E | AA18: B | AB18: A | AC18: C | AD18: E | AE18: C | AF18: E | AG18: D | AH18: C | AI18: E | AJ18: B | AK18: C | AL18: A | AM18: E | AN18: D | AO18: D | AP18: B | AQ18: C | AR18: E | AS18: B | AT18: C | AU18: D | AV18: E | AW18: B | AX18: D | AY18: A | AZ18: D
C19: 21624 | D19: =[1]Data!C95 -> 5 | E19: =LOOKUP(D19,[1]Inputs!$B$55:$B$84,[1]Inputs!$A$55:$A$84) -> 12 | F19: =SUM([1]Data!AY95+[1]Data!BA95+[1]Data!BB95+[1]Data!BE95+[1]Data!BH95+[1]Data!BP95+[1]Data!BS95+[1]Data!BT95+[1]Data!CD95)/[1]Inputs!$A$12 -> 0.3333333333 | G19: =SUM([1]Data!AZ95+[1]Data!BB95+[1]Data!BC95+[1]Data!BF95+[1]Data!BI95+[1]Data!BQ95+[1]Data!BT95+[1]Data!BU95+[1]Data!CE95)/[1]Inputs!$A$12 -> 0.1111111111 | H19: =SUM([1]Data!BA95+[1]Data!BC95+[1]Data!BD95+[1]Data!BG95+[1]Data!BJ95+[1]Data!BR95+[1]Data!BU95+[1]Data!BV95+[1]Data!CF95)/[1]Inputs!$A$12 -> 0.4444444444 | I19: =SUM([1]Data!BB95+[1]Data!BD95+[1]Data!BE95+[1]Data!BH95+[1]Data!BK95+[1]Data!BS95+[1]Data!BV95+[1]Data!BW95+[1]Data!CG95)/[1]Inputs!$A$12 -> 0.3333333333 | J19: =SUM([1]Data!BC95+[1]Data!BE95+[1]Data!BF95+[1]Data!BI95+[1]Data!BL95+[1]Data!BT95+[1]Data!BW95+[1]Data!BX95+[1]Data!CH95)/[1]Inputs!$A$12 -> 0.2222222222 | K19: =SUM([1]Data!BD95+[1]Data!BF95+[1]Data!BG95+[1]Data!BJ95+[1]Data!BM95+[1]Data!BU95+[1]Data!BX95+[1]Data!BY95+[1]Data!CI95)/[1]Inputs!$A$12 -> 0.3333333333 | M19: B | N19: C | O19: D | P19: E | Q19: B | R19: B | S19: A | T19: D | U19: E | V19: C | W19: B | X19: B | Y19: B | Z19: B | AA19: C | AB19: B | AC19: B | AD19: D | AE19: C | AF19: D | AG19: C | AH19: D | AI19: B | AJ19: B | AK19: A | AL19: B | AM19: D | AN19: C | AO19: C | AP19: E | AQ19: B | AR19: C | AS19: D | AT19: D | AU19: E | AV19: B | AW19: A | AX19: D | AY19: B | AZ19: D
C20: =[1]Data!E29 -> 21628 | D20: 21 | E20: =LOOKUP(D20,[1]Inputs!$B$55:$B$84,[1]Inputs!$A$55:$A$84) -> 22 | F20: =SUM([1]Data!AY29+[1]Data!BA29+[1]Data!BB29+[1]Data!BE29+[1]Data!BH29+[1]Data!BP29+[1]Data!BS29+[1]Data!BT29+[1]Data!CD29)/[1]Inputs!$A$12 -> 0.5555555556 | G20: =SUM([1]Data!BD29+[1]Data!BF29+[1]Data!BI29+[1]Data!BL29+[1]Data!BO29+[1]Data!BQ29+[1]Data!CA29+[1]Data!CH29)/[1]Inputs!$A$13 -> 0.375 | H20: =SUM([1]Data!AZ29+[1]Data!BJ29+[1]Data!BM29+[1]Data!BX29+[1]Data!CB29+[1]Data!CJ29+[1]Data!CK29)/[1]Inputs!$A$14 -> 0.1666666667 | I20: =SUM([1]Data!BV29+[1]Data!CC29+[1]Data!CL29)/[1]Inputs!$A$15 -> 0.3333333333 | J20: =SUM([1]Data!BC29+[1]Data!BG29+[1]Data!BJ29+[1]Data!BN29+[1]Data!BR29+[1]Data!BU29+[1]Data!BY29+[1]Data!BZ29+[1]Data!CE29+[1]Data!CG29)/[1]Inputs!$A$16 -> 0.4 | K20: =SUM([1]Data!BW29+[1]Data!CF29+[1]Data!CI29)/[1]Inputs!$A$17 -> 0.6666666667 | M20: E | N20: C | O20: B | P20: D | Q20: A | R20: E | S20: D | T20: D | U20: D | V20: C | W20: A | X20: E | Y20: C | Z20: B | AA20: A | AB20: D | AC20: B | AD20: E | AE20: A | AF20: D | AG20: D | AH20: C | AI20: B | AJ20: E | AK20: B | AL20: C | AM20: B | AN20: C | AO20: D | AP20: D | AQ20: E | AR20: C | AS20: A | AT20: A | AU20: B | AV20: D | AW20: B | AX20: C | AY20: A | AZ20: C
C21: =[1]Data!E27 -> 21634 | D21: 12 | E21: =LOOKUP(D21,[1]Inputs!$B$55:$B$84,[1]Inputs!$A$55:$A$84) -> 16 | F21: =SUM([1]Data!AY27+[1]Data!BA27+[1]Data!BB27+[1]Data!BE27+[1]Data!BH27+[1]Data!BP27+[1]Data!BS27+[1]Data!BT27+[1]Data!CD27)/[1]Inputs!$A$12 -> 0.4444444444 | G21: =SUM([1]Data!BD27+[1]Data!BF27+[1]Data!BI27+[1]Data!BL27+[1]Data!BO27+[1]Data!BQ27+[1]Data!CA27+[1]Data!CH27)/[1]Inputs!$A$13 -> 0.375 | H21: =SUM([1]Data!AZ27+[1]Data!BJ27+[1]Data!BM27+[1]Data!BX27+[1]Data!CB27+[1]Data!CJ27+[1]Data!CK27)/[1]Inputs!$A$14 -> 0.3333333333 | I21: =SUM([1]Data!BV27+[1]Data!CC27+[1]Data!CL27)/[1]Inputs!$A$15 -> 0 | J21: =SUM([1]Data!BC27+[1]Data!BG27+[1]Data!BJ27+[1]Data!BN27+[1]Data!BR27+[1]Data!BU27+[1]Data!BY27+[1]Data!BZ27+[1]Data!CE27+[1]Data!CG27)/[1]Inputs!$A$16 -> 0.3 | K21: =SUM([1]Data!BW27+[1]Data!CF27+[1]Data!CI27)/[1]Inputs!$A$17 -> 0.3333333333 | M21: E | N21: D | O21: C | P21: C | Q21: A | R21: E | S21: E | T21: D | U21: E | V21: C | W21: B | X21: C | Y21: B | Z21: C | AA21: C | AB21: D | AC21: D | AD21: A | AE21: A | AF21: E | AG21: D | AH21: C | AI21: B | AJ21: E | AK21: C | AL21: C | AM21: A | AN21: B | AO21: B | AP21: C | AQ21: D | AR21: C | AS21: C | AT21: A | AU21: B | AV21: A | AW21: B | AX21: B | AY21: D | AZ21: A
C22: 21639 | D22: =[1]Data!C212 -> 11 | E22: =LOOKUP(D22,[1]Inputs!$B$55:$B$84,[1]Inputs!$A$55:$A$84) -> 16 | F22: =SUM([1]Data!AY212+[1]Data!BA212+[1]Data!BB212+[1]Data!BE212+[1]Data!BH212+[1]Data!BP212+[1]Data!BS212+[1]Data!BT212+[1]Data!CD212)/[1]Inputs!$A$12 -> 0.3333333333 | G22: =SUM([1]Data!AZ212+[1]Data!BB212+[1]Data!BC212+[1]Data!BF212+[1]Data!BI212+[1]Data!BQ212+[1]Data!BT212+[1]Data!BU212+[1]Data!CE212)/[1]Inputs!$A$12 -> 0.4444444444 | H22: =SUM([1]Data!BA212+[1]Data!BC212+[1]Data!BD212+[1]Data!BG212+[1]Data!BJ212+[1]Data!BR212+[1]Data!BU212+[1]Data!BV212+[1]Data!CF212)/[1]Inputs!$A$12 -> 0.4444444444 | I22: =SUM([1]Data!BB212+[1]Data!BD212+[1]Data!BE212+[1]Data!BH212+[1]Data!BK212+[1]Data!BS212+[1]Data!BV212+[1]Data!BW212+[1]Data!CG212)/[1]Inputs!$A$12 -> 0.2222222222 | J22: =SUM([1]Data!BC212+[1]Data!BE212+[1]Data!BF212+[1]Data!BI212+[1]Data!BL212+[1]Data!BT212+[1]Data!BW212+[1]Data!BX212+[1]Data!CH212)/[1]Inputs!$A$12 -> 0.5555555556 | K22: =SUM([1]Data!BD212+[1]Data!BF212+[1]Data!BG212+[1]Data!BJ212+[1]Data!BM212+[1]Data!BU212+[1]Data!BX212+[1]Data!BY212+[1]Data!CI212)/[1]Inputs!$A$12 -> 0.5555555556 | M22: E | N22: B | O22: A | P22: C | Q22: C | R22: E | S22: E | T22: D | U22: B | V22: B | W22: D | X22: C | Y22: B | Z22: B | AA22: D | AB22: B | AC22: B | AD22: D | AE22: A | AF22: D | AG22: D | AH22: E | AI22: A | AJ22: B | AK22: A | AL22: B | AM22: D | AN22: B | AO22: C | AP22: D | AQ22: D | AR22: A | AS22: A | AT22: D | AU22: C | AV22: C | AW22: A | AX22: C | AY22: C | AZ22: D
C23: 21641 | D23: =[1]Data!C195 -> 19 | E23: =LOOKUP(D23,[1]Inputs!$B$55:$B$84,[1]Inputs!$A$55:$A$84) -> 20 | F23: =SUM([1]Data!AY195+[1]Data!BA195+[1]Data!BB195+[1]Data!BE195+[1]Data!BH195+[1]Data!BP195+[1]Data!BS195+[1]Data!BT195+[1]Data!CD195)/[1]Inputs!$A$12 -> 0.4444444444 | G23: =SUM([1]Data!AZ195+[1]Data!BB195+[1]Data!BC195+[1]Data!BF195+[1]Data!BI195+[1]Data!BQ195+[1]Data!BT195+[1]Data!BU195+[1]Data!CE195)/[1]Inputs!$A$12 -> 0.6666666667 | H23: =SUM([1]Data!BA195+[1]Data!BC195+[1]Data!BD195+[1]Data!BG195+[1]Data!BJ195+[1]Data!BR195+[1]Data!BU195+[1]Data!BV195+[1]Data!CF195)/[1]Inputs!$A$12 -> 0.7777777778 | I23: =SUM([1]Data!BB195+[1]Data!BD195+[1]Data!BE195+[1]Data!BH195+[1]Data!BK195+[1]Data!BS195+[1]Data!BV195+[1]Data!BW195+[1]Data!CG195)/[1]Inputs!$A$12 -> 0.4444444444 | J23: =SUM([1]Data!BC195+[1]Data!BE195+[1]Data!BF195+[1]Data!BI195+[1]Data!BL195+[1]Data!BT195+[1]Data!BW195+[1]Data!BX195+[1]Data!CH195)/[1]Inputs!$A$12 -> 0.2222222222 | K23: =SUM([1]Data!BD195+[1]Data!BF195+[1]Data!BG195+[1]Data!BJ195+[1]Data!BM195+[1]Data!BU195+[1]Data!BX195+[1]Data!BY195+[1]Data!CI195)/[1]Inputs!$A$12 -> 0.4444444444 | M23: E | N23: D | O23: B | P23: C | Q23: A | R23: A | S23: D | T23: D | U23: D | V23: E | W23: D | X23: C | Y23: E | Z23: E | AA23: B | AB23: D | AC23: D | AD23: E | AE23: B | AF23: D | AG23: C | AH23: B | AI23: B | AJ23: D | AK23: E | AL23: C | AM23: C | AN23: B | AO23: B | AP23: A | AQ23: E | AR23: D | AS23: C | AT23: B | AU23: D | AV23: B | AW23: B | AX23: D | AY23: B | AZ23: A
C24: 21642 | D24: =[1]Data!C126 -> 15 | E24: =LOOKUP(D24,[1]Inputs!$B$55:$B$84,[1]Inputs!$A$55:$A$84) -> 18 | F24: =SUM([1]Data!AY126+[1]Data!BA126+[1]Data!BB126+[1]Data!BE126+[1]Data!BH126+[1]Data!BP126+[1]Data!BS126+[1]Data!BT126+[1]Data!CD126)/[1]Inputs!$A$12 -> 0.3333333333 | G24: =SUM([1]Data!AZ126+[1]Data!BB126+[1]Data!BC126+[1]Data!BF126+[1]Data!BI126+[1]Data!BQ126+[1]Data!BT126+[1]Data!BU126+[1]Data!CE126)/[1]Inputs!$A$12 -> 0.2222222222 | H24: =SUM([1]Data!BA126+[1]Data!BC126+[1]Data!BD126+[1]Data!BG126+[1]Data!BJ126+[1]Data!BR126+[1]Data!BU126+[1]Data!BV126+[1]Data!CF126)/[1]Inputs!$A$12 -> 0.5555555556 | I24: =SUM([1]Data!BB126+[1]Data!BD126+[1]Data!BE126+[1]Data!BH126+[1]Data!BK126+[1]Data!BS126+[1]Data!BV126+[1]Data!BW126+[1]Data!CG126)/[1]Inputs!$A$12 -> 0.2222222222 | J24: =SUM([1]Data!BC126+[1]Data!BE126+[1]Data!BF126+[1]Data!BI126+[1]Data!BL126+[1]Data!BT126+[1]Data!BW126+[1]Data!BX126+[1]Data!CH126)/[1]Inputs!$A$12 -> 0.3333333333 | K24: =SUM([1]Data!BD126+[1]Data!BF126+[1]Data!BG126+[1]Data!BJ126+[1]Data!BM126+[1]Data!BU126+[1]Data!BX126+[1]Data!BY126+[1]Data!CI126)/[1]Inputs!$A$12 -> 0.6666666667 | M24: B | N24: D | O24: B | P24: D | Q24: B | R24: A | S24: A | T24: D | U24: D | V24: D | W24: C | X24: C | Y24: C | Z24: B | AA24: C | AB24: B | AC24: D | AD24: D | AE24: B | AF24: D | AG24: D | AH24: C | AI24: A | AJ24: E | AK24: C | AL24: C | AM24: D | AN24: C | AO24: C | AP24: C | AQ24: C | AR24: C | AS24: C | AT24: C | AU24: C | AV24: C | AW24: C | AX24: C | AY24: C | AZ24: C
C25: 21644 | D25: =[1]Data!C186 -> 17 | E25: =LOOKUP(D25,[1]Inputs!$B$55:$B$84,[1]Inputs!$A$55:$A$84) -> 19 | F25: =SUM([1]Data!AY186+[1]Data!BA186+[1]Data!BB186+[1]Data!BE186+[1]Data!BH186+[1]Data!BP186+[1]Data!BS186+[1]Data!BT186+[1]Data!CD186)/[1]Inputs!$A$12 -> 0.4444444444 | G25: =SUM([1]Data!AZ186+[1]Data!BB186+[1]Data!BC186+[1]Data!BF186+[1]Data!BI186+[1]Data!BQ186+[1]Data!BT186+[1]Data!BU186+[1]Data!CE186)/[1]Inputs!$A$12 -> 0.2222222222 | H25: =SUM([1]Data!BA186+[1]Data!BC186+[1]Data!BD186+[1]Data!BG186+[1]Data!BJ186+[1]Data!BR186+[1]Data!BU186+[1]Data!BV186+[1]Data!CF186)/[1]Inputs!$A$12 -> 0.4444444444 | I25: =SUM([1]Data!BB186+[1]Data!BD186+[1]Data!BE186+[1]Data!BH186+[1]Data!BK186+[1]Data!BS186+[1]Data!BV186+[1]Data!BW186+[1]Data!CG186)/[1]Inputs!$A$12 -> 0.4444444444 | J25: =SUM([1]Data!BC186+[1]Data!BE186+[1]Data!BF186+[1]Data!BI186+[1]Data!BL186+[1]Data!BT186+[1]Data!BW186+[1]Data!BX186+[1]Data!CH186)/[1]Inputs!$A$12 -> 0.4444444444 | K25: =SUM([1]Data!BD186+[1]Data!BF186+[1]Data!BG186+[1]Data!BJ186+[1]Data!BM186+[1]Data!BU186+[1]Data!BX186+[1]Data!BY186+[1]Data!CI186)/[1]Inputs!$A$12 -> 0.7777777778 | M25: A | N25: D | O25: C | P25: C | Q25: B | R25: A | S25: E | T25: D | U25: D | V25: E | W25: C | X25: C | Y25: C | Z25: E | AA25: D | AB25: D | AC25: C | AD25: E | AE25: B | AF25: B | AG25: C | AH25: C | AI25: D | AJ25: A | AK25: B | AL25: B | AM25: B | AN25: B | AO25: C | AP25: D | AQ25: C | AR25: B | AS25: B | AT25: B | AU25: D | AV25: A | AW25: C | AX25: D | AY25: C | AZ25: A
C26: 21645 | D26: =[1]Data!C182 -> 26 | E26: =LOOKUP(D26,[1]Inputs!$B$55:$B$84,[1]Inputs!$A$55:$A$84) -> 26 | F26: =SUM([1]Data!AY182+[1]Data!BA182+[1]Data!BB182+[1]Data!BE182+[1]Data!BH182+[1]Data!BP182+[1]Data!BS182+[1]Data!BT182+[1]Data!CD182)/[1]Inputs!$A$12 -> 0.4444444444 | G26: =SUM([1]Data!AZ182+[1]Data!BB182+[1]Data!BC182+[1]Data!BF182+[1]Data!BI182+[1]Data!BQ182+[1]Data!BT182+[1]Data!BU182+[1]Data!CE182)/[1]Inputs!$A$12 -> 0.4444444444 | H26: =SUM([1]Data!BA182+[1]Data!BC182+[1]Data!BD182+[1]Data!BG182+[1]Data!BJ182+[1]Data!BR182+[1]Data!BU182+[1]Data!BV182+[1]Data!CF182)/[1]Inputs!$A$12 -> 0.8888888889 | I26: =SUM([1]Data!BB182+[1]Data!BD182+[1]Data!BE182+[1]Data!BH182+[1]Data!BK182+[1]Data!BS182+[1]Data!BV182+[1]Data!BW182+[1]Data!CG182)/[1]Inputs!$A$12 -> 0.8888888889 | J26: =SUM([1]Data!BC182+[1]Data!BE182+[1]Data!BF182+[1]Data!BI182+[1]Data!BL182+[1]Data!BT182+[1]Data!BW182+[1]Data!BX182+[1]Data!CH182)/[1]Inputs!$A$12 -> 0.4444444444 | K26: =SUM([1]Data!BD182+[1]Data!BF182+[1]Data!BG182+[1]Data!BJ182+[1]Data!BM182+[1]Data!BU182+[1]Data!BX182+[1]Data!BY182+[1]Data!CI182)/[1]Inputs!$A$12 -> 0.5555555556 | M26: E | N26: B | O26: B | P26: D | Q26: C | R26: A | S26: E | T26: D | U26: D | V26: E | W26: C | X26: C | Y26: C | Z26: A | AA26: E | AB26: D | AC26: C | AD26: E | AE26: B | AF26: D | AG26: D | AH26: A | AI26: D | AJ26: D | AK26: B | AL26: D | AM26: B | AN26: D | AO26: D | AP26: D | AQ26: C | AR26: D | AS26: A | AT26: A | AU26: A | AV26: C | AW26: B | AX26: A | AY26: C | AZ26: C
C27: 21650 | D27: =[1]Data!C166 -> 21 | E27: =LOOKUP(D27,[1]Inputs!$B$55:$B$84,[1]Inputs!$A$55:$A$84) -> 22 | F27: =SUM([1]Data!AY166+[1]Data!BA166+[1]Data!BB166+[1]Data!BE166+[1]Data!BH166+[1]Data!BP166+[1]Data!BS166+[1]Data!BT166+[1]Data!CD166)/[1]Inputs!$A$12 -> 0.4444444444 | G27: =SUM([1]Data!AZ166+[1]Data!BB166+[1]Data!BC166+[1]Data!BF166+[1]Data!BI166+[1]Data!BQ166+[1]Data!BT166+[1]Data!BU166+[1]Data!CE166)/[1]Inputs!$A$12 -> 0.5555555556 | H27: =SUM([1]Data!BA166+[1]Data!BC166+[1]Data!BD166+[1]Data!BG166+[1]Data!BJ166+[1]Data!BR166+[1]Data!BU166+[1]Data!BV166+[1]Data!CF166)/[1]Inputs!$A$12 -> 0.3333333333 | I27: =SUM([1]Data!BB166+[1]Data!BD166+[1]Data!BE166+[1]Data!BH166+[1]Data!BK166+[1]Data!BS166+[1]Data!BV166+[1]Data!BW166+[1]Data!CG166)/[1]Inputs!$A$12 -> 0.4444444444 | J27: =SUM([1]Data!BC166+[1]Data!BE166+[1]Data!BF166+[1]Data!BI166+[1]Data!BL166+[1]Data!BT166+[1]Data!BW166+[1]Data!BX166+[1]Data!CH166)/[1]Inputs!$A$12 -> 0.3333333333 | K27: =SUM([1]Data!BD166+[1]Data!BF166+[1]Data!BG166+[1]Data!BJ166+[1]Data!BM166+[1]Data!BU166+[1]Data!BX166+[1]Data!BY166+[1]Data!CI166)/[1]Inputs!$A$12 -> 0.3333333333 | M27: E | N27: B | O27: B | P27: C | Q27: A | R27: A | S27: A | T27: D | U27: D | V27: E | W27: C | X27: C | Y27: C | Z27: A | AA27: B | AB27: E | AC27: E | AD27: D | AE27: A | AF27: D | AG27: D | AH27: C | AI27: D | AJ27: E | AK27: A | AL27: B | AM27: B | AN27: E | AO27: B | AP27: D | AQ27: E | AR27: E | AS27: C | AT27: A | AU27: B | AV27: A | AW27: B | AX27: C | AY27: A | AZ27: D
C28: =[1]Data!E6 -> 21653 | D28: 16 | E28: =LOOKUP(D28,[1]Inputs!$B$55:$B$84,[1]Inputs!$A$55:$A$84) -> 18 | F28: =SUM([1]Data!AY6+[1]Data!BA6+[1]Data!BB6+[1]Data!BE6+[1]Data!BH6+[1]Data!BP6+[1]Data!BS6+[1]Data!BT6+[1]Data!CD6)/[1]Inputs!$A$12 -> 0.2222222222 | G28: =SUM([1]Data!BD6+[1]Data!BF6+[1]Data!BI6+[1]Data!BL6+[1]Data!BO6+[1]Data!BQ6+[1]Data!CA6+[1]Data!CH6)/[1]Inputs!$A$13 -> 0.25 | H28: =SUM([1]Data!AZ6+[1]Data!BJ6+[1]Data!BM6+[1]Data!BX6+[1]Data!CB6+[1]Data!CJ6+[1]Data!CK6)/[1]Inputs!$A$14 -> 0 | I28: =SUM([1]Data!BV6+[1]Data!CC6+[1]Data!CL6)/[1]Inputs!$A$15 -> 0.6666666667 | J28: =SUM([1]Data!BC6+[1]Data!BG6+[1]Data!BJ6+[1]Data!BN6+[1]Data!BR6+[1]Data!BU6+[1]Data!BY6+[1]Data!BZ6+[1]Data!CE6+[1]Data!CG6)/[1]Inputs!$A$16 -> 0.5 | K28: =SUM([1]Data!BW6+[1]Data!CF6+[1]Data!CI6)/[1]Inputs!$A$17 -> 0 | M28: D | N28: D | O28: B | P28: D | Q28: C | R28: E | S28: E | T28: D | U28: D | V28: E | W28: B | X28: D | Y28: C | Z28: B | AA28: D | AB28: B | AC28: C | AD28: D | AE28: A | AF28: B | AG28: E | AH28: D | AI28: C | AJ28: B | AK28: D | AL28: E | AM28: B | AN28: B | AO28: D | AP28: D | AQ28: B | AR28: B | AS28: E | AT28: A | AU28: B | AV28: C | AW28: D | AX28: D | AY28: C | AZ28: A
C29: 21654 | D29: =[1]Data!C120 -> 11 | E29: =LOOKUP(D29,[1]Inputs!$B$55:$B$84,[1]Inputs!$A$55:$A$84) -> 16 | F29: =SUM([1]Data!AY120+[1]Data!BA120+[1]Data!BB120+[1]Data!BE120+[1]Data!BH120+[1]Data!BP120+[1]Data!BS120+[1]Data!BT120+[1]Data!CD120)/[1]Inputs!$A$12 -> 0.2222222222 | G29: =SUM([1]Data!AZ120+[1]Data!BB120+[1]Data!BC120+[1]Data!BF120+[1]Data!BI120+[1]Data!BQ120+[1]Data!BT120+[1]Data!BU120+[1]Data!CE120)/[1]Inputs!$A$12 -> 0.2222222222 | H29: =SUM([1]Data!BA120+[1]Data!BC120+[1]Data!BD120+[1]Data!BG120+[1]Data!BJ120+[1]Data!BR120+[1]Data!BU120+[1]Data!BV120+[1]Data!CF120)/[1]Inputs!$A$12 -> 0.4444444444 | I29: =SUM([1]Data!BB120+[1]Data!BD120+[1]Data!BE120+[1]Data!BH120+[1]Data!BK120+[1]Data!BS120+[1]Data!BV120+[1]Data!BW120+[1]Data!CG120)/[1]Inputs!$A$12 -> 0.3333333333 | J29: =SUM([1]Data!BC120+[1]Data!BE120+[1]Data!BF120+[1]Data!BI120+[1]Data!BL120+[1]Data!BT120+[1]Data!BW120+[1]Data!BX120+[1]Data!CH120)/[1]Inputs!$A$12 -> 0.4444444444 | K29: =SUM([1]Data!BD120+[1]Data!BF120+[1]Data!BG120+[1]Data!BJ120+[1]Data!BM120+[1]Data!BU120+[1]Data!BX120+[1]Data!BY120+[1]Data!CI120)/[1]Inputs!$A$12 -> 0.3333333333 | M29: D | N29: D | O29: B | P29: C | Q29: A | R29: A | S29: D | T29: B | U29: D | V29: E | W29: C | X29: D | Y29: C | Z29: A | AA29: E | AB29: D | AC29: B | AD29: C | AE29: A | AF29: B | AG29: E | AH29: C | AI29: A | AJ29: A | AK29: E | AL29: B | AM29: A | AN29: E | AO29: A | AP29: A | AQ29: B | AR29: B | AS29: E | AT29: C | AU29: C | AV29: B | AW29: E | AX29: D | AY29: B | AZ29: C
C30: 21792 | D30: =[1]Data!C114 -> 10 | E30: =LOOKUP(D30,[1]Inputs!$B$55:$B$84,[1]Inputs!$A$55:$A$84) -> 15 | F30: =SUM([1]Data!AY114+[1]Data!BA114+[1]Data!BB114+[1]Data!BE114+[1]Data!BH114+[1]Data!BP114+[1]Data!BS114+[1]Data!BT114+[1]Data!CD114)/[1]Inputs!$A$12 -> 0.1111111111 | G30: =SUM([1]Data!AZ114+[1]Data!BB114+[1]Data!BC114+[1]Data!BF114+[1]Data!BI114+[1]Data!BQ114+[1]Data!BT114+[1]Data!BU114+[1]Data!CE114)/[1]Inputs!$A$12 -> 0.2222222222 | H30: =SUM([1]Data!BA114+[1]Data!BC114+[1]Data!BD114+[1]Data!BG114+[1]Data!BJ114+[1]Data!BR114+[1]Data!BU114+[1]Data!BV114+[1]Data!CF114)/[1]Inputs!$A$12 -> 0.1111111111 | I30: =SUM([1]Data!BB114+[1]Data!BD114+[1]Data!BE114+[1]Data!BH114+[1]Data!BK114+[1]Data!BS114+[1]Data!BV114+[1]Data!BW114+[1]Data!CG114)/[1]Inputs!$A$12 -> 0.3333333333 | J30: =SUM([1]Data!BC114+[1]Data!BE114+[1]Data!BF114+[1]Data!BI114+[1]Data!BL114+[1]Data!BT114+[1]Data!BW114+[1]Data!BX114+[1]Data!CH114)/[1]Inputs!$A$12 -> 0.3333333333 | K30: =SUM([1]Data!BD114+[1]Data!BF114+[1]Data!BG114+[1]Data!BJ114+[1]Data!BM114+[1]Data!BU114+[1]Data!BX114+[1]Data!BY114+[1]Data!CI114)/[1]Inputs!$A$12 -> 0.3333333333 | M30: C | N30: D | O30: C | P30: E | Q30: C | R30: E | S30: E | T30: D | U30: D | V30: E | W30: C | X30: B | Y30: B | Z30: E | AA30: A | AB30: B | AC30: B | AD30: E | AE30: A | AF30: D | AG30: D | AH30: B | AI30: C | AJ30: E | AK30: B | AL30: B | AM30: D | AN30: E | AO30: C | AP30: A | AQ30: A | AR30: C | AS30: C | AT30: D | AU30: C | AV30: A | AW30: A | AX30: C | AY30: C | AZ30: B
C31: 21801 | D31: =[1]Data!C125 -> 17 | E31: =LOOKUP(D31,[1]Inputs!$B$55:$B$84,[1]Inputs!$A$55:$A$84) -> 19 | F31: =SUM([1]Data!AY125+[1]Data!BA125+[1]Data!BB125+[1]Data!BE125+[1]Data!BH125+[1]Data!BP125+[1]Data!BS125+[1]Data!BT125+[1]Data!CD125)/[1]Inputs!$A$12 -> 0.4444444444 | G31: =SUM([1]Data!AZ125+[1]Data!BB125+[1]Data!BC125+[1]Data!BF125+[1]Data!BI125+[1]Data!BQ125+[1]Data!BT125+[1]Data!BU125+[1]Data!CE125)/[1]Inputs!$A$12 -> 0.2222222222 | H31: =SUM([1]Data!BA125+[1]Data!BC125+[1]Data!BD125+[1]Data!BG125+[1]Data!BJ125+[1]Data!BR125+[1]Data!BU125+[1]Data!BV125+[1]Data!CF125)/[1]Inputs!$A$12 -> 0.2222222222 | I31: =SUM([1]Data!BB125+[1]Data!BD125+[1]Data!BE125+[1]Data!BH125+[1]Data!BK125+[1]Data!BS125+[1]Data!BV125+[1]Data!BW125+[1]Data!CG125)/[1]Inputs!$A$12 -> 0.3333333333 | J31: =SUM([1]Data!BC125+[1]Data!BE125+[1]Data!BF125+[1]Data!BI125+[1]Data!BL125+[1]Data!BT125+[1]Data!BW125+[1]Data!BX125+[1]Data!CH125)/[1]Inputs!$A$12 -> 0.2222222222 | K31: =SUM([1]Data!BD125+[1]Data!BF125+[1]Data!BG125+[1]Data!BJ125+[1]Data!BM125+[1]Data!BU125+[1]Data!BX125+[1]Data!BY125+[1]Data!CI125)/[1]Inputs!$A$12 -> 0.2222222222 | M31: E | N31: C | O31: B | P31: C | Q31: C | R31: E | S31: D | T31: D | U31: E | V31: E | W31: C | X31: C | Y31: B | Z31: C | AA31: D | AB31: B | AC31: A | AD31: E | AE31: B | AF31: A | AG31: D | AH31: A | AI31: B | AJ31: B | AK31: A | AL31: E | AM31: D | AN31: B | AO31: A | AP31: D | AQ31: B | AR31: B | AS31: D | AT31: B | AU31: C | AV31: A | AW31: B | AX31: C | AY31: C | AZ31: E
C32: =[1]Data!E38 -> 21804 | D32: 17 | E32: =LOOKUP(D32,[1]Inputs!$B$55:$B$84,[1]Inputs!$A$55:$A$84) -> 19 | F32: =SUM([1]Data!AY38+[1]Data!BA38+[1]Data!BB38+[1]Data!BE38+[1]Data!BH38+[1]Data!BP38+[1]Data!BS38+[1]Data!BT38+[1]Data!CD38)/[1]Inputs!$A$12 -> 0.6666666667 | G32: =SUM([1]Data!BD38+[1]Data!BF38+[1]Data!BI38+[1]Data!BL38+[1]Data!BO38+[1]Data!BQ38+[1]Data!CA38+[1]Data!CH38)/[1]Inputs!$A$13 -> 0.5 | H32: =SUM([1]Data!AZ38+[1]Data!BJ38+[1]Data!BM38+[1]Data!BX38+[1]Data!CB38+[1]Data!CJ38+[1]Data!CK38)/[1]Inputs!$A$14 -> 0.6666666667 | I32: =SUM([1]Data!BV38+[1]Data!CC38+[1]Data!CL38)/[1]Inputs!$A$15 -> 0.6666666667 | J32: =SUM([1]Data!BC38+[1]Data!BG38+[1]Data!BJ38+[1]Data!BN38+[1]Data!BR38+[1]Data!BU38+[1]Data!BY38+[1]Data!BZ38+[1]Data!CE38+[1]Data!CG38)/[1]Inputs!$A$16 -> 0.4 | K32: =SUM([1]Data!BW38+[1]Data!CF38+[1]Data!CI38)/[1]Inputs!$A$17 -> 0 | M32: E | N32: B | O32: B | P32: B | Q32: C | R32: E | S32: E | T32: D | U32: C | V32: E | W32: D | X32: C | Y32: B | Z32: E | AA32: D | AB32: D | AC32: D | AD32: E | AE32: A | AF32: D | AG32: D | AH32: A | AI32: A | AJ32: C | AK32: A | AL32: B | AM32: C | AN32: E | AO32: B | AP32: D | AQ32: C | AR32: B | AS32: A | AT32: A | AU32: C | AV32: A | AW32: B | AX32: D | AY32: C | AZ32: A
C33: =[1]Data!E39 -> 21807 | D33: 15 | E33: =LOOKUP(D33,[1]Inputs!$B$55:$B$84,[1]Inputs!$A$55:$A$84) -> 18 | F33: =SUM([1]Data!AY39+[1]Data!BA39+[1]Data!BB39+[1]Data!BE39+[1]Data!BH39+[1]Data!BP39+[1]Data!BS39+[1]Data!BT39+[1]Data!CD39)/[1]Inputs!$A$12 -> 0.4444444444 | G33: =SUM([1]Data!BD39+[1]Data!BF39+[1]Data!BI39+[1]Data!BL39+[1]Data!BO39+[1]Data!BQ39+[1]Data!CA39+[1]Data!CH39)/[1]Inputs!$A$13 -> 0.375 | H33: =SUM([1]Data!AZ39+[1]Data!BJ39+[1]Data!BM39+[1]Data!BX39+[1]Data!CB39+[1]Data!CJ39+[1]Data!CK39)/[1]Inputs!$A$14 -> 0.5 | I33: =SUM([1]Data!BV39+[1]Data!CC39+[1]Data!CL39)/[1]Inputs!$A$15 -> 0.3333333333 | J33: =SUM([1]Data!BC39+[1]Data!BG39+[1]Data!BJ39+[1]Data!BN39+[1]Data!BR39+[1]Data!BU39+[1]Data!BY39+[1]Data!BZ39+[1]Data!CE39+[1]Data!CG39)/[1]Inputs!$A$16 -> 0.3 | K33: =SUM([1]Data!BW39+[1]Data!CF39+[1]Data!CI39)/[1]Inputs!$A$17 -> 0.3333333333 | M33: E | N33: D | O33: B | P33: D | Q33: A | R33: A | S33: E | T33: D | U33: D | V33: E | W33: C | X33: D | Y33: C | Z33: E | AA33: C | AB33: C | AC33: A | AD33: D | AE33: D | AF33: B | AG33: E | AH33: D | AI33: A | AJ33: B | AK33: B | AL33: D | AM33: A | AN33: E | AO33: D | AP33: D | AQ33: D | AR33: D | AS33: E | AT33: A | AU33: C | AV33: A | AW33: C | AX33: D | AY33: E | AZ33: C
C34: =[1]Data!E31 -> 21808 | D34: 20 | E34: =LOOKUP(D34,[1]Inputs!$B$55:$B$84,[1]Inputs!$A$55:$A$84) -> 21 | F34: =SUM([1]Data!AY31+[1]Data!BA31+[1]Data!BB31+[1]Data!BE31+[1]Data!BH31+[1]Data!BP31+[1]Data!BS31+[1]Data!BT31+[1]Data!CD31)/[1]Inputs!$A$12 -> 0.3333333333 | G34: =SUM([1]Data!BD31+[1]Data!BF31+[1]Data!BI31+[1]Data!BL31+[1]Data!BO31+[1]Data!BQ31+[1]Data!CA31+[1]Data!CH31)/[1]Inputs!$A$13 -> 0.375 | H34: =SUM([1]Data!AZ31+[1]Data!BJ31+[1]Data!BM31+[1]Data!BX31+[1]Data!CB31+[1]Data!CJ31+[1]Data!CK31)/[1]Inputs!$A$14 -> 0.3333333333 | I34: =SUM([1]Data!BV31+[1]Data!CC31+[1]Data!CL31)/[1]Inputs!$A$15 -> 0.3333333333 | J34: =SUM([1]Data!BC31+[1]Data!BG31+[1]Data!BJ31+[1]Data!BN31+[1]Data!BR31+[1]Data!BU31+[1]Data!BY31+[1]Data!BZ31+[1]Data!CE31+[1]Data!CG31)/[1]Inputs!$A$16 -> 0.3 | K34: =SUM([1]Data!BW31+[1]Data!CF31+[1]Data!CI31)/[1]Inputs!$A$17 -> 0.6666666667 | M34: E | N34: D | O34: B | P34: C | Q34: A | R34: A | S34: C | T34: D | U34: E | V34: E | W34: D | X34: C | Y34: C | Z34: A | AA34: E | AB34: A | AC34: C | AD34: D | AE34: A | AF34: D | AG34: D | AH34: B | AI34: C | AJ34: C | AK34: B | AL34: B | AM34: B | AN34: E | AO34: D | AP34: D | AQ34: C | AR34: D | AS34: C | AT34: A | AU34: C | AV34: A | AW34: A | AX34: D | AY34: A | AZ34: C
C35: 21815 | D35: =[1]Data!C65 -> 8 | E35: =LOOKUP(D35,[1]Inputs!$B$55:$B$84,[1]Inputs!$A$55:$A$84) -> 14 | F35: =SUM([1]Data!AY65+[1]Data!BA65+[1]Data!BB65+[1]Data!BE65+[1]Data!BH65+[1]Data!BP65+[1]Data!BS65+[1]Data!BT65+[1]Data!CD65)/[1]Inputs!$A$12 -> 0.1111111111 | G35: =SUM([1]Data!AZ65+[1]Data!BB65+[1]Data!BC65+[1]Data!BF65+[1]Data!BI65+[1]Data!BQ65+[1]Data!BT65+[1]Data!BU65+[1]Data!CE65)/[1]Inputs!$A$12 -> 0.4444444444 | H35: =SUM([1]Data!BA65+[1]Data!BC65+[1]Data!BD65+[1]Data!BG65+[1]Data!BJ65+[1]Data!BR65+[1]Data!BU65+[1]Data!BV65+[1]Data!CF65)/[1]Inputs!$A$12 -> 0.2222222222 | I35: =SUM([1]Data!BB65+[1]Data!BD65+[1]Data!BE65+[1]Data!BH65+[1]Data!BK65+[1]Data!BS65+[1]Data!BV65+[1]Data!BW65+[1]Data!CG65)/[1]Inputs!$A$12 -> 0.3333333333 | J35: =SUM([1]Data!BC65+[1]Data!BE65+[1]Data!BF65+[1]Data!BI65+[1]Data!BL65+[1]Data!BT65+[1]Data!BW65+[1]Data!BX65+[1]Data!CH65)/[1]Inputs!$A$12 -> 0.4444444444 | K35: =SUM([1]Data!BD65+[1]Data!BF65+[1]Data!BG65+[1]Data!BJ65+[1]Data!BM65+[1]Data!BU65+[1]Data!BX65+[1]Data!BY65+[1]Data!CI65)/[1]Inputs!$A$12 -> 0.5555555556 | M35: B | N35: C | O35: B | P35: C | Q35: C | R35: E | S35: C | T35: D | U35: D | V35: C | W35: D | X35: C | Y35: B | Z35: B | AA35: C | AB35: B | AC35: C | AD35: D | AE35: A | AF35: A | AG35: D | AH35: E | AI35: A | AJ35: A | AK35: C | AL35: B | AM35: B | AN35: B | AO35: A | AP35: A | AQ35: B | AR35: E | AS35: D | AT35: A | AU35: C | AV35: A | AW35: B | AX35: C | AY35: C | AZ35: D
C36: =[1]Data!E14 -> 21820 | D36: 9 | E36: =LOOKUP(D36,[1]Inputs!$B$55:$B$84,[1]Inputs!$A$55:$A$84) -> 15 | F36: =SUM([1]Data!AY14+[1]Data!BA14+[1]Data!BB14+[1]Data!BE14+[1]Data!BH14+[1]Data!BP14+[1]Data!BS14+[1]Data!BT14+[1]Data!CD14)/[1]Inputs!$A$12 -> 0.3333333333 | G36: =SUM([1]Data!BD14+[1]Data!BF14+[1]Data!BI14+[1]Data!BL14+[1]Data!BO14+[1]Data!BQ14+[1]Data!CA14+[1]Data!CH14)/[1]Inputs!$A$13 -> 0.125 | H36: =SUM([1]Data!AZ14+[1]Data!BJ14+[1]Data!BM14+[1]Data!BX14+[1]Data!CB14+[1]Data!CJ14+[1]Data!CK14)/[1]Inputs!$A$14 -> 0.5 | I36: =SUM([1]Data!BV14+[1]Data!CC14+[1]Data!CL14)/[1]Inputs!$A$15 -> 0.3333333333 | J36: =SUM([1]Data!BC14+[1]Data!BG14+[1]Data!BJ14+[1]Data!BN14+[1]Data!BR14+[1]Data!BU14+[1]Data!BY14+[1]Data!BZ14+[1]Data!CE14+[1]Data!CG14)/[1]Inputs!$A$16 -> 0.1 | K36: =SUM([1]Data!BW14+[1]Data!CF14+[1]Data!CI14)/[1]Inputs!$A$17 -> 0 | M36: B | N36: B | O36: E | P36: C | Q36: C | R36: E | S36: E | T36: D | U36: E | V36: C | W36: A | X36: E | Y36: C | Z36: C | AA36: C | AB36: A | AC36: B | AD36: A | AE36: C | AF36: D | AG36: D | AH36: B | AI36: C | AJ36: C | AK36: D | AL36: A | AM36: D | AN36: E | AO36: C | AP36: D | AQ36: A | AR36: D | AS36: E | AT36: A | AU36: B | AV36: C | AW36: A | AX36: B | AY36: D | AZ36: C
C37: 21822 | D37: =[1]Data!C124 -> 19 | E37: =LOOKUP(D37,[1]Inputs!$B$55:$B$84,[1]Inputs!$A$55:$A$84) -> 20 | F37: =SUM([1]Data!AY124+[1]Data!BA124+[1]Data!BB124+[1]Data!BE124+[1]Data!BH124+[1]Data!BP124+[1]Data!BS124+[1]Data!BT124+[1]Data!CD124)/[1]Inputs!$A$12 -> 0.7777777778 | G37: =SUM([1]Data!AZ124+[1]Data!BB124+[1]Data!BC124+[1]Data!BF124+[1]Data!BI124+[1]Data!BQ124+[1]Data!BT124+[1]Data!BU124+[1]Data!CE124)/[1]Inputs!$A$12 -> 0.5555555556 | H37: =SUM([1]Data!BA124+[1]Data!BC124+[1]Data!BD124+[1]Data!BG124+[1]Data!BJ124+[1]Data!BR124+[1]Data!BU124+[1]Data!BV124+[1]Data!CF124)/[1]Inputs!$A$12 -> 0.5555555556 | I37: =SUM([1]Data!BB124+[1]Data!BD124+[1]Data!BE124+[1]Data!BH124+[1]Data!BK124+[1]Data!BS124+[1]Data!BV124+[1]Data!BW124+[1]Data!CG124)/[1]Inputs!$A$12 -> 0.4444444444 | J37: =SUM([1]Data!BC124+[1]Data!BE124+[1]Data!BF124+[1]Data!BI124+[1]Data!BL124+[1]Data!BT124+[1]Data!BW124+[1]Data!BX124+[1]Data!CH124)/[1]Inputs!$A$12 -> 0.4444444444 | K37: =SUM([1]Data!BD124+[1]Data!BF124+[1]Data!BG124+[1]Data!BJ124+[1]Data!BM124+[1]Data!BU124+[1]Data!BX124+[1]Data!BY124+[1]Data!CI124)/[1]Inputs!$A$12 -> 0.5555555556 | M37: E | N37: B | O37: B | P37: C | Q37: C | R37: A | S37: E | T37: D | U37: D | V37: E | W37: B | X37: C | Y37: B | Z37: A | AA37: D | AB37: A | AC37: E | AD37: D | AE37: B | AF37: D | AG37: D | AH37: A | AI37: B | AJ37: A | AK37: E | AL37: C | AM37: D | AN37: E | AO37: B | AP37: C | AQ37: E | AR37: B | AS37: A | AT37: A | AU37: B | AV37: C | AW37: E | AX37: A | AY37: C | AZ37: D
C38: 21825 | D38: =[1]Data!C118 -> 23 | E38: =LOOKUP(D38,[1]Inputs!$B$55:$B$84,[1]Inputs!$A$55:$A$84) -> 24 | F38: =SUM([1]Data!AY118+[1]Data!BA118+[1]Data!BB118+[1]Data!BE118+[1]Data!BH118+[1]Data!BP118+[1]Data!BS118+[1]Data!BT118+[1]Data!CD118)/[1]Inputs!$A$12 -> 0.5555555556 | G38: =SUM([1]Data!AZ118+[1]Data!BB118+[1]Data!BC118+[1]Data!BF118+[1]Data!BI118+[1]Data!BQ118+[1]Data!BT118+[1]Data!BU118+[1]Data!CE118)/[1]Inputs!$A$12 -> 0.4444444444 | H38: =SUM([1]Data!BA118+[1]Data!BC118+[1]Data!BD118+[1]Data!BG118+[1]Data!BJ118+[1]Data!BR118+[1]Data!BU118+[1]Data!BV118+[1]Data!CF118)/[1]Inputs!$A$12 -> 0.2222222222 | I38: =SUM([1]Data!BB118+[1]Data!BD118+[1]Data!BE118+[1]Data!BH118+[1]Data!BK118+[1]Data!BS118+[1]Data!BV118+[1]Data!BW118+[1]Data!CG118)/[1]Inputs!$A$12 -> 0.4444444444 | J38: =SUM([1]Data!BC118+[1]Data!BE118+[1]Data!BF118+[1]Data!BI118+[1]Data!BL118+[1]Data!BT118+[1]Data!BW118+[1]Data!BX118+[1]Data!CH118)/[1]Inputs!$A$12 -> 0.3333333333 | K38: =SUM([1]Data!BD118+[1]Data!BF118+[1]Data!BG118+[1]Data!BJ118+[1]Data!BM118+[1]Data!BU118+[1]Data!BX118+[1]Data!BY118+[1]Data!CI118)/[1]Inputs!$A$12 -> 0.1111111111 | M38: E | N38: B | O38: B | P38: D | Q38: A | R38: A | S38: E | T38: D | U38: D | V38: E | W38: C | X38: C | Y38: C | Z38: A | AA38: B | AB38: D | AC38: B | AD38: E | AE38: B | AF38: A | AG38: D | AH38: A | AI38: D | AJ38: B | AK38: A | AL38: B | AM38: B | AN38: E | AO38: B | AP38: D | AQ38: E | AR38: E | AS38: A | AT38: A | AU38: B | AV38: A | AW38: C | AX38: B | AY38: D | AZ38: B
C39: 21833 | D39: =[1]Data!C117 -> 13 | E39: =LOOKUP(D39,[1]Inputs!$B$55:$B$84,[1]Inputs!$A$55:$A$84) -> 17 | F39: =SUM([1]Data!AY117+[1]Data!BA117+[1]Data!BB117+[1]Data!BE117+[1]Data!BH117+[1]Data!BP117+[1]Data!BS117+[1]Data!BT117+[1]Data!CD117)/[1]Inputs!$A$12 -> 0.3333333333 | G39: =SUM([1]Data!AZ117+[1]Data!BB117+[1]Data!BC117+[1]Data!BF117+[1]Data!BI117+[1]Data!BQ117+[1]Data!BT117+[1]Data!BU117+[1]Data!CE117)/[1]Inputs!$A$12 -> 0.6666666667 | H39: =SUM([1]Data!BA117+[1]Data!BC117+[1]Data!BD117+[1]Data!BG117+[1]Data!BJ117+[1]Data!BR117+[1]Data!BU117+[1]Data!BV117+[1]Data!CF117)/[1]Inputs!$A$12 -> 0.6666666667 | I39: =SUM([1]Data!BB117+[1]Data!BD117+[1]Data!BE117+[1]Data!BH117+[1]Data!BK117+[1]Data!BS117+[1]Data!BV117+[1]Data!BW117+[1]Data!CG117)/[1]Inputs!$A$12 -> 0.5555555556 | J39: =SUM([1]Data!BC117+[1]Data!BE117+[1]Data!BF117+[1]Data!BI117+[1]Data!BL117+[1]Data!BT117+[1]Data!BW117+[1]Data!BX117+[1]Data!CH117)/[1]Inputs!$A$12 -> 0.5555555556 | K39: =SUM([1]Data!BD117+[1]Data!BF117+[1]Data!BG117+[1]Data!BJ117+[1]Data!BM117+[1]Data!BU117+[1]Data!BX117+[1]Data!BY117+[1]Data!CI117)/[1]Inputs!$A$12 -> 0.5555555556 | M39: B | N39: D | O39: B | P39: D | Q39: A | R39: A | S39: D | T39: D | U39: E | V39: E | W39: C | X39: B | Y39: B | Z39: D | AA39: B | AB39: A | AC39: A | AD39: A | AE39: A | AF39: D | AG39: A | AH39: E | AI39: A | AJ39: D | AK39: A | AL39: C | AM39: D | AN39: A | AO39: C | AP39: D | AQ39: D | AR39: B | AS39: B | AT39: C | AU39: D | AV39: A | AW39: B | AX39: B | AY39: C | AZ39: D
C40: =[1]Data!E24 -> 21835 | D40: 16 | E40: =LOOKUP(D40,[1]Inputs!$B$55:$B$84,[1]Inputs!$A$55:$A$84) -> 18 | F40: =SUM([1]Data!AY24+[1]Data!BA24+[1]Data!BB24+[1]Data!BE24+[1]Data!BH24+[1]Data!BP24+[1]Data!BS24+[1]Data!BT24+[1]Data!CD24)/[1]Inputs!$A$12 -> 0.6666666667 | G40: =SUM([1]Data!BD24+[1]Data!BF24+[1]Data!BI24+[1]Data!BL24+[1]Data!BO24+[1]Data!BQ24+[1]Data!CA24+[1]Data!CH24)/[1]Inputs!$A$13 -> 0.375 | H40: =SUM([1]Data!AZ24+[1]Data!BJ24+[1]Data!BM24+[1]Data!BX24+[1]Data!CB24+[1]Data!CJ24+[1]Data!CK24)/[1]Inputs!$A$14 -> 0 | I40: =SUM([1]Data!BV24+[1]Data!CC24+[1]Data!CL24)/[1]Inputs!$A$15 -> 0 | J40: =SUM([1]Data!BC24+[1]Data!BG24+[1]Data!BJ24+[1]Data!BN24+[1]Data!BR24+[1]Data!BU24+[1]Data!BY24+[1]Data!BZ24+[1]Data!CE24+[1]Data!CG24)/[1]Inputs!$A$16 -> 0.3 | K40: =SUM([1]Data!BW24+[1]Data!CF24+[1]Data!CI24)/[1]Inputs!$A$17 -> 0 | M40: E | N40: D | O40: B | P40: D | Q40: C | R40: E | S40: E | T40: C | U40: E | V40: E | W40: D | X40: C | Y40: C | Z40: B | AA40: D | AB40: A | AC40: B | AD40: E | AE40: A | AF40: D | AG40: C | AH40: B | AI40: C | AJ40: D | AK40: A | AL40: B | AM40: B | AN40: B | AO40: D | AP40: A | AQ40: D | AR40: B | AS40: A | AT40: E | AU40: B | AV40: A | AW40: B | AX40: D | AY40: C | AZ40: B
C41: 21898 | D41: =[1]Data!C112 -> 10 | E41: =LOOKUP(D41,[1]Inputs!$B$55:$B$84,[1]Inputs!$A$55:$A$84) -> 15 | F41: =SUM([1]Data!AY112+[1]Data!BA112+[1]Data!BB112+[1]Data!BE112+[1]Data!BH112+[1]Data!BP112+[1]Data!BS112+[1]Data!BT112+[1]Data!CD112)/[1]Inputs!$A$12 -> 0.4444444444 | G41: =SUM([1]Data!AZ112+[1]Data!BB112+[1]Data!BC112+[1]Data!BF112+[1]Data!BI112+[1]Data!BQ112+[1]Data!BT112+[1]Data!BU112+[1]Data!CE112)/[1]Inputs!$A$12 -> 0.6666666667 | H41: =SUM([1]Data!BA112+[1]Data!BC112+[1]Data!BD112+[1]Data!BG112+[1]Data!BJ112+[1]Data!BR112+[1]Data!BU112+[1]Data!BV112+[1]Data!CF112)/[1]Inputs!$A$12 -> 0.6666666667 | I41: =SUM([1]Data!BB112+[1]Data!BD112+[1]Data!BE112+[1]Data!BH112+[1]Data!BK112+[1]Data!BS112+[1]Data!BV112+[1]Data!BW112+[1]Data!CG112)/[1]Inputs!$A$12 -> 0.5555555556 | J41: =SUM([1]Data!BC112+[1]Data!BE112+[1]Data!BF112+[1]Data!BI112+[1]Data!BL112+[1]Data!BT112+[1]Data!BW112+[1]Data!BX112+[1]Data!CH112)/[1]Inputs!$A$12 -> 0.3333333333 | K41: =SUM([1]Data!BD112+[1]Data!BF112+[1]Data!BG112+[1]Data!BJ112+[1]Data!BM112+[1]Data!BU112+[1]Data!BX112+[1]Data!BY112+[1]Data!CI112)/[1]Inputs!$A$12 -> 0.4444444444 | M41: B | N41: B | O41: B | P41: C | Q41: A | R41: E | S41: C | T41: D | U41: E | V41: D | W41: C | X41: E | Y41: B | Z41: D | AA41: C | AB41: D | AC41: B | AD41: E | AE41: C | AF41: A | AG41: C | AH41: E | AI41: D | AJ41: C | AK41: D | AL41: B | AM41: C | AN41: E | AO41: A | AP41: A | AQ41: D | AR41: B | AS41: A | AT41: A | AU41: C | AV41: C | AW41: B | AX41: D | AY41: C | AZ41: C
C42: 21905 | D42: =[1]Data!C189 -> 27 | E42: =LOOKUP(D42,[1]Inputs!$B$55:$B$84,[1]Inputs!$A$55:$A$84) -> 27 | F42: =SUM([1]Data!AY189+[1]Data!BA189+[1]Data!BB189+[1]Data!BE189+[1]Data!BH189+[1]Data!BP189+[1]Data!BS189+[1]Data!BT189+[1]Data!CD189)/[1]Inputs!$A$12 -> 0.6666666667 | G42: =SUM([1]Data!AZ189+[1]Data!BB189+[1]Data!BC189+[1]Data!BF189+[1]Data!BI189+[1]Data!BQ189+[1]Data!BT189+[1]Data!BU189+[1]Data!CE189)/[1]Inputs!$A$12 -> 0.6666666667 | H42: =SUM([1]Data!BA189+[1]Data!BC189+[1]Data!BD189+[1]Data!BG189+[1]Data!BJ189+[1]Data!BR189+[1]Data!BU189+[1]Data!BV189+[1]Data!CF189)/[1]Inputs!$A$12 -> 0.6666666667 | I42: =SUM([1]Data!BB189+[1]Data!BD189+[1]Data!BE189+[1]Data!BH189+[1]Data!BK189+[1]Data!BS189+[1]Data!BV189+[1]Data!BW189+[1]Data!CG189)/[1]Inputs!$A$12 -> 0.7777777778 | J42: =SUM([1]Data!BC189+[1]Data!BE189+[1]Data!BF189+[1]Data!BI189+[1]Data!BL189+[1]Data!BT189+[1]Data!BW189+[1]Data!BX189+[1]Data!CH189)/[1]Inputs!$A$12 -> 0.7777777778 | K42: =SUM([1]Data!BD189+[1]Data!BF189+[1]Data!BG189+[1]Data!BJ189+[1]Data!BM189+[1]Data!BU189+[1]Data!BX189+[1]Data!BY189+[1]Data!CI189)/[1]Inputs!$A$12 -> 0.6666666667 | M42: E | N42: D | O42: C | P42: D | Q42: A | R42: A | S42: E | T42: D | U42: D | V42: E | W42: C | X42: C | Y42: C | Z42: A | AA42: B | AB42: D | AC42: D | AD42: E | AE42: A | AF42: A | AG42: D | AH42: A | AI42: B | AJ42: D | AK42: B | AL42: B | AM42: B | AN42: E | AO42: B | AP42: D | AQ42: A | AR42: B | AS42: B | AT42: A | AU42: D | AV42: D | AW42: A | AX42: B | AY42: B | AZ42: B
C43: 21908 | D43: =[1]Data!C57 -> 26 | E43: =LOOKUP(D43,[1]Inputs!$B$55:$B$84,[1]Inputs!$A$55:$A$84) -> 26 | F43: =SUM([1]Data!AY57+[1]Data!BA57+[1]Data!BB57+[1]Data!BE57+[1]Data!BH57+[1]Data!BP57+[1]Data!BS57+[1]Data!BT57+[1]Data!CD57)/[1]Inputs!$A$12 -> 0.6666666667 | G43: =SUM([1]Data!AZ57+[1]Data!BB57+[1]Data!BC57+[1]Data!BF57+[1]Data!BI57+[1]Data!BQ57+[1]Data!BT57+[1]Data!BU57+[1]Data!CE57)/[1]Inputs!$A$12 -> 0.8888888889 | H43: =SUM([1]Data!BA57+[1]Data!BC57+[1]Data!BD57+[1]Data!BG57+[1]Data!BJ57+[1]Data!BR57+[1]Data!BU57+[1]Data!BV57+[1]Data!CF57)/[1]Inputs!$A$12 -> 0.8888888889 | I43: =SUM([1]Data!BB57+[1]Data!BD57+[1]Data!BE57+[1]Data!BH57+[1]Data!BK57+[1]Data!BS57+[1]Data!BV57+[1]Data!BW57+[1]Data!CG57)/[1]Inputs!$A$12 -> 0.5555555556 | J43: =SUM([1]Data!BC57+[1]Data!BE57+[1]Data!BF57+[1]Data!BI57+[1]Data!BL57+[1]Data!BT57+[1]Data!BW57+[1]Data!BX57+[1]Data!CH57)/[1]Inputs!$A$12 -> 0.6666666667 | K43: =SUM([1]Data!BD57+[1]Data!BF57+[1]Data!BG57+[1]Data!BJ57+[1]Data!BM57+[1]Data!BU57+[1]Data!BX57+[1]Data!BY57+[1]Data!CI57)/[1]Inputs!$A$12 -> 0.6666666667 | M43: D | N43: D | O43: B | P43: D | Q43: A | R43: A | S43: E | T43: D | U43: D | V43: E | W43: C | X43: C | Y43: E | Z43: E | AA43: D | AB43: D | AC43: D | AD43: E | AE43: A | AF43: D | AG43: D | AH43: A | AI43: B | AJ43: A | AK43: A | AL43: B | AM43: B | AN43: B | AO43: D | AP43: D | AQ43: A | AR43: B | AS43: B | AT43: A | AU43: D | AV43: A | AW43: D | AX43: C | AY43: B | AZ43: E
C44: 21909 | D44: =[1]Data!C49 -> 12 | E44: =LOOKUP(D44,[1]Inputs!$B$55:$B$84,[1]Inputs!$A$55:$A$84) -> 16 | F44: =SUM([1]Data!AY49+[1]Data!BA49+[1]Data!BB49+[1]Data!BE49+[1]Data!BH49+[1]Data!BP49+[1]Data!BS49+[1]Data!BT49+[1]Data!CD49)/[1]Inputs!$A$12 -> 0.4444444444 | G44: =SUM([1]Data!AZ49+[1]Data!BB49+[1]Data!BC49+[1]Data!BF49+[1]Data!BI49+[1]Data!BQ49+[1]Data!BT49+[1]Data!BU49+[1]Data!CE49)/[1]Inputs!$A$12 -> 0.2222222222 | H44: =SUM([1]Data!BA49+[1]Data!BC49+[1]Data!BD49+[1]Data!BG49+[1]Data!BJ49+[1]Data!BR49+[1]Data!BU49+[1]Data!BV49+[1]Data!CF49)/[1]Inputs!$A$12 -> 0.1111111111 | I44: =SUM([1]Data!BB49+[1]Data!BD49+[1]Data!BE49+[1]Data!BH49+[1]Data!BK49+[1]Data!BS49+[1]Data!BV49+[1]Data!BW49+[1]Data!CG49)/[1]Inputs!$A$12 -> 0.5555555556 | J44: =SUM([1]Data!BC49+[1]Data!BE49+[1]Data!BF49+[1]Data!BI49+[1]Data!BL49+[1]Data!BT49+[1]Data!BW49+[1]Data!BX49+[1]Data!CH49)/[1]Inputs!$A$12 -> 0.2222222222 | K44: =SUM([1]Data!BD49+[1]Data!BF49+[1]Data!BG49+[1]Data!BJ49+[1]Data!BM49+[1]Data!BU49+[1]Data!BX49+[1]Data!BY49+[1]Data!CI49)/[1]Inputs!$A$12 -> 0.3333333333 | M44: E | N44: D | O44: C | P44: D | Q44: C | R44: A | S44: A | T44: D | U44: E | V44: E | W44: D | X44: B | Y44: B | Z44: B | AA44: C | AB44: D | AC44: B | AD44: D | AE44: C | AF44: B | AG44: D | AH44: A | AI44: C | AJ44: A | AK44: C | AL44: B | AM44: B | AN44: B | AO44: B | AP44: D | AQ44: C | AR44: D | AS44: B | AT44: A | AU44: C | AV44: A | AW44: B | AX44: C | AY44: D | AZ44: D
C45: 21918 | D45: =[1]Data!C244 -> 15 | E45: =LOOKUP(D45,[1]Inputs!$B$55:$B$84,[1]Inputs!$A$55:$A$84) -> 18 | F45: =SUM([1]Data!AY244+[1]Data!BA244+[1]Data!BB244+[1]Data!BE244+[1]Data!BH244+[1]Data!BP244+[1]Data!BS244+[1]Data!BT244+[1]Data!CD244)/[1]Inputs!$A$12 -> 0.4444444444 | G45: =SUM([1]Data!AZ244+[1]Data!BB244+[1]Data!BC244+[1]Data!BF244+[1]Data!BI244+[1]Data!BQ244+[1]Data!BT244+[1]Data!BU244+[1]Data!CE244)/[1]Inputs!$A$12 -> 0.1111111111 | H45: =SUM([1]Data!BA244+[1]Data!BC244+[1]Data!BD244+[1]Data!BG244+[1]Data!BJ244+[1]Data!BR244+[1]Data!BU244+[1]Data!BV244+[1]Data!CF244)/[1]Inputs!$A$12 -> 0.1111111111 | I45: =SUM([1]Data!BB244+[1]Data!BD244+[1]Data!BE244+[1]Data!BH244+[1]Data!BK244+[1]Data!BS244+[1]Data!BV244+[1]Data!BW244+[1]Data!CG244)/[1]Inputs!$A$12 -> 0.5555555556 | J45: =SUM([1]Data!BC244+[1]Data!BE244+[1]Data!BF244+[1]Data!BI244+[1]Data!BL244+[1]Data!BT244+[1]Data!BW244+[1]Data!BX244+[1]Data!CH244)/[1]Inputs!$A$12 -> 0 | K45: =SUM([1]Data!BD244+[1]Data!BF244+[1]Data!BG244+[1]Data!BJ244+[1]Data!BM244+[1]Data!BU244+[1]Data!BX244+[1]Data!BY244+[1]Data!CI244)/[1]Inputs!$A$12 -> 0.2222222222 | M45: C | N45: B | O45: C | P45: D | Q45: A | R45: A | S45: E | T45: D | U45: D | V45: E | W45: C | X45: C | Y45: B | Z45: A | AA45: B | AB45: D | AC45: A | AD45: A | AE45: A | AF45: E | AG45: D | AH45: E | AI45: C | AJ45: A | AK45: C | AL45: A | AM45: D | AN45: E | AO45: A | AP45: A | AQ45: E | AR45: C | AS45: A | AT45: D | AU45: B | AV45: B | AW45: A | AX45: D | AY45: E | AZ45: A
C46: 21922 | D46: =[1]Data!C181 -> 26 | E46: =LOOKUP(D46,[1]Inputs!$B$55:$B$84,[1]Inputs!$A$55:$A$84) -> 26 | F46: =SUM([1]Data!AY181+[1]Data!BA181+[1]Data!BB181+[1]Data!BE181+[1]Data!BH181+[1]Data!BP181+[1]Data!BS181+[1]Data!BT181+[1]Data!CD181)/[1]Inputs!$A$12 -> 0.6666666667 | G46: =SUM([1]Data!AZ181+[1]Data!BB181+[1]Data!BC181+[1]Data!BF181+[1]Data!BI181+[1]Data!BQ181+[1]Data!BT181+[1]Data!BU181+[1]Data!CE181)/[1]Inputs!$A$12 -> 0.4444444444 | H46: =SUM([1]Data!BA181+[1]Data!BC181+[1]Data!BD181+[1]Data!BG181+[1]Data!BJ181+[1]Data!BR181+[1]Data!BU181+[1]Data!BV181+[1]Data!CF181)/[1]Inputs!$A$12 -> 0.2222222222 | I46: =SUM([1]Data!BB181+[1]Data!BD181+[1]Data!BE181+[1]Data!BH181+[1]Data!BK181+[1]Data!BS181+[1]Data!BV181+[1]Data!BW181+[1]Data!CG181)/[1]Inputs!$A$12 -> 0.4444444444 | J46: =SUM([1]Data!BC181+[1]Data!BE181+[1]Data!BF181+[1]Data!BI181+[1]Data!BL181+[1]Data!BT181+[1]Data!BW181+[1]Data!BX181+[1]Data!CH181)/[1]Inputs!$A$12 -> 0.6666666667 | K46: =SUM([1]Data!BD181+[1]Data!BF181+[1]Data!BG181+[1]Data!BJ181+[1]Data!BM181+[1]Data!BU181+[1]Data!BX181+[1]Data!BY181+[1]Data!CI181)/[1]Inputs!$A$12 -> 0.3333333333 | M46: E | N46: D | O46: B | P46: D | Q46: A | R46: A | S46: E | T46: D | U46: E | V46: E | W46: C | X46: C | Y46: C | Z46: A | AA46: D | AB46: D | AC46: A | AD46: E | AE46: B | AF46: D | AG46: D | AH46: A | AI46: B | AJ46: D | AK46: B | AL46: C | AM46: A | AN46: B | AO46: B | AP46: D | AQ46: A | AR46: D | AS46: B | AT46: D | AU46: D | AV46: A | AW46: A | AX46: B | AY46: D | AZ46: B
C47: =[1]Data!E44 -> 21927 | D47: 20 | E47: =LOOKUP(D47,[1]Inputs!$B$55:$B$84,[1]Inputs!$A$55:$A$84) -> 21 | F47: =SUM([1]Data!AY44+[1]Data!BA44+[1]Data!BB44+[1]Data!BE44+[1]Data!BH44+[1]Data!BP44+[1]Data!BS44+[1]Data!BT44+[1]Data!CD44)/[1]Inputs!$A$12 -> 0.4444444444 | G47: =SUM([1]Data!BD44+[1]Data!BF44+[1]Data!BI44+[1]Data!BL44+[1]Data!BO44+[1]Data!BQ44+[1]Data!CA44+[1]Data!CH44)/[1]Inputs!$A$13 -> 0.5 | H47: =SUM([1]Data!AZ44+[1]Data!BJ44+[1]Data!BM44+[1]Data!BX44+[1]Data!CB44+[1]Data!CJ44+[1]Data!CK44)/[1]Inputs!$A$14 -> 0.1666666667 | I47: =SUM([1]Data!BV44+[1]Data!CC44+[1]Data!CL44)/[1]Inputs!$A$15 -> 0.3333333333 | J47: =SUM([1]Data!BC44+[1]Data!BG44+[1]Data!BJ44+[1]Data!BN44+[1]Data!BR44+[1]Data!BU44+[1]Data!BY44+[1]Data!BZ44+[1]Data!CE44+[1]Data!CG44)/[1]Inputs!$A$16 -> 0.4 | K47: =SUM([1]Data!BW44+[1]Data!CF44+[1]Data!CI44)/[1]Inputs!$A$17 -> 0.3333333333 | M47: E | N47: B | O47: B | P47: D | Q47: A | R47: E | S47: A | T47: D | U47: D | V47: E | W47: D | X47: B | Y47: C | Z47: A | AA47: C | AB47: C | AC47: B | AD47: D | AE47: B | AF47: A | AG47: D | AH47: C | AI47: B | AJ47: E | AK47: C | AL47: E | AM47: E | AN47: B | AO47: D | AP47: D | AQ47: B | AR47: B | AS47: C | AT47: D | AU47: C | AV47: B | AW47: D | AX47: C | AY47: E | AZ47: C
C48: =[1]Data!E25 -> 21930 | D48: 20 | E48: =LOOKUP(D48,[1]Inputs!$B$55:$B$84,[1]Inputs!$A$55:$A$84) -> 21 | F48: =SUM([1]Data!AY25+[1]Data!BA25+[1]Data!BB25+[1]Data!BE25+[1]Data!BH25+[1]Data!BP25+[1]Data!BS25+[1]Data!BT25+[1]Data!CD25)/[1]Inputs!$A$12 -> 0.7777777778 | G48: =SUM([1]Data!BD25+[1]Data!BF25+[1]Data!BI25+[1]Data!BL25+[1]Data!BO25+[1]Data!BQ25+[1]Data!CA25+[1]Data!CH25)/[1]Inputs!$A$13 -> 0.75 | H48: =SUM([1]Data!AZ25+[1]Data!BJ25+[1]Data!BM25+[1]Data!BX25+[1]Data!CB25+[1]Data!CJ25+[1]Data!CK25)/[1]Inputs!$A$14 -> 0.3333333333 | I48: =SUM([1]Data!BV25+[1]Data!CC25+[1]Data!CL25)/[1]Inputs!$A$15 -> 0.3333333333 | J48: =SUM([1]Data!BC25+[1]Data!BG25+[1]Data!BJ25+[1]Data!BN25+[1]Data!BR25+[1]Data!BU25+[1]Data!BY25+[1]Data!BZ25+[1]Data!CE25+[1]Data!CG25)/[1]Inputs!$A$16 -> 0.3 | K48: =SUM([1]Data!BW25+[1]Data!CF25+[1]Data!CI25)/[1]Inputs!$A$17 -> 0.3333333333 | M48: E | N48: D | O48: B | P48: C | Q48: B | R48: E | S48: E | T48: D | U48: D | V48: E | W48: C | X48: C | Y48: C | Z48: A | AA48: D | AB48: E | AC48: A | AD48: D | AE48: B | AF48: B | AG48: D | AH48: A | AI48: D | AJ48: A | AK48: B | AL48: E | AM48: A | AN48: B | AO48: D | AP48: D | AQ48: C | AR48: B | AS48: D | AT48: D | AU48: A | AV48: A | AW48: B | AX48: C | AY48: B | AZ48: D
C49: 21934 | D49: =[1]Data!C146 -> 19 | E49: =LOOKUP(D49,[1]Inputs!$B$55:$B$84,[1]Inputs!$A$55:$A$84) -> 20 | F49: =SUM([1]Data!AY146+[1]Data!BA146+[1]Data!BB146+[1]Data!BE146+[1]Data!BH146+[1]Data!BP146+[1]Data!BS146+[1]Data!BT146+[1]Data!CD146)/[1]Inputs!$A$12 -> 0.4444444444 | G49: =SUM([1]Data!AZ146+[1]Data!BB146+[1]Data!BC146+[1]Data!BF146+[1]Data!BI146+[1]Data!BQ146+[1]Data!BT146+[1]Data!BU146+[1]Data!CE146)/[1]Inputs!$A$12 -> 0.4444444444 | H49: =SUM([1]Data!BA146+[1]Data!BC146+[1]Data!BD146+[1]Data!BG146+[1]Data!BJ146+[1]Data!BR146+[1]Data!BU146+[1]Data!BV146+[1]Data!CF146)/[1]Inputs!$A$12 -> 0.4444444444 | I49: =SUM([1]Data!BB146+[1]Data!BD146+[1]Data!BE146+[1]Data!BH146+[1]Data!BK146+[1]Data!BS146+[1]Data!BV146+[1]Data!BW146+[1]Data!CG146)/[1]Inputs!$A$12 -> 0.3333333333 | J49: =SUM([1]Data!BC146+[1]Data!BE146+[1]Data!BF146+[1]Data!BI146+[1]Data!BL146+[1]Data!BT146+[1]Data!BW146+[1]Data!BX146+[1]Data!CH146)/[1]Inputs!$A$12 -> 0.5555555556 | K49: =SUM([1]Data!BD146+[1]Data!BF146+[1]Data!BG146+[1]Data!BJ146+[1]Data!BM146+[1]Data!BU146+[1]Data!BX146+[1]Data!BY146+[1]Data!CI146)/[1]Inputs!$A$12 -> 0.3333333333 | M49: E | N49: B | O49: C | P49: D | Q49: A | R49: A | S49: E | T49: D | U49: D | V49: E | W49: C | X49: C | Y49: B | Z49: A | AA49: B | AB49: D | AC49: A | AD49: D | AE49: B | AF49: D | AG49: E | AH49: C | AI49: D | AJ49: E | AK49: D | AL49: B | AM49: B | AN49: B | AO49: D | AP49: C | AQ49: D | AR49: D | AS49: B | AT49: A | AU49: C | AV49: B | AW49: E | AX49: A | AY49: C | AZ49: B
C50: =[1]Data!E23 -> 21935 | D50: 16 | E50: =LOOKUP(D50,[1]Inputs!$B$55:$B$84,[1]Inputs!$A$55:$A$84) -> 18 | F50: =SUM([1]Data!AY23+[1]Data!BA23+[1]Data!BB23+[1]Data!BE23+[1]Data!BH23+[1]Data!BP23+[1]Data!BS23+[1]Data!BT23+[1]Data!CD23)/[1]Inputs!$A$12 -> 0.2222222222 | G50: =SUM([1]Data!BD23+[1]Data!BF23+[1]Data!BI23+[1]Data!BL23+[1]Data!BO23+[1]Data!BQ23+[1]Data!CA23+[1]Data!CH23)/[1]Inputs!$A$13 -> 0.125 | H50: =SUM([1]Data!AZ23+[1]Data!BJ23+[1]Data!BM23+[1]Data!BX23+[1]Data!CB23+[1]Data!CJ23+[1]Data!CK23)/[1]Inputs!$A$14 -> 0.1666666667 | I50: =SUM([1]Data!BV23+[1]Data!CC23+[1]Data!CL23)/[1]Inputs!$A$15 -> 0.3333333333 | J50: =SUM([1]Data!BC23+[1]Data!BG23+[1]Data!BJ23+[1]Data!BN23+[1]Data!BR23+[1]Data!BU23+[1]Data!BY23+[1]Data!BZ23+[1]Data!CE23+[1]Data!CG23)/[1]Inputs!$A$16 -> 0.4 | K50: =SUM([1]Data!BW23+[1]Data!CF23+[1]Data!CI23)/[1]Inputs!$A$17 -> 0.3333333333 | M50: E | N50: C | O50: B | P50: C | Q50: C | R50: E | S50: E | T50: D | U50: B | V50: E | W50: C | X50: C | Y50: C | Z50: A | AA50: E | AB50: A | AC50: C | AD50: D | AE50: C | AF50: D | AG50: E | AH50: E | AI50: A | AJ50: E | AK50: B | AL50: C | AM50: D | AN50: B | AO50: D | AP50: D | AQ50: D | AR50: B | AS50: D | AT50: C | AU50: B | AV50: A | AW50: C | AX50: A | AY50: D | AZ50: D
C51: 21937 | D51: =[1]Data!C145 -> 12 | E51: =LOOKUP(D51,[1]Inputs!$B$55:$B$84,[1]Inputs!$A$55:$A$84) -> 16 | F51: =SUM([1]Data!AY145+[1]Data!BA145+[1]Data!BB145+[1]Data!BE145+[1]Data!BH145+[1]Data!BP145+[1]Data!BS145+[1]Data!BT145+[1]Data!CD145)/[1]Inputs!$A$12 -> 0.3333333333 | G51: =SUM([1]Data!AZ145+[1]Data!BB145+[1]Data!BC145+[1]Data!BF145+[1]Data!BI145+[1]Data!BQ145+[1]Data!BT145+[1]Data!BU145+[1]Data!CE145)/[1]Inputs!$A$12 -> 0.5555555556 | H51: =SUM([1]Data!BA145+[1]Data!BC145+[1]Data!BD145+[1]Data!BG145+[1]Data!BJ145+[1]Data!BR145+[1]Data!BU145+[1]Data!BV145+[1]Data!CF145)/[1]Inputs!$A$12 -> 0.3333333333 | I51: =SUM([1]Data!BB145+[1]Data!BD145+[1]Data!BE145+[1]Data!BH145+[1]Data!BK145+[1]Data!BS145+[1]Data!BV145+[1]Data!BW145+[1]Data!CG145)/[1]Inputs!$A$12 -> 0.3333333333 | J51: =SUM([1]Data!BC145+[1]Data!BE145+[1]Data!BF145+[1]Data!BI145+[1]Data!BL145+[1]Data!BT145+[1]Data!BW145+[1]Data!BX145+[1]Data!CH145)/[1]Inputs!$A$12 -> 0.6666666667 | K51: =SUM([1]Data!BD145+[1]Data!BF145+[1]Data!BG145+[1]Data!BJ145+[1]Data!BM145+[1]Data!BU145+[1]Data!BX145+[1]Data!BY145+[1]Data!CI145)/[1]Inputs!$A$12 -> 0.4444444444 | M51: E | N51: D | O51: C | P51: C | Q51: C | R51: A | S51: E | T51: D | U51: E | V51: E | W51: C | X51: B | Y51: C | Z51: C | AA51: B | AB51: D | AC51: E | AD51: D | AE51: B | AF51: D | AG51: E | AH51: B | AI51: E | AJ51: A | AK51: D | AL51: C | AM51: C | AN51: A | AO51: D | AP51: E | AQ51: C | AR51: D | AS51: B | AT51: D | AU51: E | AV51: A | AW51: C | AX51: D | AY51: C | AZ51: C
C52: 21940 | D52: =[1]Data!C161 -> 33 | E52: =LOOKUP(D52,[1]Inputs!$B$55:$B$84,[1]Inputs!$A$55:$A$84) -> 30 | F52: =SUM([1]Data!AY161+[1]Data!BA161+[1]Data!BB161+[1]Data!BE161+[1]Data!BH161+[1]Data!BP161+[1]Data!BS161+[1]Data!BT161+[1]Data!CD161)/[1]Inputs!$A$12 -> 0.5555555556 | G52: =SUM([1]Data!AZ161+[1]Data!BB161+[1]Data!BC161+[1]Data!BF161+[1]Data!BI161+[1]Data!BQ161+[1]Data!BT161+[1]Data!BU161+[1]Data!CE161)/[1]Inputs!$A$12 -> 0.3333333333 | H52: =SUM([1]Data!BA161+[1]Data!BC161+[1]Data!BD161+[1]Data!BG161+[1]Data!BJ161+[1]Data!BR161+[1]Data!BU161+[1]Data!BV161+[1]Data!CF161)/[1]Inputs!$A$12 -> 0.3333333333 | I52: =SUM([1]Data!BB161+[1]Data!BD161+[1]Data!BE161+[1]Data!BH161+[1]Data!BK161+[1]Data!BS161+[1]Data!BV161+[1]Data!BW161+[1]Data!CG161)/[1]Inputs!$A$12 -> 0.4444444444 | J52: =SUM([1]Data!BC161+[1]Data!BE161+[1]Data!BF161+[1]Data!BI161+[1]Data!BL161+[1]Data!BT161+[1]Data!BW161+[1]Data!BX161+[1]Data!CH161)/[1]Inputs!$A$12 -> 0.5555555556 | K52: =SUM([1]Data!BD161+[1]Data!BF161+[1]Data!BG161+[1]Data!BJ161+[1]Data!BM161+[1]Data!BU161+[1]Data!BX161+[1]Data!BY161+[1]Data!CI161)/[1]Inputs!$A$12 -> 0.1111111111 | M52: E | N52: C | O52: B | P52: D | Q52: A | R52: A | S52: E | T52: D | U52: D | V52: E | W52: C | X52: C | Y52: C | Z52: A | AA52: A | AB52: D | AC52: D | AD52: E | AE52: B | AF52: D | AG52: D | AH52: A | AI52: D | AJ52: C | AK52: A | AL52: E | AM52: B | AN52: B | AO52: D | AP52: D | AQ52: E | AR52: B | AS52: C | AT52: A | AU52: B | AV52: A | AW52: A | AX52: A | AY52: D | AZ52: B
C53: 21941 | D53: =[1]Data!C191 -> 22 | E53: =LOOKUP(D53,[1]Inputs!$B$55:$B$84,[1]Inputs!$A$55:$A$84) -> 23 | F53: =SUM([1]Data!AY191+[1]Data!BA191+[1]Data!BB191+[1]Data!BE191+[1]Data!BH191+[1]Data!BP191+[1]Data!BS191+[1]Data!BT191+[1]Data!CD191)/[1]Inputs!$A$12 -> 0.5555555556 | G53: =SUM([1]Data!AZ191+[1]Data!BB191+[1]Data!BC191+[1]Data!BF191+[1]Data!BI191+[1]Data!BQ191+[1]Data!BT191+[1]Data!BU191+[1]Data!CE191)/[1]Inputs!$A$12 -> 0.4444444444 | H53: =SUM([1]Data!BA191+[1]Data!BC191+[1]Data!BD191+[1]Data!BG191+[1]Data!BJ191+[1]Data!BR191+[1]Data!BU191+[1]Data!BV191+[1]Data!CF191)/[1]Inputs!$A$12 -> 0.4444444444 | I53: =SUM([1]Data!BB191+[1]Data!BD191+[1]Data!BE191+[1]Data!BH191+[1]Data!BK191+[1]Data!BS191+[1]Data!BV191+[1]Data!BW191+[1]Data!CG191)/[1]Inputs!$A$12 -> 0.6666666667 | J53: =SUM([1]Data!BC191+[1]Data!BE191+[1]Data!BF191+[1]Data!BI191+[1]Data!BL191+[1]Data!BT191+[1]Data!BW191+[1]Data!BX191+[1]Data!CH191)/[1]Inputs!$A$12 -> 0.4444444444 | K53: =SUM([1]Data!BD191+[1]Data!BF191+[1]Data!BG191+[1]Data!BJ191+[1]Data!BM191+[1]Data!BU191+[1]Data!BX191+[1]Data!BY191+[1]Data!CI191)/[1]Inputs!$A$12 -> 0.4444444444 | M53: E | N53: C | O53: B | P53: D | Q53: A | R53: E | S53: E | T53: D | U53: D | V53: E | W53: C | X53: C | Y53: C | Z53: E | AA53: C | AB53: D | AC53: A | AD53: D | AE53: B | AF53: D | AG53: D | AH53: C | AI53: D | AJ53: D | AK53: D | AL53: A | AM53: A | AN53: B | AO53: B | AP53: D | AQ53: B | AR53: A | AS53: C | AT53: B | AU53: C | AV53: A | AW53: A | AX53: D | AY53: C | AZ53: C
C54: 21943 | D54: =[1]Data!C62 -> 24 | E54: =LOOKUP(D54,[1]Inputs!$B$55:$B$84,[1]Inputs!$A$55:$A$84) -> 24 | F54: =SUM([1]Data!AY62+[1]Data!BA62+[1]Data!BB62+[1]Data!BE62+[1]Data!BH62+[1]Data!BP62+[1]Data!BS62+[1]Data!BT62+[1]Data!CD62)/[1]Inputs!$A$12 -> 0.5555555556 | G54: =SUM([1]Data!AZ62+[1]Data!BB62+[1]Data!BC62+[1]Data!BF62+[1]Data!BI62+[1]Data!BQ62+[1]Data!BT62+[1]Data!BU62+[1]Data!CE62)/[1]Inputs!$A$12 -> 0.4444444444 | H54: =SUM([1]Data!BA62+[1]Data!BC62+[1]Data!BD62+[1]Data!BG62+[1]Data!BJ62+[1]Data!BR62+[1]Data!BU62+[1]Data!BV62+[1]Data!CF62)/[1]Inputs!$A$12 -> 0.6666666667 | I54: =SUM([1]Data!BB62+[1]Data!BD62+[1]Data!BE62+[1]Data!BH62+[1]Data!BK62+[1]Data!BS62+[1]Data!BV62+[1]Data!BW62+[1]Data!CG62)/[1]Inputs!$A$12 -> 0.5555555556 | J54: =SUM([1]Data!BC62+[1]Data!BE62+[1]Data!BF62+[1]Data!BI62+[1]Data!BL62+[1]Data!BT62+[1]Data!BW62+[1]Data!BX62+[1]Data!CH62)/[1]Inputs!$A$12 -> 0.4444444444 | K54: =SUM([1]Data!BD62+[1]Data!BF62+[1]Data!BG62+[1]Data!BJ62+[1]Data!BM62+[1]Data!BU62+[1]Data!BX62+[1]Data!BY62+[1]Data!CI62)/[1]Inputs!$A$12 -> 0.3333333333 | M54: D | N54: B | O54: B | P54: D | Q54: A | R54: A | S54: E | T54: D | U54: D | V54: B | W54: C | X54: D | Y54: C | Z54: A | AA54: D | AB54: D | AC54: B | AD54: E | AE54: A | AF54: D | AG54: D | AH54: A | AI54: C | AJ54: E | AK54: D | AL54: C | AM54: B | AN54: E | AO54: B | AP54: D | AQ54: C | AR54: B | AS54: D | AT54: A | AU54: C | AV54: D | AW54: A | AX54: A | AY54: D | AZ54: E
C55: 21951 | D55: =[1]Data!C85 -> 12 | E55: =LOOKUP(D55,[1]Inputs!$B$55:$B$84,[1]Inputs!$A$55:$A$84) -> 16 | F55: =SUM([1]Data!AY85+[1]Data!BA85+[1]Data!BB85+[1]Data!BE85+[1]Data!BH85+[1]Data!BP85+[1]Data!BS85+[1]Data!BT85+[1]Data!CD85)/[1]Inputs!$A$12 -> 0.3333333333 | G55: =SUM([1]Data!AZ85+[1]Data!BB85+[1]Data!BC85+[1]Data!BF85+[1]Data!BI85+[1]Data!BQ85+[1]Data!BT85+[1]Data!BU85+[1]Data!CE85)/[1]Inputs!$A$12 -> 0.1111111111 | H55: =SUM([1]Data!BA85+[1]Data!BC85+[1]Data!BD85+[1]Data!BG85+[1]Data!BJ85+[1]Data!BR85+[1]Data!BU85+[1]Data!BV85+[1]Data!CF85)/[1]Inputs!$A$12 -> 0.2222222222 | I55: =SUM([1]Data!BB85+[1]Data!BD85+[1]Data!BE85+[1]Data!BH85+[1]Data!BK85+[1]Data!BS85+[1]Data!BV85+[1]Data!BW85+[1]Data!CG85)/[1]Inputs!$A$12 -> 0.2222222222 | J55: =SUM([1]Data!BC85+[1]Data!BE85+[1]Data!BF85+[1]Data!BI85+[1]Data!BL85+[1]Data!BT85+[1]Data!BW85+[1]Data!BX85+[1]Data!CH85)/[1]Inputs!$A$12 -> 0.3333333333 | K55: =SUM([1]Data!BD85+[1]Data!BF85+[1]Data!BG85+[1]Data!BJ85+[1]Data!BM85+[1]Data!BU85+[1]Data!BX85+[1]Data!BY85+[1]Data!CI85)/[1]Inputs!$A$12 -> 0.2222222222 | M55: E | N55: D | O55: B | P55: C | Q55: C | R55: B | S55: C | T55: D | U55: D | V55: E | W55: B | X55: C | Y55: B | Z55: A | AA55: A | AB55: B | AC55: A | AD55: E | AE55: A | AF55: D | AG55: C | AH55: C | AI55: C | AJ55: A | AK55: B | AL55: A | AM55: C | AN55: B | AO55: C | AP55: A | AQ55: D | AR55: A | AS55: D | AT55: C | AU55: C | AV55: A | AW55: E | AX55: D | AY55: C | AZ55: C
C56: =[1]Data!E33 -> 21953 | D56: 21 | E56: =LOOKUP(D56,[1]Inputs!$B$55:$B$84,[1]Inputs!$A$55:$A$84) -> 22 | F56: =SUM([1]Data!AY33+[1]Data!BA33+[1]Data!BB33+[1]Data!BE33+[1]Data!BH33+[1]Data!BP33+[1]Data!BS33+[1]Data!BT33+[1]Data!CD33)/[1]Inputs!$A$12 -> 0.3333333333 | G56: =SUM([1]Data!BD33+[1]Data!BF33+[1]Data!BI33+[1]Data!BL33+[1]Data!BO33+[1]Data!BQ33+[1]Data!CA33+[1]Data!CH33)/[1]Inputs!$A$13 -> 0.5 | H56: =SUM([1]Data!AZ33+[1]Data!BJ33+[1]Data!BM33+[1]Data!BX33+[1]Data!CB33+[1]Data!CJ33+[1]Data!CK33)/[1]Inputs!$A$14 -> 0.6666666667 | I56: =SUM([1]Data!BV33+[1]Data!CC33+[1]Data!CL33)/[1]Inputs!$A$15 -> 0.3333333333 | J56: =SUM([1]Data!BC33+[1]Data!BG33+[1]Data!BJ33+[1]Data!BN33+[1]Data!BR33+[1]Data!BU33+[1]Data!BY33+[1]Data!BZ33+[1]Data!CE33+[1]Data!CG33)/[1]Inputs!$A$16 -> 0.4 | K56: =SUM([1]Data!BW33+[1]Data!CF33+[1]Data!CI33)/[1]Inputs!$A$17 -> 0.3333333333 | M56: D | N56: D | O56: B | P56: D | Q56: A | R56: A | S56: E | T56: D | U56: D | V56: E | W56: C | X56: C | Y56: B | Z56: A | AA56: D | AB56: D | AC56: E | AD56: D | AE56: B | AF56: D | AG56: C | AH56: A | AI56: A | AJ56: B | AK56: A | AL56: C | AM56: D | AN56: E | AO56: B | AP56: D | AQ56: B | AR56: B | AS56: D | AT56: A | AU56: A | AV56: A | AW56: E | AX56: D | AY56: B | AZ56: C
C57: =[1]Data!E42 -> 21957 | D57: 21 | E57: =LOOKUP(D57,[1]Inputs!$B$55:$B$84,[1]Inputs!$A$55:$A$84) -> 22 | F57: =SUM([1]Data!AY42+[1]Data!BA42+[1]Data!BB42+[1]Data!BE42+[1]Data!BH42+[1]Data!BP42+[1]Data!BS42+[1]Data!BT42+[1]Data!CD42)/[1]Inputs!$A$12 -> 0.3333333333 | G57: =SUM([1]Data!BD42+[1]Data!BF42+[1]Data!BI42+[1]Data!BL42+[1]Data!BO42+[1]Data!BQ42+[1]Data!CA42+[1]Data!CH42)/[1]Inputs!$A$13 -> 0.375 | H57: =SUM([1]Data!AZ42+[1]Data!BJ42+[1]Data!BM42+[1]Data!BX42+[1]Data!CB42+[1]Data!CJ42+[1]Data!CK42)/[1]Inputs!$A$14 -> 0.5 | I57: =SUM([1]Data!BV42+[1]Data!CC42+[1]Data!CL42)/[1]Inputs!$A$15 -> 0.3333333333 | J57: =SUM([1]Data!BC42+[1]Data!BG42+[1]Data!BJ42+[1]Data!BN42+[1]Data!BR42+[1]Data!BU42+[1]Data!BY42+[1]Data!BZ42+[1]Data!CE42+[1]Data!CG42)/[1]Inputs!$A$16 -> 0.3 | K57: =SUM([1]Data!BW42+[1]Data!CF42+[1]Data!CI42)/[1]Inputs!$A$17 -> 0 | M57: E | N57: D | O57: B | P57: C | Q57: A | R57: E | S57: E | T57: D | U57: D | V57: E | W57: E | X57: C | Y57: C | Z57: A | AA57: D | AB57: D | AC57: A | AD57: E | AE57: B | AF57: D | AG57: D | AH57: A | AI57: C | AJ57: B | AK57: B | AL57: C | AM57: A | AN57: B | AO57: C | AP57: D | AQ57: E | AR57: A | AS57: D | AT57: D | AU57: C | AV57: A | AW57: C | AX57: D | AY57: D | AZ57: C
C58: =[1]Data!E19 -> 21959 | D58: 10 | E58: =LOOKUP(D58,[1]Inputs!$B$55:$B$84,[1]Inputs!$A$55:$A$84) -> 15 | F58: =SUM([1]Data!AY19+[1]Data!BA19+[1]Data!BB19+[1]Data!BE19+[1]Data!BH19+[1]Data!BP19+[1]Data!BS19+[1]Data!BT19+[1]Data!CD19)/[1]Inputs!$A$12 -> 0.5555555556 | G58: =SUM([1]Data!BD19+[1]Data!BF19+[1]Data!BI19+[1]Data!BL19+[1]Data!BO19+[1]Data!BQ19+[1]Data!CA19+[1]Data!CH19)/[1]Inputs!$A$13 -> 0.5 | H58: =SUM([1]Data!AZ19+[1]Data!BJ19+[1]Data!BM19+[1]Data!BX19+[1]Data!CB19+[1]Data!CJ19+[1]Data!CK19)/[1]Inputs!$A$14 -> 0.1666666667 | I58: =SUM([1]Data!BV19+[1]Data!CC19+[1]Data!CL19)/[1]Inputs!$A$15 -> 0 | J58: =SUM([1]Data!BC19+[1]Data!BG19+[1]Data!BJ19+[1]Data!BN19+[1]Data!BR19+[1]Data!BU19+[1]Data!BY19+[1]Data!BZ19+[1]Data!CE19+[1]Data!CG19)/[1]Inputs!$A$16 -> 0.3 | K58: =SUM([1]Data!BW19+[1]Data!CF19+[1]Data!CI19)/[1]Inputs!$A$17 -> 0 | M58: E | N58: D | O58: D | P58: A | Q58: C | R58: E | S58: E | T58: D | U58: E | V58: E | W58: C | X58: E | Y58: B | Z58: E | AA58: C | AB58: D | AC58: D | AD58: D | AE58: C | AF58: D | AG58: D | AH58: B | AI58: C | AJ58: C | AK58: B | AL58: B | AM58: D | AN58: E | AO58: C | AP58: E | AQ58: C | AR58: E | AS58: D | AT58: C | AU58: D | AV58: C | AW58: C | AX58: C | AY58: B | AZ58: E
C59: 21964 | D59: =[1]Data!C63 -> 5 | E59: =LOOKUP(D59,[1]Inputs!$B$55:$B$84,[1]Inputs!$A$55:$A$84) -> 12 | F59: =SUM([1]Data!AY63+[1]Data!BA63+[1]Data!BB63+[1]Data!BE63+[1]Data!BH63+[1]Data!BP63+[1]Data!BS63+[1]Data!BT63+[1]Data!CD63)/[1]Inputs!$A$12 -> 0.1111111111 | G59: =SUM([1]Data!AZ63+[1]Data!BB63+[1]Data!BC63+[1]Data!BF63+[1]Data!BI63+[1]Data!BQ63+[1]Data!BT63+[1]Data!BU63+[1]Data!CE63)/[1]Inputs!$A$12 -> 0.3333333333 | H59: =SUM([1]Data!BA63+[1]Data!BC63+[1]Data!BD63+[1]Data!BG63+[1]Data!BJ63+[1]Data!BR63+[1]Data!BU63+[1]Data!BV63+[1]Data!CF63)/[1]Inputs!$A$12 -> 0 | I59: =SUM([1]Data!BB63+[1]Data!BD63+[1]Data!BE63+[1]Data!BH63+[1]Data!BK63+[1]Data!BS63+[1]Data!BV63+[1]Data!BW63+[1]Data!CG63)/[1]Inputs!$A$12 -> 0.2222222222 | J59: =SUM([1]Data!BC63+[1]Data!BE63+[1]Data!BF63+[1]Data!BI63+[1]Data!BL63+[1]Data!BT63+[1]Data!BW63+[1]Data!BX63+[1]Data!CH63)/[1]Inputs!$A$12 -> 0.1111111111 | K59: =SUM([1]Data!BD63+[1]Data!BF63+[1]Data!BG63+[1]Data!BJ63+[1]Data!BM63+[1]Data!BU63+[1]Data!BX63+[1]Data!BY63+[1]Data!CI63)/[1]Inputs!$A$12 -> 0.1111111111 | M59: D | N59: D | O59: A | P59: E | Q59: C | R59: E | S59: A | T59: D | U59: E | V59: D | W59: C | X59: D | Y59: B | Z59: D | AA59: C | AB59: A | AC59: B | AD59: A | AE59: A | AF59: B | AG59: E | AH59: E | AI59: C | AJ59: E | AK59: B | AL59: B | AM59: B | AN59: A | AO59: C | AP59: C | AQ59: B | AR59: A | AS59: B | AT59: D | AU59: C | AV59: B | AW59: C | AX59: E | AY59: C | AZ59: C
C60: 21967 | D60: =[1]Data!C197 -> 22 | E60: =LOOKUP(D60,[1]Inputs!$B$55:$B$84,[1]Inputs!$A$55:$A$84) -> 23 | F60: =SUM([1]Data!AY197+[1]Data!BA197+[1]Data!BB197+[1]Data!BE197+[1]Data!BH197+[1]Data!BP197+[1]Data!BS197+[1]Data!BT197+[1]Data!CD197)/[1]Inputs!$A$12 -> 0.3333333333 | G60: =SUM([1]Data!AZ197+[1]Data!BB197+[1]Data!BC197+[1]Data!BF197+[1]Data!BI197+[1]Data!BQ197+[1]Data!BT197+[1]Data!BU197+[1]Data!CE197)/[1]Inputs!$A$12 -> 0.4444444444 | H60: =SUM([1]Data!BA197+[1]Data!BC197+[1]Data!BD197+[1]Data!BG197+[1]Data!BJ197+[1]Data!BR197+[1]Data!BU197+[1]Data!BV197+[1]Data!CF197)/[1]Inputs!$A$12 -> 0.5555555556 | I60: =SUM([1]Data!BB197+[1]Data!BD197+[1]Data!BE197+[1]Data!BH197+[1]Data!BK197+[1]Data!BS197+[1]Data!BV197+[1]Data!BW197+[1]Data!CG197)/[1]Inputs!$A$12 -> 0.2222222222 | J60: =SUM([1]Data!BC197+[1]Data!BE197+[1]Data!BF197+[1]Data!BI197+[1]Data!BL197+[1]Data!BT197+[1]Data!BW197+[1]Data!BX197+[1]Data!CH197)/[1]Inputs!$A$12 -> 0.4444444444 | K60: =SUM([1]Data!BD197+[1]Data!BF197+[1]Data!BG197+[1]Data!BJ197+[1]Data!BM197+[1]Data!BU197+[1]Data!BX197+[1]Data!BY197+[1]Data!CI197)/[1]Inputs!$A$12 -> 0.4444444444 | M60: E | N60: C | O60: D | P60: D | Q60: A | R60: A | S60: E | T60: D | U60: C | V60: E | W60: D | X60: C | Y60: C | Z60: A | AA60: D | AB60: C | AC60: C | AD60: D | AE60: C | AF60: D | AG60: D | AH60: A | AI60: B | AJ60: C | AK60: A | AL60: B | AM60: B | AN60: D | AO60: D | AP60: D | AQ60: C | AR60: D | AS60: E | AT60: A | AU60: A | AV60: B | AW60: A | AX60: B | AY60: E | AZ60: E
C61: =[1]Data!E45 -> 21975 | D61: 19 | E61: =LOOKUP(D61,[1]Inputs!$B$55:$B$84,[1]Inputs!$A$55:$A$84) -> 20 | F61: =SUM([1]Data!AY45+[1]Data!BA45+[1]Data!BB45+[1]Data!BE45+[1]Data!BH45+[1]Data!BP45+[1]Data!BS45+[1]Data!BT45+[1]Data!CD45)/[1]Inputs!$A$12 -> 0.2222222222 | G61: =SUM([1]Data!BD45+[1]Data!BF45+[1]Data!BI45+[1]Data!BL45+[1]Data!BO45+[1]Data!BQ45+[1]Data!CA45+[1]Data!CH45)/[1]Inputs!$A$13 -> 0.375 | H61: =SUM([1]Data!AZ45+[1]Data!BJ45+[1]Data!BM45+[1]Data!BX45+[1]Data!CB45+[1]Data!CJ45+[1]Data!CK45)/[1]Inputs!$A$14 -> 0.8333333333 | I61: =SUM([1]Data!BV45+[1]Data!CC45+[1]Data!CL45)/[1]Inputs!$A$15 -> 0 | J61: =SUM([1]Data!BC45+[1]Data!BG45+[1]Data!BJ45+[1]Data!BN45+[1]Data!BR45+[1]Data!BU45+[1]Data!BY45+[1]Data!BZ45+[1]Data!CE45+[1]Data!CG45)/[1]Inputs!$A$16 -> 0.5 | K61: =SUM([1]Data!BW45+[1]Data!CF45+[1]Data!CI45)/[1]Inputs!$A$17 -> 0.3333333333 | M61: E | N61: D | O61: B | P61: C | Q61: A | R61: A | S61: E | T61: D | U61: D | V61: E | W61: B | X61: C | Y61: D | Z61: A | AA61: D | AB61: D | AC61: C | AD61: E | AE61: A | AF61: A | AG61: E | AH61: C | AI61: B | AJ61: A | AK61: A | AL61: A | AM61: D | AN61: B | AO61: C | AP61: D | AQ61: A | AR61: B | AS61: A | AT61: A | AU61: C | AV61: A | AW61: B | AX61: D | AY61: D | AZ61: A
C62: 22029 | D62: =[1]Data!C160 -> 20 | E62: =LOOKUP(D62,[1]Inputs!$B$55:$B$84,[1]Inputs!$A$55:$A$84) -> 21 | F62: =SUM([1]Data!AY160+[1]Data!BA160+[1]Data!BB160+[1]Data!BE160+[1]Data!BH160+[1]Data!BP160+[1]Data!BS160+[1]Data!BT160+[1]Data!CD160)/[1]Inputs!$A$12 -> 0.3333333333 | G62: =SUM([1]Data!AZ160+[1]Data!BB160+[1]Data!BC160+[1]Data!BF160+[1]Data!BI160+[1]Data!BQ160+[1]Data!BT160+[1]Data!BU160+[1]Data!CE160)/[1]Inputs!$A$12 -> 0.4444444444 | H62: =SUM([1]Data!BA160+[1]Data!BC160+[1]Data!BD160+[1]Data!BG160+[1]Data!BJ160+[1]Data!BR160+[1]Data!BU160+[1]Data!BV160+[1]Data!CF160)/[1]Inputs!$A$12 -> 0.5555555556 | I62: =SUM([1]Data!BB160+[1]Data!BD160+[1]Data!BE160+[1]Data!BH160+[1]Data!BK160+[1]Data!BS160+[1]Data!BV160+[1]Data!BW160+[1]Data!CG160)/[1]Inputs!$A$12 -> 0.4444444444 | J62: =SUM([1]Data!BC160+[1]Data!BE160+[1]Data!BF160+[1]Data!BI160+[1]Data!BL160+[1]Data!BT160+[1]Data!BW160+[1]Data!BX160+[1]Data!CH160)/[1]Inputs!$A$12 -> 0.5555555556 | K62: =SUM([1]Data!BD160+[1]Data!BF160+[1]Data!BG160+[1]Data!BJ160+[1]Data!BM160+[1]Data!BU160+[1]Data!BX160+[1]Data!BY160+[1]Data!CI160)/[1]Inputs!$A$12 -> 0.4444444444 | M62: E | N62: B | O62: B | P62: D | Q62: A | R62: E | S62: E | T62: D | U62: D | V62: E | W62: C | X62: C | Y62: C | Z62: B | AA62: C | AB62: D | AC62: D | AD62: D | AE62: B | AF62: A | AG62: E | AH62: B | AI62: C | AJ62: A | AK62: A | AL62: C | AM62: D | AN62: C | AO62: D | AP62: D | AQ62: B | AR62: E | AS62: D | AT62: A | AU62: A | AV62: A | AW62: B | AX62: D | AY62: A | AZ62: C
C63: 22067 | D63: =[1]Data!C79 -> 11 | E63: =LOOKUP(D63,[1]Inputs!$B$55:$B$84,[1]Inputs!$A$55:$A$84) -> 16 | F63: =SUM([1]Data!AY79+[1]Data!BA79+[1]Data!BB79+[1]Data!BE79+[1]Data!BH79+[1]Data!BP79+[1]Data!BS79+[1]Data!BT79+[1]Data!CD79)/[1]Inputs!$A$12 -> 0.3333333333 | G63: =SUM([1]Data!AZ79+[1]Data!BB79+[1]Data!BC79+[1]Data!BF79+[1]Data!BI79+[1]Data!BQ79+[1]Data!BT79+[1]Data!BU79+[1]Data!CE79)/[1]Inputs!$A$12 -> 0.4444444444 | H63: =SUM([1]Data!BA79+[1]Data!BC79+[1]Data!BD79+[1]Data!BG79+[1]Data!BJ79+[1]Data!BR79+[1]Data!BU79+[1]Data!BV79+[1]Data!CF79)/[1]Inputs!$A$12 -> 0.4444444444 | I63: =SUM([1]Data!BB79+[1]Data!BD79+[1]Data!BE79+[1]Data!BH79+[1]Data!BK79+[1]Data!BS79+[1]Data!BV79+[1]Data!BW79+[1]Data!CG79)/[1]Inputs!$A$12 -> 0.3333333333 | J63: =SUM([1]Data!BC79+[1]Data!BE79+[1]Data!BF79+[1]Data!BI79+[1]Data!BL79+[1]Data!BT79+[1]Data!BW79+[1]Data!BX79+[1]Data!CH79)/[1]Inputs!$A$12 -> 0.4444444444 | K63: =SUM([1]Data!BD79+[1]Data!BF79+[1]Data!BG79+[1]Data!BJ79+[1]Data!BM79+[1]Data!BU79+[1]Data!BX79+[1]Data!BY79+[1]Data!CI79)/[1]Inputs!$A$12 -> 0.5555555556 | M63: E | N63: D | O63: A | P63: C | Q63: A | R63: E | S63: E | T63: D | U63: E | V63: B | W63: B | X63: E | Y63: B | Z63: C | AA63: E | AB63: B | AC63: B | AD63: D | AE63: B | AF63: D | AG63: D | AH63: E | AI63: C | AJ63: E | AK63: D | AL63: B | AM63: D | AN63: C | AO63: D | AP63: A | AQ63: A | AR63: B | AS63: A | AT63: A | AU63: C | AV63: B | AW63: D | AX63: C | AY63: E | AZ63: C
C64: 22069 | D64: =[1]Data!C113 -> 15 | E64: =LOOKUP(D64,[1]Inputs!$B$55:$B$84,[1]Inputs!$A$55:$A$84) -> 18 | F64: =SUM([1]Data!AY113+[1]Data!BA113+[1]Data!BB113+[1]Data!BE113+[1]Data!BH113+[1]Data!BP113+[1]Data!BS113+[1]Data!BT113+[1]Data!CD113)/[1]Inputs!$A$12 -> 0.3333333333 | G64: =SUM([1]Data!AZ113+[1]Data!BB113+[1]Data!BC113+[1]Data!BF113+[1]Data!BI113+[1]Data!BQ113+[1]Data!BT113+[1]Data!BU113+[1]Data!CE113)/[1]Inputs!$A$12 -> 0.5555555556 | H64: =SUM([1]Data!BA113+[1]Data!BC113+[1]Data!BD113+[1]Data!BG113+[1]Data!BJ113+[1]Data!BR113+[1]Data!BU113+[1]Data!BV113+[1]Data!CF113)/[1]Inputs!$A$12 -> 0.2222222222 | I64: =SUM([1]Data!BB113+[1]Data!BD113+[1]Data!BE113+[1]Data!BH113+[1]Data!BK113+[1]Data!BS113+[1]Data!BV113+[1]Data!BW113+[1]Data!CG113)/[1]Inputs!$A$12 -> 0.3333333333 | J64: =SUM([1]Data!BC113+[1]Data!BE113+[1]Data!BF113+[1]Data!BI113+[1]Data!BL113+[1]Data!BT113+[1]Data!BW113+[1]Data!BX113+[1]Data!CH113)/[1]Inputs!$A$12 -> 0.3333333333 | K64: =SUM([1]Data!BD113+[1]Data!BF113+[1]Data!BG113+[1]Data!BJ113+[1]Data!BM113+[1]Data!BU113+[1]Data!BX113+[1]Data!BY113+[1]Data!CI113)/[1]Inputs!$A$12 -> 0.4444444444 | M64: B | N64: C | O64: C | P64: D | Q64: D | R64: A | S64: C | T64: D | U64: D | V64: E | W64: C | X64: D | Y64: B | Z64: A | AA64: C | AB64: B | AC64: B | AD64: A | AE64: A | AF64: D | AG64: D | AH64: A | AI64: C | AJ64: D | AK64: E | AL64: C | AM64: D | AN64: D | AO64: B | AP64: B | AQ64: D | AR64: B | AS64: B | AT64: D | AU64: A | AV64: A | AW64: C | AX64: A | AY64: D | AZ64: C
C65: 22104 | D65: =[1]Data!C91 -> 19 | E65: =LOOKUP(D65,[1]Inputs!$B$55:$B$84,[1]Inputs!$A$55:$A$84) -> 20 | F65: =SUM([1]Data!AY91+[1]Data!BA91+[1]Data!BB91+[1]Data!BE91+[1]Data!BH91+[1]Data!BP91+[1]Data!BS91+[1]Data!BT91+[1]Data!CD91)/[1]Inputs!$A$12 -> 0.5555555556 | G65: =SUM([1]Data!AZ91+[1]Data!BB91+[1]Data!BC91+[1]Data!BF91+[1]Data!BI91+[1]Data!BQ91+[1]Data!BT91+[1]Data!BU91+[1]Data!CE91)/[1]Inputs!$A$12 -> 0.2222222222 | H65: =SUM([1]Data!BA91+[1]Data!BC91+[1]Data!BD91+[1]Data!BG91+[1]Data!BJ91+[1]Data!BR91+[1]Data!BU91+[1]Data!BV91+[1]Data!CF91)/[1]Inputs!$A$12 -> 0.3333333333 | I65: =SUM([1]Data!BB91+[1]Data!BD91+[1]Data!BE91+[1]Data!BH91+[1]Data!BK91+[1]Data!BS91+[1]Data!BV91+[1]Data!BW91+[1]Data!CG91)/[1]Inputs!$A$12 -> 0.3333333333 | J65: =SUM([1]Data!BC91+[1]Data!BE91+[1]Data!BF91+[1]Data!BI91+[1]Data!BL91+[1]Data!BT91+[1]Data!BW91+[1]Data!BX91+[1]Data!CH91)/[1]Inputs!$A$12 -> 0.2222222222 | K65: =SUM([1]Data!BD91+[1]Data!BF91+[1]Data!BG91+[1]Data!BJ91+[1]Data!BM91+[1]Data!BU91+[1]Data!BX91+[1]Data!BY91+[1]Data!CI91)/[1]Inputs!$A$12 -> 0.3333333333 | M65: E | N65: D | O65: C | P65: D | Q65: C | R65: A | S65: E | T65: D | U65: E | V65: E | W65: C | X65: C | Y65: C | Z65: B | AA65: D | AB65: D | AC65: D | AD65: E | AE65: B | AF65: D | AG65: E | AH65: B | AI65: C | AJ65: B | AK65: B | AL65: B | AM65: B | AN65: B | AO65: B | AP65: B | AQ65: B | AR65: B | AS65: B | AT65: B | AU65: B | AV65: B | AW65: B | AX65: B | AY65: B | AZ65: B
C66: =[1]Data!E36 -> 22108 | D66: 16 | E66: =LOOKUP(D66,[1]Inputs!$B$55:$B$84,[1]Inputs!$A$55:$A$84) -> 18 | F66: =SUM([1]Data!AY36+[1]Data!BA36+[1]Data!BB36+[1]Data!BE36+[1]Data!BH36+[1]Data!BP36+[1]Data!BS36+[1]Data!BT36+[1]Data!CD36)/[1]Inputs!$A$12 -> 0.2222222222 | G66: =SUM([1]Data!BD36+[1]Data!BF36+[1]Data!BI36+[1]Data!BL36+[1]Data!BO36+[1]Data!BQ36+[1]Data!CA36+[1]Data!CH36)/[1]Inputs!$A$13 -> 0.375 | H66: =SUM([1]Data!AZ36+[1]Data!BJ36+[1]Data!BM36+[1]Data!BX36+[1]Data!CB36+[1]Data!CJ36+[1]Data!CK36)/[1]Inputs!$A$14 -> 0.3333333333 | I66: =SUM([1]Data!BV36+[1]Data!CC36+[1]Data!CL36)/[1]Inputs!$A$15 -> 0.3333333333 | J66: =SUM([1]Data!BC36+[1]Data!BG36+[1]Data!BJ36+[1]Data!BN36+[1]Data!BR36+[1]Data!BU36+[1]Data!BY36+[1]Data!BZ36+[1]Data!CE36+[1]Data!CG36)/[1]Inputs!$A$16 -> 0.2 | K66: =SUM([1]Data!BW36+[1]Data!CF36+[1]Data!CI36)/[1]Inputs!$A$17 -> 0 | M66: E | N66: D | O66: B | P66: D | Q66: C | R66: A | S66: E | T66: D | U66: D | V66: B | W66: E | X66: C | Y66: E | Z66: B | AA66: D | AB66: D | AC66: B | AD66: E | AE66: A | AF66: A | AG66: D | AH66: A | AI66: C | AJ66: C | AK66: E | AL66: B | AM66: D | AN66: E | AO66: B | AP66: D | AQ66: A | AR66: D | AS66: C | AT66: B | AU66: B | AV66: A | AW66: E | AX66: C | AY66: D | AZ66: A
C67: 22114 | D67: =[1]Data!C144 -> 17 | E67: =LOOKUP(D67,[1]Inputs!$B$55:$B$84,[1]Inputs!$A$55:$A$84) -> 19 | F67: =SUM([1]Data!AY144+[1]Data!BA144+[1]Data!BB144+[1]Data!BE144+[1]Data!BH144+[1]Data!BP144+[1]Data!BS144+[1]Data!BT144+[1]Data!CD144)/[1]Inputs!$A$12 -> 0.5555555556 | G67: =SUM([1]Data!AZ144+[1]Data!BB144+[1]Data!BC144+[1]Data!BF144+[1]Data!BI144+[1]Data!BQ144+[1]Data!BT144+[1]Data!BU144+[1]Data!CE144)/[1]Inputs!$A$12 -> 0.3333333333 | H67: =SUM([1]Data!BA144+[1]Data!BC144+[1]Data!BD144+[1]Data!BG144+[1]Data!BJ144+[1]Data!BR144+[1]Data!BU144+[1]Data!BV144+[1]Data!CF144)/[1]Inputs!$A$12 -> 0.2222222222 | I67: =SUM([1]Data!BB144+[1]Data!BD144+[1]Data!BE144+[1]Data!BH144+[1]Data!BK144+[1]Data!BS144+[1]Data!BV144+[1]Data!BW144+[1]Data!CG144)/[1]Inputs!$A$12 -> 0.5555555556 | J67: =SUM([1]Data!BC144+[1]Data!BE144+[1]Data!BF144+[1]Data!BI144+[1]Data!BL144+[1]Data!BT144+[1]Data!BW144+[1]Data!BX144+[1]Data!CH144)/[1]Inputs!$A$12 -> 0.4444444444 | K67: =SUM([1]Data!BD144+[1]Data!BF144+[1]Data!BG144+[1]Data!BJ144+[1]Data!BM144+[1]Data!BU144+[1]Data!BX144+[1]Data!BY144+[1]Data!CI144)/[1]Inputs!$A$12 -> 0.3333333333 | M67: E | N67: D | O67: B | P67: D | Q67: A | R67: E | S67: E | T67: D | U67: D | V67: D | W67: C | X67: C | Y67: B | Z67: E | AA67: D | AB67: D | AC67: C | AD67: D | AE67: C | AF67: D | AG67: D | AH67: B | AI67: B | AJ67: C | AK67: E | AL67: C | AM67: D | AN67: B | AO67: A | AP67: D | AQ67: A | AR67: A | AS67: D | AT67: C | AU67: D | AV67: B | AW67: B | AX67: D | AY67: C | AZ67: A
C68: 22116 | D68: =[1]Data!C151 -> 17 | E68: =LOOKUP(D68,[1]Inputs!$B$55:$B$84,[1]Inputs!$A$55:$A$84) -> 19 | F68: =SUM([1]Data!AY151+[1]Data!BA151+[1]Data!BB151+[1]Data!BE151+[1]Data!BH151+[1]Data!BP151+[1]Data!BS151+[1]Data!BT151+[1]Data!CD151)/[1]Inputs!$A$12 -> 0.4444444444 | G68: =SUM([1]Data!AZ151+[1]Data!BB151+[1]Data!BC151+[1]Data!BF151+[1]Data!BI151+[1]Data!BQ151+[1]Data!BT151+[1]Data!BU151+[1]Data!CE151)/[1]Inputs!$A$12 -> 0.3333333333 | H68: =SUM([1]Data!BA151+[1]Data!BC151+[1]Data!BD151+[1]Data!BG151+[1]Data!BJ151+[1]Data!BR151+[1]Data!BU151+[1]Data!BV151+[1]Data!CF151)/[1]Inputs!$A$12 -> 0.5555555556 | I68: =SUM([1]Data!BB151+[1]Data!BD151+[1]Data!BE151+[1]Data!BH151+[1]Data!BK151+[1]Data!BS151+[1]Data!BV151+[1]Data!BW151+[1]Data!CG151)/[1]Inputs!$A$12 -> 0.3333333333 | J68: =SUM([1]Data!BC151+[1]Data!BE151+[1]Data!BF151+[1]Data!BI151+[1]Data!BL151+[1]Data!BT151+[1]Data!BW151+[1]Data!BX151+[1]Data!CH151)/[1]Inputs!$A$12 -> 0.3333333333 | K68: =SUM([1]Data!BD151+[1]Data!BF151+[1]Data!BG151+[1]Data!BJ151+[1]Data!BM151+[1]Data!BU151+[1]Data!BX151+[1]Data!BY151+[1]Data!CI151)/[1]Inputs!$A$12 -> 0.3333333333 | M68: E | N68: D | O68: B | P68: C | Q68: A | R68: A | S68: E | T68: D | U68: D | V68: D | W68: C | X68: B | Y68: E | Z68: A | AA68: B | AB68: B | AC68: D | AD68: E | AE68: B | AF68: D | AG68: B | AH68: A | AI68: B | AJ68: A | AK68: B | AL68: A | AM68: B | AN68: B | AO68: B | AP68: B | AQ68: B | AR68: A | AS68: B | AT68: B | AU68: B | AV68: B | AW68: B | AX68: D | AY68: B | AZ68: B
C69: 22117 | D69: =[1]Data!C89 -> 14 | E69: =LOOKUP(D69,[1]Inputs!$B$55:$B$84,[1]Inputs!$A$55:$A$84) -> 17 | F69: =SUM([1]Data!AY89+[1]Data!BA89+[1]Data!BB89+[1]Data!BE89+[1]Data!BH89+[1]Data!BP89+[1]Data!BS89+[1]Data!BT89+[1]Data!CD89)/[1]Inputs!$A$12 -> 0.4444444444 | G69: =SUM([1]Data!AZ89+[1]Data!BB89+[1]Data!BC89+[1]Data!BF89+[1]Data!BI89+[1]Data!BQ89+[1]Data!BT89+[1]Data!BU89+[1]Data!CE89)/[1]Inputs!$A$12 -> 0.3333333333 | H69: =SUM([1]Data!BA89+[1]Data!BC89+[1]Data!BD89+[1]Data!BG89+[1]Data!BJ89+[1]Data!BR89+[1]Data!BU89+[1]Data!BV89+[1]Data!CF89)/[1]Inputs!$A$12 -> 0.6666666667 | I69: =SUM([1]Data!BB89+[1]Data!BD89+[1]Data!BE89+[1]Data!BH89+[1]Data!BK89+[1]Data!BS89+[1]Data!BV89+[1]Data!BW89+[1]Data!CG89)/[1]Inputs!$A$12 -> 0.4444444444 | J69: =SUM([1]Data!BC89+[1]Data!BE89+[1]Data!BF89+[1]Data!BI89+[1]Data!BL89+[1]Data!BT89+[1]Data!BW89+[1]Data!BX89+[1]Data!CH89)/[1]Inputs!$A$12 -> 0.4444444444 | K69: =SUM([1]Data!BD89+[1]Data!BF89+[1]Data!BG89+[1]Data!BJ89+[1]Data!BM89+[1]Data!BU89+[1]Data!BX89+[1]Data!BY89+[1]Data!CI89)/[1]Inputs!$A$12 -> 0.5555555556 | M69: E | N69: C | O69: B | P69: C | Q69: A | R69: E | S69: E | T69: D | U69: E | V69: E | W69: B | X69: C | Y69: B | Z69: C | AA69: E | AB69: C | AC69: A | AD69: D | AE69: B | AF69: D | AG69: E | AH69: C | AI69: A | AJ69: E | AK69: E | AL69: D | AM69: D | AN69: E | AO69: D | AP69: D | AQ69: A | AR69: B | AS69: A | AT69: E | AU69: C | AV69: A | AW69: C | AX69: C | AY69: C | AZ69: C
C70: =[1]Data!E32 -> 22125 | D70: 23 | E70: =LOOKUP(D70,[1]Inputs!$B$55:$B$84,[1]Inputs!$A$55:$A$84) -> 24 | F70: =SUM([1]Data!AY32+[1]Data!BA32+[1]Data!BB32+[1]Data!BE32+[1]Data!BH32+[1]Data!BP32+[1]Data!BS32+[1]Data!BT32+[1]Data!CD32)/[1]Inputs!$A$12 -> 0.7777777778 | G70: =SUM([1]Data!BD32+[1]Data!BF32+[1]Data!BI32+[1]Data!BL32+[1]Data!BO32+[1]Data!BQ32+[1]Data!CA32+[1]Data!CH32)/[1]Inputs!$A$13 -> 0.375 | H70: =SUM([1]Data!AZ32+[1]Data!BJ32+[1]Data!BM32+[1]Data!BX32+[1]Data!CB32+[1]Data!CJ32+[1]Data!CK32)/[1]Inputs!$A$14 -> 0.6666666667 | I70: =SUM([1]Data!BV32+[1]Data!CC32+[1]Data!CL32)/[1]Inputs!$A$15 -> 0 | J70: =SUM([1]Data!BC32+[1]Data!BG32+[1]Data!BJ32+[1]Data!BN32+[1]Data!BR32+[1]Data!BU32+[1]Data!BY32+[1]Data!BZ32+[1]Data!CE32+[1]Data!CG32)/[1]Inputs!$A$16 -> 0.3 | K70: =SUM([1]Data!BW32+[1]Data!CF32+[1]Data!CI32)/[1]Inputs!$A$17 -> 0 | M70: E | N70: B | O70: B | P70: D | Q70: A | R70: E | S70: E | T70: D | U70: D | V70: D | W70: C | X70: C | Y70: C | Z70: A | AA70: E | AB70: D | AC70: E | AD70: E | AE70: B | AF70: D | AG70: D | AH70: A | AI70: C | AJ70: B | AK70: A | AL70: B | AM70: B | AN70: E | AO70: D | AP70: D | AQ70: D | AR70: B | AS70: B | AT70: A | AU70: C | AV70: A | AW70: E | AX70: D | AY70: C | AZ70: B
C71: 22126 | D71: =[1]Data!C236 -> 8 | E71: =LOOKUP(D71,[1]Inputs!$B$55:$B$84,[1]Inputs!$A$55:$A$84) -> 14 | F71: =SUM([1]Data!AY236+[1]Data!BA236+[1]Data!BB236+[1]Data!BE236+[1]Data!BH236+[1]Data!BP236+[1]Data!BS236+[1]Data!BT236+[1]Data!CD236)/[1]Inputs!$A$12 -> 0.1111111111 | G71: =SUM([1]Data!AZ236+[1]Data!BB236+[1]Data!BC236+[1]Data!BF236+[1]Data!BI236+[1]Data!BQ236+[1]Data!BT236+[1]Data!BU236+[1]Data!CE236)/[1]Inputs!$A$12 -> 0.3333333333 | H71: =SUM([1]Data!BA236+[1]Data!BC236+[1]Data!BD236+[1]Data!BG236+[1]Data!BJ236+[1]Data!BR236+[1]Data!BU236+[1]Data!BV236+[1]Data!CF236)/[1]Inputs!$A$12 -> 0.2222222222 | I71: =SUM([1]Data!BB236+[1]Data!BD236+[1]Data!BE236+[1]Data!BH236+[1]Data!BK236+[1]Data!BS236+[1]Data!BV236+[1]Data!BW236+[1]Data!CG236)/[1]Inputs!$A$12 -> 0.1111111111 | J71: =SUM([1]Data!BC236+[1]Data!BE236+[1]Data!BF236+[1]Data!BI236+[1]Data!BL236+[1]Data!BT236+[1]Data!BW236+[1]Data!BX236+[1]Data!CH236)/[1]Inputs!$A$12 -> 0.2222222222 | K71: =SUM([1]Data!BD236+[1]Data!BF236+[1]Data!BG236+[1]Data!BJ236+[1]Data!BM236+[1]Data!BU236+[1]Data!BX236+[1]Data!BY236+[1]Data!CI236)/[1]Inputs!$A$12 -> 0.1111111111 | M71: A | N71: B | O71: A | P71: E | Q71: C | R71: A | S71: D | T71: D | U71: B | V71: C | W71: A | X71: D | Y71: B | Z71: D | AA71: E | AB71: A | AC71: C | AD71: A | AE71: A | AF71: D | AG71: D | AH71: D | AI71: A | AJ71: B | AK71: E | AL71: C | AM71: E | AN71: B | AO71: A | AP71: A | AQ71: D | AR71: B | AS71: E | AT71: A | AU71: E | AV71: D | AW71: B | AX71: C | AY71: E | AZ71: A
C72: =[1]Data!E22 -> 22139 | D72: 22 | E72: =LOOKUP(D72,[1]Inputs!$B$55:$B$84,[1]Inputs!$A$55:$A$84) -> 23 | F72: =SUM([1]Data!AY22+[1]Data!BA22+[1]Data!BB22+[1]Data!BE22+[1]Data!BH22+[1]Data!BP22+[1]Data!BS22+[1]Data!BT22+[1]Data!CD22)/[1]Inputs!$A$12 -> 0.5555555556 | G72: =SUM([1]Data!BD22+[1]Data!BF22+[1]Data!BI22+[1]Data!BL22+[1]Data!BO22+[1]Data!BQ22+[1]Data!CA22+[1]Data!CH22)/[1]Inputs!$A$13 -> 0.875 | H72: =SUM([1]Data!AZ22+[1]Data!BJ22+[1]Data!BM22+[1]Data!BX22+[1]Data!CB22+[1]Data!CJ22+[1]Data!CK22)/[1]Inputs!$A$14 -> 0.6666666667 | I72: =SUM([1]Data!BV22+[1]Data!CC22+[1]Data!CL22)/[1]Inputs!$A$15 -> 0.6666666667 | J72: =SUM([1]Data!BC22+[1]Data!BG22+[1]Data!BJ22+[1]Data!BN22+[1]Data!BR22+[1]Data!BU22+[1]Data!BY22+[1]Data!BZ22+[1]Data!CE22+[1]Data!CG22)/[1]Inputs!$A$16 -> 0.5 | K72: =SUM([1]Data!BW22+[1]Data!CF22+[1]Data!CI22)/[1]Inputs!$A$17 -> 0.6666666667 | M72: E | N72: B | O72: B | P72: D | Q72: A | R72: A | S72: E | T72: D | U72: D | V72: E | W72: C | X72: E | Y72: C | Z72: A | AA72: C | AB72: D | AC72: B | AD72: D | AE72: B | AF72: D | AG72: E | AH72: A | AI72: D | AJ72: E | AK72: E | AL72: C | AM72: B | AN72: C | AO72: D | AP72: D | AQ72: E | AR72: B | AS72: A | AT72: A | AU72: E | AV72: A | AW72: D | AX72: B | AY72: D | AZ72: D
C73: 22149 | D73: =[1]Data!C139 -> 10 | E73: =LOOKUP(D73,[1]Inputs!$B$55:$B$84,[1]Inputs!$A$55:$A$84) -> 15 | F73: =SUM([1]Data!AY139+[1]Data!BA139+[1]Data!BB139+[1]Data!BE139+[1]Data!BH139+[1]Data!BP139+[1]Data!BS139+[1]Data!BT139+[1]Data!CD139)/[1]Inputs!$A$12 -> 0.2222222222 | G73: =SUM([1]Data!AZ139+[1]Data!BB139+[1]Data!BC139+[1]Data!BF139+[1]Data!BI139+[1]Data!BQ139+[1]Data!BT139+[1]Data!BU139+[1]Data!CE139)/[1]Inputs!$A$12 -> 0.3333333333 | H73: =SUM([1]Data!BA139+[1]Data!BC139+[1]Data!BD139+[1]Data!BG139+[1]Data!BJ139+[1]Data!BR139+[1]Data!BU139+[1]Data!BV139+[1]Data!CF139)/[1]Inputs!$A$12 -> 0.1111111111 | I73: =SUM([1]Data!BB139+[1]Data!BD139+[1]Data!BE139+[1]Data!BH139+[1]Data!BK139+[1]Data!BS139+[1]Data!BV139+[1]Data!BW139+[1]Data!CG139)/[1]Inputs!$A$12 -> 0.2222222222 | J73: =SUM([1]Data!BC139+[1]Data!BE139+[1]Data!BF139+[1]Data!BI139+[1]Data!BL139+[1]Data!BT139+[1]Data!BW139+[1]Data!BX139+[1]Data!CH139)/[1]Inputs!$A$12 -> 0.4444444444 | K73: =SUM([1]Data!BD139+[1]Data!BF139+[1]Data!BG139+[1]Data!BJ139+[1]Data!BM139+[1]Data!BU139+[1]Data!BX139+[1]Data!BY139+[1]Data!CI139)/[1]Inputs!$A$12 -> 0.1111111111 | M73: A | N73: D | O73: C | P73: B | Q73: C | R73: D | S73: D | T73: D | U73: B | V73: E | W73: A | X73: B | Y73: A | Z73: B | AA73: A | AB73: C | AC73: E | AD73: D | AE73: A | AF73: D | AG73: C | AH73: A | AI73: C | AJ73: A | AK73: C | AL73: E | AM73: E | AN73: B | AO73: A | AP73: D | AQ73: E | AR73: D | AS73: A | AT73: D | AU73: C | AV73: B | AW73: A | AX73: D | AY73: E | AZ73: B
C74: 22154 | D74: =[1]Data!C119 -> 17 | E74: =LOOKUP(D74,[1]Inputs!$B$55:$B$84,[1]Inputs!$A$55:$A$84) -> 19 | F74: =SUM([1]Data!AY119+[1]Data!BA119+[1]Data!BB119+[1]Data!BE119+[1]Data!BH119+[1]Data!BP119+[1]Data!BS119+[1]Data!BT119+[1]Data!CD119)/[1]Inputs!$A$12 -> 0.1111111111 | G74: =SUM([1]Data!AZ119+[1]Data!BB119+[1]Data!BC119+[1]Data!BF119+[1]Data!BI119+[1]Data!BQ119+[1]Data!BT119+[1]Data!BU119+[1]Data!CE119)/[1]Inputs!$A$12 -> 0.2222222222 | H74: =SUM([1]Data!BA119+[1]Data!BC119+[1]Data!BD119+[1]Data!BG119+[1]Data!BJ119+[1]Data!BR119+[1]Data!BU119+[1]Data!BV119+[1]Data!CF119)/[1]Inputs!$A$12 -> 0.5555555556 | I74: =SUM([1]Data!BB119+[1]Data!BD119+[1]Data!BE119+[1]Data!BH119+[1]Data!BK119+[1]Data!BS119+[1]Data!BV119+[1]Data!BW119+[1]Data!CG119)/[1]Inputs!$A$12 -> 0.4444444444 | J74: =SUM([1]Data!BC119+[1]Data!BE119+[1]Data!BF119+[1]Data!BI119+[1]Data!BL119+[1]Data!BT119+[1]Data!BW119+[1]Data!BX119+[1]Data!CH119)/[1]Inputs!$A$12 -> 0.3333333333 | K74: =SUM([1]Data!BD119+[1]Data!BF119+[1]Data!BG119+[1]Data!BJ119+[1]Data!BM119+[1]Data!BU119+[1]Data!BX119+[1]Data!BY119+[1]Data!CI119)/[1]Inputs!$A$12 -> 0.4444444444 | M74: E | N74: C | O74: C | P74: C | Q74: A | R74: A | S74: E | T74: D | U74: E | V74: E | W74: D | X74: C | Y74: C | Z74: B | AA74: E | AB74: B | AC74: C | AD74: E | AE74: B | AF74: D | AG74: E | AH74: A | AI74: D | AJ74: D | AK74: A | AL74: A | AM74: B | AN74: E | AO74: B | AP74: D | AQ74: C | AR74: E | AS74: A | AT74: D | AU74: B | AV74: B | AW74: B | AX74: B | AY74: B | AZ74: B
C75: 22156 | D75: =[1]Data!C136 -> 14 | E75: =LOOKUP(D75,[1]Inputs!$B$55:$B$84,[1]Inputs!$A$55:$A$84) -> 17 | F75: =SUM([1]Data!AY136+[1]Data!BA136+[1]Data!BB136+[1]Data!BE136+[1]Data!BH136+[1]Data!BP136+[1]Data!BS136+[1]Data!BT136+[1]Data!CD136)/[1]Inputs!$A$12 -> 0.5555555556 | G75: =SUM([1]Data!AZ136+[1]Data!BB136+[1]Data!BC136+[1]Data!BF136+[1]Data!BI136+[1]Data!BQ136+[1]Data!BT136+[1]Data!BU136+[1]Data!CE136)/[1]Inputs!$A$12 -> 0.6666666667 | H75: =SUM([1]Data!BA136+[1]Data!BC136+[1]Data!BD136+[1]Data!BG136+[1]Data!BJ136+[1]Data!BR136+[1]Data!BU136+[1]Data!BV136+[1]Data!CF136)/[1]Inputs!$A$12 -> 0.3333333333 | I75: =SUM([1]Data!BB136+[1]Data!BD136+[1]Data!BE136+[1]Data!BH136+[1]Data!BK136+[1]Data!BS136+[1]Data!BV136+[1]Data!BW136+[1]Data!CG136)/[1]Inputs!$A$12 -> 0.5555555556 | J75: =SUM([1]Data!BC136+[1]Data!BE136+[1]Data!BF136+[1]Data!BI136+[1]Data!BL136+[1]Data!BT136+[1]Data!BW136+[1]Data!BX136+[1]Data!CH136)/[1]Inputs!$A$12 -> 0.6666666667 | K75: =SUM([1]Data!BD136+[1]Data!BF136+[1]Data!BG136+[1]Data!BJ136+[1]Data!BM136+[1]Data!BU136+[1]Data!BX136+[1]Data!BY136+[1]Data!CI136)/[1]Inputs!$A$12 -> 0.3333333333 | M75: E | N75: B | O75: B | P75: D | Q75: B | R75: A | S75: A | T75: D | U75: A | V75: E | W75: C | X75: B | Y75: C | Z75: B | AA75: C | AB75: B | AC75: B | AD75: E | AE75: A | AF75: D | AG75: D | AH75: C | AI75: C | AJ75: B | AK75: A | AL75: C | AM75: E | AN75: E | AO75: C | AP75: C | AQ75: C | AR75: E | AS75: A | AT75: B | AU75: D | AV75: A | AW75: A | AX75: D | AY75: C | AZ75: D
C76: 22170 | D76: =[1]Data!C165 -> 18 | E76: =LOOKUP(D76,[1]Inputs!$B$55:$B$84,[1]Inputs!$A$55:$A$84) -> 19 | F76: =SUM([1]Data!AY165+[1]Data!BA165+[1]Data!BB165+[1]Data!BE165+[1]Data!BH165+[1]Data!BP165+[1]Data!BS165+[1]Data!BT165+[1]Data!CD165)/[1]Inputs!$A$12 -> 0.2222222222 | G76: =SUM([1]Data!AZ165+[1]Data!BB165+[1]Data!BC165+[1]Data!BF165+[1]Data!BI165+[1]Data!BQ165+[1]Data!BT165+[1]Data!BU165+[1]Data!CE165)/[1]Inputs!$A$12 -> 0.4444444444 | H76: =SUM([1]Data!BA165+[1]Data!BC165+[1]Data!BD165+[1]Data!BG165+[1]Data!BJ165+[1]Data!BR165+[1]Data!BU165+[1]Data!BV165+[1]Data!CF165)/[1]Inputs!$A$12 -> 0.2222222222 | I76: =SUM([1]Data!BB165+[1]Data!BD165+[1]Data!BE165+[1]Data!BH165+[1]Data!BK165+[1]Data!BS165+[1]Data!BV165+[1]Data!BW165+[1]Data!CG165)/[1]Inputs!$A$12 -> 0.1111111111 | J76: =SUM([1]Data!BC165+[1]Data!BE165+[1]Data!BF165+[1]Data!BI165+[1]Data!BL165+[1]Data!BT165+[1]Data!BW165+[1]Data!BX165+[1]Data!CH165)/[1]Inputs!$A$12 -> 0.3333333333 | K76: =SUM([1]Data!BD165+[1]Data!BF165+[1]Data!BG165+[1]Data!BJ165+[1]Data!BM165+[1]Data!BU165+[1]Data!BX165+[1]Data!BY165+[1]Data!CI165)/[1]Inputs!$A$12 -> 0.2222222222 | M76: E | N76: D | O76: C | P76: C | Q76: C | R76: A | S76: E | T76: D | U76: D | V76: E | W76: C | X76: C | Y76: B | Z76: B | AA76: D | AB76: D | AC76: D | AD76: E | AE76: B | AF76: D | AG76: D | AH76: D | AI76: C | AJ76: C | AK76: E | AL76: C | AM76: B | AN76: D | AO76: B | AP76: B | AQ76: D | AR76: D | AS76: C | AT76: C | AU76: C | AV76: E | AW76: C | AX76: E | AY76: C | AZ76: C
C77: 22190 | D77: =[1]Data!C134 -> 22 | E77: =LOOKUP(D77,[1]Inputs!$B$55:$B$84,[1]Inputs!$A$55:$A$84) -> 23 | F77: =SUM([1]Data!AY134+[1]Data!BA134+[1]Data!BB134+[1]Data!BE134+[1]Data!BH134+[1]Data!BP134+[1]Data!BS134+[1]Data!BT134+[1]Data!CD134)/[1]Inputs!$A$12 -> 0.2222222222 | G77: =SUM([1]Data!AZ134+[1]Data!BB134+[1]Data!BC134+[1]Data!BF134+[1]Data!BI134+[1]Data!BQ134+[1]Data!BT134+[1]Data!BU134+[1]Data!CE134)/[1]Inputs!$A$12 -> 0.1111111111 | H77: =SUM([1]Data!BA134+[1]Data!BC134+[1]Data!BD134+[1]Data!BG134+[1]Data!BJ134+[1]Data!BR134+[1]Data!BU134+[1]Data!BV134+[1]Data!CF134)/[1]Inputs!$A$12 -> 0.5555555556 | I77: =SUM([1]Data!BB134+[1]Data!BD134+[1]Data!BE134+[1]Data!BH134+[1]Data!BK134+[1]Data!BS134+[1]Data!BV134+[1]Data!BW134+[1]Data!CG134)/[1]Inputs!$A$12 -> 0.4444444444 | J77: =SUM([1]Data!BC134+[1]Data!BE134+[1]Data!BF134+[1]Data!BI134+[1]Data!BL134+[1]Data!BT134+[1]Data!BW134+[1]Data!BX134+[1]Data!CH134)/[1]Inputs!$A$12 -> 0 | K77: =SUM([1]Data!BD134+[1]Data!BF134+[1]Data!BG134+[1]Data!BJ134+[1]Data!BM134+[1]Data!BU134+[1]Data!BX134+[1]Data!BY134+[1]Data!CI134)/[1]Inputs!$A$12 -> 0.4444444444 | M77: E | N77: B | O77: B | P77: D | Q77: A | R77: A | S77: E | T77: D | U77: D | V77: E | W77: C | X77: C | Y77: C | Z77: A | AA77: E | AB77: D | AC77: C | AD77: D | AE77: A | AF77: D | AG77: B | AH77: C | AI77: B | AJ77: D | AK77: A | AL77: C | AM77: B | AN77: E | AO77: E | AP77: A | AQ77: A | AR77: D | AS77: C | AT77: A | AU77: B | AV77: A | AW77: C | AX77: B | AY77: B | AZ77: B
C78: 22191 | D78: =[1]Data!C239 -> 12 | E78: =LOOKUP(D78,[1]Inputs!$B$55:$B$84,[1]Inputs!$A$55:$A$84) -> 16 | F78: =SUM([1]Data!AY239+[1]Data!BA239+[1]Data!BB239+[1]Data!BE239+[1]Data!BH239+[1]Data!BP239+[1]Data!BS239+[1]Data!BT239+[1]Data!CD239)/[1]Inputs!$A$12 -> 0.3333333333 | G78: =SUM([1]Data!AZ239+[1]Data!BB239+[1]Data!BC239+[1]Data!BF239+[1]Data!BI239+[1]Data!BQ239+[1]Data!BT239+[1]Data!BU239+[1]Data!CE239)/[1]Inputs!$A$12 -> 0.2222222222 | H78: =SUM([1]Data!BA239+[1]Data!BC239+[1]Data!BD239+[1]Data!BG239+[1]Data!BJ239+[1]Data!BR239+[1]Data!BU239+[1]Data!BV239+[1]Data!CF239)/[1]Inputs!$A$12 -> 0.1111111111 | I78: =SUM([1]Data!BB239+[1]Data!BD239+[1]Data!BE239+[1]Data!BH239+[1]Data!BK239+[1]Data!BS239+[1]Data!BV239+[1]Data!BW239+[1]Data!CG239)/[1]Inputs!$A$12 -> 0.2222222222 | J78: =SUM([1]Data!BC239+[1]Data!BE239+[1]Data!BF239+[1]Data!BI239+[1]Data!BL239+[1]Data!BT239+[1]Data!BW239+[1]Data!BX239+[1]Data!CH239)/[1]Inputs!$A$12 -> 0.2222222222 | K78: =SUM([1]Data!BD239+[1]Data!BF239+[1]Data!BG239+[1]Data!BJ239+[1]Data!BM239+[1]Data!BU239+[1]Data!BX239+[1]Data!BY239+[1]Data!CI239)/[1]Inputs!$A$12 -> 0.2222222222 | M78: D | N78: C | O78: C | P78: D | Q78: B | R78: E | S78: D | T78: D | U78: D | V78: E | W78: A | X78: C | Y78: B | Z78: E | AA78: E | AB78: C | AC78: D | AD78: D | AE78: B | AF78: A | AG78: E | AH78: E | AI78: E | AJ78: D | AK78: D | AL78: E | AM78: C | AN78: E | AO78: C | AP78: C | AQ78: E | AR78: B | AS78: D | AT78: C | AU78: D | AV78: C | AW78: E | AX78: B | AY78: E | AZ78: D
C79: 22198 | D79: =[1]Data!C74 -> 29 | E79: =LOOKUP(D79,[1]Inputs!$B$55:$B$84,[1]Inputs!$A$55:$A$84) -> 28 | F79: =SUM([1]Data!AY74+[1]Data!BA74+[1]Data!BB74+[1]Data!BE74+[1]Data!BH74+[1]Data!BP74+[1]Data!BS74+[1]Data!BT74+[1]Data!CD74)/[1]Inputs!$A$12 -> 0.7777777778 | G79: =SUM([1]Data!AZ74+[1]Data!BB74+[1]Data!BC74+[1]Data!BF74+[1]Data!BI74+[1]Data!BQ74+[1]Data!BT74+[1]Data!BU74+[1]Data!CE74)/[1]Inputs!$A$12 -> 0.6666666667 | H79: =SUM([1]Data!BA74+[1]Data!BC74+[1]Data!BD74+[1]Data!BG74+[1]Data!BJ74+[1]Data!BR74+[1]Data!BU74+[1]Data!BV74+[1]Data!CF74)/[1]Inputs!$A$12 -> 0.7777777778 | I79: =SUM([1]Data!BB74+[1]Data!BD74+[1]Data!BE74+[1]Data!BH74+[1]Data!BK74+[1]Data!BS74+[1]Data!BV74+[1]Data!BW74+[1]Data!CG74)/[1]Inputs!$A$12 -> 0.7777777778 | J79: =SUM([1]Data!BC74+[1]Data!BE74+[1]Data!BF74+[1]Data!BI74+[1]Data!BL74+[1]Data!BT74+[1]Data!BW74+[1]Data!BX74+[1]Data!CH74)/[1]Inputs!$A$12 -> 0.7777777778 | K79: =SUM([1]Data!BD74+[1]Data!BF74+[1]Data!BG74+[1]Data!BJ74+[1]Data!BM74+[1]Data!BU74+[1]Data!BX74+[1]Data!BY74+[1]Data!CI74)/[1]Inputs!$A$12 -> 0.6666666667 | M79: E | N79: B | O79: B | P79: D | Q79: A | R79: A | S79: E | T79: D | U79: D | V79: E | W79: C | X79: C | Y79: C | Z79: A | AA79: D | AB79: D | AC79: D | AD79: D | AE79: A | AF79: D | AG79: D | AH79: A | AI79: B | AJ79: D | AK79: A | AL79: E | AM79: B | AN79: E | AO79: D | AP79: D | AQ79: B | AR79: D | AS79: C | AT79: A | AU79: A | AV79: B | AW79: B | AX79: D | AY79: C | AZ79: D
C80: 22204 | D80: =[1]Data!C116 -> 10 | E80: =LOOKUP(D80,[1]Inputs!$B$55:$B$84,[1]Inputs!$A$55:$A$84) -> 15 | F80: =SUM([1]Data!AY116+[1]Data!BA116+[1]Data!BB116+[1]Data!BE116+[1]Data!BH116+[1]Data!BP116+[1]Data!BS116+[1]Data!BT116+[1]Data!CD116)/[1]Inputs!$A$12 -> 0.3333333333 | G80: =SUM([1]Data!AZ116+[1]Data!BB116+[1]Data!BC116+[1]Data!BF116+[1]Data!BI116+[1]Data!BQ116+[1]Data!BT116+[1]Data!BU116+[1]Data!CE116)/[1]Inputs!$A$12 -> 0.1111111111 | H80: =SUM([1]Data!BA116+[1]Data!BC116+[1]Data!BD116+[1]Data!BG116+[1]Data!BJ116+[1]Data!BR116+[1]Data!BU116+[1]Data!BV116+[1]Data!CF116)/[1]Inputs!$A$12 -> 0.2222222222 | I80: =SUM([1]Data!BB116+[1]Data!BD116+[1]Data!BE116+[1]Data!BH116+[1]Data!BK116+[1]Data!BS116+[1]Data!BV116+[1]Data!BW116+[1]Data!CG116)/[1]Inputs!$A$12 -> 0.2222222222 | J80: =SUM([1]Data!BC116+[1]Data!BE116+[1]Data!BF116+[1]Data!BI116+[1]Data!BL116+[1]Data!BT116+[1]Data!BW116+[1]Data!BX116+[1]Data!CH116)/[1]Inputs!$A$12 -> 0.2222222222 | K80: =SUM([1]Data!BD116+[1]Data!BF116+[1]Data!BG116+[1]Data!BJ116+[1]Data!BM116+[1]Data!BU116+[1]Data!BX116+[1]Data!BY116+[1]Data!CI116)/[1]Inputs!$A$12 -> 0.1111111111 | M80: E | N80: B | O80: C | P80: D | Q80: A | R80: B | S80: E | T80: D | U80: E | V80: B | W80: D | X80: D | Y80: E | Z80: B | AA80: C | AB80: D | AC80: A | AD80: D | AE80: E | AF80: D | AG80: D | AH80: C | AI80: E | AJ80: B | AK80: E | AL80: D | AM80: C | AN80: D | AO80: C | AP80: B | AQ80: A | AR80: E | AS80: B | AT80: C | AU80: D | AV80: E | AW80: D | AX80: B | AY80: C | AZ80: A
C81: 22210 | D81: =[1]Data!C169 -> 20 | E81: =LOOKUP(D81,[1]Inputs!$B$55:$B$84,[1]Inputs!$A$55:$A$84) -> 21 | F81: =SUM([1]Data!AY169+[1]Data!BA169+[1]Data!BB169+[1]Data!BE169+[1]Data!BH169+[1]Data!BP169+[1]Data!BS169+[1]Data!BT169+[1]Data!CD169)/[1]Inputs!$A$12 -> 0.7777777778 | G81: =SUM([1]Data!AZ169+[1]Data!BB169+[1]Data!BC169+[1]Data!BF169+[1]Data!BI169+[1]Data!BQ169+[1]Data!BT169+[1]Data!BU169+[1]Data!CE169)/[1]Inputs!$A$12 -> 0.4444444444 | H81: =SUM([1]Data!BA169+[1]Data!BC169+[1]Data!BD169+[1]Data!BG169+[1]Data!BJ169+[1]Data!BR169+[1]Data!BU169+[1]Data!BV169+[1]Data!CF169)/[1]Inputs!$A$12 -> 0.4444444444 | I81: =SUM([1]Data!BB169+[1]Data!BD169+[1]Data!BE169+[1]Data!BH169+[1]Data!BK169+[1]Data!BS169+[1]Data!BV169+[1]Data!BW169+[1]Data!CG169)/[1]Inputs!$A$12 -> 0.5555555556 | J81: =SUM([1]Data!BC169+[1]Data!BE169+[1]Data!BF169+[1]Data!BI169+[1]Data!BL169+[1]Data!BT169+[1]Data!BW169+[1]Data!BX169+[1]Data!CH169)/[1]Inputs!$A$12 -> 0.4444444444 | K81: =SUM([1]Data!BD169+[1]Data!BF169+[1]Data!BG169+[1]Data!BJ169+[1]Data!BM169+[1]Data!BU169+[1]Data!BX169+[1]Data!BY169+[1]Data!CI169)/[1]Inputs!$A$12 -> 0.4444444444 | M81: E | N81: D | O81: B | P81: D | Q81: B | R81: A | S81: E | T81: D | U81: D | V81: E | W81: C | X81: C | Y81: C | Z81: B | AA81: D | AB81: D | AC81: A | AD81: E | AE81: B | AF81: A | AG81: D | AH81: C | AI81: C | AJ81: C | AK81: C | AL81: C | AM81: C | AN81: C | AO81: D | AP81: C | AQ81: C | AR81: D | AS81: C | AT81: C | AU81: C | AV81: C | AW81: C | AX81: C | AY81: C | AZ81: C
C82: 22214 | D82: =[1]Data!C73 -> 22 | E82: =LOOKUP(D82,[1]Inputs!$B$55:$B$84,[1]Inputs!$A$55:$A$84) -> 23 | F82: =SUM([1]Data!AY73+[1]Data!BA73+[1]Data!BB73+[1]Data!BE73+[1]Data!BH73+[1]Data!BP73+[1]Data!BS73+[1]Data!BT73+[1]Data!CD73)/[1]Inputs!$A$12 -> 0.3333333333 | G82: =SUM([1]Data!AZ73+[1]Data!BB73+[1]Data!BC73+[1]Data!BF73+[1]Data!BI73+[1]Data!BQ73+[1]Data!BT73+[1]Data!BU73+[1]Data!CE73)/[1]Inputs!$A$12 -> 0.2222222222 | H82: =SUM([1]Data!BA73+[1]Data!BC73+[1]Data!BD73+[1]Data!BG73+[1]Data!BJ73+[1]Data!BR73+[1]Data!BU73+[1]Data!BV73+[1]Data!CF73)/[1]Inputs!$A$12 -> 0.5555555556 | I82: =SUM([1]Data!BB73+[1]Data!BD73+[1]Data!BE73+[1]Data!BH73+[1]Data!BK73+[1]Data!BS73+[1]Data!BV73+[1]Data!BW73+[1]Data!CG73)/[1]Inputs!$A$12 -> 0.3333333333 | J82: =SUM([1]Data!BC73+[1]Data!BE73+[1]Data!BF73+[1]Data!BI73+[1]Data!BL73+[1]Data!BT73+[1]Data!BW73+[1]Data!BX73+[1]Data!CH73)/[1]Inputs!$A$12 -> 0.4444444444 | K82: =SUM([1]Data!BD73+[1]Data!BF73+[1]Data!BG73+[1]Data!BJ73+[1]Data!BM73+[1]Data!BU73+[1]Data!BX73+[1]Data!BY73+[1]Data!CI73)/[1]Inputs!$A$12 -> 0.4444444444 | M82: E | N82: D | O82: B | P82: D | Q82: A | R82: A | S82: E | T82: D | U82: D | V82: E | W82: D | X82: B | Y82: C | Z82: E | AA82: E | AB82: D | AC82: D | AD82: E | AE82: B | AF82: A | AG82: D | AH82: A | AI82: D | AJ82: D | AK82: A | AL82: A | AM82: A | AN82: E | AO82: E | AP82: D | AQ82: A | AR82: A | AS82: D | AT82: A | AU82: B | AV82: A | AW82: A | AX82: D | AY82: D | AZ82: D
C83: 22215 | D83: =[1]Data!C162 -> 15 | E83: =LOOKUP(D83,[1]Inputs!$B$55:$B$84,[1]Inputs!$A$55:$A$84) -> 18 | F83: =SUM([1]Data!AY162+[1]Data!BA162+[1]Data!BB162+[1]Data!BE162+[1]Data!BH162+[1]Data!BP162+[1]Data!BS162+[1]Data!BT162+[1]Data!CD162)/[1]Inputs!$A$12 -> 0.6666666667 | G83: =SUM([1]Data!AZ162+[1]Data!BB162+[1]Data!BC162+[1]Data!BF162+[1]Data!BI162+[1]Data!BQ162+[1]Data!BT162+[1]Data!BU162+[1]Data!CE162)/[1]Inputs!$A$12 -> 0.4444444444 | H83: =SUM([1]Data!BA162+[1]Data!BC162+[1]Data!BD162+[1]Data!BG162+[1]Data!BJ162+[1]Data!BR162+[1]Data!BU162+[1]Data!BV162+[1]Data!CF162)/[1]Inputs!$A$12 -> 0.4444444444 | I83: =SUM([1]Data!BB162+[1]Data!BD162+[1]Data!BE162+[1]Data!BH162+[1]Data!BK162+[1]Data!BS162+[1]Data!BV162+[1]Data!BW162+[1]Data!CG162)/[1]Inputs!$A$12 -> 0.4444444444 | J83: =SUM([1]Data!BC162+[1]Data!BE162+[1]Data!BF162+[1]Data!BI162+[1]Data!BL162+[1]Data!BT162+[1]Data!BW162+[1]Data!BX162+[1]Data!CH162)/[1]Inputs!$A$12 -> 0.5555555556 | K83: =SUM([1]Data!BD162+[1]Data!BF162+[1]Data!BG162+[1]Data!BJ162+[1]Data!BM162+[1]Data!BU162+[1]Data!BX162+[1]Data!BY162+[1]Data!CI162)/[1]Inputs!$A$12 -> 0.4444444444 | M83: E | N83: D | O83: B | P83: C | Q83: C | R83: A | S83: E | T83: D | U83: E | V83: E | W83: C | X83: C | Y83: B | Z83: E | AA83: C | AB83: C | AC83: D | AD83: D | AE83: B | AF83: D | AG83: B | AH83: D | AI83: C | AJ83: A | AK83: A | AL83: B | AM83: E | AN83: B | AO83: A | AP83: D | AQ83: A | AR83: E | AS83: A | AT83: B | AU83: C | AV83: A | AW83: C | AX83: D | AY83: C | AZ83: A
C84: 22222 | D84: =[1]Data!C246 -> 11 | E84: =LOOKUP(D84,[1]Inputs!$B$55:$B$84,[1]Inputs!$A$55:$A$84) -> 16 | F84: =SUM([1]Data!AY246+[1]Data!BA246+[1]Data!BB246+[1]Data!BE246+[1]Data!BH246+[1]Data!BP246+[1]Data!BS246+[1]Data!BT246+[1]Data!CD246)/[1]Inputs!$A$12 -> 0.4444444444 | G84: =SUM([1]Data!AZ246+[1]Data!BB246+[1]Data!BC246+[1]Data!BF246+[1]Data!BI246+[1]Data!BQ246+[1]Data!BT246+[1]Data!BU246+[1]Data!CE246)/[1]Inputs!$A$12 -> 0.4444444444 | H84: =SUM([1]Data!BA246+[1]Data!BC246+[1]Data!BD246+[1]Data!BG246+[1]Data!BJ246+[1]Data!BR246+[1]Data!BU246+[1]Data!BV246+[1]Data!CF246)/[1]Inputs!$A$12 -> 0.2222222222 | I84: =SUM([1]Data!BB246+[1]Data!BD246+[1]Data!BE246+[1]Data!BH246+[1]Data!BK246+[1]Data!BS246+[1]Data!BV246+[1]Data!BW246+[1]Data!CG246)/[1]Inputs!$A$12 -> 0.5555555556 | J84: =SUM([1]Data!BC246+[1]Data!BE246+[1]Data!BF246+[1]Data!BI246+[1]Data!BL246+[1]Data!BT246+[1]Data!BW246+[1]Data!BX246+[1]Data!CH246)/[1]Inputs!$A$12 -> 0.4444444444 | K84: =SUM([1]Data!BD246+[1]Data!BF246+[1]Data!BG246+[1]Data!BJ246+[1]Data!BM246+[1]Data!BU246+[1]Data!BX246+[1]Data!BY246+[1]Data!CI246)/[1]Inputs!$A$12 -> 0.4444444444 | M84: C | N84: D | O84: A | P84: D | Q84: B | R84: B | S84: E | T84: E | U84: E | V84: E | W84: C | X84: C | Y84: B | Z84: D | AA84: B | AB84: D | AC84: E | AD84: E | AE84: A | AF84: D | AG84: E | AH84: C | AI84: C | AJ84: E | AK84: C | AL84: D | AM84: B | AN84: C | AO84: D | AP84: B | AQ84: D | AR84: E | AS84: B | AT84: C | AU84: C | AV84: B | AW84: A | AX84: D | AY84: E | AZ84: D
C85: 22225 | D85: =[1]Data!C163 -> 13 | E85: =LOOKUP(D85,[1]Inputs!$B$55:$B$84,[1]Inputs!$A$55:$A$84) -> 17 | F85: =SUM([1]Data!AY163+[1]Data!BA163+[1]Data!BB163+[1]Data!BE163+[1]Data!BH163+[1]Data!BP163+[1]Data!BS163+[1]Data!BT163+[1]Data!CD163)/[1]Inputs!$A$12 -> 0.3333333333 | G85: =SUM([1]Data!AZ163+[1]Data!BB163+[1]Data!BC163+[1]Data!BF163+[1]Data!BI163+[1]Data!BQ163+[1]Data!BT163+[1]Data!BU163+[1]Data!CE163)/[1]Inputs!$A$12 -> 0.4444444444 | H85: =SUM([1]Data!BA163+[1]Data!BC163+[1]Data!BD163+[1]Data!BG163+[1]Data!BJ163+[1]Data!BR163+[1]Data!BU163+[1]Data!BV163+[1]Data!CF163)/[1]Inputs!$A$12 -> 0.3333333333 | I85: =SUM([1]Data!BB163+[1]Data!BD163+[1]Data!BE163+[1]Data!BH163+[1]Data!BK163+[1]Data!BS163+[1]Data!BV163+[1]Data!BW163+[1]Data!CG163)/[1]Inputs!$A$12 -> 0.2222222222 | J85: =SUM([1]Data!BC163+[1]Data!BE163+[1]Data!BF163+[1]Data!BI163+[1]Data!BL163+[1]Data!BT163+[1]Data!BW163+[1]Data!BX163+[1]Data!CH163)/[1]Inputs!$A$12 -> 0.1111111111 | K85: =SUM([1]Data!BD163+[1]Data!BF163+[1]Data!BG163+[1]Data!BJ163+[1]Data!BM163+[1]Data!BU163+[1]Data!BX163+[1]Data!BY163+[1]Data!CI163)/[1]Inputs!$A$12 -> 0.3333333333 | M85: A | N85: D | O85: B | P85: D | Q85: C | R85: B | S85: A | T85: D | U85: E | V85: E | W85: E | X85: B | Y85: D | Z85: D | AA85: C | AB85: A | AC85: C | AD85: D | AE85: A | AF85: D | AG85: B | AH85: C | AI85: D | AJ85: D | AK85: B | AL85: C | AM85: C | AN85: C | AO85: D | AP85: A | AQ85: B | AR85: D | AS85: C | AT85: B | AU85: D | AV85: D | AW85: A | AX85: C | AY85: A | AZ85: C
C86: 22234 | D86: =[1]Data!C167 -> 23 | E86: =LOOKUP(D86,[1]Inputs!$B$55:$B$84,[1]Inputs!$A$55:$A$84) -> 24 | F86: =SUM([1]Data!AY167+[1]Data!BA167+[1]Data!BB167+[1]Data!BE167+[1]Data!BH167+[1]Data!BP167+[1]Data!BS167+[1]Data!BT167+[1]Data!CD167)/[1]Inputs!$A$12 -> 0.6666666667 | G86: =SUM([1]Data!AZ167+[1]Data!BB167+[1]Data!BC167+[1]Data!BF167+[1]Data!BI167+[1]Data!BQ167+[1]Data!BT167+[1]Data!BU167+[1]Data!CE167)/[1]Inputs!$A$12 -> 0.4444444444 | H86: =SUM([1]Data!BA167+[1]Data!BC167+[1]Data!BD167+[1]Data!BG167+[1]Data!BJ167+[1]Data!BR167+[1]Data!BU167+[1]Data!BV167+[1]Data!CF167)/[1]Inputs!$A$12 -> 0.4444444444 | I86: =SUM([1]Data!BB167+[1]Data!BD167+[1]Data!BE167+[1]Data!BH167+[1]Data!BK167+[1]Data!BS167+[1]Data!BV167+[1]Data!BW167+[1]Data!CG167)/[1]Inputs!$A$12 -> 0.6666666667 | J86: =SUM([1]Data!BC167+[1]Data!BE167+[1]Data!BF167+[1]Data!BI167+[1]Data!BL167+[1]Data!BT167+[1]Data!BW167+[1]Data!BX167+[1]Data!CH167)/[1]Inputs!$A$12 -> 0.4444444444 | K86: =SUM([1]Data!BD167+[1]Data!BF167+[1]Data!BG167+[1]Data!BJ167+[1]Data!BM167+[1]Data!BU167+[1]Data!BX167+[1]Data!BY167+[1]Data!CI167)/[1]Inputs!$A$12 -> 0.5555555556 | M86: E | N86: C | O86: B | P86: C | Q86: A | R86: A | S86: E | T86: D | U86: D | V86: E | W86: C | X86: C | Y86: C | Z86: A | AA86: C | AB86: D | AC86: B | AD86: D | AE86: B | AF86: D | AG86: D | AH86: C | AI86: B | AJ86: E | AK86: E | AL86: E | AM86: B | AN86: C | AO86: B | AP86: D | AQ86: B | AR86: D | AS86: B | AT86: A | AU86: B | AV86: A | AW86: B | AX86: A | AY86: B | AZ86: B
C87: 22242 | D87: =[1]Data!C137 -> 17 | E87: =LOOKUP(D87,[1]Inputs!$B$55:$B$84,[1]Inputs!$A$55:$A$84) -> 19 | F87: =SUM([1]Data!AY137+[1]Data!BA137+[1]Data!BB137+[1]Data!BE137+[1]Data!BH137+[1]Data!BP137+[1]Data!BS137+[1]Data!BT137+[1]Data!CD137)/[1]Inputs!$A$12 -> 0.5555555556 | G87: =SUM([1]Data!AZ137+[1]Data!BB137+[1]Data!BC137+[1]Data!BF137+[1]Data!BI137+[1]Data!BQ137+[1]Data!BT137+[1]Data!BU137+[1]Data!CE137)/[1]Inputs!$A$12 -> 0.4444444444 | H87: =SUM([1]Data!BA137+[1]Data!BC137+[1]Data!BD137+[1]Data!BG137+[1]Data!BJ137+[1]Data!BR137+[1]Data!BU137+[1]Data!BV137+[1]Data!CF137)/[1]Inputs!$A$12 -> 0.7777777778 | I87: =SUM([1]Data!BB137+[1]Data!BD137+[1]Data!BE137+[1]Data!BH137+[1]Data!BK137+[1]Data!BS137+[1]Data!BV137+[1]Data!BW137+[1]Data!CG137)/[1]Inputs!$A$12 -> 0.4444444444 | J87: =SUM([1]Data!BC137+[1]Data!BE137+[1]Data!BF137+[1]Data!BI137+[1]Data!BL137+[1]Data!BT137+[1]Data!BW137+[1]Data!BX137+[1]Data!CH137)/[1]Inputs!$A$12 -> 0.4444444444 | K87: =SUM([1]Data!BD137+[1]Data!BF137+[1]Data!BG137+[1]Data!BJ137+[1]Data!BM137+[1]Data!BU137+[1]Data!BX137+[1]Data!BY137+[1]Data!CI137)/[1]Inputs!$A$12 -> 0.4444444444 | M87: C | N87: C | O87: B | P87: C | Q87: A | R87: A | S87: E | T87: D | U87: D | V87: E | W87: D | X87: A | Y87: B | Z87: B | AA87: C | AB87: B | AC87: B | AD87: E | AE87: A | AF87: D | AG87: D | AH87: A | AI87: E | AJ87: D | AK87: E | AL87: C | AM87: C | AN87: E | AO87: C | AP87: D | AQ87: A | AR87: B | AS87: D | AT87: A | AU87: C | AV87: B | AW87: E | AX87: C | AY87: A | AZ87: E
C88: 22249 | D88: =[1]Data!C235 -> 18 | E88: =LOOKUP(D88,[1]Inputs!$B$55:$B$84,[1]Inputs!$A$55:$A$84) -> 19 | F88: =SUM([1]Data!AY235+[1]Data!BA235+[1]Data!BB235+[1]Data!BE235+[1]Data!BH235+[1]Data!BP235+[1]Data!BS235+[1]Data!BT235+[1]Data!CD235)/[1]Inputs!$A$12 -> 0.2222222222 | G88: =SUM([1]Data!AZ235+[1]Data!BB235+[1]Data!BC235+[1]Data!BF235+[1]Data!BI235+[1]Data!BQ235+[1]Data!BT235+[1]Data!BU235+[1]Data!CE235)/[1]Inputs!$A$12 -> 0.1111111111 | H88: =SUM([1]Data!BA235+[1]Data!BC235+[1]Data!BD235+[1]Data!BG235+[1]Data!BJ235+[1]Data!BR235+[1]Data!BU235+[1]Data!BV235+[1]Data!CF235)/[1]Inputs!$A$12 -> 0.1111111111 | I88: =SUM([1]Data!BB235+[1]Data!BD235+[1]Data!BE235+[1]Data!BH235+[1]Data!BK235+[1]Data!BS235+[1]Data!BV235+[1]Data!BW235+[1]Data!CG235)/[1]Inputs!$A$12 -> 0.5555555556 | J88: =SUM([1]Data!BC235+[1]Data!BE235+[1]Data!BF235+[1]Data!BI235+[1]Data!BL235+[1]Data!BT235+[1]Data!BW235+[1]Data!BX235+[1]Data!CH235)/[1]Inputs!$A$12 -> 0.2222222222 | K88: =SUM([1]Data!BD235+[1]Data!BF235+[1]Data!BG235+[1]Data!BJ235+[1]Data!BM235+[1]Data!BU235+[1]Data!BX235+[1]Data!BY235+[1]Data!CI235)/[1]Inputs!$A$12 -> 0.2222222222 | M88: D | N88: D | O88: B | P88: C | Q88: A | R88: E | S88: E | T88: D | U88: D | V88: E | W88: C | X88: C | Y88: B | Z88: A | AA88: C | AB88: D | AC88: B | AD88: E | AE88: B | AF88: D | AG88: D | AH88: A | AI88: D | AJ88: A | AK88: B | AL88: B | AM88: C | AN88: D | AO88: D | AP88: E | AQ88: C | AR88: D | AS88: C | AT88: B | AU88: B | AV88: A | AW88: B | AX88: B | AY88: D | AZ88: A
C89: 22284 | D89: =[1]Data!C177 -> 24 | E89: =LOOKUP(D89,[1]Inputs!$B$55:$B$84,[1]Inputs!$A$55:$A$84) -> 24 | F89: =SUM([1]Data!AY177+[1]Data!BA177+[1]Data!BB177+[1]Data!BE177+[1]Data!BH177+[1]Data!BP177+[1]Data!BS177+[1]Data!BT177+[1]Data!CD177)/[1]Inputs!$A$12 -> 0.3333333333 | G89: =SUM([1]Data!AZ177+[1]Data!BB177+[1]Data!BC177+[1]Data!BF177+[1]Data!BI177+[1]Data!BQ177+[1]Data!BT177+[1]Data!BU177+[1]Data!CE177)/[1]Inputs!$A$12 -> 0.2222222222 | H89: =SUM([1]Data!BA177+[1]Data!BC177+[1]Data!BD177+[1]Data!BG177+[1]Data!BJ177+[1]Data!BR177+[1]Data!BU177+[1]Data!BV177+[1]Data!CF177)/[1]Inputs!$A$12 -> 0.2222222222 | I89: =SUM([1]Data!BB177+[1]Data!BD177+[1]Data!BE177+[1]Data!BH177+[1]Data!BK177+[1]Data!BS177+[1]Data!BV177+[1]Data!BW177+[1]Data!CG177)/[1]Inputs!$A$12 -> 0.2222222222 | J89: =SUM([1]Data!BC177+[1]Data!BE177+[1]Data!BF177+[1]Data!BI177+[1]Data!BL177+[1]Data!BT177+[1]Data!BW177+[1]Data!BX177+[1]Data!CH177)/[1]Inputs!$A$12 -> 0.3333333333 | K89: =SUM([1]Data!BD177+[1]Data!BF177+[1]Data!BG177+[1]Data!BJ177+[1]Data!BM177+[1]Data!BU177+[1]Data!BX177+[1]Data!BY177+[1]Data!CI177)/[1]Inputs!$A$12 -> 0.4444444444 | M89: E | N89: D | O89: B | P89: D | Q89: A | R89: A | S89: E | T89: D | U89: D | V89: E | W89: C | X89: C | Y89: C | Z89: A | AA89: D | AB89: D | AC89: E | AD89: D | AE89: B | AF89: D | AG89: D | AH89: C | AI89: D | AJ89: C | AK89: A | AL89: D | AM89: B | AN89: A | AO89: D | AP89: D | AQ89: A | AR89: B | AS89: D | AT89: A | AU89: A | AV89: B | AW89: D | AX89: D | AY89: E | AZ89: B
C90: =[1]Data!E46 -> 22316 | D90: 19 | E90: =LOOKUP(D90,[1]Inputs!$B$55:$B$84,[1]Inputs!$A$55:$A$84) -> 20 | F90: =SUM([1]Data!AY46+[1]Data!BA46+[1]Data!BB46+[1]Data!BE46+[1]Data!BH46+[1]Data!BP46+[1]Data!BS46+[1]Data!BT46+[1]Data!CD46)/[1]Inputs!$A$12 -> 0.3333333333 | G90: =SUM([1]Data!BD46+[1]Data!BF46+[1]Data!BI46+[1]Data!BL46+[1]Data!BO46+[1]Data!BQ46+[1]Data!CA46+[1]Data!CH46)/[1]Inputs!$A$13 -> 0.5 | H90: =SUM([1]Data!AZ46+[1]Data!BJ46+[1]Data!BM46+[1]Data!BX46+[1]Data!CB46+[1]Data!CJ46+[1]Data!CK46)/[1]Inputs!$A$14 -> 0.5 | I90: =SUM([1]Data!BV46+[1]Data!CC46+[1]Data!CL46)/[1]Inputs!$A$15 -> 0.3333333333 | J90: =SUM([1]Data!BC46+[1]Data!BG46+[1]Data!BJ46+[1]Data!BN46+[1]Data!BR46+[1]Data!BU46+[1]Data!BY46+[1]Data!BZ46+[1]Data!CE46+[1]Data!CG46)/[1]Inputs!$A$16 -> 0.2 | K90: =SUM([1]Data!BW46+[1]Data!CF46+[1]Data!CI46)/[1]Inputs!$A$17 -> 0 | M90: E | N90: B | O90: B | P90: C | Q90: A | R90: E | S90: C | T90: D | U90: E | V90: E | W90: C | X90: C | Y90: C | Z90: A | AA90: D | AB90: D | AC90: B | AD90: E | AE90: A | AF90: D | AG90: C | AH90: A | AI90: D | AJ90: C | AK90: D | AL90: A | AM90: D | AN90: A | AO90: E | AP90: D | AQ90: B | AR90: E | AS90: C | AT90: A | AU90: A | AV90: A | AW90: B | AX90: C | AY90: A | AZ90: D
C91: 22318 | D91: =[1]Data!C111 -> 13 | E91: =LOOKUP(D91,[1]Inputs!$B$55:$B$84,[1]Inputs!$A$55:$A$84) -> 17 | F91: =SUM([1]Data!AY111+[1]Data!BA111+[1]Data!BB111+[1]Data!BE111+[1]Data!BH111+[1]Data!BP111+[1]Data!BS111+[1]Data!BT111+[1]Data!CD111)/[1]Inputs!$A$12 -> 0.2222222222 | G91: =SUM([1]Data!AZ111+[1]Data!BB111+[1]Data!BC111+[1]Data!BF111+[1]Data!BI111+[1]Data!BQ111+[1]Data!BT111+[1]Data!BU111+[1]Data!CE111)/[1]Inputs!$A$12 -> 0.4444444444 | H91: =SUM([1]Data!BA111+[1]Data!BC111+[1]Data!BD111+[1]Data!BG111+[1]Data!BJ111+[1]Data!BR111+[1]Data!BU111+[1]Data!BV111+[1]Data!CF111)/[1]Inputs!$A$12 -> 0.3333333333 | I91: =SUM([1]Data!BB111+[1]Data!BD111+[1]Data!BE111+[1]Data!BH111+[1]Data!BK111+[1]Data!BS111+[1]Data!BV111+[1]Data!BW111+[1]Data!CG111)/[1]Inputs!$A$12 -> 0.2222222222 | J91: =SUM([1]Data!BC111+[1]Data!BE111+[1]Data!BF111+[1]Data!BI111+[1]Data!BL111+[1]Data!BT111+[1]Data!BW111+[1]Data!BX111+[1]Data!CH111)/[1]Inputs!$A$12 -> 0.1111111111 | K91: =SUM([1]Data!BD111+[1]Data!BF111+[1]Data!BG111+[1]Data!BJ111+[1]Data!BM111+[1]Data!BU111+[1]Data!BX111+[1]Data!BY111+[1]Data!CI111)/[1]Inputs!$A$12 -> 0.4444444444 | M91: B | N91: D | O91: B | P91: D | Q91: C | R91: E | S91: E | T91: D | U91: E | V91: E | W91: C | X91: B | Y91: B | Z91: C | AA91: C | AB91: A | AC91: B | AD91: E | AE91: A | AF91: D | AG91: C | AH91: B | AI91: C | AJ91: B | AK91: A | AL91: E | AM91: D | AN91: E | AO91: A | AP91: D | AQ91: B | AR91: C | AS91: D | AT91: A | AU91: B | AV91: A | AW91: D | AX91: C | AY91: A | AZ91: E
C92: 22412 | D92: =[1]Data!C187 -> 29 | E92: =LOOKUP(D92,[1]Inputs!$B$55:$B$84,[1]Inputs!$A$55:$A$84) -> 28 | F92: =SUM([1]Data!AY187+[1]Data!BA187+[1]Data!BB187+[1]Data!BE187+[1]Data!BH187+[1]Data!BP187+[1]Data!BS187+[1]Data!BT187+[1]Data!CD187)/[1]Inputs!$A$12 -> 0.5555555556 | G92: =SUM([1]Data!AZ187+[1]Data!BB187+[1]Data!BC187+[1]Data!BF187+[1]Data!BI187+[1]Data!BQ187+[1]Data!BT187+[1]Data!BU187+[1]Data!CE187)/[1]Inputs!$A$12 -> 0.6666666667 | H92: =SUM([1]Data!BA187+[1]Data!BC187+[1]Data!BD187+[1]Data!BG187+[1]Data!BJ187+[1]Data!BR187+[1]Data!BU187+[1]Data!BV187+[1]Data!CF187)/[1]Inputs!$A$12 -> 0.7777777778 | I92: =SUM([1]Data!BB187+[1]Data!BD187+[1]Data!BE187+[1]Data!BH187+[1]Data!BK187+[1]Data!BS187+[1]Data!BV187+[1]Data!BW187+[1]Data!CG187)/[1]Inputs!$A$12 -> 0.4444444444 | J92: =SUM([1]Data!BC187+[1]Data!BE187+[1]Data!BF187+[1]Data!BI187+[1]Data!BL187+[1]Data!BT187+[1]Data!BW187+[1]Data!BX187+[1]Data!CH187)/[1]Inputs!$A$12 -> 0.6666666667 | K92: =SUM([1]Data!BD187+[1]Data!BF187+[1]Data!BG187+[1]Data!BJ187+[1]Data!BM187+[1]Data!BU187+[1]Data!BX187+[1]Data!BY187+[1]Data!CI187)/[1]Inputs!$A$12 -> 0.7777777778 | M92: E | N92: D | O92: B | P92: D | Q92: A | R92: A | S92: E | T92: D | U92: D | V92: E | W92: C | X92: C | Y92: C | Z92: A | AA92: D | AB92: D | AC92: B | AD92: D | AE92: B | AF92: D | AG92: D | AH92: A | AI92: C | AJ92: D | AK92: A | AL92: B | AM92: B | AN92: B | AO92: B | AP92: D | AQ92: E | AR92: C | AS92: C | AT92: A | AU92: B | AV92: B | AW92: C | AX92: E | AY92: C | AZ92: C
C93: 22942 | D93: =[1]Data!C102 -> 14 | E93: =LOOKUP(D93,[1]Inputs!$B$55:$B$84,[1]Inputs!$A$55:$A$84) -> 17 | F93: =SUM([1]Data!AY102+[1]Data!BA102+[1]Data!BB102+[1]Data!BE102+[1]Data!BH102+[1]Data!BP102+[1]Data!BS102+[1]Data!BT102+[1]Data!CD102)/[1]Inputs!$A$12 -> 0.5555555556 | G93: =SUM([1]Data!AZ102+[1]Data!BB102+[1]Data!BC102+[1]Data!BF102+[1]Data!BI102+[1]Data!BQ102+[1]Data!BT102+[1]Data!BU102+[1]Data!CE102)/[1]Inputs!$A$12 -> 0.4444444444 | H93: =SUM([1]Data!BA102+[1]Data!BC102+[1]Data!BD102+[1]Data!BG102+[1]Data!BJ102+[1]Data!BR102+[1]Data!BU102+[1]Data!BV102+[1]Data!CF102)/[1]Inputs!$A$12 -> 0.4444444444 | I93: =SUM([1]Data!BB102+[1]Data!BD102+[1]Data!BE102+[1]Data!BH102+[1]Data!BK102+[1]Data!BS102+[1]Data!BV102+[1]Data!BW102+[1]Data!CG102)/[1]Inputs!$A$12 -> 0.5555555556 | J93: =SUM([1]Data!BC102+[1]Data!BE102+[1]Data!BF102+[1]Data!BI102+[1]Data!BL102+[1]Data!BT102+[1]Data!BW102+[1]Data!BX102+[1]Data!CH102)/[1]Inputs!$A$12 -> 0.3333333333 | K93: =SUM([1]Data!BD102+[1]Data!BF102+[1]Data!BG102+[1]Data!BJ102+[1]Data!BM102+[1]Data!BU102+[1]Data!BX102+[1]Data!BY102+[1]Data!CI102)/[1]Inputs!$A$12 -> 0.2222222222 | M93: E | N93: D | O93: C | P93: D | Q93: A | R93: E | S93: E | T93: D | U93: D | V93: E | W93: A | X93: C | Y93: C | Z93: D | AA93: E | AB93: D | AC93: B | AD93: D | AE93: B | AF93: D | AG93: B | AH93: C | AI93: C | AJ93: A | AK93: A | AL93: C | AM93: E | AN93: D | AO93: B | AP93: A | AQ93: D | AR93: E | AS93: D | AT93: D | AU93: A | AV93: A | AW93: C | AX93: A | AY93: D | AZ93: B
C94: 22954 | D94: =[1]Data!C228 -> 15 | E94: =LOOKUP(D94,[1]Inputs!$B$55:$B$84,[1]Inputs!$A$55:$A$84) -> 18 | F94: =SUM([1]Data!AY228+[1]Data!BA228+[1]Data!BB228+[1]Data!BE228+[1]Data!BH228+[1]Data!BP228+[1]Data!BS228+[1]Data!BT228+[1]Data!CD228)/[1]Inputs!$A$12 -> 0.2222222222 | G94: =SUM([1]Data!AZ228+[1]Data!BB228+[1]Data!BC228+[1]Data!BF228+[1]Data!BI228+[1]Data!BQ228+[1]Data!BT228+[1]Data!BU228+[1]Data!CE228)/[1]Inputs!$A$12 -> 0.4444444444 | H94: =SUM([1]Data!BA228+[1]Data!BC228+[1]Data!BD228+[1]Data!BG228+[1]Data!BJ228+[1]Data!BR228+[1]Data!BU228+[1]Data!BV228+[1]Data!CF228)/[1]Inputs!$A$12 -> 0.4444444444 | I94: =SUM([1]Data!BB228+[1]Data!BD228+[1]Data!BE228+[1]Data!BH228+[1]Data!BK228+[1]Data!BS228+[1]Data!BV228+[1]Data!BW228+[1]Data!CG228)/[1]Inputs!$A$12 -> 0.4444444444 | J94: =SUM([1]Data!BC228+[1]Data!BE228+[1]Data!BF228+[1]Data!BI228+[1]Data!BL228+[1]Data!BT228+[1]Data!BW228+[1]Data!BX228+[1]Data!CH228)/[1]Inputs!$A$12 -> 0.3333333333 | K94: =SUM([1]Data!BD228+[1]Data!BF228+[1]Data!BG228+[1]Data!BJ228+[1]Data!BM228+[1]Data!BU228+[1]Data!BX228+[1]Data!BY228+[1]Data!CI228)/[1]Inputs!$A$12 -> 0.4444444444 | M94: D | N94: D | O94: C | P94: D | Q94: B | R94: A | S94: E | T94: D | U94: D | V94: E | W94: C | X94: C | Y94: B | Z94: D | AA94: D | AB94: D | AC94: B | AD94: A | AE94: A | AF94: D | AG94: D | AH94: D | AI94: B | AJ94: B | AK94: B | AL94: B | AM94: B | AN94: C | AO94: E | AP94: E | AQ94: A | AR94: A | AS94: C | AT94: C | AU94: C | AV94: B | AW94: C | AX94: E | AY94: C | AZ94: A
C95: 22955 | D95: =[1]Data!C66 -> 23 | E95: =LOOKUP(D95,[1]Inputs!$B$55:$B$84,[1]Inputs!$A$55:$A$84) -> 24 | F95: =SUM([1]Data!AY66+[1]Data!BA66+[1]Data!BB66+[1]Data!BE66+[1]Data!BH66+[1]Data!BP66+[1]Data!BS66+[1]Data!BT66+[1]Data!CD66)/[1]Inputs!$A$12 -> 0.4444444444 | G95: =SUM([1]Data!AZ66+[1]Data!BB66+[1]Data!BC66+[1]Data!BF66+[1]Data!BI66+[1]Data!BQ66+[1]Data!BT66+[1]Data!BU66+[1]Data!CE66)/[1]Inputs!$A$12 -> 0.5555555556 | H95: =SUM([1]Data!BA66+[1]Data!BC66+[1]Data!BD66+[1]Data!BG66+[1]Data!BJ66+[1]Data!BR66+[1]Data!BU66+[1]Data!BV66+[1]Data!CF66)/[1]Inputs!$A$12 -> 0.6666666667 | I95: =SUM([1]Data!BB66+[1]Data!BD66+[1]Data!BE66+[1]Data!BH66+[1]Data!BK66+[1]Data!BS66+[1]Data!BV66+[1]Data!BW66+[1]Data!CG66)/[1]Inputs!$A$12 -> 0.5555555556 | J95: =SUM([1]Data!BC66+[1]Data!BE66+[1]Data!BF66+[1]Data!BI66+[1]Data!BL66+[1]Data!BT66+[1]Data!BW66+[1]Data!BX66+[1]Data!CH66)/[1]Inputs!$A$12 -> 0.7777777778 | K95: =SUM([1]Data!BD66+[1]Data!BF66+[1]Data!BG66+[1]Data!BJ66+[1]Data!BM66+[1]Data!BU66+[1]Data!BX66+[1]Data!BY66+[1]Data!CI66)/[1]Inputs!$A$12 -> 0.7777777778 | M95: E | N95: D | O95: B | P95: C | Q95: A | R95: A | S95: E | T95: D | U95: D | V95: E | W95: C | X95: C | Y95: B | Z95: E | AA95: E | AB95: D | AC95: D | AD95: E | AE95: B | AF95: D | AG95: E | AH95: A | AI95: A | AJ95: C | AK95: A | AL95: C | AM95: B | AN95: E | AO95: D | AP95: D | AQ95: C | AR95: C | AS95: C | AT95: B | AU95: B | AV95: A | AW95: B | AX95: D | AY95: D | AZ95: C
C96: 22961 | D96: =[1]Data!C254 -> 10 | E96: =LOOKUP(D96,[1]Inputs!$B$55:$B$84,[1]Inputs!$A$55:$A$84) -> 15 | F96: =SUM([1]Data!AY254+[1]Data!BA254+[1]Data!BB254+[1]Data!BE254+[1]Data!BH254+[1]Data!BP254+[1]Data!BS254+[1]Data!BT254+[1]Data!CD254)/[1]Inputs!$A$12 -> 0.1111111111 | G96: =SUM([1]Data!AZ254+[1]Data!BB254+[1]Data!BC254+[1]Data!BF254+[1]Data!BI254+[1]Data!BQ254+[1]Data!BT254+[1]Data!BU254+[1]Data!CE254)/[1]Inputs!$A$12 -> 0.2222222222 | H96: =SUM([1]Data!BA254+[1]Data!BC254+[1]Data!BD254+[1]Data!BG254+[1]Data!BJ254+[1]Data!BR254+[1]Data!BU254+[1]Data!BV254+[1]Data!CF254)/[1]Inputs!$A$12 -> 0.2222222222 | I96: =SUM([1]Data!BB254+[1]Data!BD254+[1]Data!BE254+[1]Data!BH254+[1]Data!BK254+[1]Data!BS254+[1]Data!BV254+[1]Data!BW254+[1]Data!CG254)/[1]Inputs!$A$12 -> 0.1111111111 | J96: =SUM([1]Data!BC254+[1]Data!BE254+[1]Data!BF254+[1]Data!BI254+[1]Data!BL254+[1]Data!BT254+[1]Data!BW254+[1]Data!BX254+[1]Data!CH254)/[1]Inputs!$A$12 -> 0.1111111111 | K96: =SUM([1]Data!BD254+[1]Data!BF254+[1]Data!BG254+[1]Data!BJ254+[1]Data!BM254+[1]Data!BU254+[1]Data!BX254+[1]Data!BY254+[1]Data!CI254)/[1]Inputs!$A$12 -> 0.4444444444 | M96: A | N96: B | O96: B | P96: B | Q96: A | R96: C | S96: D | T96: D | U96: E | V96: B | W96: A | X96: B | Y96: C | Z96: C | AA96: C | AB96: B | AC96: D | AD96: A | AE96: A | AF96: D | AG96: C | AH96: E | AI96: E | AJ96: A | AK96: D | AL96: C | AM96: B | AN96: E | AO96: E | AP96: D | AQ96: C | AR96: E | AS96: B | AT96: C | AU96: C | AV96: C | AW96: A | AX96: C | AY96: E | AZ96: B
C97: 22962 | D97: =[1]Data!C219 -> 14 | E97: =LOOKUP(D97,[1]Inputs!$B$55:$B$84,[1]Inputs!$A$55:$A$84) -> 17 | F97: =SUM([1]Data!AY219+[1]Data!BA219+[1]Data!BB219+[1]Data!BE219+[1]Data!BH219+[1]Data!BP219+[1]Data!BS219+[1]Data!BT219+[1]Data!CD219)/[1]Inputs!$A$12 -> 0.3333333333 | G97: =SUM([1]Data!AZ219+[1]Data!BB219+[1]Data!BC219+[1]Data!BF219+[1]Data!BI219+[1]Data!BQ219+[1]Data!BT219+[1]Data!BU219+[1]Data!CE219)/[1]Inputs!$A$12 -> 0.2222222222 | H97: =SUM([1]Data!BA219+[1]Data!BC219+[1]Data!BD219+[1]Data!BG219+[1]Data!BJ219+[1]Data!BR219+[1]Data!BU219+[1]Data!BV219+[1]Data!CF219)/[1]Inputs!$A$12 -> 0.3333333333 | I97: =SUM([1]Data!BB219+[1]Data!BD219+[1]Data!BE219+[1]Data!BH219+[1]Data!BK219+[1]Data!BS219+[1]Data!BV219+[1]Data!BW219+[1]Data!CG219)/[1]Inputs!$A$12 -> 0.3333333333 | J97: =SUM([1]Data!BC219+[1]Data!BE219+[1]Data!BF219+[1]Data!BI219+[1]Data!BL219+[1]Data!BT219+[1]Data!BW219+[1]Data!BX219+[1]Data!CH219)/[1]Inputs!$A$12 -> 0.3333333333 | K97: =SUM([1]Data!BD219+[1]Data!BF219+[1]Data!BG219+[1]Data!BJ219+[1]Data!BM219+[1]Data!BU219+[1]Data!BX219+[1]Data!BY219+[1]Data!CI219)/[1]Inputs!$A$12 -> 0.2222222222 | M97: E | N97: D | O97: C | P97: C | Q97: D | R97: C | S97: E | T97: D | U97: E | V97: E | W97: C | X97: C | Y97: B | Z97: A | AA97: D | AB97: C | AC97: A | AD97: D | AE97: B | AF97: D | AG97: D | AH97: A | AI97: A | AJ97: D | AK97: C | AL97: B | AM97: D | AN97: B | AO97: C | AP97: A | AQ97: C | AR97: E | AS97: A | AT97: C | AU97: C | AV97: A | AW97: C | AX97: D | AY97: C | AZ97: B
C98: 22966 | D98: =[1]Data!C241 -> 17 | E98: =LOOKUP(D98,[1]Inputs!$B$55:$B$84,[1]Inputs!$A$55:$A$84) -> 19 | F98: =SUM([1]Data!AY241+[1]Data!BA241+[1]Data!BB241+[1]Data!BE241+[1]Data!BH241+[1]Data!BP241+[1]Data!BS241+[1]Data!BT241+[1]Data!CD241)/[1]Inputs!$A$12 -> 0.4444444444 | G98: =SUM([1]Data!AZ241+[1]Data!BB241+[1]Data!BC241+[1]Data!BF241+[1]Data!BI241+[1]Data!BQ241+[1]Data!BT241+[1]Data!BU241+[1]Data!CE241)/[1]Inputs!$A$12 -> 0.5555555556 | H98: =SUM([1]Data!BA241+[1]Data!BC241+[1]Data!BD241+[1]Data!BG241+[1]Data!BJ241+[1]Data!BR241+[1]Data!BU241+[1]Data!BV241+[1]Data!CF241)/[1]Inputs!$A$12 -> 0.2222222222 | I98: =SUM([1]Data!BB241+[1]Data!BD241+[1]Data!BE241+[1]Data!BH241+[1]Data!BK241+[1]Data!BS241+[1]Data!BV241+[1]Data!BW241+[1]Data!CG241)/[1]Inputs!$A$12 -> 0.2222222222 | J98: =SUM([1]Data!BC241+[1]Data!BE241+[1]Data!BF241+[1]Data!BI241+[1]Data!BL241+[1]Data!BT241+[1]Data!BW241+[1]Data!BX241+[1]Data!CH241)/[1]Inputs!$A$12 -> 0.3333333333 | K98: =SUM([1]Data!BD241+[1]Data!BF241+[1]Data!BG241+[1]Data!BJ241+[1]Data!BM241+[1]Data!BU241+[1]Data!BX241+[1]Data!BY241+[1]Data!CI241)/[1]Inputs!$A$12 -> 0.3333333333 | M98: E | N98: D | O98: B | P98: D | Q98: B | R98: A | S98: E | T98: D | U98: D | V98: E | W98: B | X98: B | Y98: C | Z98: B | AA98: E | AB98: B | AC98: A | AD98: A | AE98: A | AF98: D | AG98: D | AH98: E | AI98: D | AJ98: C | AK98: A | AL98: B | AM98: B | AN98: E | AO98: D | AP98: A | AQ98: E | AR98: B | AS98: D | AT98: E | AU98: C | AV98: B | AW98: B | AX98: B | AY98: B | AZ98: B
C99: 22969 | D99: =[1]Data!C105 -> 9 | E99: =LOOKUP(D99,[1]Inputs!$B$55:$B$84,[1]Inputs!$A$55:$A$84) -> 15 | F99: =SUM([1]Data!AY105+[1]Data!BA105+[1]Data!BB105+[1]Data!BE105+[1]Data!BH105+[1]Data!BP105+[1]Data!BS105+[1]Data!BT105+[1]Data!CD105)/[1]Inputs!$A$12 -> 0.2222222222 | G99: =SUM([1]Data!AZ105+[1]Data!BB105+[1]Data!BC105+[1]Data!BF105+[1]Data!BI105+[1]Data!BQ105+[1]Data!BT105+[1]Data!BU105+[1]Data!CE105)/[1]Inputs!$A$12 -> 0.4444444444 | H99: =SUM([1]Data!BA105+[1]Data!BC105+[1]Data!BD105+[1]Data!BG105+[1]Data!BJ105+[1]Data!BR105+[1]Data!BU105+[1]Data!BV105+[1]Data!CF105)/[1]Inputs!$A$12 -> 0 | I99: =SUM([1]Data!BB105+[1]Data!BD105+[1]Data!BE105+[1]Data!BH105+[1]Data!BK105+[1]Data!BS105+[1]Data!BV105+[1]Data!BW105+[1]Data!CG105)/[1]Inputs!$A$12 -> 0.1111111111 | J99: =SUM([1]Data!BC105+[1]Data!BE105+[1]Data!BF105+[1]Data!BI105+[1]Data!BL105+[1]Data!BT105+[1]Data!BW105+[1]Data!BX105+[1]Data!CH105)/[1]Inputs!$A$12 -> 0.2222222222 | K99: =SUM([1]Data!BD105+[1]Data!BF105+[1]Data!BG105+[1]Data!BJ105+[1]Data!BM105+[1]Data!BU105+[1]Data!BX105+[1]Data!BY105+[1]Data!CI105)/[1]Inputs!$A$12 -> 0.1111111111 | M99: E | N99: D | O99: C | P99: D | Q99: C | R99: A | S99: B | T99: D | U99: E | V99: D | W99: B | X99: D | Y99: B | Z99: B | AA99: A | AB99: B | AC99: A | AD99: E | AE99: A | AF99: D | AG99: B | AH99: E | AI99: A | AJ99: B | AK99: D | AL99: A | AM99: B | AN99: B | AO99: B | AP99: D | AQ99: C | AR99: D | AS99: D | AT99: B | AU99: B | AV99: C | AW99: C | AX99: C | AY99: D | AZ99: D
C100: 22972 | D100: =[1]Data!C172 -> 12 | E100: =LOOKUP(D100,[1]Inputs!$B$55:$B$84,[1]Inputs!$A$55:$A$84) -> 16 | F100: =SUM([1]Data!AY172+[1]Data!BA172+[1]Data!BB172+[1]Data!BE172+[1]Data!BH172+[1]Data!BP172+[1]Data!BS172+[1]Data!BT172+[1]Data!CD172)/[1]Inputs!$A$12 -> 0.4444444444 | G100: =SUM([1]Data!AZ172+[1]Data!BB172+[1]Data!BC172+[1]Data!BF172+[1]Data!BI172+[1]Data!BQ172+[1]Data!BT172+[1]Data!BU172+[1]Data!CE172)/[1]Inputs!$A$12 -> 0.5555555556 | H100: =SUM([1]Data!BA172+[1]Data!BC172+[1]Data!BD172+[1]Data!BG172+[1]Data!BJ172+[1]Data!BR172+[1]Data!BU172+[1]Data!BV172+[1]Data!CF172)/[1]Inputs!$A$12 -> 0.3333333333 | I100: =SUM([1]Data!BB172+[1]Data!BD172+[1]Data!BE172+[1]Data!BH172+[1]Data!BK172+[1]Data!BS172+[1]Data!BV172+[1]Data!BW172+[1]Data!CG172)/[1]Inputs!$A$12 -> 0.3333333333 | J100: =SUM([1]Data!BC172+[1]Data!BE172+[1]Data!BF172+[1]Data!BI172+[1]Data!BL172+[1]Data!BT172+[1]Data!BW172+[1]Data!BX172+[1]Data!CH172)/[1]Inputs!$A$12 -> 0.3333333333 | K100: =SUM([1]Data!BD172+[1]Data!BF172+[1]Data!BG172+[1]Data!BJ172+[1]Data!BM172+[1]Data!BU172+[1]Data!BX172+[1]Data!BY172+[1]Data!CI172)/[1]Inputs!$A$12 -> 0.5555555556 | M100: B | N100: B | O100: B | P100: D | Q100: C | R100: A | S100: E | T100: D | U100: E | V100: B | W100: A | X100: E | Y100: B | Z100: D | AA100: C | AB100: B | AC100: A | AD100: A | AE100: A | AF100: D | AG100: A | AH100: A | AI100: C | AJ100: D | AK100: C | AL100: B | AM100: C | AN100: C | AO100: C | AP100: D | AQ100: C | AR100: B | AS100: C | AT100: D | AU100: B | AV100: C | AW100: C | AX100: B | AY100: D | AZ100: D
C101: 22976 | D101: =[1]Data!C196 -> 29 | E101: =LOOKUP(D101,[1]Inputs!$B$55:$B$84,[1]Inputs!$A$55:$A$84) -> 28 | F101: =SUM([1]Data!AY196+[1]Data!BA196+[1]Data!BB196+[1]Data!BE196+[1]Data!BH196+[1]Data!BP196+[1]Data!BS196+[1]Data!BT196+[1]Data!CD196)/[1]Inputs!$A$12 -> 0.7777777778 | G101: =SUM([1]Data!AZ196+[1]Data!BB196+[1]Data!BC196+[1]Data!BF196+[1]Data!BI196+[1]Data!BQ196+[1]Data!BT196+[1]Data!BU196+[1]Data!CE196)/[1]Inputs!$A$12 -> 0.8888888889 | H101: =SUM([1]Data!BA196+[1]Data!BC196+[1]Data!BD196+[1]Data!BG196+[1]Data!BJ196+[1]Data!BR196+[1]Data!BU196+[1]Data!BV196+[1]Data!CF196)/[1]Inputs!$A$12 -> 0.6666666667 | I101: =SUM([1]Data!BB196+[1]Data!BD196+[1]Data!BE196+[1]Data!BH196+[1]Data!BK196+[1]Data!BS196+[1]Data!BV196+[1]Data!BW196+[1]Data!CG196)/[1]Inputs!$A$12 -> 0.6666666667 | J101: =SUM([1]Data!BC196+[1]Data!BE196+[1]Data!BF196+[1]Data!BI196+[1]Data!BL196+[1]Data!BT196+[1]Data!BW196+[1]Data!BX196+[1]Data!CH196)/[1]Inputs!$A$12 -> 0.5555555556 | K101: =SUM([1]Data!BD196+[1]Data!BF196+[1]Data!BG196+[1]Data!BJ196+[1]Data!BM196+[1]Data!BU196+[1]Data!BX196+[1]Data!BY196+[1]Data!CI196)/[1]Inputs!$A$12 -> 0.5555555556 | M101: E | N101: B | O101: B | P101: D | Q101: A | R101: E | S101: E | T101: D | U101: D | V101: E | W101: E | X101: C | Y101: C | Z101: A | AA101: D | AB101: D | AC101: E | AD101: D | AE101: B | AF101: D | AG101: D | AH101: A | AI101: B | AJ101: E | AK101: A | AL101: C | AM101: B | AN101: B | AO101: D | AP101: D | AQ101: C | AR101: A | AS101: C | AT101: A | AU101: B | AV101: C | AW101: D | AX101: A | AY101: A | AZ101: C
C102: 22977 | D102: =[1]Data!C64 -> 29 | E102: =LOOKUP(D102,[1]Inputs!$B$55:$B$84,[1]Inputs!$A$55:$A$84) -> 28 | F102: =SUM([1]Data!AY64+[1]Data!BA64+[1]Data!BB64+[1]Data!BE64+[1]Data!BH64+[1]Data!BP64+[1]Data!BS64+[1]Data!BT64+[1]Data!CD64)/[1]Inputs!$A$12 -> 0.7777777778 | G102: =SUM([1]Data!AZ64+[1]Data!BB64+[1]Data!BC64+[1]Data!BF64+[1]Data!BI64+[1]Data!BQ64+[1]Data!BT64+[1]Data!BU64+[1]Data!CE64)/[1]Inputs!$A$12 -> 0.6666666667 | H102: =SUM([1]Data!BA64+[1]Data!BC64+[1]Data!BD64+[1]Data!BG64+[1]Data!BJ64+[1]Data!BR64+[1]Data!BU64+[1]Data!BV64+[1]Data!CF64)/[1]Inputs!$A$12 -> 0.7777777778 | I102: =SUM([1]Data!BB64+[1]Data!BD64+[1]Data!BE64+[1]Data!BH64+[1]Data!BK64+[1]Data!BS64+[1]Data!BV64+[1]Data!BW64+[1]Data!CG64)/[1]Inputs!$A$12 -> 0.6666666667 | J102: =SUM([1]Data!BC64+[1]Data!BE64+[1]Data!BF64+[1]Data!BI64+[1]Data!BL64+[1]Data!BT64+[1]Data!BW64+[1]Data!BX64+[1]Data!CH64)/[1]Inputs!$A$12 -> 0.8888888889 | K102: =SUM([1]Data!BD64+[1]Data!BF64+[1]Data!BG64+[1]Data!BJ64+[1]Data!BM64+[1]Data!BU64+[1]Data!BX64+[1]Data!BY64+[1]Data!CI64)/[1]Inputs!$A$12 -> 0.5555555556 | M102: D | N102: B | O102: B | P102: D | Q102: A | R102: A | S102: E | T102: D | U102: D | V102: E | W102: C | X102: C | Y102: C | Z102: A | AA102: E | AB102: D | AC102: D | AD102: D | AE102: B | AF102: D | AG102: D | AH102: A | AI102: B | AJ102: E | AK102: A | AL102: C | AM102: B | AN102: B | AO102: D | AP102: D | AQ102: B | AR102: B | AS102: B | AT102: A | AU102: B | AV102: D | AW102: C | AX102: D | AY102: E | AZ102: C
C103: 22978 | D103: =[1]Data!C214 -> 13 | E103: =LOOKUP(D103,[1]Inputs!$B$55:$B$84,[1]Inputs!$A$55:$A$84) -> 17 | F103: =SUM([1]Data!AY214+[1]Data!BA214+[1]Data!BB214+[1]Data!BE214+[1]Data!BH214+[1]Data!BP214+[1]Data!BS214+[1]Data!BT214+[1]Data!CD214)/[1]Inputs!$A$12 -> 0.2222222222 | G103: =SUM([1]Data!AZ214+[1]Data!BB214+[1]Data!BC214+[1]Data!BF214+[1]Data!BI214+[1]Data!BQ214+[1]Data!BT214+[1]Data!BU214+[1]Data!CE214)/[1]Inputs!$A$12 -> 0.3333333333 | H103: =SUM([1]Data!BA214+[1]Data!BC214+[1]Data!BD214+[1]Data!BG214+[1]Data!BJ214+[1]Data!BR214+[1]Data!BU214+[1]Data!BV214+[1]Data!CF214)/[1]Inputs!$A$12 -> 0.2222222222 | I103: =SUM([1]Data!BB214+[1]Data!BD214+[1]Data!BE214+[1]Data!BH214+[1]Data!BK214+[1]Data!BS214+[1]Data!BV214+[1]Data!BW214+[1]Data!CG214)/[1]Inputs!$A$12 -> 0.4444444444 | J103: =SUM([1]Data!BC214+[1]Data!BE214+[1]Data!BF214+[1]Data!BI214+[1]Data!BL214+[1]Data!BT214+[1]Data!BW214+[1]Data!BX214+[1]Data!CH214)/[1]Inputs!$A$12 -> 0.4444444444 | K103: =SUM([1]Data!BD214+[1]Data!BF214+[1]Data!BG214+[1]Data!BJ214+[1]Data!BM214+[1]Data!BU214+[1]Data!BX214+[1]Data!BY214+[1]Data!CI214)/[1]Inputs!$A$12 -> 0.4444444444 | M103: E | N103: B | O103: B | P103: D | Q103: D | R103: E | S103: D | T103: D | U103: D | V103: E | W103: C | X103: B | Y103: B | Z103: B | AA103: B | AB103: D | AC103: E | AD103: A | AE103: A | AF103: D | AG103: E | AH103: C | AI103: C | AJ103: C | AK103: A | AL103: B | AM103: D | AN103: B | AO103: C | AP103: A | AQ103: B | AR103: A | AS103: D | AT103: A | AU103: C | AV103: B | AW103: C | AX103: D | AY103: C | AZ103: C
C104: 22982 | D104: =[1]Data!C173 -> 15 | E104: =LOOKUP(D104,[1]Inputs!$B$55:$B$84,[1]Inputs!$A$55:$A$84) -> 18 | F104: =SUM([1]Data!AY173+[1]Data!BA173+[1]Data!BB173+[1]Data!BE173+[1]Data!BH173+[1]Data!BP173+[1]Data!BS173+[1]Data!BT173+[1]Data!CD173)/[1]Inputs!$A$12 -> 0.2222222222 | G104: =SUM([1]Data!AZ173+[1]Data!BB173+[1]Data!BC173+[1]Data!BF173+[1]Data!BI173+[1]Data!BQ173+[1]Data!BT173+[1]Data!BU173+[1]Data!CE173)/[1]Inputs!$A$12 -> 0.5555555556 | H104: =SUM([1]Data!BA173+[1]Data!BC173+[1]Data!BD173+[1]Data!BG173+[1]Data!BJ173+[1]Data!BR173+[1]Data!BU173+[1]Data!BV173+[1]Data!CF173)/[1]Inputs!$A$12 -> 0.4444444444 | I104: =SUM([1]Data!BB173+[1]Data!BD173+[1]Data!BE173+[1]Data!BH173+[1]Data!BK173+[1]Data!BS173+[1]Data!BV173+[1]Data!BW173+[1]Data!CG173)/[1]Inputs!$A$12 -> 0.5555555556 | J104: =SUM([1]Data!BC173+[1]Data!BE173+[1]Data!BF173+[1]Data!BI173+[1]Data!BL173+[1]Data!BT173+[1]Data!BW173+[1]Data!BX173+[1]Data!CH173)/[1]Inputs!$A$12 -> 0.3333333333 | K104: =SUM([1]Data!BD173+[1]Data!BF173+[1]Data!BG173+[1]Data!BJ173+[1]Data!BM173+[1]Data!BU173+[1]Data!BX173+[1]Data!BY173+[1]Data!CI173)/[1]Inputs!$A$12 -> 0.3333333333 | M104: B | N104: C | O104: B | P104: C | Q104: A | R104: E | S104: C | T104: D | U104: D | V104: E | W104: C | X104: C | Y104: B | Z104: A | AA104: D | AB104: B | AC104: A | AD104: E | AE104: A | AF104: D | AG104: E | AH104: D | AI104: B | AJ104: D | AK104: B | AL104: B | AM104: C | AN104: B | AO104: B | AP104: A | AQ104: B | AR104: D | AS104: A | AT104: A | AU104: B | AV104: C | AW104: B | AX104: E | AY104: C | AZ104: B
C105: 22984 | D105: =[1]Data!C135 -> 17 | E105: =LOOKUP(D105,[1]Inputs!$B$55:$B$84,[1]Inputs!$A$55:$A$84) -> 19 | F105: =SUM([1]Data!AY135+[1]Data!BA135+[1]Data!BB135+[1]Data!BE135+[1]Data!BH135+[1]Data!BP135+[1]Data!BS135+[1]Data!BT135+[1]Data!CD135)/[1]Inputs!$A$12 -> 0.5555555556 | G105: =SUM([1]Data!AZ135+[1]Data!BB135+[1]Data!BC135+[1]Data!BF135+[1]Data!BI135+[1]Data!BQ135+[1]Data!BT135+[1]Data!BU135+[1]Data!CE135)/[1]Inputs!$A$12 -> 0.4444444444 | H105: =SUM([1]Data!BA135+[1]Data!BC135+[1]Data!BD135+[1]Data!BG135+[1]Data!BJ135+[1]Data!BR135+[1]Data!BU135+[1]Data!BV135+[1]Data!CF135)/[1]Inputs!$A$12 -> 0.3333333333 | I105: =SUM([1]Data!BB135+[1]Data!BD135+[1]Data!BE135+[1]Data!BH135+[1]Data!BK135+[1]Data!BS135+[1]Data!BV135+[1]Data!BW135+[1]Data!CG135)/[1]Inputs!$A$12 -> 0.5555555556 | J105: =SUM([1]Data!BC135+[1]Data!BE135+[1]Data!BF135+[1]Data!BI135+[1]Data!BL135+[1]Data!BT135+[1]Data!BW135+[1]Data!BX135+[1]Data!CH135)/[1]Inputs!$A$12 -> 0.4444444444 | K105: =SUM([1]Data!BD135+[1]Data!BF135+[1]Data!BG135+[1]Data!BJ135+[1]Data!BM135+[1]Data!BU135+[1]Data!BX135+[1]Data!BY135+[1]Data!CI135)/[1]Inputs!$A$12 -> 0.4444444444 | M105: E | N105: D | O105: B | P105: B | Q105: A | R105: E | S105: E | T105: D | U105: D | V105: E | W105: C | X105: D | Y105: C | Z105: D | AA105: C | AB105: D | AC105: B | AD105: D | AE105: C | AF105: D | AG105: D | AH105: A | AI105: E | AJ105: D | AK105: B | AL105: B | AM105: E | AN105: D | AO105: D | AP105: A | AQ105: D | AR105: C | AS105: E | AT105: A | AU105: A | AV105: C | AW105: D | AX105: D | AY105: C | AZ105: D
C106: 22990 | D106: =[1]Data!C92 -> 23 | E106: =LOOKUP(D106,[1]Inputs!$B$55:$B$84,[1]Inputs!$A$55:$A$84) -> 24 | F106: =SUM([1]Data!AY92+[1]Data!BA92+[1]Data!BB92+[1]Data!BE92+[1]Data!BH92+[1]Data!BP92+[1]Data!BS92+[1]Data!BT92+[1]Data!CD92)/[1]Inputs!$A$12 -> 0.5555555556 | G106: =SUM([1]Data!AZ92+[1]Data!BB92+[1]Data!BC92+[1]Data!BF92+[1]Data!BI92+[1]Data!BQ92+[1]Data!BT92+[1]Data!BU92+[1]Data!CE92)/[1]Inputs!$A$12 -> 0.2222222222 | H106: =SUM([1]Data!BA92+[1]Data!BC92+[1]Data!BD92+[1]Data!BG92+[1]Data!BJ92+[1]Data!BR92+[1]Data!BU92+[1]Data!BV92+[1]Data!CF92)/[1]Inputs!$A$12 -> 0.3333333333 | I106: =SUM([1]Data!BB92+[1]Data!BD92+[1]Data!BE92+[1]Data!BH92+[1]Data!BK92+[1]Data!BS92+[1]Data!BV92+[1]Data!BW92+[1]Data!CG92)/[1]Inputs!$A$12 -> 0.2222222222 | J106: =SUM([1]Data!BC92+[1]Data!BE92+[1]Data!BF92+[1]Data!BI92+[1]Data!BL92+[1]Data!BT92+[1]Data!BW92+[1]Data!BX92+[1]Data!CH92)/[1]Inputs!$A$12 -> 0.3333333333 | K106: =SUM([1]Data!BD92+[1]Data!BF92+[1]Data!BG92+[1]Data!BJ92+[1]Data!BM92+[1]Data!BU92+[1]Data!BX92+[1]Data!BY92+[1]Data!CI92)/[1]Inputs!$A$12 -> 0.2222222222 | M106: E | N106: B | O106: B | P106: D | Q106: D | R106: A | S106: E | T106: D | U106: D | V106: E | W106: C | X106: C | Y106: C | Z106: A | AA106: B | AB106: A | AC106: A | AD106: E | AE106: B | AF106: D | AG106: D | AH106: A | AI106: C | AJ106: C | AK106: A | AL106: C | AM106: D | AN106: E | AO106: D | AP106: A | AQ106: E | AR106: B | AS106: B | AT106: B | AU106: C | AV106: A | AW106: C | AX106: D | AY106: E | AZ106: C
C107: 22993 | D107: =[1]Data!C56 -> 30 | E107: =LOOKUP(D107,[1]Inputs!$B$55:$B$84,[1]Inputs!$A$55:$A$84) -> 28 | F107: =SUM([1]Data!AY56+[1]Data!BA56+[1]Data!BB56+[1]Data!BE56+[1]Data!BH56+[1]Data!BP56+[1]Data!BS56+[1]Data!BT56+[1]Data!CD56)/[1]Inputs!$A$12 -> 0.5555555556 | G107: =SUM([1]Data!AZ56+[1]Data!BB56+[1]Data!BC56+[1]Data!BF56+[1]Data!BI56+[1]Data!BQ56+[1]Data!BT56+[1]Data!BU56+[1]Data!CE56)/[1]Inputs!$A$12 -> 0.4444444444 | H107: =SUM([1]Data!BA56+[1]Data!BC56+[1]Data!BD56+[1]Data!BG56+[1]Data!BJ56+[1]Data!BR56+[1]Data!BU56+[1]Data!BV56+[1]Data!CF56)/[1]Inputs!$A$12 -> 0.4444444444 | I107: =SUM([1]Data!BB56+[1]Data!BD56+[1]Data!BE56+[1]Data!BH56+[1]Data!BK56+[1]Data!BS56+[1]Data!BV56+[1]Data!BW56+[1]Data!CG56)/[1]Inputs!$A$12 -> 0.5555555556 | J107: =SUM([1]Data!BC56+[1]Data!BE56+[1]Data!BF56+[1]Data!BI56+[1]Data!BL56+[1]Data!BT56+[1]Data!BW56+[1]Data!BX56+[1]Data!CH56)/[1]Inputs!$A$12 -> 0.4444444444 | K107: =SUM([1]Data!BD56+[1]Data!BF56+[1]Data!BG56+[1]Data!BJ56+[1]Data!BM56+[1]Data!BU56+[1]Data!BX56+[1]Data!BY56+[1]Data!CI56)/[1]Inputs!$A$12 -> 0.4444444444 | M107: E | N107: B | O107: B | P107: D | Q107: A | R107: A | S107: E | T107: D | U107: D | V107: E | W107: C | X107: C | Y107: C | Z107: A | AA107: E | AB107: D | AC107: D | AD107: E | AE107: B | AF107: D | AG107: E | AH107: A | AI107: B | AJ107: E | AK107: A | AL107: D | AM107: B | AN107: B | AO107: D | AP107: D | AQ107: E | AR107: B | AS107: A | AT107: A | AU107: B | AV107: A | AW107: D | AX107: D | AY107: B | AZ107: C
C108: 22994 | D108: =[1]Data!C78 -> 29 | E108: =LOOKUP(D108,[1]Inputs!$B$55:$B$84,[1]Inputs!$A$55:$A$84) -> 28 | F108: =SUM([1]Data!AY78+[1]Data!BA78+[1]Data!BB78+[1]Data!BE78+[1]Data!BH78+[1]Data!BP78+[1]Data!BS78+[1]Data!BT78+[1]Data!CD78)/[1]Inputs!$A$12 -> 0.2222222222 | G108: =SUM([1]Data!AZ78+[1]Data!BB78+[1]Data!BC78+[1]Data!BF78+[1]Data!BI78+[1]Data!BQ78+[1]Data!BT78+[1]Data!BU78+[1]Data!CE78)/[1]Inputs!$A$12 -> 0.1111111111 | H108: =SUM([1]Data!BA78+[1]Data!BC78+[1]Data!BD78+[1]Data!BG78+[1]Data!BJ78+[1]Data!BR78+[1]Data!BU78+[1]Data!BV78+[1]Data!CF78)/[1]Inputs!$A$12 -> 0.4444444444 | I108: =SUM([1]Data!BB78+[1]Data!BD78+[1]Data!BE78+[1]Data!BH78+[1]Data!BK78+[1]Data!BS78+[1]Data!BV78+[1]Data!BW78+[1]Data!CG78)/[1]Inputs!$A$12 -> 0.2222222222 | J108: =SUM([1]Data!BC78+[1]Data!BE78+[1]Data!BF78+[1]Data!BI78+[1]Data!BL78+[1]Data!BT78+[1]Data!BW78+[1]Data!BX78+[1]Data!CH78)/[1]Inputs!$A$12 -> 0.1111111111 | K108: =SUM([1]Data!BD78+[1]Data!BF78+[1]Data!BG78+[1]Data!BJ78+[1]Data!BM78+[1]Data!BU78+[1]Data!BX78+[1]Data!BY78+[1]Data!CI78)/[1]Inputs!$A$12 -> 0.3333333333 | M108: E | N108: D | O108: B | P108: D | Q108: A | R108: A | S108: E | T108: D | U108: D | V108: B | W108: C | X108: C | Y108: C | Z108: A | AA108: E | AB108: D | AC108: D | AD108: D | AE108: B | AF108: D | AG108: D | AH108: A | AI108: B | AJ108: A | AK108: A | AL108: E | AM108: B | AN108: B | AO108: D | AP108: D | AQ108: E | AR108: B | AS108: A | AT108: D | AU108: C | AV108: C | AW108: C | AX108: C | AY108: C | AZ108: C
C109: 22998 | D109: =[1]Data!C175 -> 8 | E109: =LOOKUP(D109,[1]Inputs!$B$55:$B$84,[1]Inputs!$A$55:$A$84) -> 14 | F109: =SUM([1]Data!AY175+[1]Data!BA175+[1]Data!BB175+[1]Data!BE175+[1]Data!BH175+[1]Data!BP175+[1]Data!BS175+[1]Data!BT175+[1]Data!CD175)/[1]Inputs!$A$12 -> 0.2222222222 | G109: =SUM([1]Data!AZ175+[1]Data!BB175+[1]Data!BC175+[1]Data!BF175+[1]Data!BI175+[1]Data!BQ175+[1]Data!BT175+[1]Data!BU175+[1]Data!CE175)/[1]Inputs!$A$12 -> 0.3333333333 | H109: =SUM([1]Data!BA175+[1]Data!BC175+[1]Data!BD175+[1]Data!BG175+[1]Data!BJ175+[1]Data!BR175+[1]Data!BU175+[1]Data!BV175+[1]Data!CF175)/[1]Inputs!$A$12 -> 0.2222222222 | I109: =SUM([1]Data!BB175+[1]Data!BD175+[1]Data!BE175+[1]Data!BH175+[1]Data!BK175+[1]Data!BS175+[1]Data!BV175+[1]Data!BW175+[1]Data!CG175)/[1]Inputs!$A$12 -> 0.1111111111 | J109: =SUM([1]Data!BC175+[1]Data!BE175+[1]Data!BF175+[1]Data!BI175+[1]Data!BL175+[1]Data!BT175+[1]Data!BW175+[1]Data!BX175+[1]Data!CH175)/[1]Inputs!$A$12 -> 0.3333333333 | K109: =SUM([1]Data!BD175+[1]Data!BF175+[1]Data!BG175+[1]Data!BJ175+[1]Data!BM175+[1]Data!BU175+[1]Data!BX175+[1]Data!BY175+[1]Data!CI175)/[1]Inputs!$A$12 -> 0.2222222222 | M109: B | N109: D | O109: D | P109: E | Q109: E | R109: C | S109: E | T109: D | U109: D | V109: D | W109: D | X109: B | Y109: B | Z109: E | AA109: E | AB109: C | AC109: B | AD109: D | AE109: A | AF109: D | AG109: D | AH109: D | AI109: C | AJ109: A | AK109: E | AL109: D | AM109: B | AN109: C | AO109: A | AP109: A | AQ109: C | AR109: C | AS109: C | AT109: C | AU109: C | AV109: C | AW109: C | AX109: C | AY109: C | AZ109: C
C110: =[1]Data!E18 -> 23007 | D110: 19 | E110: =LOOKUP(D110,[1]Inputs!$B$55:$B$84,[1]Inputs!$A$55:$A$84) -> 20 | F110: =SUM([1]Data!AY18+[1]Data!BA18+[1]Data!BB18+[1]Data!BE18+[1]Data!BH18+[1]Data!BP18+[1]Data!BS18+[1]Data!BT18+[1]Data!CD18)/[1]Inputs!$A$12 -> 0.1111111111 | G110: =SUM([1]Data!BD18+[1]Data!BF18+[1]Data!BI18+[1]Data!BL18+[1]Data!BO18+[1]Data!BQ18+[1]Data!CA18+[1]Data!CH18)/[1]Inputs!$A$13 -> 0.25 | H110: =SUM([1]Data!AZ18+[1]Data!BJ18+[1]Data!BM18+[1]Data!BX18+[1]Data!CB18+[1]Data!CJ18+[1]Data!CK18)/[1]Inputs!$A$14 -> 0 | I110: =SUM([1]Data!BV18+[1]Data!CC18+[1]Data!CL18)/[1]Inputs!$A$15 -> 0 | J110: =SUM([1]Data!BC18+[1]Data!BG18+[1]Data!BJ18+[1]Data!BN18+[1]Data!BR18+[1]Data!BU18+[1]Data!BY18+[1]Data!BZ18+[1]Data!CE18+[1]Data!CG18)/[1]Inputs!$A$16 -> 0.4 | K110: =SUM([1]Data!BW18+[1]Data!CF18+[1]Data!CI18)/[1]Inputs!$A$17 -> 0.3333333333 | M110: E | N110: D | O110: B | P110: D | Q110: D | R110: A | S110: E | T110: D | U110: D | V110: B | W110: C | X110: D | Y110: C | Z110: E | AA110: C | AB110: D | AC110: A | AD110: E | AE110: A | AF110: D | AG110: E | AH110: A | AI110: B | AJ110: D | AK110: B | AL110: D | AM110: D | AN110: B | AO110: D | AP110: B | AQ110: D | AR110: D | AS110: D | AT110: A | AU110: C | AV110: B | AW110: C | AX110: D | AY110: B | AZ110: C
C111: 23029 | D111: =[1]Data!C231 -> 15 | E111: =LOOKUP(D111,[1]Inputs!$B$55:$B$84,[1]Inputs!$A$55:$A$84) -> 18 | F111: =SUM([1]Data!AY231+[1]Data!BA231+[1]Data!BB231+[1]Data!BE231+[1]Data!BH231+[1]Data!BP231+[1]Data!BS231+[1]Data!BT231+[1]Data!CD231)/[1]Inputs!$A$12 -> 0.3333333333 | G111: =SUM([1]Data!AZ231+[1]Data!BB231+[1]Data!BC231+[1]Data!BF231+[1]Data!BI231+[1]Data!BQ231+[1]Data!BT231+[1]Data!BU231+[1]Data!CE231)/[1]Inputs!$A$12 -> 0.4444444444 | H111: =SUM([1]Data!BA231+[1]Data!BC231+[1]Data!BD231+[1]Data!BG231+[1]Data!BJ231+[1]Data!BR231+[1]Data!BU231+[1]Data!BV231+[1]Data!CF231)/[1]Inputs!$A$12 -> 0.1111111111 | I111: =SUM([1]Data!BB231+[1]Data!BD231+[1]Data!BE231+[1]Data!BH231+[1]Data!BK231+[1]Data!BS231+[1]Data!BV231+[1]Data!BW231+[1]Data!CG231)/[1]Inputs!$A$12 -> 0.2222222222 | J111: =SUM([1]Data!BC231+[1]Data!BE231+[1]Data!BF231+[1]Data!BI231+[1]Data!BL231+[1]Data!BT231+[1]Data!BW231+[1]Data!BX231+[1]Data!CH231)/[1]Inputs!$A$12 -> 0.3333333333 | K111: =SUM([1]Data!BD231+[1]Data!BF231+[1]Data!BG231+[1]Data!BJ231+[1]Data!BM231+[1]Data!BU231+[1]Data!BX231+[1]Data!BY231+[1]Data!CI231)/[1]Inputs!$A$12 -> 0.1111111111 | M111: E | N111: D | O111: D | P111: C | Q111: C | R111: E | S111: A | T111: D | U111: E | V111: E | W111: C | X111: C | Y111: B | Z111: C | AA111: E | AB111: D | AC111: D | AD111: D | AE111: B | AF111: D | AG111: D | AH111: C | AI111: C | AJ111: C | AK111: A | AL111: D | AM111: D | AN111: E | AO111: A | AP111: C | AQ111: B | AR111: B | AS111: B | AT111: A | AU111: C | AV111: B | AW111: B | AX111: C | AY111: A | AZ111: C
C112: 23034 | D112: =[1]Data!C149 -> 14 | E112: =LOOKUP(D112,[1]Inputs!$B$55:$B$84,[1]Inputs!$A$55:$A$84) -> 17 | F112: =SUM([1]Data!AY149+[1]Data!BA149+[1]Data!BB149+[1]Data!BE149+[1]Data!BH149+[1]Data!BP149+[1]Data!BS149+[1]Data!BT149+[1]Data!CD149)/[1]Inputs!$A$12 -> 0.5555555556 | G112: =SUM([1]Data!AZ149+[1]Data!BB149+[1]Data!BC149+[1]Data!BF149+[1]Data!BI149+[1]Data!BQ149+[1]Data!BT149+[1]Data!BU149+[1]Data!CE149)/[1]Inputs!$A$12 -> 0.2222222222 | H112: =SUM([1]Data!BA149+[1]Data!BC149+[1]Data!BD149+[1]Data!BG149+[1]Data!BJ149+[1]Data!BR149+[1]Data!BU149+[1]Data!BV149+[1]Data!CF149)/[1]Inputs!$A$12 -> 0.2222222222 | I112: =SUM([1]Data!BB149+[1]Data!BD149+[1]Data!BE149+[1]Data!BH149+[1]Data!BK149+[1]Data!BS149+[1]Data!BV149+[1]Data!BW149+[1]Data!CG149)/[1]Inputs!$A$12 -> 0.3333333333 | J112: =SUM([1]Data!BC149+[1]Data!BE149+[1]Data!BF149+[1]Data!BI149+[1]Data!BL149+[1]Data!BT149+[1]Data!BW149+[1]Data!BX149+[1]Data!CH149)/[1]Inputs!$A$12 -> 0.1111111111 | K112: =SUM([1]Data!BD149+[1]Data!BF149+[1]Data!BG149+[1]Data!BJ149+[1]Data!BM149+[1]Data!BU149+[1]Data!BX149+[1]Data!BY149+[1]Data!CI149)/[1]Inputs!$A$12 -> 0.3333333333 | M112: C | N112: C | O112: B | P112: C | Q112: B | R112: A | S112: A | T112: D | U112: D | V112: D | W112: C | X112: E | Y112: C | Z112: A | AA112: C | AB112: B | AC112: D | AD112: E | AE112: C | AF112: D | AG112: D | AH112: D | AI112: C | AJ112: D | AK112: A | AL112: B | AM112: E | AN112: C | AO112: A | AP112: E | AQ112: A | AR112: C | AS112: D | AT112: B | AU112: C | AV112: A | AW112: C | AX112: D | AY112: A | AZ112: B
C113: 23043 | D113: =[1]Data!C209 -> 11 | E113: =LOOKUP(D113,[1]Inputs!$B$55:$B$84,[1]Inputs!$A$55:$A$84) -> 16 | F113: =SUM([1]Data!AY209+[1]Data!BA209+[1]Data!BB209+[1]Data!BE209+[1]Data!BH209+[1]Data!BP209+[1]Data!BS209+[1]Data!BT209+[1]Data!CD209)/[1]Inputs!$A$12 -> 0.1111111111 | G113: =SUM([1]Data!AZ209+[1]Data!BB209+[1]Data!BC209+[1]Data!BF209+[1]Data!BI209+[1]Data!BQ209+[1]Data!BT209+[1]Data!BU209+[1]Data!CE209)/[1]Inputs!$A$12 -> 0.3333333333 | H113: =SUM([1]Data!BA209+[1]Data!BC209+[1]Data!BD209+[1]Data!BG209+[1]Data!BJ209+[1]Data!BR209+[1]Data!BU209+[1]Data!BV209+[1]Data!CF209)/[1]Inputs!$A$12 -> 0.3333333333 | I113: =SUM([1]Data!BB209+[1]Data!BD209+[1]Data!BE209+[1]Data!BH209+[1]Data!BK209+[1]Data!BS209+[1]Data!BV209+[1]Data!BW209+[1]Data!CG209)/[1]Inputs!$A$12 -> 0.2222222222 | J113: =SUM([1]Data!BC209+[1]Data!BE209+[1]Data!BF209+[1]Data!BI209+[1]Data!BL209+[1]Data!BT209+[1]Data!BW209+[1]Data!BX209+[1]Data!CH209)/[1]Inputs!$A$12 -> 0.2222222222 | K113: =SUM([1]Data!BD209+[1]Data!BF209+[1]Data!BG209+[1]Data!BJ209+[1]Data!BM209+[1]Data!BU209+[1]Data!BX209+[1]Data!BY209+[1]Data!CI209)/[1]Inputs!$A$12 -> 0.3333333333 | M113: B | N113: C | O113: B | P113: C | Q113: B | R113: A | S113: C | T113: D | U113: B | V113: B | W113: B | X113: C | Y113: B | Z113: B | AA113: B | AB113: B | AC113: B | AD113: D | AE113: B | AF113: D | AG113: D | AH113: B | AI113: B | AJ113: C | AK113: C | AL113: A | AM113: B | AN113: B | AO113: D | AP113: E | AQ113: B | AR113: D | AS113: B | AT113: B | AU113: C | AV113: A | AW113: B | AX113: D | AY113: B | AZ113: B
C114: 23047 | D114: =[1]Data!C211 -> 10 | E114: =LOOKUP(D114,[1]Inputs!$B$55:$B$84,[1]Inputs!$A$55:$A$84) -> 15 | F114: =SUM([1]Data!AY211+[1]Data!BA211+[1]Data!BB211+[1]Data!BE211+[1]Data!BH211+[1]Data!BP211+[1]Data!BS211+[1]Data!BT211+[1]Data!CD211)/[1]Inputs!$A$12 -> 0.1111111111 | G114: =SUM([1]Data!AZ211+[1]Data!BB211+[1]Data!BC211+[1]Data!BF211+[1]Data!BI211+[1]Data!BQ211+[1]Data!BT211+[1]Data!BU211+[1]Data!CE211)/[1]Inputs!$A$12 -> 0.3333333333 | H114: =SUM([1]Data!BA211+[1]Data!BC211+[1]Data!BD211+[1]Data!BG211+[1]Data!BJ211+[1]Data!BR211+[1]Data!BU211+[1]Data!BV211+[1]Data!CF211)/[1]Inputs!$A$12 -> 0.2222222222 | I114: =SUM([1]Data!BB211+[1]Data!BD211+[1]Data!BE211+[1]Data!BH211+[1]Data!BK211+[1]Data!BS211+[1]Data!BV211+[1]Data!BW211+[1]Data!CG211)/[1]Inputs!$A$12 -> 0.2222222222 | J114: =SUM([1]Data!BC211+[1]Data!BE211+[1]Data!BF211+[1]Data!BI211+[1]Data!BL211+[1]Data!BT211+[1]Data!BW211+[1]Data!BX211+[1]Data!CH211)/[1]Inputs!$A$12 -> 0.3333333333 | K114: =SUM([1]Data!BD211+[1]Data!BF211+[1]Data!BG211+[1]Data!BJ211+[1]Data!BM211+[1]Data!BU211+[1]Data!BX211+[1]Data!BY211+[1]Data!CI211)/[1]Inputs!$A$12 -> 0.2222222222 | M114: B | N114: D | O114: C | P114: E | Q114: B | R114: C | S114: E | T114: D | U114: E | V114: E | W114: C | X114: D | Y114: B | Z114: B | AA114: D | AB114: D | AC114: B | AD114: A | AE114: C | AF114: A | AG114: A | AH114: C | AI114: B | AJ114: A | AK114: A | AL114: D | AM114: D | AN114: E | AO114: C | AP114: A | AQ114: E | AR114: C | AS114: A | AT114: A | AU114: C | AV114: B | AW114: D | AX114: B | AY114: E | AZ114: A
C115: 23116 | D115: =[1]Data!C229 -> 11 | E115: =LOOKUP(D115,[1]Inputs!$B$55:$B$84,[1]Inputs!$A$55:$A$84) -> 16 | F115: =SUM([1]Data!AY229+[1]Data!BA229+[1]Data!BB229+[1]Data!BE229+[1]Data!BH229+[1]Data!BP229+[1]Data!BS229+[1]Data!BT229+[1]Data!CD229)/[1]Inputs!$A$12 -> 0.4444444444 | G115: =SUM([1]Data!AZ229+[1]Data!BB229+[1]Data!BC229+[1]Data!BF229+[1]Data!BI229+[1]Data!BQ229+[1]Data!BT229+[1]Data!BU229+[1]Data!CE229)/[1]Inputs!$A$12 -> 0.2222222222 | H115: =SUM([1]Data!BA229+[1]Data!BC229+[1]Data!BD229+[1]Data!BG229+[1]Data!BJ229+[1]Data!BR229+[1]Data!BU229+[1]Data!BV229+[1]Data!CF229)/[1]Inputs!$A$12 -> 0.2222222222 | I115: =SUM([1]Data!BB229+[1]Data!BD229+[1]Data!BE229+[1]Data!BH229+[1]Data!BK229+[1]Data!BS229+[1]Data!BV229+[1]Data!BW229+[1]Data!CG229)/[1]Inputs!$A$12 -> 0.1111111111 | J115: =SUM([1]Data!BC229+[1]Data!BE229+[1]Data!BF229+[1]Data!BI229+[1]Data!BL229+[1]Data!BT229+[1]Data!BW229+[1]Data!BX229+[1]Data!CH229)/[1]Inputs!$A$12 -> 0.2222222222 | K115: =SUM([1]Data!BD229+[1]Data!BF229+[1]Data!BG229+[1]Data!BJ229+[1]Data!BM229+[1]Data!BU229+[1]Data!BX229+[1]Data!BY229+[1]Data!CI229)/[1]Inputs!$A$12 -> 0.3333333333 | M115: B | N115: D | O115: B | P115: D | Q115: C | R115: B | S115: E | T115: D | U115: D | V115: E | W115: B | X115: D | Y115: B | Z115: E | AA115: C | AB115: D | AC115: A | AD115: D | AE115: A | AF115: C | AG115: E | AH115: C | AI115: E | AJ115: E | AK115: D | AL115: A | AM115: C | AN115: E | AO115: D | AP115: D | AQ115: B | AR115: E | AS115: D | AT115: B | AU115: B | AV115: C | AW115: A | AX115: D | AY115: E | AZ115: B
C116: 23137 | D116: =[1]Data!C104 -> 14 | E116: =LOOKUP(D116,[1]Inputs!$B$55:$B$84,[1]Inputs!$A$55:$A$84) -> 17 | F116: =SUM([1]Data!AY104+[1]Data!BA104+[1]Data!BB104+[1]Data!BE104+[1]Data!BH104+[1]Data!BP104+[1]Data!BS104+[1]Data!BT104+[1]Data!CD104)/[1]Inputs!$A$12 -> 0.4444444444 | G116: =SUM([1]Data!AZ104+[1]Data!BB104+[1]Data!BC104+[1]Data!BF104+[1]Data!BI104+[1]Data!BQ104+[1]Data!BT104+[1]Data!BU104+[1]Data!CE104)/[1]Inputs!$A$12 -> 0.5555555556 | H116: =SUM([1]Data!BA104+[1]Data!BC104+[1]Data!BD104+[1]Data!BG104+[1]Data!BJ104+[1]Data!BR104+[1]Data!BU104+[1]Data!BV104+[1]Data!CF104)/[1]Inputs!$A$12 -> 0.3333333333 | I116: =SUM([1]Data!BB104+[1]Data!BD104+[1]Data!BE104+[1]Data!BH104+[1]Data!BK104+[1]Data!BS104+[1]Data!BV104+[1]Data!BW104+[1]Data!CG104)/[1]Inputs!$A$12 -> 0.4444444444 | J116: =SUM([1]Data!BC104+[1]Data!BE104+[1]Data!BF104+[1]Data!BI104+[1]Data!BL104+[1]Data!BT104+[1]Data!BW104+[1]Data!BX104+[1]Data!CH104)/[1]Inputs!$A$12 -> 0.4444444444 | K116: =SUM([1]Data!BD104+[1]Data!BF104+[1]Data!BG104+[1]Data!BJ104+[1]Data!BM104+[1]Data!BU104+[1]Data!BX104+[1]Data!BY104+[1]Data!CI104)/[1]Inputs!$A$12 -> 0.2222222222 | M116: A | N116: B | O116: C | P116: D | Q116: A | R116: A | S116: E | T116: D | U116: E | V116: E | W116: E | X116: D | Y116: C | Z116: D | AA116: B | AB116: B | AC116: C | AD116: E | AE116: B | AF116: E | AG116: D | AH116: B | AI116: C | AJ116: C | AK116: D | AL116: B | AM116: D | AN116: C | AO116: A | AP116: A | AQ116: C | AR116: D | AS116: A | AT116: A | AU116: C | AV116: C | AW116: B | AX116: C | AY116: A | AZ116: C
C117: 23261 | D117: =[1]Data!C109 -> 15 | E117: =LOOKUP(D117,[1]Inputs!$B$55:$B$84,[1]Inputs!$A$55:$A$84) -> 18 | F117: =SUM([1]Data!AY109+[1]Data!BA109+[1]Data!BB109+[1]Data!BE109+[1]Data!BH109+[1]Data!BP109+[1]Data!BS109+[1]Data!BT109+[1]Data!CD109)/[1]Inputs!$A$12 -> 0.4444444444 | G117: =SUM([1]Data!AZ109+[1]Data!BB109+[1]Data!BC109+[1]Data!BF109+[1]Data!BI109+[1]Data!BQ109+[1]Data!BT109+[1]Data!BU109+[1]Data!CE109)/[1]Inputs!$A$12 -> 0.3333333333 | H117: =SUM([1]Data!BA109+[1]Data!BC109+[1]Data!BD109+[1]Data!BG109+[1]Data!BJ109+[1]Data!BR109+[1]Data!BU109+[1]Data!BV109+[1]Data!CF109)/[1]Inputs!$A$12 -> 0.3333333333 | I117: =SUM([1]Data!BB109+[1]Data!BD109+[1]Data!BE109+[1]Data!BH109+[1]Data!BK109+[1]Data!BS109+[1]Data!BV109+[1]Data!BW109+[1]Data!CG109)/[1]Inputs!$A$12 -> 0.2222222222 | J117: =SUM([1]Data!BC109+[1]Data!BE109+[1]Data!BF109+[1]Data!BI109+[1]Data!BL109+[1]Data!BT109+[1]Data!BW109+[1]Data!BX109+[1]Data!CH109)/[1]Inputs!$A$12 -> 0.2222222222 | K117: =SUM([1]Data!BD109+[1]Data!BF109+[1]Data!BG109+[1]Data!BJ109+[1]Data!BM109+[1]Data!BU109+[1]Data!BX109+[1]Data!BY109+[1]Data!CI109)/[1]Inputs!$A$12 -> 0.2222222222 | M117: E | N117: D | O117: B | P117: D | Q117: A | R117: A | S117: C | T117: D | U117: E | V117: D | W117: B | X117: C | Y117: B | Z117: E | AA117: C | AB117: C | AC117: D | AD117: D | AE117: A | AF117: D | AG117: D | AH117: C | AI117: D | AJ117: D | AK117: B | AL117: A | AM117: D | AN117: B | AO117: B | AP117: A | AQ117: C | AR117: B | AS117: A | AT117: C | AU117: C | AV117: C | AW117: A | AX117: D | AY117: C | AZ117: B
C118: 23272 | D118: =[1]Data!C170 -> 23 | E118: =LOOKUP(D118,[1]Inputs!$B$55:$B$84,[1]Inputs!$A$55:$A$84) -> 24 | F118: =SUM([1]Data!AY170+[1]Data!BA170+[1]Data!BB170+[1]Data!BE170+[1]Data!BH170+[1]Data!BP170+[1]Data!BS170+[1]Data!BT170+[1]Data!CD170)/[1]Inputs!$A$12 -> 0.3333333333 | G118: =SUM([1]Data!AZ170+[1]Data!BB170+[1]Data!BC170+[1]Data!BF170+[1]Data!BI170+[1]Data!BQ170+[1]Data!BT170+[1]Data!BU170+[1]Data!CE170)/[1]Inputs!$A$12 -> 0.6666666667 | H118: =SUM([1]Data!BA170+[1]Data!BC170+[1]Data!BD170+[1]Data!BG170+[1]Data!BJ170+[1]Data!BR170+[1]Data!BU170+[1]Data!BV170+[1]Data!CF170)/[1]Inputs!$A$12 -> 0.5555555556 | I118: =SUM([1]Data!BB170+[1]Data!BD170+[1]Data!BE170+[1]Data!BH170+[1]Data!BK170+[1]Data!BS170+[1]Data!BV170+[1]Data!BW170+[1]Data!CG170)/[1]Inputs!$A$12 -> 0.4444444444 | J118: =SUM([1]Data!BC170+[1]Data!BE170+[1]Data!BF170+[1]Data!BI170+[1]Data!BL170+[1]Data!BT170+[1]Data!BW170+[1]Data!BX170+[1]Data!CH170)/[1]Inputs!$A$12 -> 0.5555555556 | K118: =SUM([1]Data!BD170+[1]Data!BF170+[1]Data!BG170+[1]Data!BJ170+[1]Data!BM170+[1]Data!BU170+[1]Data!BX170+[1]Data!BY170+[1]Data!CI170)/[1]Inputs!$A$12 -> 0.4444444444 | M118: E | N118: B | O118: B | P118: D | Q118: A | R118: A | S118: E | T118: D | U118: D | V118: E | W118: C | X118: E | Y118: C | Z118: A | AA118: C | AB118: D | AC118: D | AD118: D | AE118: A | AF118: E | AG118: D | AH118: A | AI118: B | AJ118: A | AK118: A | AL118: C | AM118: D | AN118: E | AO118: D | AP118: D | AQ118: C | AR118: E | AS118: B | AT118: A | AU118: E | AV118: A | AW118: C | AX118: B | AY118: A | AZ118: B
C119: 23279 | D119: =[1]Data!C233 -> 7 | E119: =LOOKUP(D119,[1]Inputs!$B$55:$B$84,[1]Inputs!$A$55:$A$84) -> 14 | F119: =SUM([1]Data!AY233+[1]Data!BA233+[1]Data!BB233+[1]Data!BE233+[1]Data!BH233+[1]Data!BP233+[1]Data!BS233+[1]Data!BT233+[1]Data!CD233)/[1]Inputs!$A$12 -> 0.2222222222 | G119: =SUM([1]Data!AZ233+[1]Data!BB233+[1]Data!BC233+[1]Data!BF233+[1]Data!BI233+[1]Data!BQ233+[1]Data!BT233+[1]Data!BU233+[1]Data!CE233)/[1]Inputs!$A$12 -> 0.2222222222 | H119: =SUM([1]Data!BA233+[1]Data!BC233+[1]Data!BD233+[1]Data!BG233+[1]Data!BJ233+[1]Data!BR233+[1]Data!BU233+[1]Data!BV233+[1]Data!CF233)/[1]Inputs!$A$12 -> 0.2222222222 | I119: =SUM([1]Data!BB233+[1]Data!BD233+[1]Data!BE233+[1]Data!BH233+[1]Data!BK233+[1]Data!BS233+[1]Data!BV233+[1]Data!BW233+[1]Data!CG233)/[1]Inputs!$A$12 -> 0.2222222222 | J119: =SUM([1]Data!BC233+[1]Data!BE233+[1]Data!BF233+[1]Data!BI233+[1]Data!BL233+[1]Data!BT233+[1]Data!BW233+[1]Data!BX233+[1]Data!CH233)/[1]Inputs!$A$12 -> 0.3333333333 | K119: =SUM([1]Data!BD233+[1]Data!BF233+[1]Data!BG233+[1]Data!BJ233+[1]Data!BM233+[1]Data!BU233+[1]Data!BX233+[1]Data!BY233+[1]Data!CI233)/[1]Inputs!$A$12 -> 0.4444444444 | M119: A | N119: C | O119: C | P119: B | Q119: C | R119: A | S119: E | T119: D | U119: E | V119: D | W119: B | X119: D | Y119: B | Z119: C | AA119: A | AB119: A | AC119: B | AD119: D | AE119: C | AF119: E | AG119: D | AH119: B | AI119: A | AJ119: A | AK119: C | AL119: C | AM119: D | AN119: B | AO119: B | AP119: A | AQ119: E | AR119: A | AS119: A | AT119: E | AU119: B | AV119: C | AW119: B | AX119: A | AY119: D | AZ119: D
C120: 23308 | D120: =[1]Data!C232 -> 20 | E120: =LOOKUP(D120,[1]Inputs!$B$55:$B$84,[1]Inputs!$A$55:$A$84) -> 21 | F120: =SUM([1]Data!AY232+[1]Data!BA232+[1]Data!BB232+[1]Data!BE232+[1]Data!BH232+[1]Data!BP232+[1]Data!BS232+[1]Data!BT232+[1]Data!CD232)/[1]Inputs!$A$12 -> 0.4444444444 | G120: =SUM([1]Data!AZ232+[1]Data!BB232+[1]Data!BC232+[1]Data!BF232+[1]Data!BI232+[1]Data!BQ232+[1]Data!BT232+[1]Data!BU232+[1]Data!CE232)/[1]Inputs!$A$12 -> 0.3333333333 | H120: =SUM([1]Data!BA232+[1]Data!BC232+[1]Data!BD232+[1]Data!BG232+[1]Data!BJ232+[1]Data!BR232+[1]Data!BU232+[1]Data!BV232+[1]Data!CF232)/[1]Inputs!$A$12 -> 0.3333333333 | I120: =SUM([1]Data!BB232+[1]Data!BD232+[1]Data!BE232+[1]Data!BH232+[1]Data!BK232+[1]Data!BS232+[1]Data!BV232+[1]Data!BW232+[1]Data!CG232)/[1]Inputs!$A$12 -> 0.1111111111 | J120: =SUM([1]Data!BC232+[1]Data!BE232+[1]Data!BF232+[1]Data!BI232+[1]Data!BL232+[1]Data!BT232+[1]Data!BW232+[1]Data!BX232+[1]Data!CH232)/[1]Inputs!$A$12 -> 0.2222222222 | K120: =SUM([1]Data!BD232+[1]Data!BF232+[1]Data!BG232+[1]Data!BJ232+[1]Data!BM232+[1]Data!BU232+[1]Data!BX232+[1]Data!BY232+[1]Data!CI232)/[1]Inputs!$A$12 -> 0.2222222222 | M120: E | N120: B | O120: B | P120: C | Q120: A | R120: A | S120: D | T120: D | U120: D | V120: E | W120: C | X120: C | Y120: C | Z120: A | AA120: B | AB120: D | AC120: E | AD120: D | AE120: A | AF120: D | AG120: D | AH120: E | AI120: B | AJ120: A | AK120: E | AL120: C | AM120: B | AN120: B | AO120: A | AP120: E | AQ120: C | AR120: B | AS120: E | AT120: C | AU120: A | AV120: C | AW120: D | AX120: C | AY120: A | AZ120: E
C121: 23309 | D121: =[1]Data!C248 -> 11 | E121: =LOOKUP(D121,[1]Inputs!$B$55:$B$84,[1]Inputs!$A$55:$A$84) -> 16 | F121: =SUM([1]Data!AY248+[1]Data!BA248+[1]Data!BB248+[1]Data!BE248+[1]Data!BH248+[1]Data!BP248+[1]Data!BS248+[1]Data!BT248+[1]Data!CD248)/[1]Inputs!$A$12 -> 0.4444444444 | G121: =SUM([1]Data!AZ248+[1]Data!BB248+[1]Data!BC248+[1]Data!BF248+[1]Data!BI248+[1]Data!BQ248+[1]Data!BT248+[1]Data!BU248+[1]Data!CE248)/[1]Inputs!$A$12 -> 0.5555555556 | H121: =SUM([1]Data!BA248+[1]Data!BC248+[1]Data!BD248+[1]Data!BG248+[1]Data!BJ248+[1]Data!BR248+[1]Data!BU248+[1]Data!BV248+[1]Data!CF248)/[1]Inputs!$A$12 -> 0.3333333333 | I121: =SUM([1]Data!BB248+[1]Data!BD248+[1]Data!BE248+[1]Data!BH248+[1]Data!BK248+[1]Data!BS248+[1]Data!BV248+[1]Data!BW248+[1]Data!CG248)/[1]Inputs!$A$12 -> 0.5555555556 | J121: =SUM([1]Data!BC248+[1]Data!BE248+[1]Data!BF248+[1]Data!BI248+[1]Data!BL248+[1]Data!BT248+[1]Data!BW248+[1]Data!BX248+[1]Data!CH248)/[1]Inputs!$A$12 -> 0.3333333333 | K121: =SUM([1]Data!BD248+[1]Data!BF248+[1]Data!BG248+[1]Data!BJ248+[1]Data!BM248+[1]Data!BU248+[1]Data!BX248+[1]Data!BY248+[1]Data!CI248)/[1]Inputs!$A$12 -> 0.4444444444 | M121: B | N121: B | O121: B | P121: D | Q121: A | R121: A | S121: E | T121: D | U121: E | V121: C | W121: C | X121: B | Y121: B | Z121: B | AA121: C | AB121: B | AC121: A | AD121: D | AE121: A | AF121: A | AG121: E | AH121: C | AI121: C | AJ121: A | AK121: B | AL121: C | AM121: B | AN121: E | AO121: A | AP121: D | AQ121: B | AR121: C | AS121: A | AT121: C | AU121: C | AV121: A | AW121: A | AX121: D | AY121: C | AZ121: C
C122: 23310 | D122: =[1]Data!C77 -> 23 | E122: =LOOKUP(D122,[1]Inputs!$B$55:$B$84,[1]Inputs!$A$55:$A$84) -> 24 | F122: =SUM([1]Data!AY77+[1]Data!BA77+[1]Data!BB77+[1]Data!BE77+[1]Data!BH77+[1]Data!BP77+[1]Data!BS77+[1]Data!BT77+[1]Data!CD77)/[1]Inputs!$A$12 -> 0.8888888889 | G122: =SUM([1]Data!AZ77+[1]Data!BB77+[1]Data!BC77+[1]Data!BF77+[1]Data!BI77+[1]Data!BQ77+[1]Data!BT77+[1]Data!BU77+[1]Data!CE77)/[1]Inputs!$A$12 -> 0.4444444444 | H122: =SUM([1]Data!BA77+[1]Data!BC77+[1]Data!BD77+[1]Data!BG77+[1]Data!BJ77+[1]Data!BR77+[1]Data!BU77+[1]Data!BV77+[1]Data!CF77)/[1]Inputs!$A$12 -> 0.7777777778 | I122: =SUM([1]Data!BB77+[1]Data!BD77+[1]Data!BE77+[1]Data!BH77+[1]Data!BK77+[1]Data!BS77+[1]Data!BV77+[1]Data!BW77+[1]Data!CG77)/[1]Inputs!$A$12 -> 0.7777777778 | J122: =SUM([1]Data!BC77+[1]Data!BE77+[1]Data!BF77+[1]Data!BI77+[1]Data!BL77+[1]Data!BT77+[1]Data!BW77+[1]Data!BX77+[1]Data!CH77)/[1]Inputs!$A$12 -> 0.6666666667 | K122: =SUM([1]Data!BD77+[1]Data!BF77+[1]Data!BG77+[1]Data!BJ77+[1]Data!BM77+[1]Data!BU77+[1]Data!BX77+[1]Data!BY77+[1]Data!CI77)/[1]Inputs!$A$12 -> 0.5555555556 | M122: E | N122: C | O122: B | P122: D | Q122: A | R122: A | S122: E | T122: D | U122: D | V122: E | W122: C | X122: C | Y122: C | Z122: B | AA122: E | AB122: C | AC122: B | AD122: E | AE122: B | AF122: D | AG122: D | AH122: A | AI122: C | AJ122: E | AK122: A | AL122: B | AM122: B | AN122: E | AO122: D | AP122: D | AQ122: C | AR122: A | AS122: B | AT122: B | AU122: A | AV122: E | AW122: D | AX122: D | AY122: B | AZ122: C
C123: 23313 | D123: =[1]Data!C84 -> 23 | E123: =LOOKUP(D123,[1]Inputs!$B$55:$B$84,[1]Inputs!$A$55:$A$84) -> 24 | F123: =SUM([1]Data!AY84+[1]Data!BA84+[1]Data!BB84+[1]Data!BE84+[1]Data!BH84+[1]Data!BP84+[1]Data!BS84+[1]Data!BT84+[1]Data!CD84)/[1]Inputs!$A$12 -> 0.6666666667 | G123: =SUM([1]Data!AZ84+[1]Data!BB84+[1]Data!BC84+[1]Data!BF84+[1]Data!BI84+[1]Data!BQ84+[1]Data!BT84+[1]Data!BU84+[1]Data!CE84)/[1]Inputs!$A$12 -> 0.5555555556 | H123: =SUM([1]Data!BA84+[1]Data!BC84+[1]Data!BD84+[1]Data!BG84+[1]Data!BJ84+[1]Data!BR84+[1]Data!BU84+[1]Data!BV84+[1]Data!CF84)/[1]Inputs!$A$12 -> 0.5555555556 | I123: =SUM([1]Data!BB84+[1]Data!BD84+[1]Data!BE84+[1]Data!BH84+[1]Data!BK84+[1]Data!BS84+[1]Data!BV84+[1]Data!BW84+[1]Data!CG84)/[1]Inputs!$A$12 -> 0.5555555556 | J123: =SUM([1]Data!BC84+[1]Data!BE84+[1]Data!BF84+[1]Data!BI84+[1]Data!BL84+[1]Data!BT84+[1]Data!BW84+[1]Data!BX84+[1]Data!CH84)/[1]Inputs!$A$12 -> 0.8888888889 | K123: =SUM([1]Data!BD84+[1]Data!BF84+[1]Data!BG84+[1]Data!BJ84+[1]Data!BM84+[1]Data!BU84+[1]Data!BX84+[1]Data!BY84+[1]Data!CI84)/[1]Inputs!$A$12 -> 0.5555555556 | M123: E | N123: D | O123: B | P123: D | Q123: A | R123: A | S123: E | T123: D | U123: D | V123: E | W123: C | X123: C | Y123: B | Z123: E | AA123: A | AB123: B | AC123: B | AD123: D | AE123: B | AF123: D | AG123: D | AH123: A | AI123: C | AJ123: A | AK123: A | AL123: B | AM123: B | AN123: B | AO123: D | AP123: A | AQ123: E | AR123: A | AS123: E | AT123: A | AU123: C | AV123: A | AW123: D | AX123: D | AY123: B | AZ123: C
C124: =[1]Data!E7 -> 23332 | D124: 10 | E124: =LOOKUP(D124,[1]Inputs!$B$55:$B$84,[1]Inputs!$A$55:$A$84) -> 15 | F124: =SUM([1]Data!AY7+[1]Data!BA7+[1]Data!BB7+[1]Data!BE7+[1]Data!BH7+[1]Data!BP7+[1]Data!BS7+[1]Data!BT7+[1]Data!CD7)/[1]Inputs!$A$12 -> 0.2222222222 | G124: =SUM([1]Data!BD7+[1]Data!BF7+[1]Data!BI7+[1]Data!BL7+[1]Data!BO7+[1]Data!BQ7+[1]Data!CA7+[1]Data!CH7)/[1]Inputs!$A$13 -> 0.25 | H124: =SUM([1]Data!AZ7+[1]Data!BJ7+[1]Data!BM7+[1]Data!BX7+[1]Data!CB7+[1]Data!CJ7+[1]Data!CK7)/[1]Inputs!$A$14 -> 0 | I124: =SUM([1]Data!BV7+[1]Data!CC7+[1]Data!CL7)/[1]Inputs!$A$15 -> 0.3333333333 | J124: =SUM([1]Data!BC7+[1]Data!BG7+[1]Data!BJ7+[1]Data!BN7+[1]Data!BR7+[1]Data!BU7+[1]Data!BY7+[1]Data!BZ7+[1]Data!CE7+[1]Data!CG7)/[1]Inputs!$A$16 -> 0.2 | K124: =SUM([1]Data!BW7+[1]Data!CF7+[1]Data!CI7)/[1]Inputs!$A$17 -> 0 | M124: B | N124: D | O124: A | P124: C | Q124: B | R124: A | S124: B | T124: D | U124: E | V124: E | W124: C | X124: B | Y124: B | Z124: D | AA124: A | AB124: B | AC124: A | AD124: A | AE124: C | AF124: D | AG124: E | AH124: B | AI124: D | AJ124: A | AK124: E | AL124: A | AM124: D | AN124: B | AO124: B | AP124: E | AQ124: C | AR124: A | AS124: D | AT124: B | AU124: D | AV124: E | AW124: A | AX124: A | AY124: B | AZ124: E
C125: 23333 | D125: =[1]Data!C218 -> 16 | E125: =LOOKUP(D125,[1]Inputs!$B$55:$B$84,[1]Inputs!$A$55:$A$84) -> 18 | F125: =SUM([1]Data!AY218+[1]Data!BA218+[1]Data!BB218+[1]Data!BE218+[1]Data!BH218+[1]Data!BP218+[1]Data!BS218+[1]Data!BT218+[1]Data!CD218)/[1]Inputs!$A$12 -> 0.6666666667 | G125: =SUM([1]Data!AZ218+[1]Data!BB218+[1]Data!BC218+[1]Data!BF218+[1]Data!BI218+[1]Data!BQ218+[1]Data!BT218+[1]Data!BU218+[1]Data!CE218)/[1]Inputs!$A$12 -> 0.5555555556 | H125: =SUM([1]Data!BA218+[1]Data!BC218+[1]Data!BD218+[1]Data!BG218+[1]Data!BJ218+[1]Data!BR218+[1]Data!BU218+[1]Data!BV218+[1]Data!CF218)/[1]Inputs!$A$12 -> 0.6666666667 | I125: =SUM([1]Data!BB218+[1]Data!BD218+[1]Data!BE218+[1]Data!BH218+[1]Data!BK218+[1]Data!BS218+[1]Data!BV218+[1]Data!BW218+[1]Data!CG218)/[1]Inputs!$A$12 -> 0.5555555556 | J125: =SUM([1]Data!BC218+[1]Data!BE218+[1]Data!BF218+[1]Data!BI218+[1]Data!BL218+[1]Data!BT218+[1]Data!BW218+[1]Data!BX218+[1]Data!CH218)/[1]Inputs!$A$12 -> 0.6666666667 | K125: =SUM([1]Data!BD218+[1]Data!BF218+[1]Data!BG218+[1]Data!BJ218+[1]Data!BM218+[1]Data!BU218+[1]Data!BX218+[1]Data!BY218+[1]Data!CI218)/[1]Inputs!$A$12 -> 0.5555555556 | M125: E | N125: B | O125: B | P125: D | Q125: D | R125: E | S125: E | T125: D | U125: D | V125: E | W125: C | X125: C | Y125: C | Z125: E | AA125: B | AB125: D | AC125: C | AD125: D | AE125: A | AF125: D | AG125: D | AH125: A | AI125: B | AJ125: A | AK125: D | AL125: D | AM125: E | AN125: E | AO125: E | AP125: E | AQ125: C | AR125: A | AS125: E | AT125: D | AU125: C | AV125: A | AW125: E | AX125: A | AY125: C | AZ125: D
C126: 23346 | D126: =[1]Data!C249 -> 13 | E126: =LOOKUP(D126,[1]Inputs!$B$55:$B$84,[1]Inputs!$A$55:$A$84) -> 17 | F126: =SUM([1]Data!AY249+[1]Data!BA249+[1]Data!BB249+[1]Data!BE249+[1]Data!BH249+[1]Data!BP249+[1]Data!BS249+[1]Data!BT249+[1]Data!CD249)/[1]Inputs!$A$12 -> 0.2222222222 | G126: =SUM([1]Data!AZ249+[1]Data!BB249+[1]Data!BC249+[1]Data!BF249+[1]Data!BI249+[1]Data!BQ249+[1]Data!BT249+[1]Data!BU249+[1]Data!CE249)/[1]Inputs!$A$12 -> 0.4444444444 | H126: =SUM([1]Data!BA249+[1]Data!BC249+[1]Data!BD249+[1]Data!BG249+[1]Data!BJ249+[1]Data!BR249+[1]Data!BU249+[1]Data!BV249+[1]Data!CF249)/[1]Inputs!$A$12 -> 0.3333333333 | I126: =SUM([1]Data!BB249+[1]Data!BD249+[1]Data!BE249+[1]Data!BH249+[1]Data!BK249+[1]Data!BS249+[1]Data!BV249+[1]Data!BW249+[1]Data!CG249)/[1]Inputs!$A$12 -> 0.3333333333 | J126: =SUM([1]Data!BC249+[1]Data!BE249+[1]Data!BF249+[1]Data!BI249+[1]Data!BL249+[1]Data!BT249+[1]Data!BW249+[1]Data!BX249+[1]Data!CH249)/[1]Inputs!$A$12 -> 0.2222222222 | K126: =SUM([1]Data!BD249+[1]Data!BF249+[1]Data!BG249+[1]Data!BJ249+[1]Data!BM249+[1]Data!BU249+[1]Data!BX249+[1]Data!BY249+[1]Data!CI249)/[1]Inputs!$A$12 -> 0.5555555556 | M126: E | N126: D | O126: C | P126: B | Q126: D | R126: A | S126: C | T126: D | U126: D | V126: B | W126: C | X126: E | Y126: B | Z126: B | AA126: A | AB126: D | AC126: C | AD126: E | AE126: A | AF126: D | AG126: D | AH126: C | AI126: C | AJ126: A | AK126: A | AL126: E | AM126: D | AN126: E | AO126: B | AP126: A | AQ126: C | AR126: C | AS126: C | AT126: A | AU126: B | AV126: E | AW126: D | AX126: E | AY126: C | AZ126: B
C127: 23377 | D127: =[1]Data!C237 -> 18 | E127: =LOOKUP(D127,[1]Inputs!$B$55:$B$84,[1]Inputs!$A$55:$A$84) -> 19 | F127: =SUM([1]Data!AY237+[1]Data!BA237+[1]Data!BB237+[1]Data!BE237+[1]Data!BH237+[1]Data!BP237+[1]Data!BS237+[1]Data!BT237+[1]Data!CD237)/[1]Inputs!$A$12 -> 0.5555555556 | G127: =SUM([1]Data!AZ237+[1]Data!BB237+[1]Data!BC237+[1]Data!BF237+[1]Data!BI237+[1]Data!BQ237+[1]Data!BT237+[1]Data!BU237+[1]Data!CE237)/[1]Inputs!$A$12 -> 0.5555555556 | H127: =SUM([1]Data!BA237+[1]Data!BC237+[1]Data!BD237+[1]Data!BG237+[1]Data!BJ237+[1]Data!BR237+[1]Data!BU237+[1]Data!BV237+[1]Data!CF237)/[1]Inputs!$A$12 -> 0.3333333333 | I127: =SUM([1]Data!BB237+[1]Data!BD237+[1]Data!BE237+[1]Data!BH237+[1]Data!BK237+[1]Data!BS237+[1]Data!BV237+[1]Data!BW237+[1]Data!CG237)/[1]Inputs!$A$12 -> 0.3333333333 | J127: =SUM([1]Data!BC237+[1]Data!BE237+[1]Data!BF237+[1]Data!BI237+[1]Data!BL237+[1]Data!BT237+[1]Data!BW237+[1]Data!BX237+[1]Data!CH237)/[1]Inputs!$A$12 -> 0.3333333333 | K127: =SUM([1]Data!BD237+[1]Data!BF237+[1]Data!BG237+[1]Data!BJ237+[1]Data!BM237+[1]Data!BU237+[1]Data!BX237+[1]Data!BY237+[1]Data!CI237)/[1]Inputs!$A$12 -> 0.4444444444 | M127: E | N127: D | O127: B | P127: C | Q127: C | R127: A | S127: D | T127: D | U127: D | V127: E | W127: C | X127: D | Y127: E | Z127: B | AA127: C | AB127: A | AC127: D | AD127: E | AE127: B | AF127: D | AG127: D | AH127: C | AI127: C | AJ127: C | AK127: A | AL127: B | AM127: D | AN127: E | AO127: D | AP127: D | AQ127: B | AR127: B | AS127: B | AT127: A | AU127: A | AV127: B | AW127: C | AX127: D | AY127: E | AZ127: C
C128: 23442 | D128: =[1]Data!C210 -> 17 | E128: =LOOKUP(D128,[1]Inputs!$B$55:$B$84,[1]Inputs!$A$55:$A$84) -> 19 | F128: =SUM([1]Data!AY210+[1]Data!BA210+[1]Data!BB210+[1]Data!BE210+[1]Data!BH210+[1]Data!BP210+[1]Data!BS210+[1]Data!BT210+[1]Data!CD210)/[1]Inputs!$A$12 -> 0.7777777778 | G128: =SUM([1]Data!AZ210+[1]Data!BB210+[1]Data!BC210+[1]Data!BF210+[1]Data!BI210+[1]Data!BQ210+[1]Data!BT210+[1]Data!BU210+[1]Data!CE210)/[1]Inputs!$A$12 -> 0.4444444444 | H128: =SUM([1]Data!BA210+[1]Data!BC210+[1]Data!BD210+[1]Data!BG210+[1]Data!BJ210+[1]Data!BR210+[1]Data!BU210+[1]Data!BV210+[1]Data!CF210)/[1]Inputs!$A$12 -> 0.3333333333 | I128: =SUM([1]Data!BB210+[1]Data!BD210+[1]Data!BE210+[1]Data!BH210+[1]Data!BK210+[1]Data!BS210+[1]Data!BV210+[1]Data!BW210+[1]Data!CG210)/[1]Inputs!$A$12 -> 0.4444444444 | J128: =SUM([1]Data!BC210+[1]Data!BE210+[1]Data!BF210+[1]Data!BI210+[1]Data!BL210+[1]Data!BT210+[1]Data!BW210+[1]Data!BX210+[1]Data!CH210)/[1]Inputs!$A$12 -> 0.5555555556 | K128: =SUM([1]Data!BD210+[1]Data!BF210+[1]Data!BG210+[1]Data!BJ210+[1]Data!BM210+[1]Data!BU210+[1]Data!BX210+[1]Data!BY210+[1]Data!CI210)/[1]Inputs!$A$12 -> 0.4444444444 | M128: E | N128: D | O128: B | P128: D | Q128: C | R128: A | S128: E | T128: D | U128: D | V128: E | W128: C | X128: C | Y128: C | Z128: B | AA128: D | AB128: C | AC128: E | AD128: E | AE128: A | AF128: A | AG128: D | AH128: A | AI128: A | AJ128: E | AK128: D | AL128: B | AM128: C | AN128: B | AO128: B | AP128: C | AQ128: B | AR128: D | AS128: D | AT128: D | AU128: B | AV128: A | AW128: C | AX128: B | AY128: E | AZ128: D
C129: 23445 | D129: =[1]Data!C69 -> 8 | E129: =LOOKUP(D129,[1]Inputs!$B$55:$B$84,[1]Inputs!$A$55:$A$84) -> 14 | F129: =SUM([1]Data!AY69+[1]Data!BA69+[1]Data!BB69+[1]Data!BE69+[1]Data!BH69+[1]Data!BP69+[1]Data!BS69+[1]Data!BT69+[1]Data!CD69)/[1]Inputs!$A$12 -> 0.1111111111 | G129: =SUM([1]Data!AZ69+[1]Data!BB69+[1]Data!BC69+[1]Data!BF69+[1]Data!BI69+[1]Data!BQ69+[1]Data!BT69+[1]Data!BU69+[1]Data!CE69)/[1]Inputs!$A$12 -> 0.4444444444 | H129: =SUM([1]Data!BA69+[1]Data!BC69+[1]Data!BD69+[1]Data!BG69+[1]Data!BJ69+[1]Data!BR69+[1]Data!BU69+[1]Data!BV69+[1]Data!CF69)/[1]Inputs!$A$12 -> 0.1111111111 | I129: =SUM([1]Data!BB69+[1]Data!BD69+[1]Data!BE69+[1]Data!BH69+[1]Data!BK69+[1]Data!BS69+[1]Data!BV69+[1]Data!BW69+[1]Data!CG69)/[1]Inputs!$A$12 -> 0.1111111111 | J129: =SUM([1]Data!BC69+[1]Data!BE69+[1]Data!BF69+[1]Data!BI69+[1]Data!BL69+[1]Data!BT69+[1]Data!BW69+[1]Data!BX69+[1]Data!CH69)/[1]Inputs!$A$12 -> 0.2222222222 | K129: =SUM([1]Data!BD69+[1]Data!BF69+[1]Data!BG69+[1]Data!BJ69+[1]Data!BM69+[1]Data!BU69+[1]Data!BX69+[1]Data!BY69+[1]Data!CI69)/[1]Inputs!$A$12 -> 0.2222222222 | M129: A | N129: D | O129: C | P129: A | Q129: B | R129: C | S129: D | T129: D | U129: E | V129: B | W129: B | X129: C | Y129: A | Z129: A | AA129: B | AB129: B | AC129: B | AD129: B | AE129: A | AF129: D | AG129: D | AH129: C | AI129: B | AJ129: B | AK129: C | AL129: D | AM129: D | AN129: A | AO129: D | AP129: C | AQ129: E | AR129: C | AS129: B | AT129: E | AU129: C | AV129: A | AW129: B | AX129: C | AY129: C | AZ129: A
C130: 23453 | D130: =[1]Data!C164 -> 21 | E130: =LOOKUP(D130,[1]Inputs!$B$55:$B$84,[1]Inputs!$A$55:$A$84) -> 22 | F130: =SUM([1]Data!AY164+[1]Data!BA164+[1]Data!BB164+[1]Data!BE164+[1]Data!BH164+[1]Data!BP164+[1]Data!BS164+[1]Data!BT164+[1]Data!CD164)/[1]Inputs!$A$12 -> 0.3333333333 | G130: =SUM([1]Data!AZ164+[1]Data!BB164+[1]Data!BC164+[1]Data!BF164+[1]Data!BI164+[1]Data!BQ164+[1]Data!BT164+[1]Data!BU164+[1]Data!CE164)/[1]Inputs!$A$12 -> 0.2222222222 | H130: =SUM([1]Data!BA164+[1]Data!BC164+[1]Data!BD164+[1]Data!BG164+[1]Data!BJ164+[1]Data!BR164+[1]Data!BU164+[1]Data!BV164+[1]Data!CF164)/[1]Inputs!$A$12 -> 0.6666666667 | I130: =SUM([1]Data!BB164+[1]Data!BD164+[1]Data!BE164+[1]Data!BH164+[1]Data!BK164+[1]Data!BS164+[1]Data!BV164+[1]Data!BW164+[1]Data!CG164)/[1]Inputs!$A$12 -> 0.2222222222 | J130: =SUM([1]Data!BC164+[1]Data!BE164+[1]Data!BF164+[1]Data!BI164+[1]Data!BL164+[1]Data!BT164+[1]Data!BW164+[1]Data!BX164+[1]Data!CH164)/[1]Inputs!$A$12 -> 0.2222222222 | K130: =SUM([1]Data!BD164+[1]Data!BF164+[1]Data!BG164+[1]Data!BJ164+[1]Data!BM164+[1]Data!BU164+[1]Data!BX164+[1]Data!BY164+[1]Data!CI164)/[1]Inputs!$A$12 -> 0.4444444444 | M130: E | N130: B | O130: B | P130: D | Q130: B | R130: E | S130: C | T130: D | U130: E | V130: E | W130: C | X130: C | Y130: C | Z130: A | AA130: D | AB130: B | AC130: B | AD130: E | AE130: A | AF130: D | AG130: D | AH130: A | AI130: B | AJ130: A | AK130: E | AL130: C | AM130: B | AN130: D | AO130: D | AP130: D | AQ130: B | AR130: B | AS130: C | AT130: B | AU130: B | AV130: B | AW130: C | AX130: D | AY130: C | AZ130: E
C131: 23461 | D131: =[1]Data!C253 -> 13 | E131: =LOOKUP(D131,[1]Inputs!$B$55:$B$84,[1]Inputs!$A$55:$A$84) -> 17 | F131: =SUM([1]Data!AY253+[1]Data!BA253+[1]Data!BB253+[1]Data!BE253+[1]Data!BH253+[1]Data!BP253+[1]Data!BS253+[1]Data!BT253+[1]Data!CD253)/[1]Inputs!$A$12 -> 0.4444444444 | G131: =SUM([1]Data!AZ253+[1]Data!BB253+[1]Data!BC253+[1]Data!BF253+[1]Data!BI253+[1]Data!BQ253+[1]Data!BT253+[1]Data!BU253+[1]Data!CE253)/[1]Inputs!$A$12 -> 0.2222222222 | H131: =SUM([1]Data!BA253+[1]Data!BC253+[1]Data!BD253+[1]Data!BG253+[1]Data!BJ253+[1]Data!BR253+[1]Data!BU253+[1]Data!BV253+[1]Data!CF253)/[1]Inputs!$A$12 -> 0 | I131: =SUM([1]Data!BB253+[1]Data!BD253+[1]Data!BE253+[1]Data!BH253+[1]Data!BK253+[1]Data!BS253+[1]Data!BV253+[1]Data!BW253+[1]Data!CG253)/[1]Inputs!$A$12 -> 0.5555555556 | J131: =SUM([1]Data!BC253+[1]Data!BE253+[1]Data!BF253+[1]Data!BI253+[1]Data!BL253+[1]Data!BT253+[1]Data!BW253+[1]Data!BX253+[1]Data!CH253)/[1]Inputs!$A$12 -> 0.6666666667 | K131: =SUM([1]Data!BD253+[1]Data!BF253+[1]Data!BG253+[1]Data!BJ253+[1]Data!BM253+[1]Data!BU253+[1]Data!BX253+[1]Data!BY253+[1]Data!CI253)/[1]Inputs!$A$12 -> 0.4444444444 | M131: E | N131: D | O131: C | P131: E | Q131: A | R131: E | S131: E | T131: D | U131: A | V131: D | W131: C | X131: B | Y131: B | Z131: A | AA131: C | AB131: C | AC131: C | AD131: E | AE131: A | AF131: D | AG131: C | AH131: A | AI131: D | AJ131: C | AK131: A | AL131: C | AM131: C | AN131: E | AO131: D | AP131: D | AQ131: A | AR131: D | AS131: C | AT131: B | AU131: C | AV131: A | AW131: C | AX131: C | AY131: C | AZ131: D
C132: 23463 | D132: =[1]Data!C204 -> 8 | E132: =LOOKUP(D132,[1]Inputs!$B$55:$B$84,[1]Inputs!$A$55:$A$84) -> 14 | F132: =SUM([1]Data!AY204+[1]Data!BA204+[1]Data!BB204+[1]Data!BE204+[1]Data!BH204+[1]Data!BP204+[1]Data!BS204+[1]Data!BT204+[1]Data!CD204)/[1]Inputs!$A$12 -> 0.3333333333 | G132: =SUM([1]Data!AZ204+[1]Data!BB204+[1]Data!BC204+[1]Data!BF204+[1]Data!BI204+[1]Data!BQ204+[1]Data!BT204+[1]Data!BU204+[1]Data!CE204)/[1]Inputs!$A$12 -> 0.1111111111 | H132: =SUM([1]Data!BA204+[1]Data!BC204+[1]Data!BD204+[1]Data!BG204+[1]Data!BJ204+[1]Data!BR204+[1]Data!BU204+[1]Data!BV204+[1]Data!CF204)/[1]Inputs!$A$12 -> 0.1111111111 | I132: =SUM([1]Data!BB204+[1]Data!BD204+[1]Data!BE204+[1]Data!BH204+[1]Data!BK204+[1]Data!BS204+[1]Data!BV204+[1]Data!BW204+[1]Data!CG204)/[1]Inputs!$A$12 -> 0.4444444444 | J132: =SUM([1]Data!BC204+[1]Data!BE204+[1]Data!BF204+[1]Data!BI204+[1]Data!BL204+[1]Data!BT204+[1]Data!BW204+[1]Data!BX204+[1]Data!CH204)/[1]Inputs!$A$12 -> 0.3333333333 | K132: =SUM([1]Data!BD204+[1]Data!BF204+[1]Data!BG204+[1]Data!BJ204+[1]Data!BM204+[1]Data!BU204+[1]Data!BX204+[1]Data!BY204+[1]Data!CI204)/[1]Inputs!$A$12 -> 0.3333333333 | M132: A | N132: D | O132: B | P132: C | Q132: E | R132: B | S132: E | T132: D | U132: E | V132: B | W132: C | X132: B | Y132: B | Z132: A | AA132: C | AB132: A | AC132: A | AD132: A | AE132: B | AF132: A | AG132: D | AH132: D | AI132: E | AJ132: E | AK132: B | AL132: D | AM132: D | AN132: C | AO132: D | AP132: E | AQ132: A | AR132: A | AS132: D | AT132: E | AU132: C | AV132: B | AW132: B | AX132: B | AY132: C | AZ132: B
C133: 23464 | D133: =[1]Data!C80 -> 31 | E133: =LOOKUP(D133,[1]Inputs!$B$55:$B$84,[1]Inputs!$A$55:$A$84) -> 29 | F133: =SUM([1]Data!AY80+[1]Data!BA80+[1]Data!BB80+[1]Data!BE80+[1]Data!BH80+[1]Data!BP80+[1]Data!BS80+[1]Data!BT80+[1]Data!CD80)/[1]Inputs!$A$12 -> 0.6666666667 | G133: =SUM([1]Data!AZ80+[1]Data!BB80+[1]Data!BC80+[1]Data!BF80+[1]Data!BI80+[1]Data!BQ80+[1]Data!BT80+[1]Data!BU80+[1]Data!CE80)/[1]Inputs!$A$12 -> 0.7777777778 | H133: =SUM([1]Data!BA80+[1]Data!BC80+[1]Data!BD80+[1]Data!BG80+[1]Data!BJ80+[1]Data!BR80+[1]Data!BU80+[1]Data!BV80+[1]Data!CF80)/[1]Inputs!$A$12 -> 0.6666666667 | I133: =SUM([1]Data!BB80+[1]Data!BD80+[1]Data!BE80+[1]Data!BH80+[1]Data!BK80+[1]Data!BS80+[1]Data!BV80+[1]Data!BW80+[1]Data!CG80)/[1]Inputs!$A$12 -> 0.6666666667 | J133: =SUM([1]Data!BC80+[1]Data!BE80+[1]Data!BF80+[1]Data!BI80+[1]Data!BL80+[1]Data!BT80+[1]Data!BW80+[1]Data!BX80+[1]Data!CH80)/[1]Inputs!$A$12 -> 0.7777777778 | K133: =SUM([1]Data!BD80+[1]Data!BF80+[1]Data!BG80+[1]Data!BJ80+[1]Data!BM80+[1]Data!BU80+[1]Data!BX80+[1]Data!BY80+[1]Data!CI80)/[1]Inputs!$A$12 -> 0.4444444444 | M133: E | N133: B | O133: B | P133: D | Q133: A | R133: A | S133: E | T133: D | U133: D | V133: E | W133: C | X133: D | Y133: C | Z133: A | AA133: D | AB133: D | AC133: D | AD133: E | AE133: B | AF133: D | AG133: D | AH133: A | AI133: B | AJ133: D | AK133: A | AL133: D | AM133: A | AN133: B | AO133: D | AP133: D | AQ133: D | AR133: D | AS133: C | AT133: A | AU133: A | AV133: D | AW133: A | AX133: D | AY133: A | AZ133: B
C134: 23466 | D134: =[1]Data!C140 -> 9 | E134: =LOOKUP(D134,[1]Inputs!$B$55:$B$84,[1]Inputs!$A$55:$A$84) -> 15 | F134: =SUM([1]Data!AY140+[1]Data!BA140+[1]Data!BB140+[1]Data!BE140+[1]Data!BH140+[1]Data!BP140+[1]Data!BS140+[1]Data!BT140+[1]Data!CD140)/[1]Inputs!$A$12 -> 0.3333333333 | G134: =SUM([1]Data!AZ140+[1]Data!BB140+[1]Data!BC140+[1]Data!BF140+[1]Data!BI140+[1]Data!BQ140+[1]Data!BT140+[1]Data!BU140+[1]Data!CE140)/[1]Inputs!$A$12 -> 0.3333333333 | H134: =SUM([1]Data!BA140+[1]Data!BC140+[1]Data!BD140+[1]Data!BG140+[1]Data!BJ140+[1]Data!BR140+[1]Data!BU140+[1]Data!BV140+[1]Data!CF140)/[1]Inputs!$A$12 -> 0.1111111111 | I134: =SUM([1]Data!BB140+[1]Data!BD140+[1]Data!BE140+[1]Data!BH140+[1]Data!BK140+[1]Data!BS140+[1]Data!BV140+[1]Data!BW140+[1]Data!CG140)/[1]Inputs!$A$12 -> 0.3333333333 | J134: =SUM([1]Data!BC140+[1]Data!BE140+[1]Data!BF140+[1]Data!BI140+[1]Data!BL140+[1]Data!BT140+[1]Data!BW140+[1]Data!BX140+[1]Data!CH140)/[1]Inputs!$A$12 -> 0.3333333333 | K134: =SUM([1]Data!BD140+[1]Data!BF140+[1]Data!BG140+[1]Data!BJ140+[1]Data!BM140+[1]Data!BU140+[1]Data!BX140+[1]Data!BY140+[1]Data!CI140)/[1]Inputs!$A$12 -> 0.3333333333 | M134: D | N134: B | O134: B | P134: C | Q134: E | R134: B | S134: C | T134: D | U134: D | V134: E | W134: A | X134: B | Y134: B | Z134: B | AA134: D | AB134: D | AC134: C | AD134: E | AE134: A | AF134: E | AG134: E | AH134: A | AI134: C | AJ134: A | AK134: C | AL134: C | AM134: D | AN134: D | AO134: A | AP134: A | AQ134: B | AR134: C | AS134: A | AT134: D | AU134: B | AV134: C | AW134: B | AX134: E | AY134: B | AZ134: C
C135: 23472 | D135: =[1]Data!C86 -> 17 | E135: =LOOKUP(D135,[1]Inputs!$B$55:$B$84,[1]Inputs!$A$55:$A$84) -> 19 | F135: =SUM([1]Data!AY86+[1]Data!BA86+[1]Data!BB86+[1]Data!BE86+[1]Data!BH86+[1]Data!BP86+[1]Data!BS86+[1]Data!BT86+[1]Data!CD86)/[1]Inputs!$A$12 -> 0.3333333333 | G135: =SUM([1]Data!AZ86+[1]Data!BB86+[1]Data!BC86+[1]Data!BF86+[1]Data!BI86+[1]Data!BQ86+[1]Data!BT86+[1]Data!BU86+[1]Data!CE86)/[1]Inputs!$A$12 -> 0.4444444444 | H135: =SUM([1]Data!BA86+[1]Data!BC86+[1]Data!BD86+[1]Data!BG86+[1]Data!BJ86+[1]Data!BR86+[1]Data!BU86+[1]Data!BV86+[1]Data!CF86)/[1]Inputs!$A$12 -> 0.7777777778 | I135: =SUM([1]Data!BB86+[1]Data!BD86+[1]Data!BE86+[1]Data!BH86+[1]Data!BK86+[1]Data!BS86+[1]Data!BV86+[1]Data!BW86+[1]Data!CG86)/[1]Inputs!$A$12 -> 0.4444444444 | J135: =SUM([1]Data!BC86+[1]Data!BE86+[1]Data!BF86+[1]Data!BI86+[1]Data!BL86+[1]Data!BT86+[1]Data!BW86+[1]Data!BX86+[1]Data!CH86)/[1]Inputs!$A$12 -> 0.3333333333 | K135: =SUM([1]Data!BD86+[1]Data!BF86+[1]Data!BG86+[1]Data!BJ86+[1]Data!BM86+[1]Data!BU86+[1]Data!BX86+[1]Data!BY86+[1]Data!CI86)/[1]Inputs!$A$12 -> 0.5555555556 | M135: D | N135: B | O135: B | P135: C | Q135: C | R135: A | S135: E | T135: D | U135: D | V135: E | W135: C | X135: C | Y135: C | Z135: C | AA135: E | AB135: D | AC135: D | AD135: E | AE135: B | AF135: D | AG135: E | AH135: C | AI135: C | AJ135: A | AK135: B | AL135: D | AM135: E | AN135: B | AO135: D | AP135: C | AQ135: A | AR135: B | AS135: D | AT135: C | AU135: B | AV135: B | AW135: B | AX135: D | AY135: B | AZ135: D
C136: 23475 | D136: =[1]Data!C176 -> 7 | E136: =LOOKUP(D136,[1]Inputs!$B$55:$B$84,[1]Inputs!$A$55:$A$84) -> 14 | F136: =SUM([1]Data!AY176+[1]Data!BA176+[1]Data!BB176+[1]Data!BE176+[1]Data!BH176+[1]Data!BP176+[1]Data!BS176+[1]Data!BT176+[1]Data!CD176)/[1]Inputs!$A$12 -> 0 | G136: =SUM([1]Data!AZ176+[1]Data!BB176+[1]Data!BC176+[1]Data!BF176+[1]Data!BI176+[1]Data!BQ176+[1]Data!BT176+[1]Data!BU176+[1]Data!CE176)/[1]Inputs!$A$12 -> 0.3333333333 | H136: =SUM([1]Data!BA176+[1]Data!BC176+[1]Data!BD176+[1]Data!BG176+[1]Data!BJ176+[1]Data!BR176+[1]Data!BU176+[1]Data!BV176+[1]Data!CF176)/[1]Inputs!$A$12 -> 0.3333333333 | I136: =SUM([1]Data!BB176+[1]Data!BD176+[1]Data!BE176+[1]Data!BH176+[1]Data!BK176+[1]Data!BS176+[1]Data!BV176+[1]Data!BW176+[1]Data!CG176)/[1]Inputs!$A$12 -> 0.1111111111 | J136: =SUM([1]Data!BC176+[1]Data!BE176+[1]Data!BF176+[1]Data!BI176+[1]Data!BL176+[1]Data!BT176+[1]Data!BW176+[1]Data!BX176+[1]Data!CH176)/[1]Inputs!$A$12 -> 0.1111111111 | K136: =SUM([1]Data!BD176+[1]Data!BF176+[1]Data!BG176+[1]Data!BJ176+[1]Data!BM176+[1]Data!BU176+[1]Data!BX176+[1]Data!BY176+[1]Data!CI176)/[1]Inputs!$A$12 -> 0.3333333333 | M136: B | N136: B | O136: C | P136: A | Q136: B | R136: C | S136: D | T136: D | U136: E | V136: C | W136: A | X136: C | Y136: B | Z136: E | AA136: B | AB136: B | AC136: D | AD136: D | AE136: A | AF136: D | AG136: E | AH136: B | AI136: C | AJ136: A | AK136: E | AL136: D | AM136: D | AN136: B | AO136: B | AP136: A | AQ136: A | AR136: C | AS136: C | AT136: D | AU136: B | AV136: A | AW136: E | AX136: B | AY136: D | AZ136: C
C137: 23491 | D137: =[1]Data!C108 -> 18 | E137: =LOOKUP(D137,[1]Inputs!$B$55:$B$84,[1]Inputs!$A$55:$A$84) -> 19 | F137: =SUM([1]Data!AY108+[1]Data!BA108+[1]Data!BB108+[1]Data!BE108+[1]Data!BH108+[1]Data!BP108+[1]Data!BS108+[1]Data!BT108+[1]Data!CD108)/[1]Inputs!$A$12 -> 0.5555555556 | G137: =SUM([1]Data!AZ108+[1]Data!BB108+[1]Data!BC108+[1]Data!BF108+[1]Data!BI108+[1]Data!BQ108+[1]Data!BT108+[1]Data!BU108+[1]Data!CE108)/[1]Inputs!$A$12 -> 0.4444444444 | H137: =SUM([1]Data!BA108+[1]Data!BC108+[1]Data!BD108+[1]Data!BG108+[1]Data!BJ108+[1]Data!BR108+[1]Data!BU108+[1]Data!BV108+[1]Data!CF108)/[1]Inputs!$A$12 -> 0.2222222222 | I137: =SUM([1]Data!BB108+[1]Data!BD108+[1]Data!BE108+[1]Data!BH108+[1]Data!BK108+[1]Data!BS108+[1]Data!BV108+[1]Data!BW108+[1]Data!CG108)/[1]Inputs!$A$12 -> 0.3333333333 | J137: =SUM([1]Data!BC108+[1]Data!BE108+[1]Data!BF108+[1]Data!BI108+[1]Data!BL108+[1]Data!BT108+[1]Data!BW108+[1]Data!BX108+[1]Data!CH108)/[1]Inputs!$A$12 -> 0.5555555556 | K137: =SUM([1]Data!BD108+[1]Data!BF108+[1]Data!BG108+[1]Data!BJ108+[1]Data!BM108+[1]Data!BU108+[1]Data!BX108+[1]Data!BY108+[1]Data!CI108)/[1]Inputs!$A$12 -> 0.2222222222 | M137: E | N137: D | O137: D | P137: D | Q137: A | R137: A | S137: E | T137: D | U137: E | V137: E | W137: C | X137: D | Y137: C | Z137: D | AA137: E | AB137: D | AC137: B | AD137: D | AE137: B | AF137: A | AG137: D | AH137: B | AI137: C | AJ137: E | AK137: D | AL137: E | AM137: D | AN137: E | AO137: C | AP137: B | AQ137: B | AR137: B | AS137: C | AT137: C | AU137: D | AV137: B | AW137: C | AX137: B | AY137: D | AZ137: C
C138: 23496 | D138: =[1]Data!C205 -> 8 | E138: =LOOKUP(D138,[1]Inputs!$B$55:$B$84,[1]Inputs!$A$55:$A$84) -> 14 | F138: =SUM([1]Data!AY205+[1]Data!BA205+[1]Data!BB205+[1]Data!BE205+[1]Data!BH205+[1]Data!BP205+[1]Data!BS205+[1]Data!BT205+[1]Data!CD205)/[1]Inputs!$A$12 -> 0.1111111111 | G138: =SUM([1]Data!AZ205+[1]Data!BB205+[1]Data!BC205+[1]Data!BF205+[1]Data!BI205+[1]Data!BQ205+[1]Data!BT205+[1]Data!BU205+[1]Data!CE205)/[1]Inputs!$A$12 -> 0.3333333333 | H138: =SUM([1]Data!BA205+[1]Data!BC205+[1]Data!BD205+[1]Data!BG205+[1]Data!BJ205+[1]Data!BR205+[1]Data!BU205+[1]Data!BV205+[1]Data!CF205)/[1]Inputs!$A$12 -> 0.3333333333 | I138: =SUM([1]Data!BB205+[1]Data!BD205+[1]Data!BE205+[1]Data!BH205+[1]Data!BK205+[1]Data!BS205+[1]Data!BV205+[1]Data!BW205+[1]Data!CG205)/[1]Inputs!$A$12 -> 0.2222222222 | J138: =SUM([1]Data!BC205+[1]Data!BE205+[1]Data!BF205+[1]Data!BI205+[1]Data!BL205+[1]Data!BT205+[1]Data!BW205+[1]Data!BX205+[1]Data!CH205)/[1]Inputs!$A$12 -> 0.5555555556 | K138: =SUM([1]Data!BD205+[1]Data!BF205+[1]Data!BG205+[1]Data!BJ205+[1]Data!BM205+[1]Data!BU205+[1]Data!BX205+[1]Data!BY205+[1]Data!CI205)/[1]Inputs!$A$12 -> 0.3333333333 | M138: B | N138: D | O138: A | P138: C | Q138: E | R138: A | S138: A | T138: D | U138: E | V138: B | W138: C | X138: B | Y138: D | Z138: A | AA138: D | AB138: A | AC138: B | AD138: C | AE138: A | AF138: B | AG138: B | AH138: D | AI138: C | AJ138: E | AK138: D | AL138: C | AM138: B | AN138: B | AO138: B | AP138: C | AQ138: A | AR138: C | AS138: E | AT138: A | AU138: A | AV138: A | AW138: D | AX138: C | AY138: B | AZ138: A
C139: 23499 | D139: =[1]Data!C238 -> 11 | E139: =LOOKUP(D139,[1]Inputs!$B$55:$B$84,[1]Inputs!$A$55:$A$84) -> 16 | F139: =SUM([1]Data!AY238+[1]Data!BA238+[1]Data!BB238+[1]Data!BE238+[1]Data!BH238+[1]Data!BP238+[1]Data!BS238+[1]Data!BT238+[1]Data!CD238)/[1]Inputs!$A$12 -> 0.2222222222 | G139: =SUM([1]Data!AZ238+[1]Data!BB238+[1]Data!BC238+[1]Data!BF238+[1]Data!BI238+[1]Data!BQ238+[1]Data!BT238+[1]Data!BU238+[1]Data!CE238)/[1]Inputs!$A$12 -> 0.5555555556 | H139: =SUM([1]Data!BA238+[1]Data!BC238+[1]Data!BD238+[1]Data!BG238+[1]Data!BJ238+[1]Data!BR238+[1]Data!BU238+[1]Data!BV238+[1]Data!CF238)/[1]Inputs!$A$12 -> 0.1111111111 | I139: =SUM([1]Data!BB238+[1]Data!BD238+[1]Data!BE238+[1]Data!BH238+[1]Data!BK238+[1]Data!BS238+[1]Data!BV238+[1]Data!BW238+[1]Data!CG238)/[1]Inputs!$A$12 -> 0.1111111111 | J139: =SUM([1]Data!BC238+[1]Data!BE238+[1]Data!BF238+[1]Data!BI238+[1]Data!BL238+[1]Data!BT238+[1]Data!BW238+[1]Data!BX238+[1]Data!CH238)/[1]Inputs!$A$12 -> 0.3333333333 | K139: =SUM([1]Data!BD238+[1]Data!BF238+[1]Data!BG238+[1]Data!BJ238+[1]Data!BM238+[1]Data!BU238+[1]Data!BX238+[1]Data!BY238+[1]Data!CI238)/[1]Inputs!$A$12 -> 0.3333333333 | M139: E | N139: B | O139: B | P139: D | Q139: A | R139: E | S139: E | T139: D | U139: D | V139: E | W139: A | X139: B | Y139: B | Z139: C | AA139: B | AB139: B | AC139: C | AD139: A | AE139: A | AF139: A | AG139: E | AH139: E | AI139: A | AJ139: D | AK139: C | AL139: C | AM139: D | AN139: B | AO139: B | AP139: C | AQ139: D | AR139: B | AS139: D | AT139: B | AU139: C | AV139: A | AW139: D | AX139: E | AY139: C | AZ139: A
C140: 23501 | D140: =[1]Data!C225 -> 9 | E140: =LOOKUP(D140,[1]Inputs!$B$55:$B$84,[1]Inputs!$A$55:$A$84) -> 15 | F140: =SUM([1]Data!AY225+[1]Data!BA225+[1]Data!BB225+[1]Data!BE225+[1]Data!BH225+[1]Data!BP225+[1]Data!BS225+[1]Data!BT225+[1]Data!CD225)/[1]Inputs!$A$12 -> 0.3333333333 | G140: =SUM([1]Data!AZ225+[1]Data!BB225+[1]Data!BC225+[1]Data!BF225+[1]Data!BI225+[1]Data!BQ225+[1]Data!BT225+[1]Data!BU225+[1]Data!CE225)/[1]Inputs!$A$12 -> 0.5555555556 | H140: =SUM([1]Data!BA225+[1]Data!BC225+[1]Data!BD225+[1]Data!BG225+[1]Data!BJ225+[1]Data!BR225+[1]Data!BU225+[1]Data!BV225+[1]Data!CF225)/[1]Inputs!$A$12 -> 0.3333333333 | I140: =SUM([1]Data!BB225+[1]Data!BD225+[1]Data!BE225+[1]Data!BH225+[1]Data!BK225+[1]Data!BS225+[1]Data!BV225+[1]Data!BW225+[1]Data!CG225)/[1]Inputs!$A$12 -> 0.3333333333 | J140: =SUM([1]Data!BC225+[1]Data!BE225+[1]Data!BF225+[1]Data!BI225+[1]Data!BL225+[1]Data!BT225+[1]Data!BW225+[1]Data!BX225+[1]Data!CH225)/[1]Inputs!$A$12 -> 0.4444444444 | K140: =SUM([1]Data!BD225+[1]Data!BF225+[1]Data!BG225+[1]Data!BJ225+[1]Data!BM225+[1]Data!BU225+[1]Data!BX225+[1]Data!BY225+[1]Data!CI225)/[1]Inputs!$A$12 -> 0.1111111111 | M140: C | N140: D | O140: B | P140: D | Q140: B | R140: E | S140: C | T140: D | U140: E | V140: E | W140: C | X140: D | Y140: B | Z140: B | AA140: C | AB140: D | AC140: B | AD140: D | AE140: A | AF140: D | AG140: D | AH140: C | AI140: C | AJ140: A | AK140: B | AL140: D | AM140: D | AN140: A | AO140: C | AP140: A | AQ140: C | AR140: A | AS140: E | AT140: A | AU140: B | AV140: A | AW140: C | AX140: B | AY140: D | AZ140: A
C141: 23502 | D141: =[1]Data!C60 -> 25 | E141: =LOOKUP(D141,[1]Inputs!$B$55:$B$84,[1]Inputs!$A$55:$A$84) -> 25 | F141: =SUM([1]Data!AY60+[1]Data!BA60+[1]Data!BB60+[1]Data!BE60+[1]Data!BH60+[1]Data!BP60+[1]Data!BS60+[1]Data!BT60+[1]Data!CD60)/[1]Inputs!$A$12 -> 0.3333333333 | G141: =SUM([1]Data!AZ60+[1]Data!BB60+[1]Data!BC60+[1]Data!BF60+[1]Data!BI60+[1]Data!BQ60+[1]Data!BT60+[1]Data!BU60+[1]Data!CE60)/[1]Inputs!$A$12 -> 0.4444444444 | H141: =SUM([1]Data!BA60+[1]Data!BC60+[1]Data!BD60+[1]Data!BG60+[1]Data!BJ60+[1]Data!BR60+[1]Data!BU60+[1]Data!BV60+[1]Data!CF60)/[1]Inputs!$A$12 -> 0.1111111111 | I141: =SUM([1]Data!BB60+[1]Data!BD60+[1]Data!BE60+[1]Data!BH60+[1]Data!BK60+[1]Data!BS60+[1]Data!BV60+[1]Data!BW60+[1]Data!CG60)/[1]Inputs!$A$12 -> 0.2222222222 | J141: =SUM([1]Data!BC60+[1]Data!BE60+[1]Data!BF60+[1]Data!BI60+[1]Data!BL60+[1]Data!BT60+[1]Data!BW60+[1]Data!BX60+[1]Data!CH60)/[1]Inputs!$A$12 -> 0.4444444444 | K141: =SUM([1]Data!BD60+[1]Data!BF60+[1]Data!BG60+[1]Data!BJ60+[1]Data!BM60+[1]Data!BU60+[1]Data!BX60+[1]Data!BY60+[1]Data!CI60)/[1]Inputs!$A$12 -> 0.1111111111 | M141: E | N141: D | O141: B | P141: D | Q141: A | R141: A | S141: E | T141: D | U141: E | V141: D | W141: B | X141: C | Y141: C | Z141: A | AA141: E | AB141: D | AC141: A | AD141: E | AE141: B | AF141: D | AG141: D | AH141: B | AI141: C | AJ141: D | AK141: A | AL141: E | AM141: E | AN141: E | AO141: D | AP141: D | AQ141: E | AR141: A | AS141: C | AT141: A | AU141: B | AV141: A | AW141: D | AX141: D | AY141: E | AZ141: C
C142: 23506 | D142: =[1]Data!C242 -> 11 | E142: =LOOKUP(D142,[1]Inputs!$B$55:$B$84,[1]Inputs!$A$55:$A$84) -> 16 | F142: =SUM([1]Data!AY242+[1]Data!BA242+[1]Data!BB242+[1]Data!BE242+[1]Data!BH242+[1]Data!BP242+[1]Data!BS242+[1]Data!BT242+[1]Data!CD242)/[1]Inputs!$A$12 -> 0.4444444444 | G142: =SUM([1]Data!AZ242+[1]Data!BB242+[1]Data!BC242+[1]Data!BF242+[1]Data!BI242+[1]Data!BQ242+[1]Data!BT242+[1]Data!BU242+[1]Data!CE242)/[1]Inputs!$A$12 -> 0 | H142: =SUM([1]Data!BA242+[1]Data!BC242+[1]Data!BD242+[1]Data!BG242+[1]Data!BJ242+[1]Data!BR242+[1]Data!BU242+[1]Data!BV242+[1]Data!CF242)/[1]Inputs!$A$12 -> 0.3333333333 | I142: =SUM([1]Data!BB242+[1]Data!BD242+[1]Data!BE242+[1]Data!BH242+[1]Data!BK242+[1]Data!BS242+[1]Data!BV242+[1]Data!BW242+[1]Data!CG242)/[1]Inputs!$A$12 -> 0.5555555556 | J142: =SUM([1]Data!BC242+[1]Data!BE242+[1]Data!BF242+[1]Data!BI242+[1]Data!BL242+[1]Data!BT242+[1]Data!BW242+[1]Data!BX242+[1]Data!CH242)/[1]Inputs!$A$12 -> 0 | K142: =SUM([1]Data!BD242+[1]Data!BF242+[1]Data!BG242+[1]Data!BJ242+[1]Data!BM242+[1]Data!BU242+[1]Data!BX242+[1]Data!BY242+[1]Data!CI242)/[1]Inputs!$A$12 -> 0.2222222222 | M142: D | N142: B | O142: B | P142: E | Q142: C | R142: E | S142: C | T142: C | U142: E | V142: E | W142: A | X142: D | Y142: B | Z142: B | AA142: B | AB142: B | AC142: D | AD142: A | AE142: B | AF142: A | AG142: D | AH142: A | AI142: D | AJ142: A | AK142: A | AL142: B | AM142: D | AN142: C | AO142: C | AP142: D | AQ142: B | AR142: C | AS142: C | AT142: A | AU142: B | AV142: E | AW142: B | AX142: C | AY142: D | AZ142: A
C143: 23508 | D143: =[1]Data!C208 -> 18 | E143: =LOOKUP(D143,[1]Inputs!$B$55:$B$84,[1]Inputs!$A$55:$A$84) -> 19 | F143: =SUM([1]Data!AY208+[1]Data!BA208+[1]Data!BB208+[1]Data!BE208+[1]Data!BH208+[1]Data!BP208+[1]Data!BS208+[1]Data!BT208+[1]Data!CD208)/[1]Inputs!$A$12 -> 0.3333333333 | G143: =SUM([1]Data!AZ208+[1]Data!BB208+[1]Data!BC208+[1]Data!BF208+[1]Data!BI208+[1]Data!BQ208+[1]Data!BT208+[1]Data!BU208+[1]Data!CE208)/[1]Inputs!$A$12 -> 0.3333333333 | H143: =SUM([1]Data!BA208+[1]Data!BC208+[1]Data!BD208+[1]Data!BG208+[1]Data!BJ208+[1]Data!BR208+[1]Data!BU208+[1]Data!BV208+[1]Data!CF208)/[1]Inputs!$A$12 -> 0.1111111111 | I143: =SUM([1]Data!BB208+[1]Data!BD208+[1]Data!BE208+[1]Data!BH208+[1]Data!BK208+[1]Data!BS208+[1]Data!BV208+[1]Data!BW208+[1]Data!CG208)/[1]Inputs!$A$12 -> 0.4444444444 | J143: =SUM([1]Data!BC208+[1]Data!BE208+[1]Data!BF208+[1]Data!BI208+[1]Data!BL208+[1]Data!BT208+[1]Data!BW208+[1]Data!BX208+[1]Data!CH208)/[1]Inputs!$A$12 -> 0.3333333333 | K143: =SUM([1]Data!BD208+[1]Data!BF208+[1]Data!BG208+[1]Data!BJ208+[1]Data!BM208+[1]Data!BU208+[1]Data!BX208+[1]Data!BY208+[1]Data!CI208)/[1]Inputs!$A$12 -> 0.2222222222 | M143: E | N143: B | O143: B | P143: C | Q143: B | R143: E | S143: E | T143: D | U143: D | V143: E | W143: C | X143: C | Y143: B | Z143: A | AA143: B | AB143: D | AC143: D | AD143: E | AE143: A | AF143: D | AG143: D | AH143: A | AI143: E | AJ143: D | AK143: C | AL143: D | AM143: C | AN143: D | AO143: D | AP143: A | AQ143: D | AR143: B | AS143: A | AT143: B | AU143: B | AV143: A | AW143: D | AX143: C | AY143: C | AZ143: B
C144: 23509 | D144: =[1]Data!C203 -> 16 | E144: =LOOKUP(D144,[1]Inputs!$B$55:$B$84,[1]Inputs!$A$55:$A$84) -> 18 | F144: =SUM([1]Data!AY203+[1]Data!BA203+[1]Data!BB203+[1]Data!BE203+[1]Data!BH203+[1]Data!BP203+[1]Data!BS203+[1]Data!BT203+[1]Data!CD203)/[1]Inputs!$A$12 -> 0.5555555556 | G144: =SUM([1]Data!AZ203+[1]Data!BB203+[1]Data!BC203+[1]Data!BF203+[1]Data!BI203+[1]Data!BQ203+[1]Data!BT203+[1]Data!BU203+[1]Data!CE203)/[1]Inputs!$A$12 -> 0.3333333333 | H144: =SUM([1]Data!BA203+[1]Data!BC203+[1]Data!BD203+[1]Data!BG203+[1]Data!BJ203+[1]Data!BR203+[1]Data!BU203+[1]Data!BV203+[1]Data!CF203)/[1]Inputs!$A$12 -> 0.5555555556 | I144: =SUM([1]Data!BB203+[1]Data!BD203+[1]Data!BE203+[1]Data!BH203+[1]Data!BK203+[1]Data!BS203+[1]Data!BV203+[1]Data!BW203+[1]Data!CG203)/[1]Inputs!$A$12 -> 0.5555555556 | J144: =SUM([1]Data!BC203+[1]Data!BE203+[1]Data!BF203+[1]Data!BI203+[1]Data!BL203+[1]Data!BT203+[1]Data!BW203+[1]Data!BX203+[1]Data!CH203)/[1]Inputs!$A$12 -> 0.3333333333 | K144: =SUM([1]Data!BD203+[1]Data!BF203+[1]Data!BG203+[1]Data!BJ203+[1]Data!BM203+[1]Data!BU203+[1]Data!BX203+[1]Data!BY203+[1]Data!CI203)/[1]Inputs!$A$12 -> 0.3333333333 | M144: E | N144: C | O144: B | P144: D | Q144: A | R144: A | S144: A | T144: D | U144: E | V144: E | W144: C | X144: C | Y144: C | Z144: A | AA144: A | AB144: C | AC144: B | AD144: D | AE144: A | AF144: D | AG144: E | AH144: A | AI144: A | AJ144: A | AK144: E | AL144: B | AM144: A | AN144: E | AO144: D | AP144: A | AQ144: D | AR144: B | AS144: A | AT144: A | AU144: E | AV144: A | AW144: B | AX144: B | AY144: C | AZ144: B
C145: 23563 | D145: =[1]Data!C243 -> 14 | E145: =LOOKUP(D145,[1]Inputs!$B$55:$B$84,[1]Inputs!$A$55:$A$84) -> 17 | F145: =SUM([1]Data!AY243+[1]Data!BA243+[1]Data!BB243+[1]Data!BE243+[1]Data!BH243+[1]Data!BP243+[1]Data!BS243+[1]Data!BT243+[1]Data!CD243)/[1]Inputs!$A$12 -> 0.4444444444 | G145: =SUM([1]Data!AZ243+[1]Data!BB243+[1]Data!BC243+[1]Data!BF243+[1]Data!BI243+[1]Data!BQ243+[1]Data!BT243+[1]Data!BU243+[1]Data!CE243)/[1]Inputs!$A$12 -> 0.3333333333 | H145: =SUM([1]Data!BA243+[1]Data!BC243+[1]Data!BD243+[1]Data!BG243+[1]Data!BJ243+[1]Data!BR243+[1]Data!BU243+[1]Data!BV243+[1]Data!CF243)/[1]Inputs!$A$12 -> 0.2222222222 | I145: =SUM([1]Data!BB243+[1]Data!BD243+[1]Data!BE243+[1]Data!BH243+[1]Data!BK243+[1]Data!BS243+[1]Data!BV243+[1]Data!BW243+[1]Data!CG243)/[1]Inputs!$A$12 -> 0.3333333333 | J145: =SUM([1]Data!BC243+[1]Data!BE243+[1]Data!BF243+[1]Data!BI243+[1]Data!BL243+[1]Data!BT243+[1]Data!BW243+[1]Data!BX243+[1]Data!CH243)/[1]Inputs!$A$12 -> 0.3333333333 | K145: =SUM([1]Data!BD243+[1]Data!BF243+[1]Data!BG243+[1]Data!BJ243+[1]Data!BM243+[1]Data!BU243+[1]Data!BX243+[1]Data!BY243+[1]Data!CI243)/[1]Inputs!$A$12 -> 0.2222222222 | M145: A | N145: D | O145: B | P145: C | Q145: C | R145: E | S145: A | T145: D | U145: E | V145: E | W145: B | X145: C | Y145: B | Z145: A | AA145: E | AB145: B | AC145: D | AD145: B | AE145: B | AF145: D | AG145: D | AH145: C | AI145: B | AJ145: A | AK145: D | AL145: E | AM145: C | AN145: B | AO145: C | AP145: A | AQ145: C | AR145: B | AS145: E | AT145: D | AU145: C | AV145: B | AW145: D | AX145: A | AY145: E | AZ145: D
C146: 23564 | D146: =[1]Data!C76 -> 11 | E146: =LOOKUP(D146,[1]Inputs!$B$55:$B$84,[1]Inputs!$A$55:$A$84) -> 16 | F146: =SUM([1]Data!AY76+[1]Data!BA76+[1]Data!BB76+[1]Data!BE76+[1]Data!BH76+[1]Data!BP76+[1]Data!BS76+[1]Data!BT76+[1]Data!CD76)/[1]Inputs!$A$12 -> 0.2222222222 | G146: =SUM([1]Data!AZ76+[1]Data!BB76+[1]Data!BC76+[1]Data!BF76+[1]Data!BI76+[1]Data!BQ76+[1]Data!BT76+[1]Data!BU76+[1]Data!CE76)/[1]Inputs!$A$12 -> 0.2222222222 | H146: =SUM([1]Data!BA76+[1]Data!BC76+[1]Data!BD76+[1]Data!BG76+[1]Data!BJ76+[1]Data!BR76+[1]Data!BU76+[1]Data!BV76+[1]Data!CF76)/[1]Inputs!$A$12 -> 0.3333333333 | I146: =SUM([1]Data!BB76+[1]Data!BD76+[1]Data!BE76+[1]Data!BH76+[1]Data!BK76+[1]Data!BS76+[1]Data!BV76+[1]Data!BW76+[1]Data!CG76)/[1]Inputs!$A$12 -> 0.1111111111 | J146: =SUM([1]Data!BC76+[1]Data!BE76+[1]Data!BF76+[1]Data!BI76+[1]Data!BL76+[1]Data!BT76+[1]Data!BW76+[1]Data!BX76+[1]Data!CH76)/[1]Inputs!$A$12 -> 0.2222222222 | K146: =SUM([1]Data!BD76+[1]Data!BF76+[1]Data!BG76+[1]Data!BJ76+[1]Data!BM76+[1]Data!BU76+[1]Data!BX76+[1]Data!BY76+[1]Data!CI76)/[1]Inputs!$A$12 -> 0.2222222222 | M146: B | N146: B | O146: B | P146: E | Q146: D | R146: B | S146: A | T146: D | U146: E | V146: C | W146: A | X146: C | Y146: B | Z146: D | AA146: B | AB146: B | AC146: D | AD146: A | AE146: C | AF146: D | AG146: D | AH146: E | AI146: A | AJ146: A | AK146: B | AL146: A | AM146: D | AN146: B | AO146: D | AP146: D | AQ146: E | AR146: A | AS146: D | AT146: C | AU146: B | AV146: B | AW146: C | AX146: E | AY146: A | AZ146: A
C147: 23569 | D147: =[1]Data!C179 -> 19 | E147: =LOOKUP(D147,[1]Inputs!$B$55:$B$84,[1]Inputs!$A$55:$A$84) -> 20 | F147: =SUM([1]Data!AY179+[1]Data!BA179+[1]Data!BB179+[1]Data!BE179+[1]Data!BH179+[1]Data!BP179+[1]Data!BS179+[1]Data!BT179+[1]Data!CD179)/[1]Inputs!$A$12 -> 0.5555555556 | G147: =SUM([1]Data!AZ179+[1]Data!BB179+[1]Data!BC179+[1]Data!BF179+[1]Data!BI179+[1]Data!BQ179+[1]Data!BT179+[1]Data!BU179+[1]Data!CE179)/[1]Inputs!$A$12 -> 0.4444444444 | H147: =SUM([1]Data!BA179+[1]Data!BC179+[1]Data!BD179+[1]Data!BG179+[1]Data!BJ179+[1]Data!BR179+[1]Data!BU179+[1]Data!BV179+[1]Data!CF179)/[1]Inputs!$A$12 -> 0.6666666667 | I147: =SUM([1]Data!BB179+[1]Data!BD179+[1]Data!BE179+[1]Data!BH179+[1]Data!BK179+[1]Data!BS179+[1]Data!BV179+[1]Data!BW179+[1]Data!CG179)/[1]Inputs!$A$12 -> 0.6666666667 | J147: =SUM([1]Data!BC179+[1]Data!BE179+[1]Data!BF179+[1]Data!BI179+[1]Data!BL179+[1]Data!BT179+[1]Data!BW179+[1]Data!BX179+[1]Data!CH179)/[1]Inputs!$A$12 -> 0.5555555556 | K147: =SUM([1]Data!BD179+[1]Data!BF179+[1]Data!BG179+[1]Data!BJ179+[1]Data!BM179+[1]Data!BU179+[1]Data!BX179+[1]Data!BY179+[1]Data!CI179)/[1]Inputs!$A$12 -> 0.6666666667 | M147: C | N147: C | O147: B | P147: C | Q147: C | R147: A | S147: E | T147: D | U147: D | V147: E | W147: C | X147: E | Y147: B | Z147: A | AA147: D | AB147: B | AC147: D | AD147: D | AE147: B | AF147: E | AG147: D | AH147: A | AI147: D | AJ147: C | AK147: A | AL147: B | AM147: D | AN147: E | AO147: B | AP147: D | AQ147: E | AR147: D | AS147: A | AT147: A | AU147: C | AV147: A | AW147: D | AX147: D | AY147: A | AZ147: C
C148: 23639 | D148: =[1]Data!C178 -> 24 | E148: =LOOKUP(D148,[1]Inputs!$B$55:$B$84,[1]Inputs!$A$55:$A$84) -> 24 | F148: =SUM([1]Data!AY178+[1]Data!BA178+[1]Data!BB178+[1]Data!BE178+[1]Data!BH178+[1]Data!BP178+[1]Data!BS178+[1]Data!BT178+[1]Data!CD178)/[1]Inputs!$A$12 -> 0.1111111111 | G148: =SUM([1]Data!AZ178+[1]Data!BB178+[1]Data!BC178+[1]Data!BF178+[1]Data!BI178+[1]Data!BQ178+[1]Data!BT178+[1]Data!BU178+[1]Data!CE178)/[1]Inputs!$A$12 -> 0.2222222222 | H148: =SUM([1]Data!BA178+[1]Data!BC178+[1]Data!BD178+[1]Data!BG178+[1]Data!BJ178+[1]Data!BR178+[1]Data!BU178+[1]Data!BV178+[1]Data!CF178)/[1]Inputs!$A$12 -> 0 | I148: =SUM([1]Data!BB178+[1]Data!BD178+[1]Data!BE178+[1]Data!BH178+[1]Data!BK178+[1]Data!BS178+[1]Data!BV178+[1]Data!BW178+[1]Data!CG178)/[1]Inputs!$A$12 -> 0.1111111111 | J148: =SUM([1]Data!BC178+[1]Data!BE178+[1]Data!BF178+[1]Data!BI178+[1]Data!BL178+[1]Data!BT178+[1]Data!BW178+[1]Data!BX178+[1]Data!CH178)/[1]Inputs!$A$12 -> 0.2222222222 | K148: =SUM([1]Data!BD178+[1]Data!BF178+[1]Data!BG178+[1]Data!BJ178+[1]Data!BM178+[1]Data!BU178+[1]Data!BX178+[1]Data!BY178+[1]Data!CI178)/[1]Inputs!$A$12 -> 0.1111111111 | M148: B | N148: B | O148: B | P148: D | Q148: D | R148: A | S148: A | T148: D | U148: D | V148: E | W148: C | X148: E | Y148: C | Z148: A | AA148: D | AB148: D | AC148: A | AD148: E | AE148: B | AF148: A | AG148: D | AH148: A | AI148: B | AJ148: D | AK148: A | AL148: B | AM148: A | AN148: E | AO148: C | AP148: D | AQ148: A | AR148: B | AS148: A | AT148: A | AU148: B | AV148: A | AW148: B | AX148: A | AY148: C | AZ148: C
C149: =[1]Data!E47 -> 23641 | D149: 20 | E149: =LOOKUP(D149,[1]Inputs!$B$55:$B$84,[1]Inputs!$A$55:$A$84) -> 21 | F149: =SUM([1]Data!AY47+[1]Data!BA47+[1]Data!BB47+[1]Data!BE47+[1]Data!BH47+[1]Data!BP47+[1]Data!BS47+[1]Data!BT47+[1]Data!CD47)/[1]Inputs!$A$12 -> 0.6666666667 | G149: =SUM([1]Data!AZ47+[1]Data!BB47+[1]Data!BC47+[1]Data!BF47+[1]Data!BI47+[1]Data!BQ47+[1]Data!BT47+[1]Data!BU47+[1]Data!CE47)/[1]Inputs!$A$12 -> 0.1111111111 | H149: =SUM([1]Data!BA47+[1]Data!BC47+[1]Data!BD47+[1]Data!BG47+[1]Data!BJ47+[1]Data!BR47+[1]Data!BU47+[1]Data!BV47+[1]Data!CF47)/[1]Inputs!$A$12 -> 0.4444444444 | I149: =SUM([1]Data!BB47+[1]Data!BD47+[1]Data!BE47+[1]Data!BH47+[1]Data!BK47+[1]Data!BS47+[1]Data!BV47+[1]Data!BW47+[1]Data!CG47)/[1]Inputs!$A$12 -> 0.4444444444 | J149: =SUM([1]Data!BC47+[1]Data!BE47+[1]Data!BF47+[1]Data!BI47+[1]Data!BL47+[1]Data!BT47+[1]Data!BW47+[1]Data!BX47+[1]Data!CH47)/[1]Inputs!$A$12 -> 0.3333333333 | K149: =SUM([1]Data!BD47+[1]Data!BF47+[1]Data!BG47+[1]Data!BJ47+[1]Data!BM47+[1]Data!BU47+[1]Data!BX47+[1]Data!BY47+[1]Data!CI47)/[1]Inputs!$A$12 -> 0.4444444444 | M149: E | N149: C | O149: B | P149: D | Q149: B | R149: A | S149: E | T149: D | U149: D | V149: E | W149: C | X149: C | Y149: A | Z149: A | AA149: E | AB149: A | AC149: B | AD149: E | AE149: B | AF149: D | AG149: D | AH149: E | AI149: D | AJ149: D | AK149: B | AL149: B | AM149: A | AN149: B | AO149: A | AP149: D | AQ149: D | AR149: B | AS149: D | AT149: B | AU149: C | AV149: C | AW149: D | AX149: B | AY149: E | AZ149: A
C150: 23664 | D150: =[1]Data!C97 -> 14 | E150: =LOOKUP(D150,[1]Inputs!$B$55:$B$84,[1]Inputs!$A$55:$A$84) -> 17 | F150: =SUM([1]Data!AY97+[1]Data!BA97+[1]Data!BB97+[1]Data!BE97+[1]Data!BH97+[1]Data!BP97+[1]Data!BS97+[1]Data!BT97+[1]Data!CD97)/[1]Inputs!$A$12 -> 0.1111111111 | G150: =SUM([1]Data!AZ97+[1]Data!BB97+[1]Data!BC97+[1]Data!BF97+[1]Data!BI97+[1]Data!BQ97+[1]Data!BT97+[1]Data!BU97+[1]Data!CE97)/[1]Inputs!$A$12 -> 0.3333333333 | H150: =SUM([1]Data!BA97+[1]Data!BC97+[1]Data!BD97+[1]Data!BG97+[1]Data!BJ97+[1]Data!BR97+[1]Data!BU97+[1]Data!BV97+[1]Data!CF97)/[1]Inputs!$A$12 -> 0.1111111111 | I150: =SUM([1]Data!BB97+[1]Data!BD97+[1]Data!BE97+[1]Data!BH97+[1]Data!BK97+[1]Data!BS97+[1]Data!BV97+[1]Data!BW97+[1]Data!CG97)/[1]Inputs!$A$12 -> 0.1111111111 | J150: =SUM([1]Data!BC97+[1]Data!BE97+[1]Data!BF97+[1]Data!BI97+[1]Data!BL97+[1]Data!BT97+[1]Data!BW97+[1]Data!BX97+[1]Data!CH97)/[1]Inputs!$A$12 -> 0.4444444444 | K150: =SUM([1]Data!BD97+[1]Data!BF97+[1]Data!BG97+[1]Data!BJ97+[1]Data!BM97+[1]Data!BU97+[1]Data!BX97+[1]Data!BY97+[1]Data!CI97)/[1]Inputs!$A$12 -> 0.2222222222 | M150: E | N150: D | O150: B | P150: D | Q150: C | R150: A | S150: A | T150: D | U150: D | V150: D | W150: B | X150: C | Y150: C | Z150: E | AA150: B | AB150: B | AC150: A | AD150: E | AE150: A | AF150: D | AG150: E | AH150: C | AI150: C | AJ150: D | AK150: B | AL150: C | AM150: D | AN150: B | AO150: E | AP150: A | AQ150: B | AR150: B | AS150: D | AT150: A | AU150: C | AV150: B | AW150: C | AX150: D | AY150: C | AZ150: E
C151: 23668 | D151: =[1]Data!C207 -> 21 | E151: =LOOKUP(D151,[1]Inputs!$B$55:$B$84,[1]Inputs!$A$55:$A$84) -> 22 | F151: =SUM([1]Data!AY207+[1]Data!BA207+[1]Data!BB207+[1]Data!BE207+[1]Data!BH207+[1]Data!BP207+[1]Data!BS207+[1]Data!BT207+[1]Data!CD207)/[1]Inputs!$A$12 -> 0.1111111111 | G151: =SUM([1]Data!AZ207+[1]Data!BB207+[1]Data!BC207+[1]Data!BF207+[1]Data!BI207+[1]Data!BQ207+[1]Data!BT207+[1]Data!BU207+[1]Data!CE207)/[1]Inputs!$A$12 -> 0.3333333333 | H151: =SUM([1]Data!BA207+[1]Data!BC207+[1]Data!BD207+[1]Data!BG207+[1]Data!BJ207+[1]Data!BR207+[1]Data!BU207+[1]Data!BV207+[1]Data!CF207)/[1]Inputs!$A$12 -> 0.1111111111 | I151: =SUM([1]Data!BB207+[1]Data!BD207+[1]Data!BE207+[1]Data!BH207+[1]Data!BK207+[1]Data!BS207+[1]Data!BV207+[1]Data!BW207+[1]Data!CG207)/[1]Inputs!$A$12 -> 0.2222222222 | J151: =SUM([1]Data!BC207+[1]Data!BE207+[1]Data!BF207+[1]Data!BI207+[1]Data!BL207+[1]Data!BT207+[1]Data!BW207+[1]Data!BX207+[1]Data!CH207)/[1]Inputs!$A$12 -> 0.5555555556 | K151: =SUM([1]Data!BD207+[1]Data!BF207+[1]Data!BG207+[1]Data!BJ207+[1]Data!BM207+[1]Data!BU207+[1]Data!BX207+[1]Data!BY207+[1]Data!CI207)/[1]Inputs!$A$12 -> 0.3333333333 | M151: D | N151: D | O151: C | P151: D | Q151: D | R151: E | S151: A | T151: D | U151: D | V151: C | W151: C | X151: C | Y151: C | Z151: A | AA151: D | AB151: D | AC151: B | AD151: E | AE151: B | AF151: D | AG151: D | AH151: A | AI151: D | AJ151: C | AK151: A | AL151: E | AM151: B | AN151: C | AO151: B | AP151: C | AQ151: E | AR151: B | AS151: B | AT151: A | AU151: A | AV151: A | AW151: C | AX151: C | AY151: B | AZ151: C
C152: 23670 | D152: =[1]Data!C240 -> 13 | E152: =LOOKUP(D152,[1]Inputs!$B$55:$B$84,[1]Inputs!$A$55:$A$84) -> 17 | F152: =SUM([1]Data!AY240+[1]Data!BA240+[1]Data!BB240+[1]Data!BE240+[1]Data!BH240+[1]Data!BP240+[1]Data!BS240+[1]Data!BT240+[1]Data!CD240)/[1]Inputs!$A$12 -> 0.5555555556 | G152: =SUM([1]Data!AZ240+[1]Data!BB240+[1]Data!BC240+[1]Data!BF240+[1]Data!BI240+[1]Data!BQ240+[1]Data!BT240+[1]Data!BU240+[1]Data!CE240)/[1]Inputs!$A$12 -> 0.1111111111 | H152: =SUM([1]Data!BA240+[1]Data!BC240+[1]Data!BD240+[1]Data!BG240+[1]Data!BJ240+[1]Data!BR240+[1]Data!BU240+[1]Data!BV240+[1]Data!CF240)/[1]Inputs!$A$12 -> 0.2222222222 | I152: =SUM([1]Data!BB240+[1]Data!BD240+[1]Data!BE240+[1]Data!BH240+[1]Data!BK240+[1]Data!BS240+[1]Data!BV240+[1]Data!BW240+[1]Data!CG240)/[1]Inputs!$A$12 -> 0.4444444444 | J152: =SUM([1]Data!BC240+[1]Data!BE240+[1]Data!BF240+[1]Data!BI240+[1]Data!BL240+[1]Data!BT240+[1]Data!BW240+[1]Data!BX240+[1]Data!CH240)/[1]Inputs!$A$12 -> 0.2222222222 | K152: =SUM([1]Data!BD240+[1]Data!BF240+[1]Data!BG240+[1]Data!BJ240+[1]Data!BM240+[1]Data!BU240+[1]Data!BX240+[1]Data!BY240+[1]Data!CI240)/[1]Inputs!$A$12 -> 0.3333333333 | M152: E | N152: D | O152: B | P152: C | Q152: D | R152: E | S152: E | T152: D | U152: E | V152: E | W152: C | X152: C | Y152: B | Z152: E | AA152: C | AB152: B | AC152: B | AD152: A | AE152: D | AF152: D | AG152: D | AH152: B | AI152: E | AJ152: E | AK152: B | AL152: E | AM152: C | AN152: D | AO152: A | AP152: D | AQ152: E | AR152: A | AS152: B | AT152: D | AU152: B | AV152: C | AW152: D | AX152: A | AY152: C | AZ152: E
C153: 23678 | D153: =[1]Data!C143 -> 5 | E153: =LOOKUP(D153,[1]Inputs!$B$55:$B$84,[1]Inputs!$A$55:$A$84) -> 12 | F153: =SUM([1]Data!AY143+[1]Data!BA143+[1]Data!BB143+[1]Data!BE143+[1]Data!BH143+[1]Data!BP143+[1]Data!BS143+[1]Data!BT143+[1]Data!CD143)/[1]Inputs!$A$12 -> 0.2222222222 | G153: =SUM([1]Data!AZ143+[1]Data!BB143+[1]Data!BC143+[1]Data!BF143+[1]Data!BI143+[1]Data!BQ143+[1]Data!BT143+[1]Data!BU143+[1]Data!CE143)/[1]Inputs!$A$12 -> 0.4444444444 | H153: =SUM([1]Data!BA143+[1]Data!BC143+[1]Data!BD143+[1]Data!BG143+[1]Data!BJ143+[1]Data!BR143+[1]Data!BU143+[1]Data!BV143+[1]Data!CF143)/[1]Inputs!$A$12 -> 0.2222222222 | I153: =SUM([1]Data!BB143+[1]Data!BD143+[1]Data!BE143+[1]Data!BH143+[1]Data!BK143+[1]Data!BS143+[1]Data!BV143+[1]Data!BW143+[1]Data!CG143)/[1]Inputs!$A$12 -> 0.2222222222 | J153: =SUM([1]Data!BC143+[1]Data!BE143+[1]Data!BF143+[1]Data!BI143+[1]Data!BL143+[1]Data!BT143+[1]Data!BW143+[1]Data!BX143+[1]Data!CH143)/[1]Inputs!$A$12 -> 0.4444444444 | K153: =SUM([1]Data!BD143+[1]Data!BF143+[1]Data!BG143+[1]Data!BJ143+[1]Data!BM143+[1]Data!BU143+[1]Data!BX143+[1]Data!BY143+[1]Data!CI143)/[1]Inputs!$A$12 -> 0.3333333333 | M153: B | N153: C | O153: E | P153: C | Q153: C | R153: A | S153: C | T153: D | U153: E | V153: C | W153: A | X153: C | Y153: B | Z153: C | AA153: C | AB153: B | AC153: E | AD153: D | AE153: A | AF153: C | AG153: C | AH153: B | AI153: D | AJ153: C | AK153: D | AL153: D | AM153: C | AN153: B | AO153: C | AP153: D | AQ153: C | AR153: C | AS153: B | AT153: B | AU153: B | AV153: A | AW153: D | AX153: B | AY153: D | AZ153: B
C154: 23679 | D154: =[1]Data!C171 -> 12 | E154: =LOOKUP(D154,[1]Inputs!$B$55:$B$84,[1]Inputs!$A$55:$A$84) -> 16 | F154: =SUM([1]Data!AY171+[1]Data!BA171+[1]Data!BB171+[1]Data!BE171+[1]Data!BH171+[1]Data!BP171+[1]Data!BS171+[1]Data!BT171+[1]Data!CD171)/[1]Inputs!$A$12 -> 0.3333333333 | G154: =SUM([1]Data!AZ171+[1]Data!BB171+[1]Data!BC171+[1]Data!BF171+[1]Data!BI171+[1]Data!BQ171+[1]Data!BT171+[1]Data!BU171+[1]Data!CE171)/[1]Inputs!$A$12 -> 0.5555555556 | H154: =SUM([1]Data!BA171+[1]Data!BC171+[1]Data!BD171+[1]Data!BG171+[1]Data!BJ171+[1]Data!BR171+[1]Data!BU171+[1]Data!BV171+[1]Data!CF171)/[1]Inputs!$A$12 -> 0.4444444444 | I154: =SUM([1]Data!BB171+[1]Data!BD171+[1]Data!BE171+[1]Data!BH171+[1]Data!BK171+[1]Data!BS171+[1]Data!BV171+[1]Data!BW171+[1]Data!CG171)/[1]Inputs!$A$12 -> 0.2222222222 | J154: =SUM([1]Data!BC171+[1]Data!BE171+[1]Data!BF171+[1]Data!BI171+[1]Data!BL171+[1]Data!BT171+[1]Data!BW171+[1]Data!BX171+[1]Data!CH171)/[1]Inputs!$A$12 -> 0.5555555556 | K154: =SUM([1]Data!BD171+[1]Data!BF171+[1]Data!BG171+[1]Data!BJ171+[1]Data!BM171+[1]Data!BU171+[1]Data!BX171+[1]Data!BY171+[1]Data!CI171)/[1]Inputs!$A$12 -> 0.3333333333 | M154: D | N154: D | O154: B | P154: C | Q154: B | R154: E | S154: E | T154: D | U154: A | V154: C | W154: C | X154: E | Y154: B | Z154: B | AA154: C | AB154: B | AC154: D | AD154: D | AE154: A | AF154: D | AG154: D | AH154: E | AI154: C | AJ154: D | AK154: A | AL154: B | AM154: D | AN154: E | AO154: E | AP154: D | AQ154: C | AR154: E | AS154: A | AT154: C | AU154: B | AV154: A | AW154: C | AX154: D | AY154: A | AZ154: B
C155: 23687 | D155: =[1]Data!C230 -> 12 | E155: =LOOKUP(D155,[1]Inputs!$B$55:$B$84,[1]Inputs!$A$55:$A$84) -> 16 | F155: =SUM([1]Data!AY230+[1]Data!BA230+[1]Data!BB230+[1]Data!BE230+[1]Data!BH230+[1]Data!BP230+[1]Data!BS230+[1]Data!BT230+[1]Data!CD230)/[1]Inputs!$A$12 -> 0.3333333333 | G155: =SUM([1]Data!AZ230+[1]Data!BB230+[1]Data!BC230+[1]Data!BF230+[1]Data!BI230+[1]Data!BQ230+[1]Data!BT230+[1]Data!BU230+[1]Data!CE230)/[1]Inputs!$A$12 -> 0.1111111111 | H155: =SUM([1]Data!BA230+[1]Data!BC230+[1]Data!BD230+[1]Data!BG230+[1]Data!BJ230+[1]Data!BR230+[1]Data!BU230+[1]Data!BV230+[1]Data!CF230)/[1]Inputs!$A$12 -> 0.2222222222 | I155: =SUM([1]Data!BB230+[1]Data!BD230+[1]Data!BE230+[1]Data!BH230+[1]Data!BK230+[1]Data!BS230+[1]Data!BV230+[1]Data!BW230+[1]Data!CG230)/[1]Inputs!$A$12 -> 0.3333333333 | J155: =SUM([1]Data!BC230+[1]Data!BE230+[1]Data!BF230+[1]Data!BI230+[1]Data!BL230+[1]Data!BT230+[1]Data!BW230+[1]Data!BX230+[1]Data!CH230)/[1]Inputs!$A$12 -> 0.2222222222 | K155: =SUM([1]Data!BD230+[1]Data!BF230+[1]Data!BG230+[1]Data!BJ230+[1]Data!BM230+[1]Data!BU230+[1]Data!BX230+[1]Data!BY230+[1]Data!CI230)/[1]Inputs!$A$12 -> 0.3333333333 | M155: D | N155: B | O155: B | P155: E | Q155: A | R155: C | S155: E | T155: D | U155: B | V155: E | W155: D | X155: C | Y155: E | Z155: B | AA155: D | AB155: C | AC155: C | AD155: D | AE155: E | AF155: A | AG155: B | AH155: A | AI155: D | AJ155: B | AK155: C | AL155: D | AM155: D | AN155: E | AO155: D | AP155: A | AQ155: C | AR155: B | AS155: D | AT155: A | AU155: B | AV155: D | AW155: E | AX155: C | AY155: B | AZ155: A
C156: 23688 | D156: =[1]Data!C52 -> 11 | E156: =LOOKUP(D156,[1]Inputs!$B$55:$B$84,[1]Inputs!$A$55:$A$84) -> 16 | F156: =SUM([1]Data!AY52+[1]Data!BA52+[1]Data!BB52+[1]Data!BE52+[1]Data!BH52+[1]Data!BP52+[1]Data!BS52+[1]Data!BT52+[1]Data!CD52)/[1]Inputs!$A$12 -> 0.2222222222 | G156: =SUM([1]Data!AZ52+[1]Data!BB52+[1]Data!BC52+[1]Data!BF52+[1]Data!BI52+[1]Data!BQ52+[1]Data!BT52+[1]Data!BU52+[1]Data!CE52)/[1]Inputs!$A$12 -> 0.2222222222 | H156: =SUM([1]Data!BA52+[1]Data!BC52+[1]Data!BD52+[1]Data!BG52+[1]Data!BJ52+[1]Data!BR52+[1]Data!BU52+[1]Data!BV52+[1]Data!CF52)/[1]Inputs!$A$12 -> 0.3333333333 | I156: =SUM([1]Data!BB52+[1]Data!BD52+[1]Data!BE52+[1]Data!BH52+[1]Data!BK52+[1]Data!BS52+[1]Data!BV52+[1]Data!BW52+[1]Data!CG52)/[1]Inputs!$A$12 -> 0.2222222222 | J156: =SUM([1]Data!BC52+[1]Data!BE52+[1]Data!BF52+[1]Data!BI52+[1]Data!BL52+[1]Data!BT52+[1]Data!BW52+[1]Data!BX52+[1]Data!CH52)/[1]Inputs!$A$12 -> 0.3333333333 | K156: =SUM([1]Data!BD52+[1]Data!BF52+[1]Data!BG52+[1]Data!BJ52+[1]Data!BM52+[1]Data!BU52+[1]Data!BX52+[1]Data!BY52+[1]Data!CI52)/[1]Inputs!$A$12 -> 0.3333333333 | M156: A | N156: B | O156: B | P156: C | Q156: C | R156: A | S156: E | T156: D | U156: E | V156: D | W156: A | X156: B | Y156: C | Z156: B | AA156: C | AB156: A | AC156: B | AD156: C | AE156: D | AF156: D | AG156: C | AH156: C | AI156: A | AJ156: C | AK156: A | AL156: C | AM156: B | AN156: D | AO156: E | AP156: A | AQ156: D | AR156: E | AS156: A | AT156: C | AU156: B | AV156: B | AW156: E | AX156: D | AY156: A | AZ156: C
C157: 23691 | D157: =[1]Data!C174 -> 24 | E157: =LOOKUP(D157,[1]Inputs!$B$55:$B$84,[1]Inputs!$A$55:$A$84) -> 24 | F157: =SUM([1]Data!AY174+[1]Data!BA174+[1]Data!BB174+[1]Data!BE174+[1]Data!BH174+[1]Data!BP174+[1]Data!BS174+[1]Data!BT174+[1]Data!CD174)/[1]Inputs!$A$12 -> 0.5555555556 | G157: =SUM([1]Data!AZ174+[1]Data!BB174+[1]Data!BC174+[1]Data!BF174+[1]Data!BI174+[1]Data!BQ174+[1]Data!BT174+[1]Data!BU174+[1]Data!CE174)/[1]Inputs!$A$12 -> 0.5555555556 | H157: =SUM([1]Data!BA174+[1]Data!BC174+[1]Data!BD174+[1]Data!BG174+[1]Data!BJ174+[1]Data!BR174+[1]Data!BU174+[1]Data!BV174+[1]Data!CF174)/[1]Inputs!$A$12 -> 0.4444444444 | I157: =SUM([1]Data!BB174+[1]Data!BD174+[1]Data!BE174+[1]Data!BH174+[1]Data!BK174+[1]Data!BS174+[1]Data!BV174+[1]Data!BW174+[1]Data!CG174)/[1]Inputs!$A$12 -> 0.5555555556 | J157: =SUM([1]Data!BC174+[1]Data!BE174+[1]Data!BF174+[1]Data!BI174+[1]Data!BL174+[1]Data!BT174+[1]Data!BW174+[1]Data!BX174+[1]Data!CH174)/[1]Inputs!$A$12 -> 0.5555555556 | K157: =SUM([1]Data!BD174+[1]Data!BF174+[1]Data!BG174+[1]Data!BJ174+[1]Data!BM174+[1]Data!BU174+[1]Data!BX174+[1]Data!BY174+[1]Data!CI174)/[1]Inputs!$A$12 -> 0.5555555556 | M157: E | N157: D | O157: B | P157: D | Q157: A | R157: A | S157: E | T157: D | U157: D | V157: D | W157: C | X157: C | Y157: C | Z157: A | AA157: D | AB157: D | AC157: A | AD157: E | AE157: B | AF157: D | AG157: B | AH157: A | AI157: C | AJ157: C | AK157: C | AL157: C | AM157: C | AN157: B | AO157: D | AP157: C | AQ157: C | AR157: B | AS157: C | AT157: C | AU157: B | AV157: C | AW157: C | AX157: C | AY157: C | AZ157: C
C158: =[1]Data!E10 -> 23693 | D158: 10 | E158: =LOOKUP(D158,[1]Inputs!$B$55:$B$84,[1]Inputs!$A$55:$A$84) -> 15 | F158: =SUM([1]Data!AY10+[1]Data!BA10+[1]Data!BB10+[1]Data!BE10+[1]Data!BH10+[1]Data!BP10+[1]Data!BS10+[1]Data!BT10+[1]Data!CD10)/[1]Inputs!$A$12 -> 0.4444444444 | G158: =SUM([1]Data!BD10+[1]Data!BF10+[1]Data!BI10+[1]Data!BL10+[1]Data!BO10+[1]Data!BQ10+[1]Data!CA10+[1]Data!CH10)/[1]Inputs!$A$13 -> 0.125 | H158: =SUM([1]Data!AZ10+[1]Data!BJ10+[1]Data!BM10+[1]Data!BX10+[1]Data!CB10+[1]Data!CJ10+[1]Data!CK10)/[1]Inputs!$A$14 -> 0.3333333333 | I158: =SUM([1]Data!BV10+[1]Data!CC10+[1]Data!CL10)/[1]Inputs!$A$15 -> 0 | J158: =SUM([1]Data!BC10+[1]Data!BG10+[1]Data!BJ10+[1]Data!BN10+[1]Data!BR10+[1]Data!BU10+[1]Data!BY10+[1]Data!BZ10+[1]Data!CE10+[1]Data!CG10)/[1]Inputs!$A$16 -> 0.1 | K158: =SUM([1]Data!BW10+[1]Data!CF10+[1]Data!CI10)/[1]Inputs!$A$17 -> 0.3333333333 | M158: A | N158: B | O158: C | P158: C | Q158: C | R158: E | S158: E | T158: D | U158: B | V158: E | W158: B | X158: D | Y158: B | Z158: C | AA158: B | AB158: B | AC158: B | AD158: D | AE158: C | AF158: D | AG158: E | AH158: E | AI158: B | AJ158: E | AK158: C | AL158: D | AM158: B | AN158: B | AO158: B | AP158: C | AQ158: B | AR158: E | AS158: B | AT158: B | AU158: D | AV158: B | AW158: A | AX158: A | AY158: E | AZ158: B
C159: 23698 | D159: =[1]Data!C51 -> 13 | E159: =LOOKUP(D159,[1]Inputs!$B$55:$B$84,[1]Inputs!$A$55:$A$84) -> 17 | F159: =SUM([1]Data!AY51+[1]Data!BA51+[1]Data!BB51+[1]Data!BE51+[1]Data!BH51+[1]Data!BP51+[1]Data!BS51+[1]Data!BT51+[1]Data!CD51)/[1]Inputs!$A$12 -> 0.4444444444 | G159: =SUM([1]Data!AZ51+[1]Data!BB51+[1]Data!BC51+[1]Data!BF51+[1]Data!BI51+[1]Data!BQ51+[1]Data!BT51+[1]Data!BU51+[1]Data!CE51)/[1]Inputs!$A$12 -> 0.3333333333 | H159: =SUM([1]Data!BA51+[1]Data!BC51+[1]Data!BD51+[1]Data!BG51+[1]Data!BJ51+[1]Data!BR51+[1]Data!BU51+[1]Data!BV51+[1]Data!CF51)/[1]Inputs!$A$12 -> 0.4444444444 | I159: =SUM([1]Data!BB51+[1]Data!BD51+[1]Data!BE51+[1]Data!BH51+[1]Data!BK51+[1]Data!BS51+[1]Data!BV51+[1]Data!BW51+[1]Data!CG51)/[1]Inputs!$A$12 -> 0.5555555556 | J159: =SUM([1]Data!BC51+[1]Data!BE51+[1]Data!BF51+[1]Data!BI51+[1]Data!BL51+[1]Data!BT51+[1]Data!BW51+[1]Data!BX51+[1]Data!CH51)/[1]Inputs!$A$12 -> 0.3333333333 | K159: =SUM([1]Data!BD51+[1]Data!BF51+[1]Data!BG51+[1]Data!BJ51+[1]Data!BM51+[1]Data!BU51+[1]Data!BX51+[1]Data!BY51+[1]Data!CI51)/[1]Inputs!$A$12 -> 0.6666666667 | M159: D | N159: D | O159: C | P159: D | Q159: B | R159: A | S159: E | T159: D | U159: E | V159: E | W159: C | X159: B | Y159: C | Z159: E | AA159: C | AB159: C | AC159: A | AD159: E | AE159: B | AF159: E | AG159: D | AH159: B | AI159: D | AJ159: C | AK159: C | AL159: A | AM159: B | AN159: C | AO159: C | AP159: D | AQ159: C | AR159: C | AS159: D | AT159: C | AU159: B | AV159: A | AW159: D | AX159: E | AY159: C | AZ159: C
C160: 23701 | D160: =[1]Data!C156 -> 18 | E160: =LOOKUP(D160,[1]Inputs!$B$55:$B$84,[1]Inputs!$A$55:$A$84) -> 19 | F160: =SUM([1]Data!AY156+[1]Data!BA156+[1]Data!BB156+[1]Data!BE156+[1]Data!BH156+[1]Data!BP156+[1]Data!BS156+[1]Data!BT156+[1]Data!CD156)/[1]Inputs!$A$12 -> 0.5555555556 | G160: =SUM([1]Data!AZ156+[1]Data!BB156+[1]Data!BC156+[1]Data!BF156+[1]Data!BI156+[1]Data!BQ156+[1]Data!BT156+[1]Data!BU156+[1]Data!CE156)/[1]Inputs!$A$12 -> 0.2222222222 | H160: =SUM([1]Data!BA156+[1]Data!BC156+[1]Data!BD156+[1]Data!BG156+[1]Data!BJ156+[1]Data!BR156+[1]Data!BU156+[1]Data!BV156+[1]Data!CF156)/[1]Inputs!$A$12 -> 0.1111111111 | I160: =SUM([1]Data!BB156+[1]Data!BD156+[1]Data!BE156+[1]Data!BH156+[1]Data!BK156+[1]Data!BS156+[1]Data!BV156+[1]Data!BW156+[1]Data!CG156)/[1]Inputs!$A$12 -> 0.3333333333 | J160: =SUM([1]Data!BC156+[1]Data!BE156+[1]Data!BF156+[1]Data!BI156+[1]Data!BL156+[1]Data!BT156+[1]Data!BW156+[1]Data!BX156+[1]Data!CH156)/[1]Inputs!$A$12 -> 0.5555555556 | K160: =SUM([1]Data!BD156+[1]Data!BF156+[1]Data!BG156+[1]Data!BJ156+[1]Data!BM156+[1]Data!BU156+[1]Data!BX156+[1]Data!BY156+[1]Data!CI156)/[1]Inputs!$A$12 -> 0.2222222222 | M160: B | N160: D | O160: B | P160: C | Q160: D | R160: A | S160: E | T160: D | U160: D | V160: E | W160: C | X160: D | Y160: C | Z160: E | AA160: D | AB160: D | AC160: E | AD160: E | AE160: B | AF160: B | AG160: D | AH160: A | AI160: D | AJ160: E | AK160: B | AL160: D | AM160: B | AN160: B | AO160: D | AP160: A | AQ160: A | AR160: B | AS160: A | AT160: B | AU160: A | AV160: C | AW160: E | AX160: C | AY160: B | AZ160: D
C161: =[1]Data!E26 -> 23709 | D161: 20 | E161: =LOOKUP(D161,[1]Inputs!$B$55:$B$84,[1]Inputs!$A$55:$A$84) -> 21 | F161: =SUM([1]Data!AY26+[1]Data!BA26+[1]Data!BB26+[1]Data!BE26+[1]Data!BH26+[1]Data!BP26+[1]Data!BS26+[1]Data!BT26+[1]Data!CD26)/[1]Inputs!$A$12 -> 0.3333333333 | G161: =SUM([1]Data!BD26+[1]Data!BF26+[1]Data!BI26+[1]Data!BL26+[1]Data!BO26+[1]Data!BQ26+[1]Data!CA26+[1]Data!CH26)/[1]Inputs!$A$13 -> 0.375 | H161: =SUM([1]Data!AZ26+[1]Data!BJ26+[1]Data!BM26+[1]Data!BX26+[1]Data!CB26+[1]Data!CJ26+[1]Data!CK26)/[1]Inputs!$A$14 -> 0.3333333333 | I161: =SUM([1]Data!BV26+[1]Data!CC26+[1]Data!CL26)/[1]Inputs!$A$15 -> 0 | J161: =SUM([1]Data!BC26+[1]Data!BG26+[1]Data!BJ26+[1]Data!BN26+[1]Data!BR26+[1]Data!BU26+[1]Data!BY26+[1]Data!BZ26+[1]Data!CE26+[1]Data!CG26)/[1]Inputs!$A$16 -> 0.3 | K161: =SUM([1]Data!BW26+[1]Data!CF26+[1]Data!CI26)/[1]Inputs!$A$17 -> 0 | M161: E | N161: B | O161: A | P161: C | Q161: A | R161: E | S161: E | T161: D | U161: D | V161: E | W161: C | X161: D | Y161: C | Z161: E | AA161: D | AB161: D | AC161: A | AD161: D | AE161: A | AF161: D | AG161: D | AH161: A | AI161: A | AJ161: C | AK161: E | AL161: A | AM161: A | AN161: B | AO161: E | AP161: A | AQ161: E | AR161: A | AS161: D | AT161: B | AU161: B | AV161: A | AW161: A | AX161: A | AY161: A | AZ161: C
C162: 23781 | D162: =[1]Data!C94 -> 18 | E162: =LOOKUP(D162,[1]Inputs!$B$55:$B$84,[1]Inputs!$A$55:$A$84) -> 19 | F162: =SUM([1]Data!AY94+[1]Data!BA94+[1]Data!BB94+[1]Data!BE94+[1]Data!BH94+[1]Data!BP94+[1]Data!BS94+[1]Data!BT94+[1]Data!CD94)/[1]Inputs!$A$12 -> 0.6666666667 | G162: =SUM([1]Data!AZ94+[1]Data!BB94+[1]Data!BC94+[1]Data!BF94+[1]Data!BI94+[1]Data!BQ94+[1]Data!BT94+[1]Data!BU94+[1]Data!CE94)/[1]Inputs!$A$12 -> 0.7777777778 | H162: =SUM([1]Data!BA94+[1]Data!BC94+[1]Data!BD94+[1]Data!BG94+[1]Data!BJ94+[1]Data!BR94+[1]Data!BU94+[1]Data!BV94+[1]Data!CF94)/[1]Inputs!$A$12 -> 0.5555555556 | I162: =SUM([1]Data!BB94+[1]Data!BD94+[1]Data!BE94+[1]Data!BH94+[1]Data!BK94+[1]Data!BS94+[1]Data!BV94+[1]Data!BW94+[1]Data!CG94)/[1]Inputs!$A$12 -> 0.6666666667 | J162: =SUM([1]Data!BC94+[1]Data!BE94+[1]Data!BF94+[1]Data!BI94+[1]Data!BL94+[1]Data!BT94+[1]Data!BW94+[1]Data!BX94+[1]Data!CH94)/[1]Inputs!$A$12 -> 0.7777777778 | K162: =SUM([1]Data!BD94+[1]Data!BF94+[1]Data!BG94+[1]Data!BJ94+[1]Data!BM94+[1]Data!BU94+[1]Data!BX94+[1]Data!BY94+[1]Data!CI94)/[1]Inputs!$A$12 -> 0.3333333333 | M162: E | N162: B | O162: B | P162: D | Q162: B | R162: E | S162: E | T162: D | U162: D | V162: E | W162: C | X162: D | Y162: C | Z162: A | AA162: D | AB162: C | AC162: A | AD162: C | AE162: B | AF162: D | AG162: A | AH162: A | AI162: C | AJ162: C | AK162: A | AL162: D | AM162: E | AN162: C | AO162: A | AP162: D | AQ162: C | AR162: E | AS162: A | AT162: D | AU162: B | AV162: A | AW162: D | AX162: C | AY162: A | AZ162: A
C163: 23969 | D163: =[1]Data!C256 -> 10 | E163: =LOOKUP(D163,[1]Inputs!$B$55:$B$84,[1]Inputs!$A$55:$A$84) -> 15 | F163: =SUM([1]Data!AY256+[1]Data!BA256+[1]Data!BB256+[1]Data!BE256+[1]Data!BH256+[1]Data!BP256+[1]Data!BS256+[1]Data!BT256+[1]Data!CD256)/[1]Inputs!$A$12 -> 0.1111111111 | G163: =SUM([1]Data!AZ256+[1]Data!BB256+[1]Data!BC256+[1]Data!BF256+[1]Data!BI256+[1]Data!BQ256+[1]Data!BT256+[1]Data!BU256+[1]Data!CE256)/[1]Inputs!$A$12 -> 0.4444444444 | H163: =SUM([1]Data!BA256+[1]Data!BC256+[1]Data!BD256+[1]Data!BG256+[1]Data!BJ256+[1]Data!BR256+[1]Data!BU256+[1]Data!BV256+[1]Data!CF256)/[1]Inputs!$A$12 -> 0.3333333333 | I163: =SUM([1]Data!BB256+[1]Data!BD256+[1]Data!BE256+[1]Data!BH256+[1]Data!BK256+[1]Data!BS256+[1]Data!BV256+[1]Data!BW256+[1]Data!CG256)/[1]Inputs!$A$12 -> 0 | J163: =SUM([1]Data!BC256+[1]Data!BE256+[1]Data!BF256+[1]Data!BI256+[1]Data!BL256+[1]Data!BT256+[1]Data!BW256+[1]Data!BX256+[1]Data!CH256)/[1]Inputs!$A$12 -> 0.2222222222 | K163: =SUM([1]Data!BD256+[1]Data!BF256+[1]Data!BG256+[1]Data!BJ256+[1]Data!BM256+[1]Data!BU256+[1]Data!BX256+[1]Data!BY256+[1]Data!CI256)/[1]Inputs!$A$12 -> 0.4444444444 | M163: B | N163: B | O163: C | P163: C | Q163: D | R163: A | S163: E | T163: D | U163: E | V163: D | W163: B | X163: B | Y163: B | Z163: A | AA163: C | AB163: B | AC163: B | AD163: D | AE163: A | AF163: A | AG163: A | AH163: E | AI163: B | AJ163: B | AK163: A | AL163: B | AM163: A | AN163: D | AO163: D | AP163: D | AQ163: B | AR163: B | AS163: C | AT163: C | AU163: B | AV163: A | AW163: C | AX163: D | AY163: C | AZ163: D
C164: =[1]Data!E9 -> 23981 | D164: 6 | E164: =LOOKUP(D164,[1]Inputs!$B$55:$B$84,[1]Inputs!$A$55:$A$84) -> 13 | F164: =SUM([1]Data!AY9+[1]Data!BA9+[1]Data!BB9+[1]Data!BE9+[1]Data!BH9+[1]Data!BP9+[1]Data!BS9+[1]Data!BT9+[1]Data!CD9)/[1]Inputs!$A$12 -> 0.3333333333 | G164: =SUM([1]Data!BD9+[1]Data!BF9+[1]Data!BI9+[1]Data!BL9+[1]Data!BO9+[1]Data!BQ9+[1]Data!CA9+[1]Data!CH9)/[1]Inputs!$A$13 -> 0.125 | H164: =SUM([1]Data!AZ9+[1]Data!BJ9+[1]Data!BM9+[1]Data!BX9+[1]Data!CB9+[1]Data!CJ9+[1]Data!CK9)/[1]Inputs!$A$14 -> 0.1666666667 | I164: =SUM([1]Data!BV9+[1]Data!CC9+[1]Data!CL9)/[1]Inputs!$A$15 -> 0.3333333333 | J164: =SUM([1]Data!BC9+[1]Data!BG9+[1]Data!BJ9+[1]Data!BN9+[1]Data!BR9+[1]Data!BU9+[1]Data!BY9+[1]Data!BZ9+[1]Data!CE9+[1]Data!CG9)/[1]Inputs!$A$16 -> 0.3 | K164: =SUM([1]Data!BW9+[1]Data!CF9+[1]Data!CI9)/[1]Inputs!$A$17 -> 0 | M164: B | N164: D | O164: C | P164: A | Q164: E | R164: C | S164: C | T164: C | U164: D | V164: B | W164: D | X164: E | Y164: B | Z164: B | AA164: C | AB164: D | AC164: C | AD164: A | AE164: C | AF164: D | AG164: E | AH164: D | AI164: C | AJ164: A | AK164: C | AL164: B | AM164: D | AN164: A | AO164: E | AP164: D | AQ164: B | AR164: C | AS164: D | AT164: C | AU164: C | AV164: D | AW164: D | AX164: D | AY164: C | AZ164: D
C165: =[1]Data!E16 -> 23988 | D165: 8 | E165: =LOOKUP(D165,[1]Inputs!$B$55:$B$84,[1]Inputs!$A$55:$A$84) -> 14 | F165: =SUM([1]Data!AY16+[1]Data!BA16+[1]Data!BB16+[1]Data!BE16+[1]Data!BH16+[1]Data!BP16+[1]Data!BS16+[1]Data!BT16+[1]Data!CD16)/[1]Inputs!$A$12 -> 0.3333333333 | G165: =SUM([1]Data!BD16+[1]Data!BF16+[1]Data!BI16+[1]Data!BL16+[1]Data!BO16+[1]Data!BQ16+[1]Data!CA16+[1]Data!CH16)/[1]Inputs!$A$13 -> 0.625 | H165: =SUM([1]Data!AZ16+[1]Data!BJ16+[1]Data!BM16+[1]Data!BX16+[1]Data!CB16+[1]Data!CJ16+[1]Data!CK16)/[1]Inputs!$A$14 -> 0.3333333333 | I165: =SUM([1]Data!BV16+[1]Data!CC16+[1]Data!CL16)/[1]Inputs!$A$15 -> 0.3333333333 | J165: =SUM([1]Data!BC16+[1]Data!BG16+[1]Data!BJ16+[1]Data!BN16+[1]Data!BR16+[1]Data!BU16+[1]Data!BY16+[1]Data!BZ16+[1]Data!CE16+[1]Data!CG16)/[1]Inputs!$A$16 -> 0.3 | K165: =SUM([1]Data!BW16+[1]Data!CF16+[1]Data!CI16)/[1]Inputs!$A$17 -> 0.3333333333 | M165: B | N165: B | O165: B | P165: C | Q165: D | R165: D | S165: C | T165: D | U165: B | V165: A | W165: A | X165: E | Y165: B | Z165: B | AA165: E | AB165: A | AC165: B | AD165: A | AE165: C | AF165: D | AG165: C | AH165: D | AI165: B | AJ165: C | AK165: E | AL165: B | AM165: A | AN165: C | AO165: C | AP165: E | AQ165: E | AR165: B | AS165: C | AT165: A | AU165: C | AV165: B | AW165: D | AX165: C | AY165: C | AZ165: B
C166: 24016 | D166: =[1]Data!C193 -> 30 | E166: =LOOKUP(D166,[1]Inputs!$B$55:$B$84,[1]Inputs!$A$55:$A$84) -> 28 | F166: =SUM([1]Data!AY193+[1]Data!BA193+[1]Data!BB193+[1]Data!BE193+[1]Data!BH193+[1]Data!BP193+[1]Data!BS193+[1]Data!BT193+[1]Data!CD193)/[1]Inputs!$A$12 -> 0.6666666667 | G166: =SUM([1]Data!AZ193+[1]Data!BB193+[1]Data!BC193+[1]Data!BF193+[1]Data!BI193+[1]Data!BQ193+[1]Data!BT193+[1]Data!BU193+[1]Data!CE193)/[1]Inputs!$A$12 -> 0.6666666667 | H166: =SUM([1]Data!BA193+[1]Data!BC193+[1]Data!BD193+[1]Data!BG193+[1]Data!BJ193+[1]Data!BR193+[1]Data!BU193+[1]Data!BV193+[1]Data!CF193)/[1]Inputs!$A$12 -> 0.5555555556 | I166: =SUM([1]Data!BB193+[1]Data!BD193+[1]Data!BE193+[1]Data!BH193+[1]Data!BK193+[1]Data!BS193+[1]Data!BV193+[1]Data!BW193+[1]Data!CG193)/[1]Inputs!$A$12 -> 0.6666666667 | J166: =SUM([1]Data!BC193+[1]Data!BE193+[1]Data!BF193+[1]Data!BI193+[1]Data!BL193+[1]Data!BT193+[1]Data!BW193+[1]Data!BX193+[1]Data!CH193)/[1]Inputs!$A$12 -> 0.5555555556 | K166: =SUM([1]Data!BD193+[1]Data!BF193+[1]Data!BG193+[1]Data!BJ193+[1]Data!BM193+[1]Data!BU193+[1]Data!BX193+[1]Data!BY193+[1]Data!CI193)/[1]Inputs!$A$12 -> 0.3333333333 | M166: E | N166: D | O166: B | P166: D | Q166: A | R166: A | S166: E | T166: D | U166: D | V166: E | W166: C | X166: E | Y166: C | Z166: A | AA166: E | AB166: D | AC166: D | AD166: E | AE166: B | AF166: D | AG166: D | AH166: A | AI166: B | AJ166: D | AK166: A | AL166: B | AM166: D | AN166: E | AO166: C | AP166: D | AQ166: E | AR166: B | AS166: C | AT166: A | AU166: D | AV166: A | AW166: A | AX166: D | AY166: A | AZ166: B
C167: 24100 | D167: =[1]Data!C152 -> 16 | E167: =LOOKUP(D167,[1]Inputs!$B$55:$B$84,[1]Inputs!$A$55:$A$84) -> 18 | F167: =SUM([1]Data!AY152+[1]Data!BA152+[1]Data!BB152+[1]Data!BE152+[1]Data!BH152+[1]Data!BP152+[1]Data!BS152+[1]Data!BT152+[1]Data!CD152)/[1]Inputs!$A$12 -> 0.2222222222 | G167: =SUM([1]Data!AZ152+[1]Data!BB152+[1]Data!BC152+[1]Data!BF152+[1]Data!BI152+[1]Data!BQ152+[1]Data!BT152+[1]Data!BU152+[1]Data!CE152)/[1]Inputs!$A$12 -> 0.2222222222 | H167: =SUM([1]Data!BA152+[1]Data!BC152+[1]Data!BD152+[1]Data!BG152+[1]Data!BJ152+[1]Data!BR152+[1]Data!BU152+[1]Data!BV152+[1]Data!CF152)/[1]Inputs!$A$12 -> 0.2222222222 | I167: =SUM([1]Data!BB152+[1]Data!BD152+[1]Data!BE152+[1]Data!BH152+[1]Data!BK152+[1]Data!BS152+[1]Data!BV152+[1]Data!BW152+[1]Data!CG152)/[1]Inputs!$A$12 -> 0.2222222222 | J167: =SUM([1]Data!BC152+[1]Data!BE152+[1]Data!BF152+[1]Data!BI152+[1]Data!BL152+[1]Data!BT152+[1]Data!BW152+[1]Data!BX152+[1]Data!CH152)/[1]Inputs!$A$12 -> 0.2222222222 | K167: =SUM([1]Data!BD152+[1]Data!BF152+[1]Data!BG152+[1]Data!BJ152+[1]Data!BM152+[1]Data!BU152+[1]Data!BX152+[1]Data!BY152+[1]Data!CI152)/[1]Inputs!$A$12 -> 0.4444444444 | M167: B | N167: B | O167: B | P167: D | Q167: A | R167: A | S167: E | T167: D | U167: E | V167: E | W167: B | X167: D | Y167: B | Z167: C | AA167: C | AB167: D | AC167: D | AD167: D | AE167: B | AF167: A | AG167: E | AH167: E | AI167: B | AJ167: C | AK167: A | AL167: B | AM167: D | AN167: B | AO167: B | AP167: D | AQ167: A | AR167: E | AS167: A | AT167: A | AU167: A | AV167: A | AW167: B | AX167: D | AY167: D | AZ167: C
C168: 24219 | D168: =[1]Data!C142 -> 10 | E168: =LOOKUP(D168,[1]Inputs!$B$55:$B$84,[1]Inputs!$A$55:$A$84) -> 15 | F168: =SUM([1]Data!AY142+[1]Data!BA142+[1]Data!BB142+[1]Data!BE142+[1]Data!BH142+[1]Data!BP142+[1]Data!BS142+[1]Data!BT142+[1]Data!CD142)/[1]Inputs!$A$12 -> 0.2222222222 | G168: =SUM([1]Data!AZ142+[1]Data!BB142+[1]Data!BC142+[1]Data!BF142+[1]Data!BI142+[1]Data!BQ142+[1]Data!BT142+[1]Data!BU142+[1]Data!CE142)/[1]Inputs!$A$12 -> 0.2222222222 | H168: =SUM([1]Data!BA142+[1]Data!BC142+[1]Data!BD142+[1]Data!BG142+[1]Data!BJ142+[1]Data!BR142+[1]Data!BU142+[1]Data!BV142+[1]Data!CF142)/[1]Inputs!$A$12 -> 0.1111111111 | I168: =SUM([1]Data!BB142+[1]Data!BD142+[1]Data!BE142+[1]Data!BH142+[1]Data!BK142+[1]Data!BS142+[1]Data!BV142+[1]Data!BW142+[1]Data!CG142)/[1]Inputs!$A$12 -> 0.1111111111 | J168: =SUM([1]Data!BC142+[1]Data!BE142+[1]Data!BF142+[1]Data!BI142+[1]Data!BL142+[1]Data!BT142+[1]Data!BW142+[1]Data!BX142+[1]Data!CH142)/[1]Inputs!$A$12 -> 0.1111111111 | K168: =SUM([1]Data!BD142+[1]Data!BF142+[1]Data!BG142+[1]Data!BJ142+[1]Data!BM142+[1]Data!BU142+[1]Data!BX142+[1]Data!BY142+[1]Data!CI142)/[1]Inputs!$A$12 -> 0.2222222222 | M168: B | N168: B | O168: B | P168: D | Q168: C | R168: E | S168: E | T168: D | U168: E | V168: D | W168: C | X168: E | Y168: B | Z168: A | AA168: C | AB168: D | AC168: B | AD168: D | AE168: B | AF168: A | AG168: C | AH168: D | AI168: D | AJ168: B | AK168: A | AL168: B | AM168: D | AN168: B | AO168: C | AP168: B | AQ168: A | AR168: C | AS168: E | AT168: B | AU168: C | AV168: B | AW168: E | AX168: D | AY168: D | AZ168: D
C169: 24416 | D169: =[1]Data!C155 -> 16 | E169: =LOOKUP(D169,[1]Inputs!$B$55:$B$84,[1]Inputs!$A$55:$A$84) -> 18 | F169: =SUM([1]Data!AY155+[1]Data!BA155+[1]Data!BB155+[1]Data!BE155+[1]Data!BH155+[1]Data!BP155+[1]Data!BS155+[1]Data!BT155+[1]Data!CD155)/[1]Inputs!$A$12 -> 0.5555555556 | G169: =SUM([1]Data!AZ155+[1]Data!BB155+[1]Data!BC155+[1]Data!BF155+[1]Data!BI155+[1]Data!BQ155+[1]Data!BT155+[1]Data!BU155+[1]Data!CE155)/[1]Inputs!$A$12 -> 0.6666666667 | H169: =SUM([1]Data!BA155+[1]Data!BC155+[1]Data!BD155+[1]Data!BG155+[1]Data!BJ155+[1]Data!BR155+[1]Data!BU155+[1]Data!BV155+[1]Data!CF155)/[1]Inputs!$A$12 -> 0.5555555556 | I169: =SUM([1]Data!BB155+[1]Data!BD155+[1]Data!BE155+[1]Data!BH155+[1]Data!BK155+[1]Data!BS155+[1]Data!BV155+[1]Data!BW155+[1]Data!CG155)/[1]Inputs!$A$12 -> 0.3333333333 | J169: =SUM([1]Data!BC155+[1]Data!BE155+[1]Data!BF155+[1]Data!BI155+[1]Data!BL155+[1]Data!BT155+[1]Data!BW155+[1]Data!BX155+[1]Data!CH155)/[1]Inputs!$A$12 -> 0.5555555556 | K169: =SUM([1]Data!BD155+[1]Data!BF155+[1]Data!BG155+[1]Data!BJ155+[1]Data!BM155+[1]Data!BU155+[1]Data!BX155+[1]Data!BY155+[1]Data!CI155)/[1]Inputs!$A$12 -> 0.4444444444 | M169: E | N169: C | O169: B | P169: D | Q169: B | R169: A | S169: E | T169: D | U169: C | V169: E | W169: C | X169: C | Y169: B | Z169: A | AA169: C | AB169: D | AC169: B | AD169: D | AE169: A | AF169: D | AG169: C | AH169: D | AI169: B | AJ169: A | AK169: A | AL169: B | AM169: B | AN169: B | AO169: C | AP169: A | AQ169: C | AR169: A | AS169: D | AT169: B | AU169: B | AV169: A | AW169: B | AX169: B | AY169: D | AZ169: E
C170: 25008 | D170: =[1]Data!C188 -> 26 | E170: =LOOKUP(D170,[1]Inputs!$B$55:$B$84,[1]Inputs!$A$55:$A$84) -> 26 | F170: =SUM([1]Data!AY188+[1]Data!BA188+[1]Data!BB188+[1]Data!BE188+[1]Data!BH188+[1]Data!BP188+[1]Data!BS188+[1]Data!BT188+[1]Data!CD188)/[1]Inputs!$A$12 -> 0.3333333333 | G170: =SUM([1]Data!AZ188+[1]Data!BB188+[1]Data!BC188+[1]Data!BF188+[1]Data!BI188+[1]Data!BQ188+[1]Data!BT188+[1]Data!BU188+[1]Data!CE188)/[1]Inputs!$A$12 -> 0.3333333333 | H170: =SUM([1]Data!BA188+[1]Data!BC188+[1]Data!BD188+[1]Data!BG188+[1]Data!BJ188+[1]Data!BR188+[1]Data!BU188+[1]Data!BV188+[1]Data!CF188)/[1]Inputs!$A$12 -> 0.2222222222 | I170: =SUM([1]Data!BB188+[1]Data!BD188+[1]Data!BE188+[1]Data!BH188+[1]Data!BK188+[1]Data!BS188+[1]Data!BV188+[1]Data!BW188+[1]Data!CG188)/[1]Inputs!$A$12 -> 0.4444444444 | J170: =SUM([1]Data!BC188+[1]Data!BE188+[1]Data!BF188+[1]Data!BI188+[1]Data!BL188+[1]Data!BT188+[1]Data!BW188+[1]Data!BX188+[1]Data!CH188)/[1]Inputs!$A$12 -> 0.3333333333 | K170: =SUM([1]Data!BD188+[1]Data!BF188+[1]Data!BG188+[1]Data!BJ188+[1]Data!BM188+[1]Data!BU188+[1]Data!BX188+[1]Data!BY188+[1]Data!CI188)/[1]Inputs!$A$12 -> 0.5555555556 | M170: E | N170: B | O170: B | P170: D | Q170: A | R170: A | S170: E | T170: D | U170: D | V170: E | W170: D | X170: D | Y170: C | Z170: A | AA170: D | AB170: D | AC170: D | AD170: D | AE170: B | AF170: D | AG170: D | AH170: E | AI170: C | AJ170: D | AK170: A | AL170: A | AM170: B | AN170: B | AO170: E | AP170: D | AQ170: D | AR170: B | AS170: B | AT170: A | AU170: A | AV170: A | AW170: D | AX170: D | AY170: D | AZ170: C
C171: 25365 | D171: =[1]Data!C255 -> 11 | E171: =LOOKUP(D171,[1]Inputs!$B$55:$B$84,[1]Inputs!$A$55:$A$84) -> 16 | F171: =SUM([1]Data!AY255+[1]Data!BA255+[1]Data!BB255+[1]Data!BE255+[1]Data!BH255+[1]Data!BP255+[1]Data!BS255+[1]Data!BT255+[1]Data!CD255)/[1]Inputs!$A$12 -> 0.1111111111 | G171: =SUM([1]Data!AZ255+[1]Data!BB255+[1]Data!BC255+[1]Data!BF255+[1]Data!BI255+[1]Data!BQ255+[1]Data!BT255+[1]Data!BU255+[1]Data!CE255)/[1]Inputs!$A$12 -> 0.3333333333 | H171: =SUM([1]Data!BA255+[1]Data!BC255+[1]Data!BD255+[1]Data!BG255+[1]Data!BJ255+[1]Data!BR255+[1]Data!BU255+[1]Data!BV255+[1]Data!CF255)/[1]Inputs!$A$12 -> 0 | I171: =SUM([1]Data!BB255+[1]Data!BD255+[1]Data!BE255+[1]Data!BH255+[1]Data!BK255+[1]Data!BS255+[1]Data!BV255+[1]Data!BW255+[1]Data!CG255)/[1]Inputs!$A$12 -> 0.3333333333 | J171: =SUM([1]Data!BC255+[1]Data!BE255+[1]Data!BF255+[1]Data!BI255+[1]Data!BL255+[1]Data!BT255+[1]Data!BW255+[1]Data!BX255+[1]Data!CH255)/[1]Inputs!$A$12 -> 0.2222222222 | K171: =SUM([1]Data!BD255+[1]Data!BF255+[1]Data!BG255+[1]Data!BJ255+[1]Data!BM255+[1]Data!BU255+[1]Data!BX255+[1]Data!BY255+[1]Data!CI255)/[1]Inputs!$A$12 -> 0.2222222222 | M171: D | N171: D | O171: B | P171: C | Q171: C | R171: A | S171: D | T171: D | U171: E | V171: B | W171: D | X171: D | Y171: B | Z171: B | AA171: C | AB171: E | AC171: D | AD171: A | AE171: A | AF171: A | AG171: C | AH171: E | AI171: B | AJ171: A | AK171: A | AL171: E | AM171: D | AN171: B | AO171: A | AP171: D | AQ171: E | AR171: A | AS171: B | AT171: E | AU171: B | AV171: C | AW171: A | AX171: C | AY171: C | AZ171: A
C172: 25376 | D172: =[1]Data!C101 -> 11 | E172: =LOOKUP(D172,[1]Inputs!$B$55:$B$84,[1]Inputs!$A$55:$A$84) -> 16 | F172: =SUM([1]Data!AY101+[1]Data!BA101+[1]Data!BB101+[1]Data!BE101+[1]Data!BH101+[1]Data!BP101+[1]Data!BS101+[1]Data!BT101+[1]Data!CD101)/[1]Inputs!$A$12 -> 0.5555555556 | G172: =SUM([1]Data!AZ101+[1]Data!BB101+[1]Data!BC101+[1]Data!BF101+[1]Data!BI101+[1]Data!BQ101+[1]Data!BT101+[1]Data!BU101+[1]Data!CE101)/[1]Inputs!$A$12 -> 0.2222222222 | H172: =SUM([1]Data!BA101+[1]Data!BC101+[1]Data!BD101+[1]Data!BG101+[1]Data!BJ101+[1]Data!BR101+[1]Data!BU101+[1]Data!BV101+[1]Data!CF101)/[1]Inputs!$A$12 -> 0.4444444444 | I172: =SUM([1]Data!BB101+[1]Data!BD101+[1]Data!BE101+[1]Data!BH101+[1]Data!BK101+[1]Data!BS101+[1]Data!BV101+[1]Data!BW101+[1]Data!CG101)/[1]Inputs!$A$12 -> 0.4444444444 | J172: =SUM([1]Data!BC101+[1]Data!BE101+[1]Data!BF101+[1]Data!BI101+[1]Data!BL101+[1]Data!BT101+[1]Data!BW101+[1]Data!BX101+[1]Data!CH101)/[1]Inputs!$A$12 -> 0.1111111111 | K172: =SUM([1]Data!BD101+[1]Data!BF101+[1]Data!BG101+[1]Data!BJ101+[1]Data!BM101+[1]Data!BU101+[1]Data!BX101+[1]Data!BY101+[1]Data!CI101)/[1]Inputs!$A$12 -> 0.1111111111 | M172: B | N172: C | O172: B | P172: D | Q172: C | R172: E | S172: E | T172: A | U172: E | V172: E | W172: C | X172: C | Y172: B | Z172: A | AA172: B | AB172: D | AC172: A | AD172: D | AE172: A | AF172: D | AG172: E | AH172: C | AI172: C | AJ172: C | AK172: C | AL172: A | AM172: D | AN172: E | AO172: D | AP172: D | AQ172: C | AR172: C | AS172: E | AT172: B | AU172: B | AV172: C | AW172: C | AX172: E | AY172: B | AZ172: D
C173: 25448 | D173: =[1]Data!C55 -> 26 | E173: =LOOKUP(D173,[1]Inputs!$B$55:$B$84,[1]Inputs!$A$55:$A$84) -> 26 | F173: =SUM([1]Data!AY55+[1]Data!BA55+[1]Data!BB55+[1]Data!BE55+[1]Data!BH55+[1]Data!BP55+[1]Data!BS55+[1]Data!BT55+[1]Data!CD55)/[1]Inputs!$A$12 -> 0.3333333333 | G173: =SUM([1]Data!AZ55+[1]Data!BB55+[1]Data!BC55+[1]Data!BF55+[1]Data!BI55+[1]Data!BQ55+[1]Data!BT55+[1]Data!BU55+[1]Data!CE55)/[1]Inputs!$A$12 -> 0.4444444444 | H173: =SUM([1]Data!BA55+[1]Data!BC55+[1]Data!BD55+[1]Data!BG55+[1]Data!BJ55+[1]Data!BR55+[1]Data!BU55+[1]Data!BV55+[1]Data!CF55)/[1]Inputs!$A$12 -> 0.6666666667 | I173: =SUM([1]Data!BB55+[1]Data!BD55+[1]Data!BE55+[1]Data!BH55+[1]Data!BK55+[1]Data!BS55+[1]Data!BV55+[1]Data!BW55+[1]Data!CG55)/[1]Inputs!$A$12 -> 0.2222222222 | J173: =SUM([1]Data!BC55+[1]Data!BE55+[1]Data!BF55+[1]Data!BI55+[1]Data!BL55+[1]Data!BT55+[1]Data!BW55+[1]Data!BX55+[1]Data!CH55)/[1]Inputs!$A$12 -> 0.5555555556 | K173: =SUM([1]Data!BD55+[1]Data!BF55+[1]Data!BG55+[1]Data!BJ55+[1]Data!BM55+[1]Data!BU55+[1]Data!BX55+[1]Data!BY55+[1]Data!CI55)/[1]Inputs!$A$12 -> 0.4444444444 | M173: E | N173: D | O173: B | P173: D | Q173: A | R173: A | S173: E | T173: D | U173: D | V173: E | W173: B | X173: C | Y173: C | Z173: B | AA173: C | AB173: D | AC173: C | AD173: D | AE173: A | AF173: D | AG173: B | AH173: A | AI173: B | AJ173: D | AK173: A | AL173: D | AM173: B | AN173: B | AO173: D | AP173: D | AQ173: E | AR173: B | AS173: B | AT173: A | AU173: A | AV173: A | AW173: C | AX173: A | AY173: A | AZ173: B
C174: 25503 | D174: =[1]Data!C68 -> 28 | E174: =LOOKUP(D174,[1]Inputs!$B$55:$B$84,[1]Inputs!$A$55:$A$84) -> 27 | F174: =SUM([1]Data!AY68+[1]Data!BA68+[1]Data!BB68+[1]Data!BE68+[1]Data!BH68+[1]Data!BP68+[1]Data!BS68+[1]Data!BT68+[1]Data!CD68)/[1]Inputs!$A$12 -> 0.6666666667 | G174: =SUM([1]Data!AZ68+[1]Data!BB68+[1]Data!BC68+[1]Data!BF68+[1]Data!BI68+[1]Data!BQ68+[1]Data!BT68+[1]Data!BU68+[1]Data!CE68)/[1]Inputs!$A$12 -> 0.6666666667 | H174: =SUM([1]Data!BA68+[1]Data!BC68+[1]Data!BD68+[1]Data!BG68+[1]Data!BJ68+[1]Data!BR68+[1]Data!BU68+[1]Data!BV68+[1]Data!CF68)/[1]Inputs!$A$12 -> 0.7777777778 | I174: =SUM([1]Data!BB68+[1]Data!BD68+[1]Data!BE68+[1]Data!BH68+[1]Data!BK68+[1]Data!BS68+[1]Data!BV68+[1]Data!BW68+[1]Data!CG68)/[1]Inputs!$A$12 -> 0.5555555556 | J174: =SUM([1]Data!BC68+[1]Data!BE68+[1]Data!BF68+[1]Data!BI68+[1]Data!BL68+[1]Data!BT68+[1]Data!BW68+[1]Data!BX68+[1]Data!CH68)/[1]Inputs!$A$12 -> 0.6666666667 | K174: =SUM([1]Data!BD68+[1]Data!BF68+[1]Data!BG68+[1]Data!BJ68+[1]Data!BM68+[1]Data!BU68+[1]Data!BX68+[1]Data!BY68+[1]Data!CI68)/[1]Inputs!$A$12 -> 0.6666666667 | M174: E | N174: B | O174: B | P174: D | Q174: A | R174: A | S174: E | T174: D | U174: D | V174: E | W174: C | X174: C | Y174: C | Z174: A | AA174: E | AB174: B | AC174: B | AD174: E | AE174: B | AF174: D | AG174: D | AH174: A | AI174: C | AJ174: C | AK174: A | AL174: D | AM174: B | AN174: B | AO174: D | AP174: D | AQ174: C | AR174: B | AS174: C | AT174: A | AU174: A | AV174: B | AW174: D | AX174: D | AY174: C | AZ174: C
C175: 25540 | D175: =[1]Data!C99 -> 17 | E175: =LOOKUP(D175,[1]Inputs!$B$55:$B$84,[1]Inputs!$A$55:$A$84) -> 19 | F175: =SUM([1]Data!AY99+[1]Data!BA99+[1]Data!BB99+[1]Data!BE99+[1]Data!BH99+[1]Data!BP99+[1]Data!BS99+[1]Data!BT99+[1]Data!CD99)/[1]Inputs!$A$12 -> 0.3333333333 | G175: =SUM([1]Data!AZ99+[1]Data!BB99+[1]Data!BC99+[1]Data!BF99+[1]Data!BI99+[1]Data!BQ99+[1]Data!BT99+[1]Data!BU99+[1]Data!CE99)/[1]Inputs!$A$12 -> 0.5555555556 | H175: =SUM([1]Data!BA99+[1]Data!BC99+[1]Data!BD99+[1]Data!BG99+[1]Data!BJ99+[1]Data!BR99+[1]Data!BU99+[1]Data!BV99+[1]Data!CF99)/[1]Inputs!$A$12 -> 0.5555555556 | I175: =SUM([1]Data!BB99+[1]Data!BD99+[1]Data!BE99+[1]Data!BH99+[1]Data!BK99+[1]Data!BS99+[1]Data!BV99+[1]Data!BW99+[1]Data!CG99)/[1]Inputs!$A$12 -> 0.3333333333 | J175: =SUM([1]Data!BC99+[1]Data!BE99+[1]Data!BF99+[1]Data!BI99+[1]Data!BL99+[1]Data!BT99+[1]Data!BW99+[1]Data!BX99+[1]Data!CH99)/[1]Inputs!$A$12 -> 0.2222222222 | K175: =SUM([1]Data!BD99+[1]Data!BF99+[1]Data!BG99+[1]Data!BJ99+[1]Data!BM99+[1]Data!BU99+[1]Data!BX99+[1]Data!BY99+[1]Data!CI99)/[1]Inputs!$A$12 -> 0.4444444444 | M175: D | N175: D | O175: B | P175: D | Q175: B | R175: A | S175: C | T175: D | U175: D | V175: E | W175: A | X175: C | Y175: C | Z175: B | AA175: D | AB175: B | AC175: D | AD175: D | AE175: B | AF175: D | AG175: D | AH175: C | AI175: D | AJ175: C | AK175: E | AL175: B | AM175: C | AN175: A | AO175: D | AP175: B | AQ175: C | AR175: A | AS175: D | AT175: C | AU175: B | AV175: D | AW175: B | AX175: A | AY175: D | AZ175: C
C176: 25654 | D176: =[1]Data!C223 -> 19 | E176: =LOOKUP(D176,[1]Inputs!$B$55:$B$84,[1]Inputs!$A$55:$A$84) -> 20 | F176: =SUM([1]Data!AY223+[1]Data!BA223+[1]Data!BB223+[1]Data!BE223+[1]Data!BH223+[1]Data!BP223+[1]Data!BS223+[1]Data!BT223+[1]Data!CD223)/[1]Inputs!$A$12 -> 0 | G176: =SUM([1]Data!AZ223+[1]Data!BB223+[1]Data!BC223+[1]Data!BF223+[1]Data!BI223+[1]Data!BQ223+[1]Data!BT223+[1]Data!BU223+[1]Data!CE223)/[1]Inputs!$A$12 -> 0.3333333333 | H176: =SUM([1]Data!BA223+[1]Data!BC223+[1]Data!BD223+[1]Data!BG223+[1]Data!BJ223+[1]Data!BR223+[1]Data!BU223+[1]Data!BV223+[1]Data!CF223)/[1]Inputs!$A$12 -> 0.5555555556 | I176: =SUM([1]Data!BB223+[1]Data!BD223+[1]Data!BE223+[1]Data!BH223+[1]Data!BK223+[1]Data!BS223+[1]Data!BV223+[1]Data!BW223+[1]Data!CG223)/[1]Inputs!$A$12 -> 0.2222222222 | J176: =SUM([1]Data!BC223+[1]Data!BE223+[1]Data!BF223+[1]Data!BI223+[1]Data!BL223+[1]Data!BT223+[1]Data!BW223+[1]Data!BX223+[1]Data!CH223)/[1]Inputs!$A$12 -> 0.3333333333 | K176: =SUM([1]Data!BD223+[1]Data!BF223+[1]Data!BG223+[1]Data!BJ223+[1]Data!BM223+[1]Data!BU223+[1]Data!BX223+[1]Data!BY223+[1]Data!CI223)/[1]Inputs!$A$12 -> 0.6666666667 | M176: E | N176: D | O176: B | P176: D | Q176: C | R176: A | S176: E | T176: D | U176: D | V176: D | W176: C | X176: B | Y176: B | Z176: B | AA176: D | AB176: B | AC176: A | AD176: E | AE176: A | AF176: D | AG176: D | AH176: A | AI176: D | AJ176: D | AK176: A | AL176: A | AM176: A | AN176: A | AO176: A | AP176: A | AQ176: B | AR176: E | AS176: A | AT176: A | AU176: A | AV176: A | AW176: A | AX176: A | AY176: A | AZ176: D
C177: =[1]Data!E11 -> 25777 | D177: 13 | E177: =LOOKUP(D177,[1]Inputs!$B$55:$B$84,[1]Inputs!$A$55:$A$84) -> 17 | F177: =SUM([1]Data!AY11+[1]Data!BA11+[1]Data!BB11+[1]Data!BE11+[1]Data!BH11+[1]Data!BP11+[1]Data!BS11+[1]Data!BT11+[1]Data!CD11)/[1]Inputs!$A$12 -> 0.1111111111 | G177: =SUM([1]Data!BD11+[1]Data!BF11+[1]Data!BI11+[1]Data!BL11+[1]Data!BO11+[1]Data!BQ11+[1]Data!CA11+[1]Data!CH11)/[1]Inputs!$A$13 -> 0.25 | H177: =SUM([1]Data!AZ11+[1]Data!BJ11+[1]Data!BM11+[1]Data!BX11+[1]Data!CB11+[1]Data!CJ11+[1]Data!CK11)/[1]Inputs!$A$14 -> 0.3333333333 | I177: =SUM([1]Data!BV11+[1]Data!CC11+[1]Data!CL11)/[1]Inputs!$A$15 -> 0 | J177: =SUM([1]Data!BC11+[1]Data!BG11+[1]Data!BJ11+[1]Data!BN11+[1]Data!BR11+[1]Data!BU11+[1]Data!BY11+[1]Data!BZ11+[1]Data!CE11+[1]Data!CG11)/[1]Inputs!$A$16 -> 0.2 | K177: =SUM([1]Data!BW11+[1]Data!CF11+[1]Data!CI11)/[1]Inputs!$A$17 -> 0 | M177: E | N177: C | O177: D | P177: D | Q177: C | R177: A | S177: E | T177: D | U177: E | V177: E | W177: D | X177: B | Y177: C | Z177: A | AA177: C | AB177: B | AC177: A | AD177: E | AE177: A | AF177: D | AG177: E | AH177: E | AI177: C | AJ177: C | AK177: E | AL177: A | AM177: C | AN177: E | AO177: E | AP177: A | AQ177: A | AR177: B | AS177: E | AT177: A | AU177: B | AV177: A | AW177: B | AX177: D | AY177: B | AZ177: C
C178: =[1]Data!E15 -> 26512 | D178: 7 | E178: =LOOKUP(D178,[1]Inputs!$B$55:$B$84,[1]Inputs!$A$55:$A$84) -> 14 | F178: =SUM([1]Data!AY15+[1]Data!BA15+[1]Data!BB15+[1]Data!BE15+[1]Data!BH15+[1]Data!BP15+[1]Data!BS15+[1]Data!BT15+[1]Data!CD15)/[1]Inputs!$A$12 -> 0.4444444444 | G178: =SUM([1]Data!BD15+[1]Data!BF15+[1]Data!BI15+[1]Data!BL15+[1]Data!BO15+[1]Data!BQ15+[1]Data!CA15+[1]Data!CH15)/[1]Inputs!$A$13 -> 0.125 | H178: =SUM([1]Data!AZ15+[1]Data!BJ15+[1]Data!BM15+[1]Data!BX15+[1]Data!CB15+[1]Data!CJ15+[1]Data!CK15)/[1]Inputs!$A$14 -> 0.3333333333 | I178: =SUM([1]Data!BV15+[1]Data!CC15+[1]Data!CL15)/[1]Inputs!$A$15 -> 0 | J178: =SUM([1]Data!BC15+[1]Data!BG15+[1]Data!BJ15+[1]Data!BN15+[1]Data!BR15+[1]Data!BU15+[1]Data!BY15+[1]Data!BZ15+[1]Data!CE15+[1]Data!CG15)/[1]Inputs!$A$16 -> 0.2 | K178: =SUM([1]Data!BW15+[1]Data!CF15+[1]Data!CI15)/[1]Inputs!$A$17 -> 0.3333333333 | M178: A | N178: D | O178: A | P178: C | Q178: C | R178: D | S178: A | T178: B | U178: E | V178: D | W178: C | X178: A | Y178: B | Z178: E | AA178: E | AB178: A | AC178: C | AD178: D | AE178: A | AF178: D | AG178: D | AH178: B | AI178: C | AJ178: D | AK178: A | AL178: B | AM178: B | AN178: A | AO178: C | AP178: A | AQ178: C | AR178: A | AS178: A | AT178: C | AU178: B | AV178: B | AW178: C | AX178: B | AY178: A | AZ178: A
C179: 26774 | D179: =[1]Data!C110 -> 9 | E179: =LOOKUP(D179,[1]Inputs!$B$55:$B$84,[1]Inputs!$A$55:$A$84) -> 15 | F179: =SUM([1]Data!AY110+[1]Data!BA110+[1]Data!BB110+[1]Data!BE110+[1]Data!BH110+[1]Data!BP110+[1]Data!BS110+[1]Data!BT110+[1]Data!CD110)/[1]Inputs!$A$12 -> 0.2222222222 | G179: =SUM([1]Data!AZ110+[1]Data!BB110+[1]Data!BC110+[1]Data!BF110+[1]Data!BI110+[1]Data!BQ110+[1]Data!BT110+[1]Data!BU110+[1]Data!CE110)/[1]Inputs!$A$12 -> 0.3333333333 | H179: =SUM([1]Data!BA110+[1]Data!BC110+[1]Data!BD110+[1]Data!BG110+[1]Data!BJ110+[1]Data!BR110+[1]Data!BU110+[1]Data!BV110+[1]Data!CF110)/[1]Inputs!$A$12 -> 0.5555555556 | I179: =SUM([1]Data!BB110+[1]Data!BD110+[1]Data!BE110+[1]Data!BH110+[1]Data!BK110+[1]Data!BS110+[1]Data!BV110+[1]Data!BW110+[1]Data!CG110)/[1]Inputs!$A$12 -> 0 | J179: =SUM([1]Data!BC110+[1]Data!BE110+[1]Data!BF110+[1]Data!BI110+[1]Data!BL110+[1]Data!BT110+[1]Data!BW110+[1]Data!BX110+[1]Data!CH110)/[1]Inputs!$A$12 -> 0.3333333333 | K179: =SUM([1]Data!BD110+[1]Data!BF110+[1]Data!BG110+[1]Data!BJ110+[1]Data!BM110+[1]Data!BU110+[1]Data!BX110+[1]Data!BY110+[1]Data!CI110)/[1]Inputs!$A$12 -> 0.4444444444 | M179: E | N179: B | O179: B | P179: C | Q179: A | R179: E | S179: C | T179: D | U179: E | V179: C | W179: D | X179: D | Y179: B | Z179: E | AA179: D | AB179: B | AC179: E | AD179: A | AE179: B | AF179: A | AG179: E | AH179: D | AI179: D | AJ179: A | AK179: B | AL179: C | AM179: D | AN179: B | AO179: E | AP179: D | AQ179: B | AR179: B | AS179: A | AT179: C | AU179: C | AV179: B | AW179: D | AX179: C | AY179: B | AZ179: A
C180: 27037 | D180: =[1]Data!C128 -> 10 | E180: =LOOKUP(D180,[1]Inputs!$B$55:$B$84,[1]Inputs!$A$55:$A$84) -> 15 | F180: =SUM([1]Data!AY128+[1]Data!BA128+[1]Data!BB128+[1]Data!BE128+[1]Data!BH128+[1]Data!BP128+[1]Data!BS128+[1]Data!BT128+[1]Data!CD128)/[1]Inputs!$A$12 -> 0 | G180: =SUM([1]Data!AZ128+[1]Data!BB128+[1]Data!BC128+[1]Data!BF128+[1]Data!BI128+[1]Data!BQ128+[1]Data!BT128+[1]Data!BU128+[1]Data!CE128)/[1]Inputs!$A$12 -> 0.2222222222 | H180: =SUM([1]Data!BA128+[1]Data!BC128+[1]Data!BD128+[1]Data!BG128+[1]Data!BJ128+[1]Data!BR128+[1]Data!BU128+[1]Data!BV128+[1]Data!CF128)/[1]Inputs!$A$12 -> 0.1111111111 | I180: =SUM([1]Data!BB128+[1]Data!BD128+[1]Data!BE128+[1]Data!BH128+[1]Data!BK128+[1]Data!BS128+[1]Data!BV128+[1]Data!BW128+[1]Data!CG128)/[1]Inputs!$A$12 -> 0.2222222222 | J180: =SUM([1]Data!BC128+[1]Data!BE128+[1]Data!BF128+[1]Data!BI128+[1]Data!BL128+[1]Data!BT128+[1]Data!BW128+[1]Data!BX128+[1]Data!CH128)/[1]Inputs!$A$12 -> 0.2222222222 | K180: =SUM([1]Data!BD128+[1]Data!BF128+[1]Data!BG128+[1]Data!BJ128+[1]Data!BM128+[1]Data!BU128+[1]Data!BX128+[1]Data!BY128+[1]Data!CI128)/[1]Inputs!$A$12 -> 0.3333333333 | M180: C | N180: B | O180: D | P180: C | Q180: A | R180: E | S180: E | T180: C | U180: D | V180: E | W180: D | X180: B | Y180: C | Z180: E | AA180: E | AB180: C | AC180: C | AD180: A | AE180: B | AF180: B | AG180: B | AH180: E | AI180: C | AJ180: A | AK180: C | AL180: C | AM180: D | AN180: D | AO180: B | AP180: D | AQ180: B | AR180: A | AS180: C | AT180: D | AU180: B | AV180: B | AW180: D | AX180: C | AY180: C | AZ180: C
C181: 27044 | D181: =[1]Data!C100 -> 12 | E181: =LOOKUP(D181,[1]Inputs!$B$55:$B$84,[1]Inputs!$A$55:$A$84) -> 16 | F181: =SUM([1]Data!AY100+[1]Data!BA100+[1]Data!BB100+[1]Data!BE100+[1]Data!BH100+[1]Data!BP100+[1]Data!BS100+[1]Data!BT100+[1]Data!CD100)/[1]Inputs!$A$12 -> 0.5555555556 | G181: =SUM([1]Data!AZ100+[1]Data!BB100+[1]Data!BC100+[1]Data!BF100+[1]Data!BI100+[1]Data!BQ100+[1]Data!BT100+[1]Data!BU100+[1]Data!CE100)/[1]Inputs!$A$12 -> 0.4444444444 | H181: =SUM([1]Data!BA100+[1]Data!BC100+[1]Data!BD100+[1]Data!BG100+[1]Data!BJ100+[1]Data!BR100+[1]Data!BU100+[1]Data!BV100+[1]Data!CF100)/[1]Inputs!$A$12 -> 0.3333333333 | I181: =SUM([1]Data!BB100+[1]Data!BD100+[1]Data!BE100+[1]Data!BH100+[1]Data!BK100+[1]Data!BS100+[1]Data!BV100+[1]Data!BW100+[1]Data!CG100)/[1]Inputs!$A$12 -> 0.4444444444 | J181: =SUM([1]Data!BC100+[1]Data!BE100+[1]Data!BF100+[1]Data!BI100+[1]Data!BL100+[1]Data!BT100+[1]Data!BW100+[1]Data!BX100+[1]Data!CH100)/[1]Inputs!$A$12 -> 0.3333333333 | K181: =SUM([1]Data!BD100+[1]Data!BF100+[1]Data!BG100+[1]Data!BJ100+[1]Data!BM100+[1]Data!BU100+[1]Data!BX100+[1]Data!BY100+[1]Data!CI100)/[1]Inputs!$A$12 -> 0.4444444444 | M181: A | N181: B | O181: C | P181: D | Q181: A | R181: E | S181: E | T181: D | U181: E | V181: E | W181: B | X181: E | Y181: C | Z181: E | AA181: D | AB181: B | AC181: A | AD181: D | AE181: A | AF181: E | AG181: C | AH181: D | AI181: D | AJ181: C | AK181: D | AL181: D | AM181: D | AN181: D | AO181: D | AP181: D | AQ181: D | AR181: D | AS181: D | AT181: D | AU181: D | AV181: D | AW181: E | AX181: D | AY181: D | AZ181: D
C182: 27778 | D182: =[1]Data!C132 -> 11 | E182: =LOOKUP(D182,[1]Inputs!$B$55:$B$84,[1]Inputs!$A$55:$A$84) -> 16 | F182: =SUM([1]Data!AY132+[1]Data!BA132+[1]Data!BB132+[1]Data!BE132+[1]Data!BH132+[1]Data!BP132+[1]Data!BS132+[1]Data!BT132+[1]Data!CD132)/[1]Inputs!$A$12 -> 0.2222222222 | G182: =SUM([1]Data!AZ132+[1]Data!BB132+[1]Data!BC132+[1]Data!BF132+[1]Data!BI132+[1]Data!BQ132+[1]Data!BT132+[1]Data!BU132+[1]Data!CE132)/[1]Inputs!$A$12 -> 0.1111111111 | H182: =SUM([1]Data!BA132+[1]Data!BC132+[1]Data!BD132+[1]Data!BG132+[1]Data!BJ132+[1]Data!BR132+[1]Data!BU132+[1]Data!BV132+[1]Data!CF132)/[1]Inputs!$A$12 -> 0.3333333333 | I182: =SUM([1]Data!BB132+[1]Data!BD132+[1]Data!BE132+[1]Data!BH132+[1]Data!BK132+[1]Data!BS132+[1]Data!BV132+[1]Data!BW132+[1]Data!CG132)/[1]Inputs!$A$12 -> 0.2222222222 | J182: =SUM([1]Data!BC132+[1]Data!BE132+[1]Data!BF132+[1]Data!BI132+[1]Data!BL132+[1]Data!BT132+[1]Data!BW132+[1]Data!BX132+[1]Data!CH132)/[1]Inputs!$A$12 -> 0.1111111111 | K182: =SUM([1]Data!BD132+[1]Data!BF132+[1]Data!BG132+[1]Data!BJ132+[1]Data!BM132+[1]Data!BU132+[1]Data!BX132+[1]Data!BY132+[1]Data!CI132)/[1]Inputs!$A$12 -> 0.2222222222 | M182: E | N182: D | O182: D | P182: B | Q182: B | R182: A | S182: C | T182: B | U182: D | V182: D | W182: A | X182: C | Y182: E | Z182: C | AA182: D | AB182: A | AC182: C | AD182: E | AE182: A | AF182: D | AG182: B | AH182: D | AI182: A | AJ182: D | AK182: D | AL182: D | AM182: D | AN182: B | AO182: D | AP182: A | AQ182: E | AR182: C | AS182: B | AT182: D | AU182: B | AV182: B | AW182: C | AX182: D | AY182: B | AZ182: B
C183: 27782 | D183: =[1]Data!C96 -> 14 | E183: =LOOKUP(D183,[1]Inputs!$B$55:$B$84,[1]Inputs!$A$55:$A$84) -> 17 | F183: =SUM([1]Data!AY96+[1]Data!BA96+[1]Data!BB96+[1]Data!BE96+[1]Data!BH96+[1]Data!BP96+[1]Data!BS96+[1]Data!BT96+[1]Data!CD96)/[1]Inputs!$A$12 -> 0.6666666667 | G183: =SUM([1]Data!AZ96+[1]Data!BB96+[1]Data!BC96+[1]Data!BF96+[1]Data!BI96+[1]Data!BQ96+[1]Data!BT96+[1]Data!BU96+[1]Data!CE96)/[1]Inputs!$A$12 -> 0.5555555556 | H183: =SUM([1]Data!BA96+[1]Data!BC96+[1]Data!BD96+[1]Data!BG96+[1]Data!BJ96+[1]Data!BR96+[1]Data!BU96+[1]Data!BV96+[1]Data!CF96)/[1]Inputs!$A$12 -> 0.6666666667 | I183: =SUM([1]Data!BB96+[1]Data!BD96+[1]Data!BE96+[1]Data!BH96+[1]Data!BK96+[1]Data!BS96+[1]Data!BV96+[1]Data!BW96+[1]Data!CG96)/[1]Inputs!$A$12 -> 0.5555555556 | J183: =SUM([1]Data!BC96+[1]Data!BE96+[1]Data!BF96+[1]Data!BI96+[1]Data!BL96+[1]Data!BT96+[1]Data!BW96+[1]Data!BX96+[1]Data!CH96)/[1]Inputs!$A$12 -> 0.4444444444 | K183: =SUM([1]Data!BD96+[1]Data!BF96+[1]Data!BG96+[1]Data!BJ96+[1]Data!BM96+[1]Data!BU96+[1]Data!BX96+[1]Data!BY96+[1]Data!CI96)/[1]Inputs!$A$12 -> 0.5555555556 | M183: E | N183: D | O183: B | P183: D | Q183: B | R183: E | S183: E | T183: D | U183: D | V183: E | W183: B | X183: C | Y183: A | Z183: C | AA183: D | AB183: D | AC183: C | AD183: C | AE183: A | AF183: D | AG183: C | AH183: E | AI183: C | AJ183: A | AK183: A | AL183: B | AM183: D | AN183: B | AO183: B | AP183: A | AQ183: D | AR183: A | AS183: A | AT183: E | AU183: D | AV183: B | AW183: C | AX183: D | AY183: B | AZ183: B
C184: =[1]Data!E21 -> 100022 | D184: 6 | E184: =LOOKUP(D184,[1]Inputs!$B$55:$B$84,[1]Inputs!$A$55:$A$84) -> 13 | F184: =SUM([1]Data!AY21+[1]Data!BA21+[1]Data!BB21+[1]Data!BE21+[1]Data!BH21+[1]Data!BP21+[1]Data!BS21+[1]Data!BT21+[1]Data!CD21)/[1]Inputs!$A$12 -> 0.1111111111 | G184: =SUM([1]Data!BD21+[1]Data!BF21+[1]Data!BI21+[1]Data!BL21+[1]Data!BO21+[1]Data!BQ21+[1]Data!CA21+[1]Data!CH21)/[1]Inputs!$A$13 -> 0.25 | H184: =SUM([1]Data!AZ21+[1]Data!BJ21+[1]Data!BM21+[1]Data!BX21+[1]Data!CB21+[1]Data!CJ21+[1]Data!CK21)/[1]Inputs!$A$14 -> 0.3333333333 | I184: =SUM([1]Data!BV21+[1]Data!CC21+[1]Data!CL21)/[1]Inputs!$A$15 -> 0 | J184: =SUM([1]Data!BC21+[1]Data!BG21+[1]Data!BJ21+[1]Data!BN21+[1]Data!BR21+[1]Data!BU21+[1]Data!BY21+[1]Data!BZ21+[1]Data!CE21+[1]Data!CG21)/[1]Inputs!$A$16 -> 0.4 | K184: =SUM([1]Data!BW21+[1]Data!CF21+[1]Data!CI21)/[1]Inputs!$A$17 -> 0.3333333333 | M184: D | N184: D | O184: A | P184: C | Q184: C | R184: A | S184: A | T184: D | U184: E | V184: D | W184: D | X184: D | Y184: D | Z184: D | AA184: E | AB184: A | AC184: A | AD184: E | AE184: A | AF184: A | AG184: D | AH184: D | AI184: E | AJ184: E | AK184: E | AL184: B | AM184: D | AN184: E | AO184: C | AP184: A | AQ184: A | AR184: B | AS184: C | AT184: C | AU184: B | AV184: B | AW184: E | AX184: D | AY184: C | AZ184: A
C185: 100066 | D185: =[1]Data!C138 -> 14 | E185: =LOOKUP(D185,[1]Inputs!$B$55:$B$84,[1]Inputs!$A$55:$A$84) -> 17 | F185: =SUM([1]Data!AY138+[1]Data!BA138+[1]Data!BB138+[1]Data!BE138+[1]Data!BH138+[1]Data!BP138+[1]Data!BS138+[1]Data!BT138+[1]Data!CD138)/[1]Inputs!$A$12 -> 0.1111111111 | G185: =SUM([1]Data!AZ138+[1]Data!BB138+[1]Data!BC138+[1]Data!BF138+[1]Data!BI138+[1]Data!BQ138+[1]Data!BT138+[1]Data!BU138+[1]Data!CE138)/[1]Inputs!$A$12 -> 0.3333333333 | H185: =SUM([1]Data!BA138+[1]Data!BC138+[1]Data!BD138+[1]Data!BG138+[1]Data!BJ138+[1]Data!BR138+[1]Data!BU138+[1]Data!BV138+[1]Data!CF138)/[1]Inputs!$A$12 -> 0.2222222222 | I185: =SUM([1]Data!BB138+[1]Data!BD138+[1]Data!BE138+[1]Data!BH138+[1]Data!BK138+[1]Data!BS138+[1]Data!BV138+[1]Data!BW138+[1]Data!CG138)/[1]Inputs!$A$12 -> 0.1111111111 | J185: =SUM([1]Data!BC138+[1]Data!BE138+[1]Data!BF138+[1]Data!BI138+[1]Data!BL138+[1]Data!BT138+[1]Data!BW138+[1]Data!BX138+[1]Data!CH138)/[1]Inputs!$A$12 -> 0.3333333333 | K185: =SUM([1]Data!BD138+[1]Data!BF138+[1]Data!BG138+[1]Data!BJ138+[1]Data!BM138+[1]Data!BU138+[1]Data!BX138+[1]Data!BY138+[1]Data!CI138)/[1]Inputs!$A$12 -> 0.2222222222 | M185: C | N185: D | O185: B | P185: C | Q185: C | R185: A | S185: D | T185: D | U185: E | V185: B | W185: C | X185: C | Y185: A | Z185: B | AA185: D | AB185: B | AC185: A | AD185: A | AE185: A | AF185: A | AG185: C | AH185: D | AI185: E | AJ185: C | AK185: C | AL185: E | AM185: B | AN185: B | AO185: C | AP185: A | AQ185: D | AR185: C | AS185: E | AT185: A | AU185: B | AV185: D | AW185: B | AX185: D | AY185: A | AZ185: C
C186: 100393 | D186: =[1]Data!C221 -> 6 | E186: =LOOKUP(D186,[1]Inputs!$B$55:$B$84,[1]Inputs!$A$55:$A$84) -> 13 | F186: =SUM([1]Data!AY221+[1]Data!BA221+[1]Data!BB221+[1]Data!BE221+[1]Data!BH221+[1]Data!BP221+[1]Data!BS221+[1]Data!BT221+[1]Data!CD221)/[1]Inputs!$A$12 -> 0.2222222222 | G186: =SUM([1]Data!AZ221+[1]Data!BB221+[1]Data!BC221+[1]Data!BF221+[1]Data!BI221+[1]Data!BQ221+[1]Data!BT221+[1]Data!BU221+[1]Data!CE221)/[1]Inputs!$A$12 -> 0.1111111111 | H186: =SUM([1]Data!BA221+[1]Data!BC221+[1]Data!BD221+[1]Data!BG221+[1]Data!BJ221+[1]Data!BR221+[1]Data!BU221+[1]Data!BV221+[1]Data!CF221)/[1]Inputs!$A$12 -> 0.3333333333 | I186: =SUM([1]Data!BB221+[1]Data!BD221+[1]Data!BE221+[1]Data!BH221+[1]Data!BK221+[1]Data!BS221+[1]Data!BV221+[1]Data!BW221+[1]Data!CG221)/[1]Inputs!$A$12 -> 0.1111111111 | J186: =SUM([1]Data!BC221+[1]Data!BE221+[1]Data!BF221+[1]Data!BI221+[1]Data!BL221+[1]Data!BT221+[1]Data!BW221+[1]Data!BX221+[1]Data!CH221)/[1]Inputs!$A$12 -> 0.1111111111 | K186: =SUM([1]Data!BD221+[1]Data!BF221+[1]Data!BG221+[1]Data!BJ221+[1]Data!BM221+[1]Data!BU221+[1]Data!BX221+[1]Data!BY221+[1]Data!CI221)/[1]Inputs!$A$12 -> 0.4444444444 | M186: C | N186: C | O186: C | P186: E | Q186: A | R186: A | S186: A | T186: D | U186: E | V186: B | W186: D | X186: B | Y186: B | Z186: B | AA186: D | AB186: A | AC186: A | AD186: D | AE186: A | AF186: D | AG186: E | AH186: B | AI186: D | AJ186: A | AK186: E | AL186: A | AM186: D | AN186: E | AO186: A | AP186: E | AQ186: B | AR186: A | AS186: B | AT186: A | AU186: B | AV186: B | AW186: B | AX186: D | AY186: B | AZ186: D
C187: 100446 | D187: =[1]Data!C88 -> 10 | E187: =LOOKUP(D187,[1]Inputs!$B$55:$B$84,[1]Inputs!$A$55:$A$84) -> 15 | F187: =SUM([1]Data!AY88+[1]Data!BA88+[1]Data!BB88+[1]Data!BE88+[1]Data!BH88+[1]Data!BP88+[1]Data!BS88+[1]Data!BT88+[1]Data!CD88)/[1]Inputs!$A$12 -> 0.3333333333 | G187: =SUM([1]Data!AZ88+[1]Data!BB88+[1]Data!BC88+[1]Data!BF88+[1]Data!BI88+[1]Data!BQ88+[1]Data!BT88+[1]Data!BU88+[1]Data!CE88)/[1]Inputs!$A$12 -> 0.5555555556 | H187: =SUM([1]Data!BA88+[1]Data!BC88+[1]Data!BD88+[1]Data!BG88+[1]Data!BJ88+[1]Data!BR88+[1]Data!BU88+[1]Data!BV88+[1]Data!CF88)/[1]Inputs!$A$12 -> 0.1111111111 | I187: =SUM([1]Data!BB88+[1]Data!BD88+[1]Data!BE88+[1]Data!BH88+[1]Data!BK88+[1]Data!BS88+[1]Data!BV88+[1]Data!BW88+[1]Data!CG88)/[1]Inputs!$A$12 -> 0.5555555556 | J187: =SUM([1]Data!BC88+[1]Data!BE88+[1]Data!BF88+[1]Data!BI88+[1]Data!BL88+[1]Data!BT88+[1]Data!BW88+[1]Data!BX88+[1]Data!CH88)/[1]Inputs!$A$12 -> 0.6666666667 | K187: =SUM([1]Data!BD88+[1]Data!BF88+[1]Data!BG88+[1]Data!BJ88+[1]Data!BM88+[1]Data!BU88+[1]Data!BX88+[1]Data!BY88+[1]Data!CI88)/[1]Inputs!$A$12 -> 0.2222222222 | M187: A | N187: B | O187: C | P187: C | Q187: C | R187: E | S187: E | T187: D | U187: E | V187: E | W187: C | X187: B | Y187: B | Z187: A | AA187: C | AB187: A | AC187: E | AD187: A | AE187: C | AF187: B | AG187: D | AH187: B | AI187: B | AJ187: D | AK187: B | AL187: C | AM187: D | AN187: D | AO187: D | AP187: B | AQ187: E | AR187: A | AS187: B | AT187: D | AU187: B | AV187: B | AW187: B | AX187: B | AY187: B | AZ187: B
C188: =[1]Data!E20 -> 100465 | D188: 17 | E188: =LOOKUP(D188,[1]Inputs!$B$55:$B$84,[1]Inputs!$A$55:$A$84) -> 19 | F188: =SUM([1]Data!AY20+[1]Data!BA20+[1]Data!BB20+[1]Data!BE20+[1]Data!BH20+[1]Data!BP20+[1]Data!BS20+[1]Data!BT20+[1]Data!CD20)/[1]Inputs!$A$12 -> 0.4444444444 | G188: =SUM([1]Data!BD20+[1]Data!BF20+[1]Data!BI20+[1]Data!BL20+[1]Data!BO20+[1]Data!BQ20+[1]Data!CA20+[1]Data!CH20)/[1]Inputs!$A$13 -> 0.5 | H188: =SUM([1]Data!AZ20+[1]Data!BJ20+[1]Data!BM20+[1]Data!BX20+[1]Data!CB20+[1]Data!CJ20+[1]Data!CK20)/[1]Inputs!$A$14 -> 0.3333333333 | I188: =SUM([1]Data!BV20+[1]Data!CC20+[1]Data!CL20)/[1]Inputs!$A$15 -> 0 | J188: =SUM([1]Data!BC20+[1]Data!BG20+[1]Data!BJ20+[1]Data!BN20+[1]Data!BR20+[1]Data!BU20+[1]Data!BY20+[1]Data!BZ20+[1]Data!CE20+[1]Data!CG20)/[1]Inputs!$A$16 -> 0 | K188: =SUM([1]Data!BW20+[1]Data!CF20+[1]Data!CI20)/[1]Inputs!$A$17 -> 0.6666666667 | M188: E | N188: B | O188: B | P188: B | Q188: C | R188: A | S188: E | T188: D | U188: B | V188: E | W188: C | X188: E | Y188: C | Z188: A | AA188: C | AB188: C | AC188: B | AD188: B | AE188: B | AF188: C | AG188: E | AH188: B | AI188: D | AJ188: E | AK188: E | AL188: A | AM188: C | AN188: C | AO188: D | AP188: D | AQ188: E | AR188: A | AS188: A | AT188: A | AU188: E | AV188: D | AW188: C | AX188: A | AY188: B | AZ188: B
C189: 101531 | D189: =[1]Data!C59 -> 22 | E189: =LOOKUP(D189,[1]Inputs!$B$55:$B$84,[1]Inputs!$A$55:$A$84) -> 23 | F189: =SUM([1]Data!AY59+[1]Data!BA59+[1]Data!BB59+[1]Data!BE59+[1]Data!BH59+[1]Data!BP59+[1]Data!BS59+[1]Data!BT59+[1]Data!CD59)/[1]Inputs!$A$12 -> 0.6666666667 | G189: =SUM([1]Data!AZ59+[1]Data!BB59+[1]Data!BC59+[1]Data!BF59+[1]Data!BI59+[1]Data!BQ59+[1]Data!BT59+[1]Data!BU59+[1]Data!CE59)/[1]Inputs!$A$12 -> 0.6666666667 | H189: =SUM([1]Data!BA59+[1]Data!BC59+[1]Data!BD59+[1]Data!BG59+[1]Data!BJ59+[1]Data!BR59+[1]Data!BU59+[1]Data!BV59+[1]Data!CF59)/[1]Inputs!$A$12 -> 0.6666666667 | I189: =SUM([1]Data!BB59+[1]Data!BD59+[1]Data!BE59+[1]Data!BH59+[1]Data!BK59+[1]Data!BS59+[1]Data!BV59+[1]Data!BW59+[1]Data!CG59)/[1]Inputs!$A$12 -> 0.6666666667 | J189: =SUM([1]Data!BC59+[1]Data!BE59+[1]Data!BF59+[1]Data!BI59+[1]Data!BL59+[1]Data!BT59+[1]Data!BW59+[1]Data!BX59+[1]Data!CH59)/[1]Inputs!$A$12 -> 0.6666666667 | K189: =SUM([1]Data!BD59+[1]Data!BF59+[1]Data!BG59+[1]Data!BJ59+[1]Data!BM59+[1]Data!BU59+[1]Data!BX59+[1]Data!BY59+[1]Data!CI59)/[1]Inputs!$A$12 -> 0.6666666667 | M189: E | N189: C | O189: C | P189: D | Q189: A | R189: A | S189: E | T189: D | U189: D | V189: E | W189: A | X189: C | Y189: C | Z189: A | AA189: D | AB189: B | AC189: A | AD189: E | AE189: A | AF189: A | AG189: D | AH189: A | AI189: B | AJ189: D | AK189: A | AL189: E | AM189: D | AN189: E | AO189: B | AP189: D | AQ189: C | AR189: C | AS189: E | AT189: A | AU189: B | AV189: A | AW189: C | AX189: A | AY189: C | AZ189: D
C190: 101595 | D190: =[1]Data!C159 -> 15 | E190: =LOOKUP(D190,[1]Inputs!$B$55:$B$84,[1]Inputs!$A$55:$A$84) -> 18 | F190: =SUM([1]Data!AY159+[1]Data!BA159+[1]Data!BB159+[1]Data!BE159+[1]Data!BH159+[1]Data!BP159+[1]Data!BS159+[1]Data!BT159+[1]Data!CD159)/[1]Inputs!$A$12 -> 0.3333333333 | G190: =SUM([1]Data!AZ159+[1]Data!BB159+[1]Data!BC159+[1]Data!BF159+[1]Data!BI159+[1]Data!BQ159+[1]Data!BT159+[1]Data!BU159+[1]Data!CE159)/[1]Inputs!$A$12 -> 0.3333333333 | H190: =SUM([1]Data!BA159+[1]Data!BC159+[1]Data!BD159+[1]Data!BG159+[1]Data!BJ159+[1]Data!BR159+[1]Data!BU159+[1]Data!BV159+[1]Data!CF159)/[1]Inputs!$A$12 -> 0.2222222222 | I190: =SUM([1]Data!BB159+[1]Data!BD159+[1]Data!BE159+[1]Data!BH159+[1]Data!BK159+[1]Data!BS159+[1]Data!BV159+[1]Data!BW159+[1]Data!CG159)/[1]Inputs!$A$12 -> 0.4444444444 | J190: =SUM([1]Data!BC159+[1]Data!BE159+[1]Data!BF159+[1]Data!BI159+[1]Data!BL159+[1]Data!BT159+[1]Data!BW159+[1]Data!BX159+[1]Data!CH159)/[1]Inputs!$A$12 -> 0.5555555556 | K190: =SUM([1]Data!BD159+[1]Data!BF159+[1]Data!BG159+[1]Data!BJ159+[1]Data!BM159+[1]Data!BU159+[1]Data!BX159+[1]Data!BY159+[1]Data!CI159)/[1]Inputs!$A$12 -> 0.3333333333 | M190: A | N190: D | O190: B | P190: D | Q190: B | R190: E | S190: E | T190: D | U190: E | V190: E | W190: C | X190: D | Y190: D | Z190: A | AA190: C | AB190: B | AC190: B | AD190: B | AE190: A | AF190: D | AG190: D | AH190: C | AI190: B | AJ190: E | AK190: B | AL190: B | AM190: A | AN190: C | AO190: B | AP190: D | AQ190: B | AR190: A | AS190: D | AT190: A | AU190: D | AV190: A | AW190: C | AX190: D | AY190: A | AZ190: A
C191: =[1]Data!E17 -> 101685 | D191: 14 | E191: =LOOKUP(D191,[1]Inputs!$B$55:$B$84,[1]Inputs!$A$55:$A$84) -> 17 | F191: =SUM([1]Data!AY17+[1]Data!BA17+[1]Data!BB17+[1]Data!BE17+[1]Data!BH17+[1]Data!BP17+[1]Data!BS17+[1]Data!BT17+[1]Data!CD17)/[1]Inputs!$A$12 -> 0.3333333333 | G191: =SUM([1]Data!BD17+[1]Data!BF17+[1]Data!BI17+[1]Data!BL17+[1]Data!BO17+[1]Data!BQ17+[1]Data!CA17+[1]Data!CH17)/[1]Inputs!$A$13 -> 0.5 | H191: =SUM([1]Data!AZ17+[1]Data!BJ17+[1]Data!BM17+[1]Data!BX17+[1]Data!CB17+[1]Data!CJ17+[1]Data!CK17)/[1]Inputs!$A$14 -> 0.3333333333 | I191: =SUM([1]Data!BV17+[1]Data!CC17+[1]Data!CL17)/[1]Inputs!$A$15 -> 0 | J191: =SUM([1]Data!BC17+[1]Data!BG17+[1]Data!BJ17+[1]Data!BN17+[1]Data!BR17+[1]Data!BU17+[1]Data!BY17+[1]Data!BZ17+[1]Data!CE17+[1]Data!CG17)/[1]Inputs!$A$16 -> 0.3 | K191: =SUM([1]Data!BW17+[1]Data!CF17+[1]Data!CI17)/[1]Inputs!$A$17 -> 0.3333333333 | M191: E | N191: C | O191: B | P191: D | Q191: C | R191: E | S191: E | T191: D | U191: E | V191: E | W191: C | X191: D | Y191: C | Z191: B | AA191: D | AB191: B | AC191: E | AD191: E | AE191: A | AF191: D | AG191: D | AH191: B | AI191: D | AJ191: A | AK191: A | AL191: B | AM191: E | AN191: B | AO191: C | AP191: A | AQ191: B | AR191: A | AS191: B | AT191: D | AU191: A | AV191: B | AW191: B | AX191: D | AY191: D | AZ191: D
C192: 101685 | D192: =[1]Data!C153 -> 20 | E192: =LOOKUP(D192,[1]Inputs!$B$55:$B$84,[1]Inputs!$A$55:$A$84) -> 21 | F192: =SUM([1]Data!AY153+[1]Data!BA153+[1]Data!BB153+[1]Data!BE153+[1]Data!BH153+[1]Data!BP153+[1]Data!BS153+[1]Data!BT153+[1]Data!CD153)/[1]Inputs!$A$12 -> 0.5555555556 | G192: =SUM([1]Data!AZ153+[1]Data!BB153+[1]Data!BC153+[1]Data!BF153+[1]Data!BI153+[1]Data!BQ153+[1]Data!BT153+[1]Data!BU153+[1]Data!CE153)/[1]Inputs!$A$12 -> 0.5555555556 | H192: =SUM([1]Data!BA153+[1]Data!BC153+[1]Data!BD153+[1]Data!BG153+[1]Data!BJ153+[1]Data!BR153+[1]Data!BU153+[1]Data!BV153+[1]Data!CF153)/[1]Inputs!$A$12 -> 0.5555555556 | I192: =SUM([1]Data!BB153+[1]Data!BD153+[1]Data!BE153+[1]Data!BH153+[1]Data!BK153+[1]Data!BS153+[1]Data!BV153+[1]Data!BW153+[1]Data!CG153)/[1]Inputs!$A$12 -> 0.1111111111 | J192: =SUM([1]Data!BC153+[1]Data!BE153+[1]Data!BF153+[1]Data!BI153+[1]Data!BL153+[1]Data!BT153+[1]Data!BW153+[1]Data!BX153+[1]Data!CH153)/[1]Inputs!$A$12 -> 0.6666666667 | K192: =SUM([1]Data!BD153+[1]Data!BF153+[1]Data!BG153+[1]Data!BJ153+[1]Data!BM153+[1]Data!BU153+[1]Data!BX153+[1]Data!BY153+[1]Data!CI153)/[1]Inputs!$A$12 -> 0.5555555556 | M192: E | N192: D | O192: B | P192: D | Q192: C | R192: E | S192: E | T192: D | U192: D | V192: E | W192: C | X192: C | Y192: C | Z192: A | AA192: D | AB192: A | AC192: D | AD192: E | AE192: A | AF192: D | AG192: D | AH192: A | AI192: B | AJ192: E | AK192: E | AL192: A | AM192: E | AN192: E | AO192: E | AP192: E | AQ192: A | AR192: D | AS192: D | AT192: B | AU192: A | AV192: A | AW192: B | AX192: D | AY192: A | AZ192: A
C193: 101730 | D193: =[1]Data!C213 -> 12 | E193: =LOOKUP(D193,[1]Inputs!$B$55:$B$84,[1]Inputs!$A$55:$A$84) -> 16 | F193: =SUM([1]Data!AY213+[1]Data!BA213+[1]Data!BB213+[1]Data!BE213+[1]Data!BH213+[1]Data!BP213+[1]Data!BS213+[1]Data!BT213+[1]Data!CD213)/[1]Inputs!$A$12 -> 0.1111111111 | G193: =SUM([1]Data!AZ213+[1]Data!BB213+[1]Data!BC213+[1]Data!BF213+[1]Data!BI213+[1]Data!BQ213+[1]Data!BT213+[1]Data!BU213+[1]Data!CE213)/[1]Inputs!$A$12 -> 0.5555555556 | H193: =SUM([1]Data!BA213+[1]Data!BC213+[1]Data!BD213+[1]Data!BG213+[1]Data!BJ213+[1]Data!BR213+[1]Data!BU213+[1]Data!BV213+[1]Data!CF213)/[1]Inputs!$A$12 -> 0.4444444444 | I193: =SUM([1]Data!BB213+[1]Data!BD213+[1]Data!BE213+[1]Data!BH213+[1]Data!BK213+[1]Data!BS213+[1]Data!BV213+[1]Data!BW213+[1]Data!CG213)/[1]Inputs!$A$12 -> 0.2222222222 | J193: =SUM([1]Data!BC213+[1]Data!BE213+[1]Data!BF213+[1]Data!BI213+[1]Data!BL213+[1]Data!BT213+[1]Data!BW213+[1]Data!BX213+[1]Data!CH213)/[1]Inputs!$A$12 -> 0.3333333333 | K193: =SUM([1]Data!BD213+[1]Data!BF213+[1]Data!BG213+[1]Data!BJ213+[1]Data!BM213+[1]Data!BU213+[1]Data!BX213+[1]Data!BY213+[1]Data!CI213)/[1]Inputs!$A$12 -> 0.5555555556 | M193: E | N193: D | O193: B | P193: C | Q193: B | R193: E | S193: A | T193: D | U193: E | V193: E | W193: D | X193: B | Y193: B | Z193: D | AA193: A | AB193: D | AC193: E | AD193: D | AE193: A | AF193: D | AG193: E | AH193: E | AI193: B | AJ193: B | AK193: E | AL193: D | AM193: C | AN193: B | AO193: D | AP193: D | AQ193: B | AR193: E | AS193: A | AT193: A | AU193: B | AV193: A | AW193: D | AX193: E | AY193: B | AZ193: C
C194: 102177 | D194: =[1]Data!C58 -> 11 | E194: =LOOKUP(D194,[1]Inputs!$B$55:$B$84,[1]Inputs!$A$55:$A$84) -> 16 | F194: =SUM([1]Data!AY58+[1]Data!BA58+[1]Data!BB58+[1]Data!BE58+[1]Data!BH58+[1]Data!BP58+[1]Data!BS58+[1]Data!BT58+[1]Data!CD58)/[1]Inputs!$A$12 -> 0.4444444444 | G194: =SUM([1]Data!AZ58+[1]Data!BB58+[1]Data!BC58+[1]Data!BF58+[1]Data!BI58+[1]Data!BQ58+[1]Data!BT58+[1]Data!BU58+[1]Data!CE58)/[1]Inputs!$A$12 -> 0.3333333333 | H194: =SUM([1]Data!BA58+[1]Data!BC58+[1]Data!BD58+[1]Data!BG58+[1]Data!BJ58+[1]Data!BR58+[1]Data!BU58+[1]Data!BV58+[1]Data!CF58)/[1]Inputs!$A$12 -> 0.2222222222 | I194: =SUM([1]Data!BB58+[1]Data!BD58+[1]Data!BE58+[1]Data!BH58+[1]Data!BK58+[1]Data!BS58+[1]Data!BV58+[1]Data!BW58+[1]Data!CG58)/[1]Inputs!$A$12 -> 0.3333333333 | J194: =SUM([1]Data!BC58+[1]Data!BE58+[1]Data!BF58+[1]Data!BI58+[1]Data!BL58+[1]Data!BT58+[1]Data!BW58+[1]Data!BX58+[1]Data!CH58)/[1]Inputs!$A$12 -> 0.3333333333 | K194: =SUM([1]Data!BD58+[1]Data!BF58+[1]Data!BG58+[1]Data!BJ58+[1]Data!BM58+[1]Data!BU58+[1]Data!BX58+[1]Data!BY58+[1]Data!CI58)/[1]Inputs!$A$12 -> 0.2222222222 | M194: C | N194: B | O194: B | P194: D | Q194: B | R194: B | S194: E | T194: D | U194: D | V194: E | W194: B | X194: B | Y194: B | Z194: A | AA194: C | AB194: E | AC194: B | AD194: D | AE194: C | AF194: A | AG194: C | AH194: D | AI194: A | AJ194: B | AK194: C | AL194: A | AM194: A | AN194: E | AO194: D | AP194: B | AQ194: E | AR194: C | AS194: C | AT194: D | AU194: C | AV194: C | AW194: B | AX194: D | AY194: B | AZ194: A
C195: 102191 | D195: =[1]Data!C148 -> 12 | E195: =LOOKUP(D195,[1]Inputs!$B$55:$B$84,[1]Inputs!$A$55:$A$84) -> 16 | F195: =SUM([1]Data!AY148+[1]Data!BA148+[1]Data!BB148+[1]Data!BE148+[1]Data!BH148+[1]Data!BP148+[1]Data!BS148+[1]Data!BT148+[1]Data!CD148)/[1]Inputs!$A$12 -> 0.2222222222 | G195: =SUM([1]Data!AZ148+[1]Data!BB148+[1]Data!BC148+[1]Data!BF148+[1]Data!BI148+[1]Data!BQ148+[1]Data!BT148+[1]Data!BU148+[1]Data!CE148)/[1]Inputs!$A$12 -> 0.2222222222 | H195: =SUM([1]Data!BA148+[1]Data!BC148+[1]Data!BD148+[1]Data!BG148+[1]Data!BJ148+[1]Data!BR148+[1]Data!BU148+[1]Data!BV148+[1]Data!CF148)/[1]Inputs!$A$12 -> 0.1111111111 | I195: =SUM([1]Data!BB148+[1]Data!BD148+[1]Data!BE148+[1]Data!BH148+[1]Data!BK148+[1]Data!BS148+[1]Data!BV148+[1]Data!BW148+[1]Data!CG148)/[1]Inputs!$A$12 -> 0.3333333333 | J195: =SUM([1]Data!BC148+[1]Data!BE148+[1]Data!BF148+[1]Data!BI148+[1]Data!BL148+[1]Data!BT148+[1]Data!BW148+[1]Data!BX148+[1]Data!CH148)/[1]Inputs!$A$12 -> 0.3333333333 | K195: =SUM([1]Data!BD148+[1]Data!BF148+[1]Data!BG148+[1]Data!BJ148+[1]Data!BM148+[1]Data!BU148+[1]Data!BX148+[1]Data!BY148+[1]Data!CI148)/[1]Inputs!$A$12 -> 0.1111111111 | M195: E | N195: B | O195: B | P195: C | Q195: C | R195: E | S195: E | T195: D | U195: E | V195: D | W195: D | X195: D | Y195: B | Z195: C | AA195: C | AB195: D | AC195: B | AD195: E | AE195: A | AF195: D | AG195: D | AH195: B | AI195: A | AJ195: A | AK195: D | AL195: C | AM195: D | AN195: B | AO195: B | AP195: C | AQ195: D | AR195: A | AS195: C | AT195: C | AU195: D | AV195: A | AW195: C | AX195: C | AY195: D | AZ195: A
C196: 103120 | D196: =[1]Data!C67 -> 15 | E196: =LOOKUP(D196,[1]Inputs!$B$55:$B$84,[1]Inputs!$A$55:$A$84) -> 18 | F196: =SUM([1]Data!AY67+[1]Data!BA67+[1]Data!BB67+[1]Data!BE67+[1]Data!BH67+[1]Data!BP67+[1]Data!BS67+[1]Data!BT67+[1]Data!CD67)/[1]Inputs!$A$12 -> 0.5555555556 | G196: =SUM([1]Data!AZ67+[1]Data!BB67+[1]Data!BC67+[1]Data!BF67+[1]Data!BI67+[1]Data!BQ67+[1]Data!BT67+[1]Data!BU67+[1]Data!CE67)/[1]Inputs!$A$12 -> 0.2222222222 | H196: =SUM([1]Data!BA67+[1]Data!BC67+[1]Data!BD67+[1]Data!BG67+[1]Data!BJ67+[1]Data!BR67+[1]Data!BU67+[1]Data!BV67+[1]Data!CF67)/[1]Inputs!$A$12 -> 0.4444444444 | I196: =SUM([1]Data!BB67+[1]Data!BD67+[1]Data!BE67+[1]Data!BH67+[1]Data!BK67+[1]Data!BS67+[1]Data!BV67+[1]Data!BW67+[1]Data!CG67)/[1]Inputs!$A$12 -> 0.2222222222 | J196: =SUM([1]Data!BC67+[1]Data!BE67+[1]Data!BF67+[1]Data!BI67+[1]Data!BL67+[1]Data!BT67+[1]Data!BW67+[1]Data!BX67+[1]Data!CH67)/[1]Inputs!$A$12 -> 0.5555555556 | K196: =SUM([1]Data!BD67+[1]Data!BF67+[1]Data!BG67+[1]Data!BJ67+[1]Data!BM67+[1]Data!BU67+[1]Data!BX67+[1]Data!BY67+[1]Data!CI67)/[1]Inputs!$A$12 -> 0.4444444444 | M196: B | N196: D | O196: B | P196: D | Q196: C | R196: A | S196: E | T196: D | U196: D | V196: C | W196: C | X196: A | Y196: C | Z196: B | AA196: C | AB196: E | AC196: B | AD196: D | AE196: B | AF196: A | AG196: D | AH196: A | AI196: B | AJ196: C | AK196: B | AL196: B | AM196: E | AN196: A | AO196: B | AP196: C | AQ196: E | AR196: A | AS196: B | AT196: C | AU196: B | AV196: A | AW196: A | AX196: D | AY196: E | AZ196: C
C197: 103140 | D197: =[1]Data!C107 -> 16 | E197: =LOOKUP(D197,[1]Inputs!$B$55:$B$84,[1]Inputs!$A$55:$A$84) -> 18 | F197: =SUM([1]Data!AY107+[1]Data!BA107+[1]Data!BB107+[1]Data!BE107+[1]Data!BH107+[1]Data!BP107+[1]Data!BS107+[1]Data!BT107+[1]Data!CD107)/[1]Inputs!$A$12 -> 0.3333333333 | G197: =SUM([1]Data!AZ107+[1]Data!BB107+[1]Data!BC107+[1]Data!BF107+[1]Data!BI107+[1]Data!BQ107+[1]Data!BT107+[1]Data!BU107+[1]Data!CE107)/[1]Inputs!$A$12 -> 0.5555555556 | H197: =SUM([1]Data!BA107+[1]Data!BC107+[1]Data!BD107+[1]Data!BG107+[1]Data!BJ107+[1]Data!BR107+[1]Data!BU107+[1]Data!BV107+[1]Data!CF107)/[1]Inputs!$A$12 -> 0.3333333333 | I197: =SUM([1]Data!BB107+[1]Data!BD107+[1]Data!BE107+[1]Data!BH107+[1]Data!BK107+[1]Data!BS107+[1]Data!BV107+[1]Data!BW107+[1]Data!CG107)/[1]Inputs!$A$12 -> 0.3333333333 | J197: =SUM([1]Data!BC107+[1]Data!BE107+[1]Data!BF107+[1]Data!BI107+[1]Data!BL107+[1]Data!BT107+[1]Data!BW107+[1]Data!BX107+[1]Data!CH107)/[1]Inputs!$A$12 -> 0.5555555556 | K197: =SUM([1]Data!BD107+[1]Data!BF107+[1]Data!BG107+[1]Data!BJ107+[1]Data!BM107+[1]Data!BU107+[1]Data!BX107+[1]Data!BY107+[1]Data!CI107)/[1]Inputs!$A$12 -> 0.1111111111 | M197: E | N197: C | O197: B | P197: C | Q197: D | R197: E | S197: E | T197: D | U197: D | V197: E | W197: B | X197: C | Y197: B | Z197: B | AA197: D | AB197: D | AC197: C | AD197: E | AE197: A | AF197: D | AG197: D | AH197: E | AI197: C | AJ197: B | AK197: D | AL197: B | AM197: A | AN197: B | AO197: A | AP197: D | AQ197: D | AR197: B | AS197: D | AT197: B | AU197: D | AV197: B | AW197: B | AX197: C | AY197: E | AZ197: A
C198: 103178 | D198: =[1]Data!C131 -> 13 | E198: =LOOKUP(D198,[1]Inputs!$B$55:$B$84,[1]Inputs!$A$55:$A$84) -> 17 | F198: =SUM([1]Data!AY131+[1]Data!BA131+[1]Data!BB131+[1]Data!BE131+[1]Data!BH131+[1]Data!BP131+[1]Data!BS131+[1]Data!BT131+[1]Data!CD131)/[1]Inputs!$A$12 -> 0.2222222222 | G198: =SUM([1]Data!AZ131+[1]Data!BB131+[1]Data!BC131+[1]Data!BF131+[1]Data!BI131+[1]Data!BQ131+[1]Data!BT131+[1]Data!BU131+[1]Data!CE131)/[1]Inputs!$A$12 -> 0.4444444444 | H198: =SUM([1]Data!BA131+[1]Data!BC131+[1]Data!BD131+[1]Data!BG131+[1]Data!BJ131+[1]Data!BR131+[1]Data!BU131+[1]Data!BV131+[1]Data!CF131)/[1]Inputs!$A$12 -> 0.3333333333 | I198: =SUM([1]Data!BB131+[1]Data!BD131+[1]Data!BE131+[1]Data!BH131+[1]Data!BK131+[1]Data!BS131+[1]Data!BV131+[1]Data!BW131+[1]Data!CG131)/[1]Inputs!$A$12 -> 0.2222222222 | J198: =SUM([1]Data!BC131+[1]Data!BE131+[1]Data!BF131+[1]Data!BI131+[1]Data!BL131+[1]Data!BT131+[1]Data!BW131+[1]Data!BX131+[1]Data!CH131)/[1]Inputs!$A$12 -> 0.4444444444 | K198: =SUM([1]Data!BD131+[1]Data!BF131+[1]Data!BG131+[1]Data!BJ131+[1]Data!BM131+[1]Data!BU131+[1]Data!BX131+[1]Data!BY131+[1]Data!CI131)/[1]Inputs!$A$12 -> 0.3333333333 | M198: E | N198: C | O198: B | P198: C | Q198: C | R198: E | S198: E | T198: D | U198: C | V198: D | W198: C | X198: D | Y198: B | Z198: A | AA198: E | AB198: D | AC198: A | AD198: E | AE198: A | AF198: D | AG198: E | AH198: C | AI198: C | AJ198: D | AK198: D | AL198: C | AM198: C | AN198: C | AO198: A | AP198: C | AQ198: A | AR198: C | AS198: B | AT198: C | AU198: C | AV198: A | AW198: D | AX198: A | AY198: C | AZ198: C
C199: 103303 | D199: =[1]Data!C133 -> 10 | E199: =LOOKUP(D199,[1]Inputs!$B$55:$B$84,[1]Inputs!$A$55:$A$84) -> 15 | F199: =SUM([1]Data!AY133+[1]Data!BA133+[1]Data!BB133+[1]Data!BE133+[1]Data!BH133+[1]Data!BP133+[1]Data!BS133+[1]Data!BT133+[1]Data!CD133)/[1]Inputs!$A$12 -> 0.3333333333 | G199: =SUM([1]Data!AZ133+[1]Data!BB133+[1]Data!BC133+[1]Data!BF133+[1]Data!BI133+[1]Data!BQ133+[1]Data!BT133+[1]Data!BU133+[1]Data!CE133)/[1]Inputs!$A$12 -> 0.5555555556 | H199: =SUM([1]Data!BA133+[1]Data!BC133+[1]Data!BD133+[1]Data!BG133+[1]Data!BJ133+[1]Data!BR133+[1]Data!BU133+[1]Data!BV133+[1]Data!CF133)/[1]Inputs!$A$12 -> 0.4444444444 | I199: =SUM([1]Data!BB133+[1]Data!BD133+[1]Data!BE133+[1]Data!BH133+[1]Data!BK133+[1]Data!BS133+[1]Data!BV133+[1]Data!BW133+[1]Data!CG133)/[1]Inputs!$A$12 -> 0.5555555556 | J199: =SUM([1]Data!BC133+[1]Data!BE133+[1]Data!BF133+[1]Data!BI133+[1]Data!BL133+[1]Data!BT133+[1]Data!BW133+[1]Data!BX133+[1]Data!CH133)/[1]Inputs!$A$12 -> 0.6666666667 | K199: =SUM([1]Data!BD133+[1]Data!BF133+[1]Data!BG133+[1]Data!BJ133+[1]Data!BM133+[1]Data!BU133+[1]Data!BX133+[1]Data!BY133+[1]Data!CI133)/[1]Inputs!$A$12 -> 0.3333333333 | M199: B | N199: D | O199: B | P199: B | Q199: C | R199: E | S199: E | T199: D | U199: E | V199: E | W199: C | X199: D | Y199: B | Z199: B | AA199: B | AB199: B | AC199: B | AD199: B | AE199: B | AF199: B | AG199: D | AH199: C | AI199: B | AJ199: B | AK199: D | AL199: B | AM199: B | AN199: B | AO199: B | AP199: B | AQ199: B | AR199: D | AS199: B | AT199: B | AU199: C | AV199: B | AW199: B | AX199: B | AY199: B | AZ199: B
C200: 103306 | D200: =[1]Data!C247 -> 14 | E200: =LOOKUP(D200,[1]Inputs!$B$55:$B$84,[1]Inputs!$A$55:$A$84) -> 17 | F200: =SUM([1]Data!AY247+[1]Data!BA247+[1]Data!BB247+[1]Data!BE247+[1]Data!BH247+[1]Data!BP247+[1]Data!BS247+[1]Data!BT247+[1]Data!CD247)/[1]Inputs!$A$12 -> 0.2222222222 | G200: =SUM([1]Data!AZ247+[1]Data!BB247+[1]Data!BC247+[1]Data!BF247+[1]Data!BI247+[1]Data!BQ247+[1]Data!BT247+[1]Data!BU247+[1]Data!CE247)/[1]Inputs!$A$12 -> 0.2222222222 | H200: =SUM([1]Data!BA247+[1]Data!BC247+[1]Data!BD247+[1]Data!BG247+[1]Data!BJ247+[1]Data!BR247+[1]Data!BU247+[1]Data!BV247+[1]Data!CF247)/[1]Inputs!$A$12 -> 0.1111111111 | I200: =SUM([1]Data!BB247+[1]Data!BD247+[1]Data!BE247+[1]Data!BH247+[1]Data!BK247+[1]Data!BS247+[1]Data!BV247+[1]Data!BW247+[1]Data!CG247)/[1]Inputs!$A$12 -> 0.4444444444 | J200: =SUM([1]Data!BC247+[1]Data!BE247+[1]Data!BF247+[1]Data!BI247+[1]Data!BL247+[1]Data!BT247+[1]Data!BW247+[1]Data!BX247+[1]Data!CH247)/[1]Inputs!$A$12 -> 0.4444444444 | K200: =SUM([1]Data!BD247+[1]Data!BF247+[1]Data!BG247+[1]Data!BJ247+[1]Data!BM247+[1]Data!BU247+[1]Data!BX247+[1]Data!BY247+[1]Data!CI247)/[1]Inputs!$A$12 -> 0.2222222222 | M200: D | N200: D | O200: B | P200: C | Q200: C | R200: B | S200: A | T200: D | U200: D | V200: E | W200: D | X200: C | Y200: B | Z200: E | AA200: D | AB200: B | AC200: E | AD200: E | AE200: A | AF200: D | AG200: D | AH200: B | AI200: C | AJ200: D | AK200: B | AL200: B | AM200: D | AN200: A | AO200: D | AP200: D | AQ200: B | AR200: B | AS200: B | AT200: B | AU200: B | AV200: E | AW200: D | AX200: A | AY200: C | AZ200: D
... 56 more rows
